Workbook

Sheet Contents
A1: 80 | M1: ESC USE ONLY
D2: ESSENTIAL SERVICES COMMISSION
D3: Water Price Review
D4: Financial Model Template
B7: Table of Contents | F7: Water Business: | H7: =+N24 -> Lower Murray Water - Urban | I7: =+O24 -> LMW-U
B8: Section & Sheet Titles | F8: Regulatory Period: | H8: 2023-24 to 2027-28 (Fifth) | N8: [Decision] | O8: [Month] | P8: [Year] | Q8: [Version]
F9: Model Name: | H9: =I7&"_Price Review Template_"&O9&P9&Q9 -> LMW-U_Price Review Template_Oct2021 - v1 | N9: Draft | O9: Oct | P9: 2021 | Q9: - v1 | R9: << Select
B10: 1 | C10: Model Quality Check | F10: Decision type: | H10: =+N9&" Decision" -> Draft Decision | N10: Draft | O10: Jan | P10: 2016 | Q10: - v1
B11: 2 | C11: Key Assumptions Price Control | N11: Final | O11: Feb | P11: 2017 | Q11: - v1.2
B12: 3 | C12: Expenditure - Detail | F12: Model Key: | O12: Mar | P12: 2018 | Q12: - v3
B13: 4 | C13: Operating Expenditure - Forecast | O13: Apr | P13: 2019 | Q13: - v3.1
B14: 5 | C14: Operating Expenditure - Breakdown | G14: BLUE | H14: =+I7&" - DATA INPUT CELL" -> LMW-U - DATA INPUT CELL | O14: May | P14: 2020 | Q14: - v4
B15: 6 | C15: Capital Expenditure - Forecast Input | O15: Jun | P15: 2021 | Q15: - v4.1
B16: 7 | C16: Capital Expenditure - Asset Category Breakdown | G16: PURPLE | H16: NOTES / INSTRUCTIONS | O16: Jul | P16: 2022 | Q16: - v5
B17: 8 | C17: Expenditure Summary | O17: Aug | P17: 2023 | Q17: - v5.1
B18: 9 | C18: Rolled forward regulatory asset base (RAB) | G18: GREY | H18: MODEL PARAMETERS / ASSUMPTIONS | O18: Sep | Q18: - v6
B19: 10 | C19: Previous period adjustments | O19: Oct | Q19: - v6.1
B20: 11 | C20: Revenue forecast (price caps) | G20: WHITE | H20: FORMULA / HARDCODED VALUES | O20: Nov | Q20: - v7
B21: 12 | C21: Revenue forecast (tariff basket) | O21: Dec | Q21: - v7.1
B22: 13 | C22: Non Prescribed Services | G22: ORANGE | H22: FORMULA DIFFERENT TO ADJACENT CELL
B23: 14 | C23: Cash, debt and tax assumptions | N23: [Business]
B24: 15 | C24: Revenue requirement detail | G24: GREEN | H24: DATA FROM 2018 DECISION OR PERFORMANCE REPORT | N24: Lower Murray Water - Urban | O24: =+VLOOKUP(N24,N25:O42,2,FALSE) -> LMW-U
B25: 16 | C25: Financial indicators | N25: Barwon Water | O25: BW
B26: 17 | C26: Outcomes | G26: RED | H26: ERROR CHECK | N26: Central Highlands Water | O26: CHW
B27: 18 | C27: Guaranteed Service Levels (GSL) | N27: Greater Western Water | O27: GWW
B28: 19 | C28: Dashboard - Pricing | N28: Coliban Water | O28: CW
B29: 20 | C29: Dashboard - Opex | N29: East Gippsland Water | O29: EGW
B30: 21 | C30: Dashboard - Capex | N30: Gippsland Water | O30: CGW
B31: 22 | C31: Dashboard - Data | N31: Goulburn Valley Water | O31: GVW
B32: 23 | C32: Household Bill | N32: GWM Water | O32: GWMW | P32: diff model
N33: Lower Murray Water - Urban | O33: LMW-U | P33: diff model
N34: Lower Murray Water - Rural | O34: LMW-R
N35: North East Water | O35: NEW
N36: South East Water | O36: SEW
N37: South Gippsland Water | O37: SGW
N38: Southern Rural Water | O38: SRW | P38: diff model
N39: Wannon Water | O39: WNW
N40: Westernport Water | O40: WPW
N41: Yarra Valley Water | O41: YVW

Sheet Model Quality Check
A1: 80 | B1: Model Quality Check
B2: =+Contents!H7 -> Lower Murray Water - Urban
B3: Go to Table of Contents
K4: FIRST REG PERIOD | O4: SECOND REG PERIOD | T4: THIRD REG PERIOD | Y4: FOURTH REG PERIOD | AD4: FIFTH REG PERIOD | AI4: SIXTH REG PERIOD
F6: Straight Line | J6: 2006 | K6: 2007 | L6: 2008 | M6: 2009 | N6: 2010 | O6: 2011 | P6: 2012 | Q6: 2013 | R6: 2014 | S6: 2015 | T6: 2016 | U6: 2017 | V6: 2018 | W6: 2019 | X6: 2020 | Y6: 2021 | Z6: 2022 | AA6: 2023 | AB6: 2024 | AC6: 2025 | AD6: 2026 | AE6: 2027 | AF6: 2028 | AG6: =AF6+1 -> 2029 | AH6: =AG6+1 -> 2030 | AI6: 2031 | AJ6: 2032 | AK6: 2033
F7: Declining Balance | J7: =+CONCATENATE(J6-1,"-",RIGHT(J6,2)) -> 2005-06 | K7: 2006-07 | L7: 2007-08 | M7: 2008-09 | N7: 2009-10 | O7: 2010-11 | P7: 2011-12 | Q7: 2012-13 | R7: 2013-14 | S7: 2014-15 | T7: 2015-16 | U7: 2016-17 | V7: 2017-18 | W7: 2018-19 | X7: 2019-20 | Y7: 2020-21 | Z7: 2021-22 | AA7: 2022-23 | AB7: 2023-24 | AC7: 2024-25 | AD7: 2025-26 | AE7: 2026-27 | AF7: 2027-28 | AG7: 2028-29 | AH7: 2029-30 | AI7: 2030-31 | AJ7: 2031-32 | AK7: 2032-33
D9: Model ready for submission: | I9: =SUM(AA15:AK49) -> 0 | V9: (If No, please ensure that the error check is corrected at the source)
D11: All financial indicators satisfied: | I11: =SUM(AB54:AK59) -> 4 | V11: (If No, please ensure that the error check is corrected at the source)
E14: 1. | F14: Opex_FO
G15: Reconciliation to 'Opex_Breakdown' tab row 37 | AB15: =Opex_FO!AC102 -> 0 | AC15: =Opex_FO!AD102 -> 0 | AD15: =Opex_FO!AE102 -> 0 | AE15: =Opex_FO!AF102 -> 0 | AF15: =Opex_FO!AG102 -> 0 | AG15: =Opex_FO!AH102 -> 0 | AH15: =Opex_FO!AI102 -> 0 | AI15: =Opex_FO!AJ102 -> 0 | AJ15: =Opex_FO!AK102 -> 0 | AK15: =Opex_FO!AL102 -> 0
E17: 2. | F17: Opex_Breakdown
G18: Reconciliation to 'Opex_FO' tab row 97 | AB18: =Opex_Breakdown!AC42 -> 0 | AC18: =Opex_Breakdown!AD42 -> 0 | AD18: =Opex_Breakdown!AE42 -> 0 | AE18: =Opex_Breakdown!AF42 -> 0 | AF18: =Opex_Breakdown!AG42 -> 0 | AG18: =Opex_Breakdown!AH42 -> 0 | AH18: =Opex_Breakdown!AI42 -> 0 | AI18: =Opex_Breakdown!AJ42 -> 0 | AJ18: =Opex_Breakdown!AK42 -> 0 | AK18: =Opex_Breakdown!AL42 -> 0
G20: Reconciliation of Opex by service and function | AB20: =Opex_Breakdown!AC27 -> 0 | AC20: =Opex_Breakdown!AD27 -> 0 | AD20: =Opex_Breakdown!AE27 -> 0 | AE20: =Opex_Breakdown!AF27 -> 0 | AF20: =Opex_Breakdown!AG27 -> 0 | AG20: =Opex_Breakdown!AH27 -> 0 | AH20: =Opex_Breakdown!AI27 -> 0 | AI20: =Opex_Breakdown!AJ27 -> 0 | AJ20: =Opex_Breakdown!AK27 -> 0 | AK20: =Opex_Breakdown!AL27 -> 0
E22: 3. | F22: Capex_FO input
G23: Reconciliation of total prescribed capex between cost driver and capital type | AB23: ='Capex_FO input'!D26 -> 0 | AC23: ='Capex_FO input'!E26 -> 0 | AD23: ='Capex_FO input'!F26 -> 0 | AE23: ='Capex_FO input'!G26 -> 0 | AF23: ='Capex_FO input'!H26 -> 0 | AG23: ='Capex_FO input'!I26 -> 0 | AH23: ='Capex_FO input'!J26 -> 0 | AI23: ='Capex_FO input'!K26 -> 0 | AJ23: ='Capex_FO input'!L26 -> 0 | AK23: ='Capex_FO input'!M26 -> 0
E25: 4. | F25: Capex_FO_AC
G26: Reconciliation to 'Capex_FO input' tab row 29 | AA26: =Capex_FO_AC!AB30 -> 0 | AB26: =Capex_FO_AC!AC30 -> 0 | AC26: =Capex_FO_AC!AD30 -> 0 | AD26: =Capex_FO_AC!AE30 -> 0 | AE26: =Capex_FO_AC!AF30 -> 0 | AF26: =Capex_FO_AC!AG30 -> 0 | AG26: =Capex_FO_AC!AH30 -> 0 | AH26: =Capex_FO_AC!AI30 -> 0 | AI26: =Capex_FO_AC!AJ30 -> 0 | AJ26: =Capex_FO_AC!AK30 -> 0 | AK26: =Capex_FO_AC!AL30 -> 0
E28: 5. | F28: RollForward_FO
G29: Reconciliation of existing assets book value to RAB | AB29: =IF(ROUND(RollForward_FO!G84,2)=ROUND(RollForward_FO!G82,2),0,1) -> 0
E31: 6. | F31: RevenuePriceCap_FO
G32: Price control - Fifth period | AB32: =IF(KeyAssumptionsPriceControl_FO!I48=1,IF(RevenuePriceCap_FO!AD34="PRICE CONTROL OK",0,1),0) -> 0 | AC32: =IF(KeyAssumptionsPriceControl_FO!I48=1,RevenuePriceCap_FO!AD34,"") -> PRICE CONTROL OK
G34: Price control - Sixth period | AB34: =IF(KeyAssumptionsPriceControl_FO!I48=1,IF(RevenuePriceCap_FO!AI34="PRICE CONTROL OK",0,1),0) -> 0 | AC34: =IF(KeyAssumptionsPriceControl_FO!I48=1,RevenuePriceCap_FO!AI34,"") -> PRICE CONTROL OK
G36: Tariff revenue reconciliation | AB36: =RevenuePriceCap_FO!AC455 -> 0 | AC36: =RevenuePriceCap_FO!AD455 -> 0 | AD36: =RevenuePriceCap_FO!AE455 -> 0 | AE36: =RevenuePriceCap_FO!AF455 -> 0 | AF36: =RevenuePriceCap_FO!AG455 -> 0 | AG36: =RevenuePriceCap_FO!AH455 -> 0 | AH36: =RevenuePriceCap_FO!AI455 -> 0 | AI36: =RevenuePriceCap_FO!AJ455 -> 0 | AJ36: =RevenuePriceCap_FO!AK455 -> 0 | AK36: =RevenuePriceCap_FO!AL455 -> 0
E38: 7. | F38: RevenueTariffBasket_FO
G39: Price control - Fifth period | AB39: =IF(KeyAssumptionsPriceControl_FO!I48=2,IF(RevenueTariffBasket_FO!AD34="PRICE CONTROL OK",0,1),0) -> 0 | AC39: =IF(KeyAssumptionsPriceControl_FO!I48=2,RevenueTariffBasket_FO!AD34,"") -> 
G41: Price control - Sixth period | AB41: =IF(KeyAssumptionsPriceControl_FO!I48=2,IF(RevenueTariffBasket_FO!AI34="PRICE CONTROL OK",0,1),0) -> 0 | AC41: =IF(KeyAssumptionsPriceControl_FO!I48=2,RevenueTariffBasket_FO!AI34,"") -> 
G43: Tariff revenue reconciliation | AB43: =RevenueTariffBasket_FO!AC458 -> 0 | AC43: =RevenueTariffBasket_FO!AD458 -> 0 | AD43: =RevenueTariffBasket_FO!AE458 -> 0 | AE43: =RevenueTariffBasket_FO!AF458 -> 0 | AF43: =RevenueTariffBasket_FO!AG458 -> 0 | AG43: =RevenueTariffBasket_FO!AH458 -> 0 | AH43: =RevenueTariffBasket_FO!AI458 -> 0 | AI43: =RevenueTariffBasket_FO!AJ458 -> 0 | AJ43: =RevenueTariffBasket_FO!AK458 -> 0 | AK43: =RevenueTariffBasket_FO!AL458 -> 0
E45: 8. | F45: Rev&RAV_FO
G46: Rolled forward RAV reconciliation | AB46: ='Rev&RAV_FO'!AC80 -> 0 | AC46: ='Rev&RAV_FO'!AD80 -> 0 | AD46: ='Rev&RAV_FO'!AE80 -> 0 | AE46: ='Rev&RAV_FO'!AF80 -> 0 | AF46: ='Rev&RAV_FO'!AG80 -> 0 | AG46: ='Rev&RAV_FO'!AH80 -> 0 | AH46: ='Rev&RAV_FO'!AI80 -> 0 | AI46: ='Rev&RAV_FO'!AJ80 -> 0 | AJ46: ='Rev&RAV_FO'!AK80 -> 0 | AK46: ='Rev&RAV_FO'!AL80 -> 0
E48: 9. | F48: GSL
G49: Reconciliation to 'Opex_Breakdown' tab row 23 | AB49: =IF(ROUND(GSL!AC40,2)=ROUND(GSL!AC39,2),0,1) -> 0 | AC49: =IF(ROUND(GSL!AD40,2)=ROUND(GSL!AD39,2),0,1) -> 0 | AD49: =IF(ROUND(GSL!AE40,2)=ROUND(GSL!AE39,2),0,1) -> 0 | AE49: =IF(ROUND(GSL!AF40,2)=ROUND(GSL!AF39,2),0,1) -> 0 | AF49: =IF(ROUND(GSL!AG40,2)=ROUND(GSL!AG39,2),0,1) -> 0 | AG49: =IF(ROUND(GSL!AH40,2)=ROUND(GSL!AH39,2),0,1) -> 0 | AH49: =IF(ROUND(GSL!AI40,2)=ROUND(GSL!AI39,2),0,1) -> 0 | AI49: =IF(ROUND(GSL!AJ40,2)=ROUND(GSL!AJ39,2),0,1) -> 0 | AJ49: =IF(ROUND(GSL!AK40,2)=ROUND(GSL!AK39,2),0,1) -> 0 | AK49: =IF(ROUND(GSL!AL40,2)=ROUND(GSL!AL39,2),0,1) -> 0
E53: 1. | F53: Primary Indicator
G54: FFO interest cover | AB54: =Indicators_FO!AC$226 -> 0 | AC54: =Indicators_FO!AD$226 -> 0 | AD54: =Indicators_FO!AE$226 -> 0 | AE54: =Indicators_FO!AF$226 -> 0 | AF54: =Indicators_FO!AG$226 -> 0 | AG54: =Indicators_FO!AH$226 -> 0 | AH54: =Indicators_FO!AI$226 -> 0 | AI54: =Indicators_FO!AJ$226 -> 0 | AJ54: =Indicators_FO!AK$226 -> 0 | AK54: =Indicators_FO!AL$226 -> 0
E56: 2. | F56: Secondary indicators
G57: Net debt / RAV | AB57: =Indicators_FO!AC$235 -> 0 | AC57: =Indicators_FO!AD$235 -> 0 | AD57: =Indicators_FO!AE$235 -> 0 | AE57: =Indicators_FO!AF$235 -> 0 | AF57: =Indicators_FO!AG$235 -> 0 | AG57: =Indicators_FO!AH$235 -> 0 | AH57: =Indicators_FO!AI$235 -> 0 | AI57: =Indicators_FO!AJ$235 -> 0 | AJ57: =Indicators_FO!AK$235 -> 0 | AK57: =Indicators_FO!AL$235 -> 0
G58: FFO / Net debt | AB58: =Indicators_FO!AC$243 -> 3 | AC58: =Indicators_FO!AD$243 -> 0 | AD58: =Indicators_FO!AE$243 -> 0 | AE58: =Indicators_FO!AF$243 -> 0 | AF58: =Indicators_FO!AG$243 -> 0 | AG58: =Indicators_FO!AH$243 -> 0 | AH58: =Indicators_FO!AI$243 -> 0 | AI58: =Indicators_FO!AJ$243 -> 0 | AJ58: =Indicators_FO!AK$243 -> 0 | AK58: =Indicators_FO!AL$243 -> 0
G59: Internal financing ratio | AB59: =Indicators_FO!AC$252 -> 0 | AC59: =Indicators_FO!AD$252 -> 0 | AD59: =Indicators_FO!AE$252 -> 0 | AE59: =Indicators_FO!AF$252 -> 0 | AF59: =Indicators_FO!AG$252 -> 0 | AG59: =Indicators_FO!AH$252 -> 0 | AH59: =Indicators_FO!AI$252 -> 1 | AI59: =Indicators_FO!AJ$252 -> 0 | AJ59: =Indicators_FO!AK$252 -> 0 | AK59: =Indicators_FO!AL$252 -> 0

Sheet KeyAssumptionsPriceControl_FO
A1: 80 | B1: Key Assumptions Price Control
B2: =+Contents!H7 -> Lower Murray Water - Urban
B3: Go to Table of Contents
L4: FIRST REG PERIOD | P4: SECOND REG PERIOD | U4: THIRD REG PERIOD | Z4: FOURTH REG PERIOD | AC4: FIFTH REG PERIOD | AH4: SIXTH REG PERIOD
F6: Straight Line | K6: 2006 | L6: 2007 | M6: 2008 | N6: 2009 | O6: 2010 | P6: 2011 | Q6: 2012 | R6: 2013 | S6: 2014 | T6: 2015 | U6: 2016 | V6: 2017 | W6: 2018 | X6: 2019 | Y6: 2020 | Z6: 2021 | AA6: 2022 | AB6: 2023 | AC6: 2024 | AD6: 2025 | AE6: 2026 | AF6: 2027 | AG6: 2028 | AH6: 2029 | AI6: 2030 | AJ6: 2031 | AK6: 2032 | AL6: 2033
F7: Declining Balance | I7: 2003-04 | J7: 2004-05 | K7: =+CONCATENATE(K6-1,"-",RIGHT(K6,2)) -> 2005-06 | L7: =+CONCATENATE(L6-1,"-",RIGHT(L6,2)) -> 2006-07 | M7: 2007-08 | N7: 2008-09 | O7: 2009-10 | P7: 2010-11 | Q7: 2011-12 | R7: 2012-13 | S7: 2013-14 | T7: 2014-15 | U7: 2015-16 | V7: 2016-17 | W7: 2017-18 | X7: 2018-19 | Y7: 2019-20 | Z7: 2020-21 | AA7: 2021-22 | AB7: 2022-23 | AC7: 2023-24 | AD7: 2024-25 | AE7: 2025-26 | AF7: 2026-27 | AG7: 2027-28 | AH7: =+CONCATENATE(AH6-1,"-",RIGHT(AH6,2)) -> 2028-29 | AI7: 2029-30 | AJ7: 2030-31 | AK7: 2031-32 | AL7: 2032-33
E11: Inflation assumptions
AB12: Estimate
F13: March quarter annual CPI | I13: 141.3 | J13: 144.1 | K13: 147.5 | L13: 151.9 | M13: 155.6 | N13: 162.2 | O13: 166.2 | P13: 171 | Q13: 176.7 | R13: 99.9 | S13: 102.4 | T13: 105.4 | U13: 106.8 | V13: 108.2 | W13: 110.5 | X13: 112.6 | Y13: 114.1 | Z13: 116.6 | AA13: 117.9 | AB13: =[3]KeyAssumptionsPriceControl_FO!$AB$13 -> 123.9
F14: Inflation | J14: =+J13/I13-1 -> 0.01981599434 | K14: 0.02359472588 | L14: 0.02983050847 | M14: 0.02435813035 | N14: 0.04241645244 | O14: 0.02466091245 | P14: 0.02888086643 | Q14: 0.03333333333 | R14: 0.01584606678 | S14: =+IF(S13=0,$AC$44,S13/R13-1) -> 0.02502502503 | T14: 0.029296875 | U14: 0.01328273245 | V14: 0.01310861423 | W14: 0.02125693161 | X14: 0.01900452489 | Y14: 0.01332149201 | Z14: 0.02191060473 | AA14: 0.01114922813 | AB14: 0.05089058524 | AC14: 0.03 | AD14: 0.03 | AE14: 0.03 | AF14: 0.03 | AG14: 0.03 | AH14: 0.03 | AI14: 0.03 | AJ14: 0.03 | AK14: 0.03 | AL14: 0.03
F15: Inflation factor | I15: 0.7871866295 | J15: 0.8027855153 | K15: 0.8217270195 | L15: 0.8462395543 | M15: 0.8668523677 | N15: 0.9036211699 | O15: 0.9259052925 | P15: 0.9526462396 | Q15: 0.9844011142 | R15: =+R13/$AB$13 -> 0.8062953995 | S15: 0.8264729621 | T15: 0.8506860371 | U15: 0.8619854722 | V15: 0.8732849072 | W15: 0.8918482647 | X15: 0.9087974173 | Y15: 0.9209039548 | Z15: 0.9410815174 | AA15: 0.9515738499 | AB15: 1 | AC15: =+AB15*(1+AC14) -> 1.03 | AD15: 1.0609 | AE15: 1.092727 | AF15: 1.12550881 | AG15: 1.159274074 | AH15: =+AG15*(1+AH14) -> 1.194052297 | AI15: =+AH15*(1+AI14) -> 1.229873865 | AJ15: =+AI15*(1+AJ14) -> 1.266770081 | AK15: =+AJ15*(1+AK14) -> 1.304773184 | AL15: =+AK15*(1+AL14) -> 1.343916379
I16: CPI index re-referenced in 2012-13, shaded values have been hardcoded to lock in RAB value.
E21: Cost of debt - 10 year trailing average (Nominal)
AA22: Estimate | AB22: Estimate | AC22: Estimate | AD22: Estimate | AE22: Estimate | AF22: Estimate | AG22: Estimate | AH22: Estimate | AI22: Estimate | AJ22: Estimate | AK22: Estimate | AL22: Estimate
E23: Cost of debt | L23: 0.06981666667 | M23: 0.07414 | N23: 0.0691525788 | O23: 0.07361870984 | P23: 0.07046784142 | Q23: 0.06308887941 | R23: 0.0526945046 | S23: 0.070525 | T23: 0.05360833333 | U23: 0.05270138413 | V23: 0.04908333333 | W23: 0.045283 | X23: 0.046133 | Y23: 0.03305833333 | Z23: 0.03045 | AA23: =[3]KeyAssumptionsPriceControl_FO!AA23 -> 0.03753333333 | AB23: =[3]KeyAssumptionsPriceControl_FO!AB23 -> 0.03753333333 | AC23: =[3]KeyAssumptionsPriceControl_FO!AC23 -> 0.03753333333 | AD23: =[3]KeyAssumptionsPriceControl_FO!AD23 -> 0.03753333333 | AE23: =[3]KeyAssumptionsPriceControl_FO!AE23 -> 0.03753333333 | AF23: =[3]KeyAssumptionsPriceControl_FO!AF23 -> 0.03753333333 | AG23: =[3]KeyAssumptionsPriceControl_FO!AG23 -> 0.03753333333 | AH23: =[3]KeyAssumptionsPriceControl_FO!AH23 -> 0.03753333333 | AI23: =[3]KeyAssumptionsPriceControl_FO!AI23 -> 0.03753333333 | AJ23: =[3]KeyAssumptionsPriceControl_FO!AJ23 -> 0.03753333333 | AK23: =[3]KeyAssumptionsPriceControl_FO!AK23 -> 0.03753333333 | AL23: =[3]KeyAssumptionsPriceControl_FO!AL23 -> 0.03753333333
E24: Re-financing weightings - average 10 yrs | L24: =1/10 -> 0.1 | M24: =1/10 -> 0.1 | N24: =1/10 -> 0.1 | O24: =1/10 -> 0.1 | P24: =1/10 -> 0.1 | Q24: 0.1 | R24: 0.1 | S24: 0.1 | T24: 0.1 | U24: 0.1 | V24: 0.1 | W24: 0.1 | X24: 0.1 | Y24: 0.1 | Z24: 0.1 | AA24: 0.1 | AB24: 0.1 | AC24: 0.1 | AD24: 0.1 | AE24: 0.1 | AF24: 0.1 | AG24: 0.1 | AH24: 0.1 | AI24: 0.1 | AJ24: 0.1 | AK24: 0.1 | AL24: 0.1
E26: Cost of debt - 10 year trailing average | V26: =IF(U23<>"",SUMPRODUCT(L23:U23,L24:U24),"") -> 0.06498138982 | W26: =IF(V23<>"",SUMPRODUCT(M23:V23,M24:V24),"") -> 0.06290805649 | X26: =IF(W23<>"",SUMPRODUCT(N23:W23,N24:W24),"") -> 0.06002235649 | Y26: =IF(X23<>"",SUMPRODUCT(O23:X23,O24:X24),"") -> 0.05772039861 | Z26: =IF(Y23<>"",SUMPRODUCT(P23:Y23,P24:Y24),"") -> 0.05366436096 | AA26: 0.04966257681 | AB26: 0.04710702221 | AC26: =IF(AB23<>"",SUMPRODUCT(S23:AB23,S24:AB24),"") -> 0.04559090508 | AD26: =IF(AC23<>"",SUMPRODUCT(T23:AC23,T24:AC24),"") -> 0.04229173841 | AE26: 0.04068423841 | AF26: 0.03916743333 | AG26: 0.03801243333 | AH26: 0.03723746666 | AI26: 0.0363775 | AJ26: 0.036825 | AK26: 0.03753333333 | AL26: 0.03753333333
E30: WACC assumptions (retained for historical purposes only) | Z30: Regulatory Rate of Return (RRR) - Nominal
K32: 1st period | M32: 2nd period | O32: 3rd period | Z32: Cost of Debt | AC32: =+AC26 -> 0.04559090508 | AD32: =+AD26 -> 0.04229173841 | AE32: 0.04068423841 | AF32: 0.03916743333 | AG32: 0.03801243333 | AH32: 0.03723746666 | AI32: 0.0363775 | AJ32: 0.036825 | AK32: 0.03753333333 | AL32: 0.03753333333
E33: Parameters
F34: Risk Free Rate (Real) | K34: =Determination_Lookup!W8 -> 0.0267 | M34: =Determination_Lookup!X8 -> 0.0323 | O34: =Determination_Lookup!Y8 -> 0.005959
F35: Debt Premium | K35: =Determination_Lookup!W9 -> 0.0116 | M35: =Determination_Lookup!X9 -> 0.0175 | O35: =Determination_Lookup!Y9 -> 0.0399
F36: Equity Premium | K36: =Determination_Lookup!W10 -> 0.06 | M36: =Determination_Lookup!X10 -> 0.06 | O36: =Determination_Lookup!Y10 -> 0.06 | Z36: Regulatory Rate of Return (RRR) - Real
F37: Equity Beta | K37: =Determination_Lookup!W11 -> 0.75 | M37: =Determination_Lookup!X11 -> 0.65 | O37: =Determination_Lookup!Y11 -> 0.65
F38: Gearing (Debt/Assets) | K38: =Determination_Lookup!W12 -> 0.6 | M38: =Determination_Lookup!X12 -> 0.6 | O38: =Determination_Lookup!Y12 -> 0.6 | Z38: Cost of Debt | AC38: =(1+AC32)/(1+AC44)-1 -> 0.01513680105 | AD38: =(1+AD32)/(1+AD44)-1 -> 0.01193372661 | AE38: 0.010373047 | AF38: 0.00890042071 | AG38: 0.007779061487 | AH38: 0.007026666664 | AI38: 0.00619174757 | AJ38: 0.006626213589 | AK38: 0.007313915854 | AL38: 0.007313915854
F39: Forecast Inflation | K39: =Determination_Lookup!W13 -> 0.0255 | M39: =Determination_Lookup!X13 -> 0.029 | O39: =Determination_Lookup!Y13 -> 0.0275
F40: Franking credit value | K40: =Determination_Lookup!W14 -> 0.5 | M40: =Determination_Lookup!X14 -> 0.5 | O40: =Determination_Lookup!Y14 -> 0.5 | Z40: Return on Equity | AC40: =IF(AE65<>0,(AE65/100),IF(AE63<>0,(AE63/100),(AE61/100))) -> 0.041 | AD40: =+$AC$40 -> 0.041 | AE40: 0.041 | AF40: 0.041 | AG40: 0.041 | AH40: 0.041 | AI40: 0.041 | AJ40: 0.041 | AK40: 0.041 | AL40: 0.041
E42: 'Vanilla' After Tax WACC (Real) | K42: =ROUND(((K34+K36*K37)*(1-K38))+((K34+K35)*K38),3) -> 0.052 | M42: =ROUND(((M34+M36*M37)*(1-M38))+((M34+M35)*M38),3) -> 0.058 | O42: =ROUND(((O34+O36*O37)*(1-O38))+((O34+O35)*O38),3) -> 0.045 | Z42: RRR (real) | AC42: =ROUND((AC40*(1-AC43)+AC38*AC43),4) -> 0.0255 | AD42: 0.0236 | AE42: 0.0226 | AF42: 0.0217 | AG42: 0.0211 | AH42: 0.0206 | AI42: 0.0201 | AJ42: 0.0204 | AK42: 0.0208 | AL42: 0.0208
Z43: Gearing | AC43: 0.6 | AD43: =+AC43 -> 0.6 | AE43: 0.6 | AF43: 0.6 | AG43: 0.6 | AH43: 0.6 | AI43: 0.6 | AJ43: 0.6 | AK43: 0.6 | AL43: 0.6
Z44: Forecast Inflation | AC44: 0.03 | AD44: 0.03 | AE44: 0.03 | AF44: 0.03 | AG44: 0.03 | AH44: 0.03 | AI44: 0.03 | AJ44: 0.03 | AK44: 0.03 | AL44: 0.03
L45: Regulatory Rate of Return (RRR) [retained for historical purposes only]
E46: Form of price control selected
O47: 4th period
E48: Price caps | I48: 1 | L48: Cost of Debt | O48: =Determination_Lookup!W25 -> 0.03618998679
L49: Return on Equity | O49: =Determination_Lookup!W26 -> 0.045 | Z49: PREMO Assessment Matrix (linked to Regulatory Rate of Return calculation above)
E50: Revenue cap / Hybrid Tariff Basket | L50: Gearing | O50: =Determination_Lookup!W27 -> 0.6
L51: Forecast Inflation | O51: =Determination_Lookup!W28 -> 0.023
L52: RRR (real) | O52: =Determination_Lookup!W29 -> 0.0397 | AB52: Water business self-assessment
AB54: Leading | AC54: Advanced | AD54: Standard | AE54: Basic
Z55: ESC assessment of submission | AA55: Leading | AB55: 4.9
AA56: Advanced | AB56: 4.3 | AC56: 4.5
AA57: Standard | AB57: 3.7 | AC57: 3.9 | AD57: 4.1
AA58: Basic | AD58: 3.5 | AE58: 3.7
Z61: Water business self-assessment (Maximum allowable ROE) | AD61: Standard | AE61: =+VLOOKUP(AD61,$AD$72:$AE$76,2,FALSE) -> 4.1
Z63: ROE Override (Must be less than Maximum allowable ROE) | AE63: =+IF(AD63<=AE61,AD63,"CHECK") -> 0
Z65: ESC assessment of submission | AD65: [Select] | AE65: =IFERROR(IF(AD65=AD61,AE61,VLOOKUP(AD61&AD65,AD79:AE83,2,FALSE)),0) -> 0
AD67: Difference | AE67: =IFERROR(IF(AE65=0,"",AE65-AE61),"") -> 
AD71: Business self assessment
AD72: [Select]
AD73: Leading | AE73: =+AB55 -> 4.9
AD74: Advanced | AE74: =+AC56 -> 4.5
AD75: Standard | AE75: =+AD57 -> 4.1
AD76: Basic | AE76: =+AE58 -> 3.7
AD78: downgrading
AD79: =AD54&AA58 -> StandardBasic | AE79: =+AD58 -> 3.5
AD80: =+AC54&AA57 -> AdvancedStandard | AE80: =+AC57 -> 3.9
AD81: =+AB54&AA56 -> LeadingAdvanced | AE81: =+AB56 -> 4.3
AD82: =+AB54&AA57 -> LeadingStandard | AE82: =+AB57 -> 3.7
AD83: =+AD61&"Basic" -> StandardBasic | AE83: CHECK

Sheet Expenditure_Detail
B1: Expenditure - Detail
B2: =+Model_Name -> Lower Murray Water - Urban
B3: Go to Table of Contents
L4: FIRST REG PERIOD | P4: SECOND REG PERIOD | U4: THIRD REG PERIOD | Z4: FOURTH REG PERIOD | AE4: FIFTH REG PERIOD | AJ4: SIXTH REG PERIOD
K5: 2006 | L5: 2007 | M5: 2008 | N5: 2009 | O5: 2010 | P5: 2011 | Q5: 2012 | R5: 2013 | S5: 2014 | T5: 2015 | U5: 2016 | V5: 2017 | W5: 2018 | X5: 2019 | Y5: 2020 | Z5: 2021 | AA5: 2022 | AB5: 2023 | AC5: 2024 | AD5: 2025 | AE5: 2026 | AF5: 2027 | AG5: 2028 | AH5: 2029 | AI5: 2030 | AJ5: 2031 | AK5: 2032 | AL5: 2033
B6: $m, 01/01/23 | K6: =+CONCATENATE(K5-1,"-",RIGHT(K5,2)) -> 2005-06 | L6: =+CONCATENATE(L5-1,"-",RIGHT(L5,2)) -> 2006-07 | M6: 2007-08 | N6: 2008-09 | O6: 2009-10 | P6: 2010-11 | Q6: 2011-12 | R6: 2012-13 | S6: 2013-14 | T6: 2014-15 | U6: 2015-16 | V6: 2016-17 | W6: 2017-18 | X6: 2018-19 | Y6: 2019-20 | Z6: 2020-21 | AA6: 2021-22 | AB6: 2022-23 | AC6: 2023-24 | AD6: 2024-25 | AE6: 2025-26 | AF6: 2026-27 | AG6: 2027-28 | AH6: =+CONCATENATE(AH5-1,"-",RIGHT(AH5,2)) -> 2028-29 | AI6: 2029-30 | AJ6: 2030-31 | AK6: 2031-32 | AL6: 2032-33
B8: This worksheet outlines the key cost drivers of operating expenditure - capitalised costs are excluded. This tab does not link to the Rev&RAV_FO worksheet
C11: Expenditure Summary
D13: Total Labour costs | W13: =W34 -> 11.13244107 | X13: 11.17648097 | Y13: 11.93650783 | Z13: 12.05957641 | AA13: 12.2371585 | AB13: 12.624644 | AC13: 13.56692 | AD13: 13.416339 | AE13: 13.501348 | AF13: 13.478815 | AG13: 13.38893 | AH13: 13.38893 | AI13: 13.38893 | AJ13: 13.38893 | AK13: 13.38893 | AL13: 13.38893
D14: Total Energy costs | W14: =W93 -> 2.138458963 | X14: =X93 -> 2.684138673 | Y14: 2.270989134 | Z14: 2.532346063 | AA14: 2.276349072 | AB14: 1.935675825 | AC14: 2.010458968 | AD14: 2.010951136 | AE14: 2.02110496 | AF14: 2.038616 | AG14: 2.002107752 | AH14: 2.002107752 | AI14: 2.002107752 | AJ14: 2.002107752 | AK14: 2.002107752 | AL14: 2.002107752
D15: Total IT costs | W15: =W104 -> 2.529779099 | X15: =X104 -> 2.292900882 | Y15: 2.500702802 | Z15: 3.034968754 | AA15: 3.263140218 | AB15: 2.9869107 | AC15: 3.49664496 | AD15: 3.67263746 | AE15: 3.67311234 | AF15: 3.79024234 | AG15: 3.78159172 | AH15: 3.78159172 | AI15: 3.78159172 | AJ15: 3.78159172 | AK15: 3.78159172 | AL15: 3.78159172
D16: Total Chemical costs | W16: =W115 -> 1.214927519 | X16: =X115 -> 1.223297931 | Y16: 1.388732227 | Z16: 1.530372208 | AA16: 1.455242807 | AB16: 1.3485 | AC16: 1.3485 | AD16: 1.3485 | AE16: 1.3485 | AF16: 1.3485 | AG16: 1.3485 | AH16: 1.3485 | AI16: 1.3485 | AJ16: 1.3485 | AK16: 1.3485 | AL16: 1.3485
C21: Labour assumptions
D23: Current FTEs (at 30 June) | W23: =[3]Expenditure_Detail!W23 -> 109.976 | X23: =[3]Expenditure_Detail!X23 -> 113.373 | Y23: =[3]Expenditure_Detail!Y23 -> 122.492 | Z23: =[3]Expenditure_Detail!Z23 -> 125.0928 | AA23: =[3]Expenditure_Detail!AA23 -> 127.7
D24: Actual and forecast labour costs for current FTEs ($m) | W24: =[3]Expenditure_Detail!W24 -> 11.13244107 | X24: =[3]Expenditure_Detail!X24 -> 11.17648097 | Y24: =[3]Expenditure_Detail!Y24 -> 11.93650783 | Z24: =[3]Expenditure_Detail!Z24 -> 12.05957641 | AA24: =[3]Expenditure_Detail!AA24 -> 12.2371585 | AB24: =[3]Expenditure_Detail!AB24 -> 12.624644 | AC24: =[3]Expenditure_Detail!AC24 -> 13.56692 | AD24: =[3]Expenditure_Detail!AD24 -> 13.416339 | AE24: =[3]Expenditure_Detail!AE24 -> 13.501348 | AF24: =[3]Expenditure_Detail!AF24 -> 13.478815 | AG24: =[3]Expenditure_Detail!AG24 -> 13.38893 | AH24: =[3]Expenditure_Detail!AH24 -> 13.38893 | AI24: =[3]Expenditure_Detail!AI24 -> 13.38893 | AJ24: =[3]Expenditure_Detail!AJ24 -> 13.38893 | AK24: =[3]Expenditure_Detail!AK24 -> 13.38893 | AL24: =[3]Expenditure_Detail!AL24 -> 13.38893
D25: Cost per FTE ($000) | W25: =+W24/W23*10^3 -> 101.2260954 | X25: 98.58150504 | Y25: 97.44724412 | Z25: 96.40504016 | AA25: =+AA24/$AA$23*10^3 -> 95.82739624 | AB25: =+AB24/$AA$23*10^3 -> 98.86173845 | AC25: 106.2405638 | AD25: 105.0613861 | AE25: 105.7270791 | AF25: 105.5506265 | AG25: 104.8467502 | AH25: 104.8467502 | AI25: 104.8467502 | AJ25: 104.8467502 | AK25: 104.8467502 | AL25: 104.8467502
D26: Annual growth in labour costs for current FTEs | X26: =+X25/W25-1 -> -0.02612557933 | Y26: =+Y25/X25-1 -> -0.01150581862 | Z26: =+Z25/Y25-1 -> -0.01069505835 | AA26: -0.005991843601 | AB26: 0.03166466306 | AC26: 0.07463782741 | AD26: -0.01109912935 | AE26: 0.00633622928 | AF26: -0.001668944464 | AG26: -0.006668612931 | AH26: 0 | AI26: 0 | AJ26: 0 | AK26: 0 | AL26: 0
D28: Change in FTEs in future periods (net no. annual change) | AB28: =[3]Expenditure_Detail!AB28 -> 4.2 | AC28: =[3]Expenditure_Detail!AC28 -> 9.4 | AD28: =[3]Expenditure_Detail!AD28 -> 0 | AE28: =[3]Expenditure_Detail!AE28 -> 0.2 | AF28: =[3]Expenditure_Detail!AF28 -> 0 | AG28: =[3]Expenditure_Detail!AG28 -> 0 | AH28: =[3]Expenditure_Detail!AH28 -> 0 | AI28: =[3]Expenditure_Detail!AI28 -> 0 | AJ28: =[3]Expenditure_Detail!AJ28 -> 0 | AK28: =[3]Expenditure_Detail!AK28 -> 0 | AL28: =[3]Expenditure_Detail!AL28 -> 0
D29: Increase or decrease in labour costs ($m) | AB29: =[3]Expenditure_Detail!AB29 -> 0 | AC29: =[3]Expenditure_Detail!AC29 -> 0 | AD29: =[3]Expenditure_Detail!AD29 -> 0 | AE29: =[3]Expenditure_Detail!AE29 -> 0 | AF29: =[3]Expenditure_Detail!AF29 -> 0 | AG29: =[3]Expenditure_Detail!AG29 -> 0 | AH29: =[3]Expenditure_Detail!AH29 -> 0 | AI29: =[3]Expenditure_Detail!AI29 -> 0 | AJ29: =[3]Expenditure_Detail!AJ29 -> 0 | AK29: =[3]Expenditure_Detail!AK29 -> 0 | AL29: =[3]Expenditure_Detail!AL29 -> 0
D33: Total FTEs | W33: =+W23 -> 109.976 | X33: 113.373 | Y33: 122.492 | Z33: 125.0928 | AA33: 127.7 | AB33: =+$AA$23+SUM($AB28:AB28) -> 131.9 | AC33: =+$AA$23+SUM($AB28:AC28) -> 141.3 | AD33: =+$AA$23+SUM($AB28:AD28) -> 141.3 | AE33: =+$AA$23+SUM($AB28:AE28) -> 141.5 | AF33: =+$AA$23+SUM($AB28:AF28) -> 141.5 | AG33: =+$AA$23+SUM($AB28:AG28) -> 141.5 | AH33: =+$AA$23+SUM($AB28:AH28) -> 141.5 | AI33: =+$AA$23+SUM($AB28:AI28) -> 141.5 | AJ33: =+$AA$23+SUM($AB28:AJ28) -> 141.5 | AK33: =+$AA$23+SUM($AB28:AK28) -> 141.5 | AL33: =+$AA$23+SUM($AB28:AL28) -> 141.5
D34: Total labour costs ($m) | W34: 11.13244107 | X34: 11.17648097 | Y34: 11.93650783 | Z34: 12.05957641 | AA34: 12.2371585 | AB34: =+AB29+AB24 -> 12.624644 | AC34: =+AC29+AC24 -> 13.56692 | AD34: 13.416339 | AE34: 13.501348 | AF34: 13.478815 | AG34: 13.38893 | AH34: =+AH29+AH24 -> 13.38893 | AI34: =+AI29+AI24 -> 13.38893 | AJ34: =+AJ29+AJ24 -> 13.38893 | AK34: =+AK29+AK24 -> 13.38893 | AL34: =+AL29+AL24 -> 13.38893
D35: Cost per FTE | W35: =+W34/W33 -> 0.1012260954 | X35: 0.09858150504 | Y35: 0.09744724412 | Z35: 0.09640504016 | AA35: 0.09582739624 | AB35: 0.09571375284 | AC35: 0.09601500354 | AD35: 0.09494932059 | AE35: 0.09541588693 | AF35: 0.09525664311 | AG35: 0.09462141343 | AH35: =+AH34/AH33 -> 0.09462141343 | AI35: =+AI34/AI33 -> 0.09462141343 | AJ35: =+AJ34/AJ33 -> 0.09462141343 | AK35: =+AK34/AK33 -> 0.09462141343 | AL35: =+AL34/AL33 -> 0.09462141343
D36: Annual growth in total labour costs | X36: =+X34/W34-1 -> 0.003955996713 | Y36: 0.06800233976 | Z36: 0.01031026683 | AA36: 0.01472540044 | AB36: 0.03166466306 | AC36: 0.07463782741 | AD36: -0.01109912935 | AE36: 0.00633622928 | AF36: -0.001668944464 | AG36: -0.006668612931 | AH36: 0 | AI36: 0 | AJ36: 0 | AK36: 0 | AL36: 0
D37: Annual growth in total labour costs per FTE | X37: -0.02612557933 | Y37: -0.01150581862 | Z37: -0.01069505835 | AA37: -0.005991843601 | AB37: -0.001185917567 | AC37: 0.003147412849 | AD37: -0.01109912935 | AE37: 0.004913845917 | AF37: -0.001668944464 | AG37: -0.006668612931 | AH37: 0 | AI37: 0 | AJ37: 0 | AK37: 0 | AL37: 0
C43: Energy assumptions
D45: Electricity - traditional sources
D47: BASE LOAD
D49: Large sites
D50: Total kWh | W50: =[3]Expenditure_Detail!W50 -> 9407932.783 | X50: =[3]Expenditure_Detail!X50 -> 9253018.055 | Y50: =[3]Expenditure_Detail!Y50 -> 8223306.375 | Z50: =[3]Expenditure_Detail!Z50 -> 8343732.071 | AA50: =[3]Expenditure_Detail!AA50 -> 8563666.508 | AB50: =[3]Expenditure_Detail!AB50 -> 8721385.942 | AC50: =[3]Expenditure_Detail!AC50 -> 8816326.923 | AD50: =[3]Expenditure_Detail!AD50 -> 8848847.662 | AE50: =[3]Expenditure_Detail!AE50 -> 8865500.797 | AF50: =[3]Expenditure_Detail!AF50 -> 8881833.679 | AG50: =[3]Expenditure_Detail!AG50 -> 8898486.814 | AH50: =[3]Expenditure_Detail!AH50 -> 8898486.814 | AI50: =[3]Expenditure_Detail!AI50 -> 8898486.814 | AJ50: =[3]Expenditure_Detail!AJ50 -> 8898486.814 | AK50: =[3]Expenditure_Detail!AK50 -> 8898486.814 | AL50: =[3]Expenditure_Detail!AL50 -> 8898486.814
D51: Total electricity costs ($m) | W51: =[3]Expenditure_Detail!W51 -> 1.69079538 | X51: =[3]Expenditure_Detail!X51 -> 2.20655698 | Y51: =[3]Expenditure_Detail!Y51 -> 1.7931541 | Z51: =[3]Expenditure_Detail!Z51 -> 1.892525816 | AA51: =[3]Expenditure_Detail!AA51 -> 1.784817884 | AB51: =[3]Expenditure_Detail!AB51 -> 1.424477576 | AC51: =[3]Expenditure_Detail!AC51 -> 1.495781124 | AD51: =[3]Expenditure_Detail!AD51 -> 1.496272413 | AE51: =[3]Expenditure_Detail!AE51 -> 1.506425756 | AF51: =[3]Expenditure_Detail!AF51 -> 1.523937115 | AG51: =[3]Expenditure_Detail!AG51 -> 1.487429647 | AH51: =[3]Expenditure_Detail!AH51 -> 1.487429647 | AI51: =[3]Expenditure_Detail!AI51 -> 1.487429647 | AJ51: =[3]Expenditure_Detail!AJ51 -> 1.487429647 | AK51: =[3]Expenditure_Detail!AK51 -> 1.487429647 | AL51: =[3]Expenditure_Detail!AL51 -> 1.487429647
D52: Average c/kWh | W52: =+W51/W50*100*10^6 -> 17.97201807 | X52: 23.84688938 | Y52: 21.80575572 | Z52: 22.68200608 | AA52: 20.84174905 | AB52: 16.33315606 | AC52: 16.96603515 | AD52: 16.90923462 | AE52: 16.99199843 | AF52: 17.15791097 | AG52: 16.71553465 | AH52: =+AH51/AH50*100*10^6 -> 16.71553465 | AI52: 16.71553465 | AJ52: 16.71553465 | AK52: 16.71553465 | AL52: 16.71553465
D53: % increase p.a. | X53: =+X52/W52-1 -> 0.3268899062 | Y53: =+Y52/X52-1 -> -0.0855932876 | Z53: =+Z52/Y52-1 -> 0.04018436123 | AA53: =+AA52/Z52-1 -> -0.08113290418 | AB53: =+AB52/AA52-1 -> -0.2163250784 | AC53: =+AC52/AB52-1 -> 0.03874812009 | AD53: =+AD52/AC52-1 -> -0.003347896125 | AE53: =+AE52/AD52-1 -> 0.004894592105 | AF53: =+AF52/AE52-1 -> 0.009764156832 | AG53: =+AG52/AF52-1 -> -0.02578264461 | AH53: =+AH52/AG52-1 -> 0 | AI53: =+AI52/AH52-1 -> 0 | AJ53: =+AJ52/AI52-1 -> 0 | AK53: =+AK52/AJ52-1 -> 0 | AL53: =+AL52/AK52-1 -> 0
D55: Medium sites
D56: Total kWh | W56: =[3]Expenditure_Detail!W56 -> 0 | X56: =[3]Expenditure_Detail!X56 -> 0 | Y56: =[3]Expenditure_Detail!Y56 -> 0 | Z56: =[3]Expenditure_Detail!Z56 -> 0 | AA56: =[3]Expenditure_Detail!AA56 -> 0 | AB56: =[3]Expenditure_Detail!AB56 -> 0 | AC56: =[3]Expenditure_Detail!AC56 -> 0 | AD56: =[3]Expenditure_Detail!AD56 -> 0 | AE56: =[3]Expenditure_Detail!AE56 -> 0 | AF56: =[3]Expenditure_Detail!AF56 -> 0 | AG56: =[3]Expenditure_Detail!AG56 -> 0 | AH56: =[3]Expenditure_Detail!AH56 -> 0 | AI56: =[3]Expenditure_Detail!AI56 -> 0 | AJ56: =[3]Expenditure_Detail!AJ56 -> 0 | AK56: =[3]Expenditure_Detail!AK56 -> 0 | AL56: =[3]Expenditure_Detail!AL56 -> 0
D57: Total electricity costs ($m) | W57: =[3]Expenditure_Detail!W57 -> 0 | X57: =[3]Expenditure_Detail!X57 -> 0 | Y57: =[3]Expenditure_Detail!Y57 -> 0 | Z57: =[3]Expenditure_Detail!Z57 -> 0 | AA57: =[3]Expenditure_Detail!AA57 -> 0 | AB57: =[3]Expenditure_Detail!AB57 -> 0 | AC57: =[3]Expenditure_Detail!AC57 -> 0 | AD57: =[3]Expenditure_Detail!AD57 -> 0 | AE57: =[3]Expenditure_Detail!AE57 -> 0 | AF57: =[3]Expenditure_Detail!AF57 -> 0 | AG57: =[3]Expenditure_Detail!AG57 -> 0 | AH57: =[3]Expenditure_Detail!AH57 -> 0 | AI57: =[3]Expenditure_Detail!AI57 -> 0 | AJ57: =[3]Expenditure_Detail!AJ57 -> 0 | AK57: =[3]Expenditure_Detail!AK57 -> 0 | AL57: =[3]Expenditure_Detail!AL57 -> 0
D58: Average c/kWh | W58: =+W57/W56*100*10^6 ->  | AH58: =+AH57/AH56*100*10^6 -> 
D59: % increase p.a. | X59: =+X58/W58-1 ->  | Y59: =+Y58/X58-1 ->  | Z59: =+Z58/Y58-1 ->  | AA59: =+AA58/Z58-1 ->  | AB59: =+AB58/AA58-1 ->  | AC59: =+AC58/AB58-1 ->  | AD59: =+AD58/AC58-1 ->  | AE59: =+AE58/AD58-1 ->  | AF59: =+AF58/AE58-1 ->  | AG59: =+AG58/AF58-1 ->  | AH59: =+AH58/AG58-1 ->  | AI59: =+AI58/AH58-1 ->  | AJ59: =+AJ58/AI58-1 ->  | AK59: =+AK58/AJ58-1 ->  | AL59: =+AL58/AK58-1 -> 
D61: Small sites
D62: Total kWh | W62: =[3]Expenditure_Detail!W62 -> 1611902.053 | X62: =[3]Expenditure_Detail!X62 -> 1815203.337 | Y62: =[3]Expenditure_Detail!Y62 -> 1891826.05 | Z62: =[3]Expenditure_Detail!Z62 -> 1916812.192 | AA62: =[3]Expenditure_Detail!AA62 -> 1916027.869 | AB62: =[3]Expenditure_Detail!AB62 -> 1808935.908 | AC62: =[3]Expenditure_Detail!AC62 -> 1808935.908 | AD62: =[3]Expenditure_Detail!AD62 -> 1808935.908 | AE62: =[3]Expenditure_Detail!AE62 -> 1808935.908 | AF62: =[3]Expenditure_Detail!AF62 -> 1808935.908 | AG62: =[3]Expenditure_Detail!AG62 -> 1808935.908 | AH62: =[3]Expenditure_Detail!AH62 -> 1808935.908 | AI62: =[3]Expenditure_Detail!AI62 -> 1808935.908 | AJ62: =[3]Expenditure_Detail!AJ62 -> 1808935.908 | AK62: =[3]Expenditure_Detail!AK62 -> 1808935.908 | AL62: =[3]Expenditure_Detail!AL62 -> 1808935.908
D63: Total electricity costs ($m) | W63: =[3]Expenditure_Detail!W63 -> 0.4476635824 | X63: =[3]Expenditure_Detail!X63 -> 0.4775816937 | Y63: =[3]Expenditure_Detail!Y63 -> 0.4778350343 | Z63: =[3]Expenditure_Detail!Z63 -> 0.6398202469 | AA63: =[3]Expenditure_Detail!AA63 -> 0.4915311884 | AB63: =[3]Expenditure_Detail!AB63 -> 0.5111982488 | AC63: =[3]Expenditure_Detail!AC63 -> 0.5146778436 | AD63: =[3]Expenditure_Detail!AD63 -> 0.5146787233 | AE63: =[3]Expenditure_Detail!AE63 -> 0.5146792038 | AF63: =[3]Expenditure_Detail!AF63 -> 0.514678885 | AG63: =[3]Expenditure_Detail!AG63 -> 0.5146781055 | AH63: =[3]Expenditure_Detail!AH63 -> 0.5146781055 | AI63: =[3]Expenditure_Detail!AI63 -> 0.5146781055 | AJ63: =[3]Expenditure_Detail!AJ63 -> 0.5146781055 | AK63: =[3]Expenditure_Detail!AK63 -> 0.5146781055 | AL63: =[3]Expenditure_Detail!AL63 -> 0.5146781055
D64: Average c/kWh | W64: =+W63/W62*100*10^6 -> 27.77238118 | X64: 26.31009342 | Y64: 25.2578737 | Z64: 33.37939156 | AA64: 25.65365547 | AB64: 28.25961089 | AC64: 28.45196678 | AD64: 28.45201541 | AE64: 28.45204197 | AF64: 28.45202435 | AG64: 28.45198126 | AH64: =+AH63/AH62*100*10^6 -> 28.45198126 | AI64: 28.45198126 | AJ64: 28.45198126 | AK64: 28.45198126 | AL64: 28.45198126
D65: % increase p.a. | X65: =+X64/W64-1 -> -0.05265258879 | Y65: =+Y64/X64-1 -> -0.03999300579 | Z65: =+Z64/Y64-1 -> 0.3215440049 | AA65: =+AA64/Z64-1 -> -0.2314522742 | AB65: =+AB64/AA64-1 -> 0.1015822256 | AC65: =+AC64/AB64-1 -> 0.006806742266 | AD65: =+AD64/AC64-1 -> 1.70936243e-06 | AE65: =+AE64/AD64-1 -> 9.3342554e-07 | AF65: =+AF64/AE64-1 -> -6.193589077e-07 | AG65: =+AG64/AF64-1 -> -1.51457622e-06 | AH65: =+AH64/AG64-1 -> 0 | AI65: =+AI64/AH64-1 -> 0 | AJ65: =+AJ64/AI64-1 -> 0 | AK65: =+AK64/AJ64-1 -> 0 | AL65: =+AL64/AK64-1 -> 0
D68: NEW PROJECTS
D70: Large sites
D71: Total kWh
D72: Total electricity costs ($m)
D73: Average c/kWh | W73: =+W72/W71*100*10^6 ->  | AH73: =+AH72/AH71*100*10^6 -> 
D74: % increase p.a. | X74: =+X73/W73-1 ->  | Y74: =+Y73/X73-1 ->  | Z74: =+Z73/Y73-1 ->  | AA74: =+AA73/Z73-1 ->  | AB74: =+AB73/AA73-1 ->  | AC74: =+AC73/AB73-1 ->  | AD74: =+AD73/AC73-1 ->  | AE74: =+AE73/AD73-1 ->  | AF74: =+AF73/AE73-1 ->  | AG74: =+AG73/AF73-1 ->  | AH74: =+AH73/AG73-1 ->  | AI74: =+AI73/AH73-1 ->  | AJ74: =+AJ73/AI73-1 ->  | AK74: =+AK73/AJ73-1 ->  | AL74: =+AL73/AK73-1 -> 
D76: Medium sites
D77: Total kWh
D78: Total electricity costs ($m)
D79: Average c/kWh | W79: =+W78/W77*100*10^6 ->  | AH79: =+AH78/AH77*100*10^6 -> 
D80: % increase p.a. | X80: =+X79/W79-1 ->  | Y80: =+Y79/X79-1 ->  | Z80: =+Z79/Y79-1 ->  | AA80: =+AA79/Z79-1 ->  | AB80: =+AB79/AA79-1 ->  | AC80: =+AC79/AB79-1 ->  | AD80: =+AD79/AC79-1 ->  | AE80: =+AE79/AD79-1 ->  | AF80: =+AF79/AE79-1 ->  | AG80: =+AG79/AF79-1 ->  | AH80: =+AH79/AG79-1 ->  | AI80: =+AI79/AH79-1 ->  | AJ80: =+AJ79/AI79-1 ->  | AK80: =+AK79/AJ79-1 ->  | AL80: =+AL79/AK79-1 -> 
D82: Small sites
D83: Total kWh
D84: Total electricity costs ($m)
D85: Average c/kWh | W85: =+W84/W83*100*10^6 ->  | AC85: =+AC84/AC83*100*10^6 ->  | AH85: =+AH84/AH83*100*10^6 -> 
D86: % increase p.a. | X86: =+X85/W85-1 ->  | Y86: =+Y85/X85-1 ->  | Z86: =+Z85/Y85-1 ->  | AA86: =+AA85/Z85-1 ->  | AB86: =+AB85/AA85-1 ->  | AC86: =+AC85/AB85-1 ->  | AD86: =+AD85/AC85-1 ->  | AE86: =+AE85/AD85-1 ->  | AF86: =+AF85/AE85-1 ->  | AG86: =+AG85/AF85-1 ->  | AH86: =+AH85/AG85-1 ->  | AI86: =+AI85/AH85-1 ->  | AJ86: =+AJ85/AI85-1 ->  | AK86: =+AK85/AJ85-1 ->  | AL86: =+AL85/AK85-1 -> 
D89: Greenhouse Gas Offsets
D90: % increase p.a. | X90: =X89/W89-1 ->  | Y90: =Y89/X89-1 ->  | Z90: =Z89/Y89-1 ->  | AA90: =AA89/Z89-1 ->  | AB90: =AB89/AA89-1 ->  | AC90: =AC89/AB89-1 ->  | AH90: =AH89/AG89-1 ->  | AI90: =AI89/AH89-1 ->  | AJ90: =AJ89/AI89-1 ->  | AK90: =AK89/AJ89-1 ->  | AL90: =AL89/AK89-1 -> 
D93: TOTAL ENERGY COSTS | W93: =+SUM(W51,W57,W63,W72,W78,W84,W89) -> 2.138458963 | X93: 2.684138673 | Y93: 2.270989134 | Z93: 2.532346063 | AA93: 2.276349072 | AB93: 1.935675825 | AC93: =+SUM(AC51,AC57,AC63,AC72,AC78,AC84,AC89) -> 2.010458968 | AD93: 2.010951136 | AE93: 2.02110496 | AF93: 2.038616 | AG93: 2.002107752 | AH93: =+SUM(AH51,AH57,AH63,AH72,AH78,AH84,AH89) -> 2.002107752 | AI93: 2.002107752 | AJ93: 2.002107752 | AK93: 2.002107752 | AL93: 2.002107752
D94: % increase p.a. | X94: =X93/W93-1 -> 0.2551742729 | Y94: =Y93/X93-1 -> -0.1539225761 | Z94: =Z93/Y93-1 -> 0.1150850633 | AA94: =AA93/Z93-1 -> -0.10109084 | AB94: =AB93/AA93-1 -> -0.1496577353 | AC94: =AC93/AB93-1 -> 0.03863412563 | AD94: 0.0002448038024 | AE94: 0.005049264409 | AF94: 0.008664092339 | AG94: -0.01790834959 | AH94: =AH93/AG93-1 -> 0 | AI94: =AI93/AH93-1 -> 0 | AJ94: =AJ93/AI93-1 -> 0 | AK94: =AK93/AJ93-1 -> 0 | AL94: =AL93/AK93-1 -> 0
C99: IT cost assumptions
D101: Water related IT costs | W101: =[3]Expenditure_Detail!W101 -> 1.36608632 | X101: =[3]Expenditure_Detail!X101 -> 1.238163572 | Y101: =[3]Expenditure_Detail!Y101 -> 1.348452559 | Z101: =[3]Expenditure_Detail!Z101 -> 1.58823931 | AA101: =[3]Expenditure_Detail!AA101 -> 1.762081573 | AB101: =[3]Expenditure_Detail!AB101 -> 1.612931878 | AC101: =[3]Expenditure_Detail!AC101 -> 1.888187978 | AD101: =[3]Expenditure_Detail!AD101 -> 1.983224128 | AE101: =[3]Expenditure_Detail!AE101 -> 1.983480824 | AF101: =[3]Expenditure_Detail!AF101 -> 2.046730804 | AG101: =[3]Expenditure_Detail!AG101 -> 2.042059209 | AH101: =[3]Expenditure_Detail!AH101 -> 2.042059209 | AI101: =[3]Expenditure_Detail!AI101 -> 2.042059209 | AJ101: =[3]Expenditure_Detail!AJ101 -> 2.042059209 | AK101: =[3]Expenditure_Detail!AK101 -> 2.042059209 | AL101: =[3]Expenditure_Detail!AL101 -> 2.042059209
D102: Sewerage and trade waste related IT costs | W102: =[3]Expenditure_Detail!W102 -> 1.163692779 | X102: =[3]Expenditure_Detail!X102 -> 1.054737311 | Y102: =[3]Expenditure_Detail!Y102 -> 1.152250243 | Z102: =[3]Expenditure_Detail!Z102 -> 1.446729444 | AA102: =[3]Expenditure_Detail!AA102 -> 1.501058645 | AB102: =[3]Expenditure_Detail!AB102 -> 1.373978822 | AC102: =[3]Expenditure_Detail!AC102 -> 1.608456982 | AD102: =[3]Expenditure_Detail!AD102 -> 1.689413332 | AE102: =[3]Expenditure_Detail!AE102 -> 1.689631516 | AF102: =[3]Expenditure_Detail!AF102 -> 1.743511536 | AG102: =[3]Expenditure_Detail!AG102 -> 1.739532511 | AH102: =[3]Expenditure_Detail!AH102 -> 1.739532511 | AI102: =[3]Expenditure_Detail!AI102 -> 1.739532511 | AJ102: =[3]Expenditure_Detail!AJ102 -> 1.739532511 | AK102: =[3]Expenditure_Detail!AK102 -> 1.739532511 | AL102: =[3]Expenditure_Detail!AL102 -> 1.739532511
D103: Other IT costs
D104: Total IT costs | W104: =SUM(W101:W103) -> 2.529779099 | X104: 2.292900882 | Y104: 2.500702802 | Z104: 3.034968754 | AA104: 3.263140218 | AB104: 2.9869107 | AC104: =SUM(AC101:AC103) -> 3.49664496 | AD104: 3.67263746 | AE104: 3.67311234 | AF104: 3.79024234 | AG104: 3.78159172 | AH104: =SUM(AH101:AH103) -> 3.78159172 | AI104: 3.78159172 | AJ104: 3.78159172 | AK104: 3.78159172 | AL104: 3.78159172
D105: % increase p.a. | X105: =X104/W104-1 -> -0.09363592936 | Y105: =Y104/X104-1 -> 0.09062839175 | Z105: =Z104/Y104-1 -> 0.2136463204 | AA105: =AA104/Z104-1 -> 0.07518082811 | AB105: =AB104/AA104-1 -> -0.0846514399 | AC105: =AC104/AB104-1 -> 0.1706560092 | AD105: 0.05033181865 | AE105: 0.0001293021719 | AF105: 0.03188848833 | AG105: -0.002282339551 | AH105: =AH104/AG104-1 -> 0 | AI105: =AI104/AH104-1 -> 0 | AJ105: =AJ104/AI104-1 -> 0 | AK105: =AK104/AJ104-1 -> 0 | AL105: =AL104/AK104-1 -> 0
C110: Chemical cost assumptions
D112: Water related chemical costs | W112: =[3]Expenditure_Detail!W112 -> 1.148315291 | X112: =[3]Expenditure_Detail!X112 -> 1.166749575 | Y112: =[3]Expenditure_Detail!Y112 -> 1.334461638 | Z112: =[3]Expenditure_Detail!Z112 -> 1.483334838 | AA112: =[3]Expenditure_Detail!AA112 -> 1.43146956 | AB112: =[3]Expenditure_Detail!AB112 -> 1.3029 | AC112: =[3]Expenditure_Detail!AC112 -> 1.3029 | AD112: =[3]Expenditure_Detail!AD112 -> 1.3029 | AE112: =[3]Expenditure_Detail!AE112 -> 1.3029 | AF112: =[3]Expenditure_Detail!AF112 -> 1.3029 | AG112: =[3]Expenditure_Detail!AG112 -> 1.3029 | AH112: =[3]Expenditure_Detail!AH112 -> 1.3029 | AI112: =[3]Expenditure_Detail!AI112 -> 1.3029 | AJ112: =[3]Expenditure_Detail!AJ112 -> 1.3029 | AK112: =[3]Expenditure_Detail!AK112 -> 1.3029 | AL112: =[3]Expenditure_Detail!AL112 -> 1.3029
D113: Sewerage and trade waste related chemical costs | W113: =[3]Expenditure_Detail!W113 -> 0.06661222805 | X113: =[3]Expenditure_Detail!X113 -> 0.05654835613 | Y113: =[3]Expenditure_Detail!Y113 -> 0.05427058896 | Z113: =[3]Expenditure_Detail!Z113 -> 0.0470373705 | AA113: =[3]Expenditure_Detail!AA113 -> 0.02377324682 | AB113: =[3]Expenditure_Detail!AB113 -> 0.0456 | AC113: =[3]Expenditure_Detail!AC113 -> 0.0456 | AD113: =[3]Expenditure_Detail!AD113 -> 0.0456 | AE113: =[3]Expenditure_Detail!AE113 -> 0.0456 | AF113: =[3]Expenditure_Detail!AF113 -> 0.0456 | AG113: =[3]Expenditure_Detail!AG113 -> 0.0456 | AH113: =[3]Expenditure_Detail!AH113 -> 0.0456 | AI113: =[3]Expenditure_Detail!AI113 -> 0.0456 | AJ113: =[3]Expenditure_Detail!AJ113 -> 0.0456 | AK113: =[3]Expenditure_Detail!AK113 -> 0.0456 | AL113: =[3]Expenditure_Detail!AL113 -> 0.0456
D114: Other chemical costs | W114: =[3]Expenditure_Detail!W114 -> 0 | X114: =[3]Expenditure_Detail!X114 -> 0 | Y114: =[3]Expenditure_Detail!Y114 -> 0 | Z114: =[3]Expenditure_Detail!Z114 -> 0 | AA114: =[3]Expenditure_Detail!AA114 -> 0 | AB114: =[3]Expenditure_Detail!AB114 -> 0 | AC114: =[3]Expenditure_Detail!AC114 -> 0 | AD114: =[3]Expenditure_Detail!AD114 -> 0 | AE114: =[3]Expenditure_Detail!AE114 -> 0 | AF114: =[3]Expenditure_Detail!AF114 -> 0 | AG114: =[3]Expenditure_Detail!AG114 -> 0 | AH114: =[3]Expenditure_Detail!AH114 -> 0 | AI114: =[3]Expenditure_Detail!AI114 -> 0 | AJ114: =[3]Expenditure_Detail!AJ114 -> 0 | AK114: =[3]Expenditure_Detail!AK114 -> 0 | AL114: =[3]Expenditure_Detail!AL114 -> 0
D115: Total chemical costs | W115: =SUM(W112:W114) -> 1.214927519 | X115: 1.223297931 | Y115: 1.388732227 | Z115: 1.530372208 | AA115: 1.455242807 | AB115: 1.3485 | AC115: =SUM(AC112:AC114) -> 1.3485 | AD115: 1.3485 | AE115: 1.3485 | AF115: 1.3485 | AG115: 1.3485 | AH115: =SUM(AH112:AH114) -> 1.3485 | AI115: 1.3485 | AJ115: 1.3485 | AK115: 1.3485 | AL115: 1.3485
D116: % increase p.a. | X116: =X115/W115-1 -> 0.006889638384 | Y116: =Y115/X115-1 -> 0.1352363084 | Z116: =Z115/Y115-1 -> 0.101992291 | AA116: =AA115/Z115-1 -> -0.04909224134 | AB116: =AB115/AA115-1 -> -0.07335051314 | AC116: =AC115/AB115-1 -> 0 | AD116: 0 | AE116: 0 | AF116: 0 | AG116: 0 | AH116: =AH115/AG115-1 -> 0 | AI116: =AI115/AH115-1 -> 0 | AJ116: =AJ115/AI115-1 -> 0 | AK116: =AK115/AJ115-1 -> 0 | AL116: =AL115/AK115-1 -> 0

Sheet Opex_FO
B1: Operating Expenditure - Forecast
B2: =+Model_Name -> Lower Murray Water - Urban
B3: Go to Table of Contents
L4: FIRST REG PERIOD | P4: SECOND REG PERIOD | U4: THIRD REG PERIOD | Z4: FOURTH REG PERIOD | AE4: FIFTH REG PERIOD | AJ4: SIXTH REG PERIOD
K5: 2006 | L5: 2007 | M5: 2008 | N5: 2009 | O5: 2010 | P5: 2011 | Q5: 2012 | R5: 2013 | S5: 2014 | T5: 2015 | U5: 2016 | V5: 2017 | W5: 2018 | X5: 2019 | Y5: 2020 | Z5: 2021 | AA5: 2022 | AB5: 2023 | AC5: 2024 | AD5: 2025 | AE5: 2026 | AF5: 2027 | AG5: 2028 | AH5: 2029 | AI5: 2030 | AJ5: 2031 | AK5: 2032 | AL5: 2033
B6: $m, 01/01/23 | K6: =+CONCATENATE(K5-1,"-",RIGHT(K5,2)) -> 2005-06 | L6: =+CONCATENATE(L5-1,"-",RIGHT(L5,2)) -> 2006-07 | M6: 2007-08 | N6: 2008-09 | O6: 2009-10 | P6: 2010-11 | Q6: 2011-12 | R6: 2012-13 | S6: 2013-14 | T6: 2014-15 | U6: 2015-16 | V6: 2016-17 | W6: 2017-18 | X6: 2018-19 | Y6: 2019-20 | Z6: 2020-21 | AA6: 2021-22 | AB6: 2022-23 | AC6: 2023-24 | AD6: 2024-25 | AE6: 2025-26 | AF6: 2026-27 | AG6: 2027-28 | AH6: 2028-29 | AI6: 2029-30 | AJ6: 2030-31 | AK6: 2031-32 | AL6: 2032-33
C9: Parameters | F9: 4th period | H9: 5th period
D11: Cost efficiency improvement rate (% per annum) | F11: =Determination_Lookup!X33 -> 0.01 | H11: =+SUM(AC11:AG11)/5 -> 0.0108 | AC11: =[3]Opex_FO!AC11 -> 0.0108 | AD11: =[3]Opex_FO!AD11 -> 0.0108 | AE11: =[3]Opex_FO!AE11 -> 0.0108 | AF11: =[3]Opex_FO!AF11 -> 0.0108 | AG11: =[3]Opex_FO!AG11 -> 0.0108 | AH11: =[3]Opex_FO!AH11 -> 0.01 | AI11: =[3]Opex_FO!AI11 -> 0.01 | AJ11: =[3]Opex_FO!AJ11 -> 0.01 | AK11: =[3]Opex_FO!AK11 -> 0.01 | AL11: =[3]Opex_FO!AL11 -> 0.01
D13: Customer growth forecast (% per annum) | F13: =Determination_Lookup!X34 -> 0.0106 | H13: =+SUM(AC13:AG13)/5 -> 0.011 | X13: =IF(X15="","",X15/W15-1) -> 0.009519855274 | Y13: 0.007961222092 | Z13: 0.03130191484 | AA13: 0.01 | AB13: =[3]Opex_FO!AB13 -> 0.01 | AC13: =[3]Opex_FO!AC13 -> 0.011 | AD13: =[3]Opex_FO!AD13 -> 0.011 | AE13: =[3]Opex_FO!AE13 -> 0.011 | AF13: =[3]Opex_FO!AF13 -> 0.011 | AG13: =[3]Opex_FO!AG13 -> 0.011 | AH13: =[3]Opex_FO!AH13 -> 0.011 | AI13: =[3]Opex_FO!AI13 -> 0.011 | AJ13: =[3]Opex_FO!AJ13 -> 0.011 | AK13: =[3]Opex_FO!AK13 -> 0.011 | AL13: =[3]Opex_FO!AL13 -> 0.011
E14: Net baseline opex growth | F14: =IFERROR(F13-F11,"-") -> 0.0006 | H14: =IFERROR(H13-H11,"-") -> 0.0002
D15: Water customers (No.) - Residential & Non-Residential - [BED 1] | W15: =Determination_Lookup!M20 -> 33719 | X15: =Determination_Lookup!N20 -> 34040 | Y15: =Determination_Lookup!O20 -> 34311 | Z15: =[3]Opex_FO!Z15 -> 35385 | AA15: =[3]Opex_FO!AA15 -> 35738.85 | AB15: =+AA$15*(1+AB$13) -> 36096.2385 | AC15: 36493.29712 | AD15: 36894.72339 | AE15: 37300.56535 | AF15: 37710.87157 | AG15: 38125.69116 | AH15: 38545.07376 | AI15: 38969.06957 | AJ15: 39397.72933 | AK15: 39831.10436 | AL15: 40269.24651
D17: Sewer customers (No.) - Residential & Non-Residential - [BED 2] | W17: =Determination_Lookup!M21 -> 29295 | X17: =Determination_Lookup!N21 -> 29612 | Y17: =Determination_Lookup!O21 -> 29868 | Z17: =[3]Opex_FO!Z17 -> 30785 | AA17: =[3]Opex_FO!AA17 -> 31075.53 | AB17: =+AA$17*(1+AB$13) -> 31386.2853 | AC17: 31731.53444 | AD17: 32080.58132 | AE17: 32433.46771 | AF17: 32790.23586 | AG17: 33150.92845 | AH17: 33515.58866 | AI17: 33884.26014 | AJ17: 34256.987 | AK17: 34633.81386 | AL17: 35014.78581
D19: Total metered volume of water delivered to customers (ML) - [BED 10] | W19: =Determination_Lookup!M22 -> 19223 | X19: =Determination_Lookup!N22 -> 20508.906 | Y19: =Determination_Lookup!O22 -> 19452 | Z19: =[3]Opex_FO!Z19 -> 19111.66 | AA19: =[3]Opex_FO!AA19 -> 18734.674 | AB19: =[3]Opex_FO!AB19 -> 19841.71281 | AC19: =[3]Opex_FO!AC19 -> 20031.01491 | AD19: =[3]Opex_FO!AD19 -> 20222.44131 | AE19: =[3]Opex_FO!AE19 -> 20416.01537 | AF19: =[3]Opex_FO!AF19 -> 20611.76071 | AG19: =[3]Opex_FO!AG19 -> 20809.70122 | AH19: =[3]Opex_FO!AH19 -> 21021.51328 | AI19: =[3]Opex_FO!AI19 -> 21235.56907 | AJ19: =[3]Opex_FO!AJ19 -> 21451.89327 | AK19: =[3]Opex_FO!AK19 -> 21670.51083 | AL19: =[3]Opex_FO!AL19 -> 21891.44697
D20: Residential, Non-Residential & Recycled (Residential & Non-Residential)
C24: Baseline Forecast
D26: Baseline year - total prescribed operating expenditure in 2021-22: | AA26: =+Opex_Breakdown!AA37 -> 29.67197398
D28: Less non-controllable expenditure items incurred in 2021-22:
E29: External bulk water charges (excl. temporary purchases) | AA29: =+Opex_Breakdown!AA29 -> 0.7072387709
E30: External temporary water purchases | AA30: =+Opex_Breakdown!AA30 -> 0.0009780218321 | AC30: Comparison with approved 2021-22 total controllable opex
E31: Licence fees | AA31: =+Opex_Breakdown!AA31 -> 0.1162683905 | AC31: per 2018 determination model
E32: Environment Contribution | AA32: =+Opex_Breakdown!AA32 -> 1.875944784
E33: Other non-controllable | AA33: =+Opex_Breakdown!AA33 -> 0
AA34: =SUM(AA29:AA33) -> 2.700429967 | AD34: 2021-22 | AE34: Difference | AF34: %
D36: Baseline year - total controllable operating expenditure in 2021-22: | AA36: =+AA26-AA34 -> 26.97154401 | AD36: =Determination_Lookup!Q18 -> 22.74054647 | AE36: =+AA52-AD36 -> 4.467944541 | AF36: =+AE36/AD36 -> 0.1964748097
D38: Adjustments for non-recurring expenditure items incurred in 2021-22 and any efficiency savings to be realised from 2021-22: | AC38: ($, 2022-23)
D40: 1 | E40: =[3]Opex_FO!E40 -> Corporate Cost Allocation Change | AA40: =[3]Opex_FO!AA40 -> -0.895107
D41: 2 | E41: =[3]Opex_FO!E41 -> Contractor/Consultant - Pricing Submission | AA41: =[3]Opex_FO!AA41 -> 0.433547
D42: 3 | E42: =[3]Opex_FO!E42 -> Covid-19 Costs | AA42: =[3]Opex_FO!AA42 -> 0.197197
D43: 4 | E43: =[3]Opex_FO!E43 -> Training & Travel Expenses | AA43: =[3]Opex_FO!AA43 -> -0.091052
D44: 5 | E44: =[3]Opex_FO!E44 -> Water Rebate Programs | AA44: =[3]Opex_FO!AA44 -> 0.058468
D45: 6 | E45: =[3]Opex_FO!E45 -> Chemicals | AA45: =[3]Opex_FO!AA45 -> 0.06
D46: 7
D47: 8
D48: 9
D49: 10
AA50: =SUM(AA40:AA49) -> -0.236947
D52: Baseline controllable operating expenditure (2021-22) | AA52: =+AA36-AA50 -> 27.20849101
D54: Adjusted Baseline controllable operating expenditure (Forecast) | AB54: =+AA52*(1+$AB$13-$F$11) -> 27.20849101 | AC54: =+AB$54*(1+AC$13-AC$11) -> 27.21393271 | AD54: 27.21937549 | AE54: 27.22481937 | AF54: 27.23026433 | AG54: 27.23571039 | AH54: 27.2629461 | AI54: 27.29020904 | AJ54: 27.31749925 | AK54: 27.34481675 | AL54: 27.37216157
C58: Operating expenditure - reconciliation
D61: Adjusted Baseline controllable operating expenditure (Forecast) | AC61: =+AC54 -> 27.21393271 | AD61: 27.21937549 | AE61: 27.22481937 | AF61: 27.23026433 | AG61: 27.23571039 | AH61: 27.2629461 | AI61: 27.29020904 | AJ61: 27.31749925 | AK61: 27.34481675 | AL61: 27.37216157
H62: Controllable
D63: Forecast variations to baseline operating expenditure (above or below baseline) | H63: only
D65: 1 | E65: =[3]Opex_FO!E65 -> Electricity | H65: Water | AC65: =[3]Opex_FO!AC65 -> -0.195669162 | AD65: =[3]Opex_FO!AD65 -> -0.194623355 | AE65: =[3]Opex_FO!AE65 -> -0.1870349831 | AF65: =[3]Opex_FO!AF65 -> -0.1741294863 | AG65: =[3]Opex_FO!AG65 -> -0.1997783686 | AH65: =[3]Opex_FO!AH65 -> 0 | AI65: =[3]Opex_FO!AI65 -> 0 | AJ65: =[3]Opex_FO!AJ65 -> 0 | AK65: =[3]Opex_FO!AK65 -> 0 | AL65: =[3]Opex_FO!AL65 -> 0
D66: 2 | E66: =[3]Opex_FO!E66 -> ICT Software | H66: Water | AC66: =[3]Opex_FO!AC66 -> 0.2065141873 | AD66: =[3]Opex_FO!AD66 -> 0.2783361589 | AE66: =[3]Opex_FO!AE66 -> 0.3094159947 | AF66: =[3]Opex_FO!AF66 -> 0.3423929148 | AG66: =[3]Opex_FO!AG66 -> 0.3735465792 | AH66: =[3]Opex_FO!AH66 -> 0.377282045 | AI66: =[3]Opex_FO!AI66 -> 0.3810548654 | AJ66: =[3]Opex_FO!AJ66 -> 0.3848654141 | AK66: =[3]Opex_FO!AK66 -> 0.3887140682 | AL66: =[3]Opex_FO!AL66 -> 0.3926012089
D67: 3 | E67: =[3]Opex_FO!E67 -> Technical Service Consultants | H67: Water | AC67: =[3]Opex_FO!AC67 -> -0.04008590246 | AD67: =[3]Opex_FO!AD67 -> -0.04353697824 | AE67: =[3]Opex_FO!AE67 -> 0.06412391176 | AF67: =[3]Opex_FO!AF67 -> 0.08034676754 | AG67: =[3]Opex_FO!AG67 -> -0.0538904109 | AH67: =[3]Opex_FO!AH67 -> 0 | AI67: =[3]Opex_FO!AI67 -> 0 | AJ67: =[3]Opex_FO!AJ67 -> 0 | AK67: =[3]Opex_FO!AK67 -> 0 | AL67: =[3]Opex_FO!AL67 -> 0
D68: 4 | E68: =[3]Opex_FO!E68 -> LGC Purchases | H68: Water | AC68: =[3]Opex_FO!AC68 -> 0 | AD68: =[3]Opex_FO!AD68 -> 0.020107952 | AE68: =[3]Opex_FO!AE68 -> 0.117603528 | AF68: =[3]Opex_FO!AF68 -> 0.08075116 | AG68: =[3]Opex_FO!AG68 -> 0.059114328 | AH68: =[3]Opex_FO!AH68 -> 0.05970547128 | AI68: =[3]Opex_FO!AI68 -> 0.06030252599 | AJ68: =[3]Opex_FO!AJ68 -> 0.06090555125 | AK68: =[3]Opex_FO!AK68 -> 0.06151460677 | AL68: =[3]Opex_FO!AL68 -> 0.06212975283
D69: 5 | E69: =[3]Opex_FO!E69 -> Electricity | H69: Sewerage | AC69: =[3]Opex_FO!AC69 -> -0.070677 | AD69: =[3]Opex_FO!AD69 -> -0.071686 | AE69: =[3]Opex_FO!AE69 -> -0.069576 | AF69: =[3]Opex_FO!AF69 -> -0.065426 | AG69: =[3]Opex_FO!AG69 -> -0.076741 | AH69: =[3]Opex_FO!AH69 -> 0 | AI69: =[3]Opex_FO!AI69 -> 0 | AJ69: =[3]Opex_FO!AJ69 -> 0 | AK69: =[3]Opex_FO!AK69 -> 0 | AL69: =[3]Opex_FO!AL69 -> 0
D70: 6 | E70: =[3]Opex_FO!E70 -> ICT Software | H70: Sewerage | AC70: =[3]Opex_FO!AC70 -> 0.17591964 | AD70: =[3]Opex_FO!AD70 -> 0.23710148 | AE70: =[3]Opex_FO!AE70 -> 0.26357678 | AF70: =[3]Opex_FO!AF70 -> 0.29166806 | AG70: =[3]Opex_FO!AG70 -> 0.31820592 | AH70: =[3]Opex_FO!AH70 -> 0.3213879792 | AI70: =[3]Opex_FO!AI70 -> 0.324601859 | AJ70: =[3]Opex_FO!AJ70 -> 0.3278478776 | AK70: =[3]Opex_FO!AK70 -> 0.3311263564 | AL70: =[3]Opex_FO!AL70 -> 0.3344376199
D71: 7 | E71: =[3]Opex_FO!E71 -> Technical Service Consultants | H71: Sewerage | AC71: =[3]Opex_FO!AC71 -> -0.265113 | AD71: =[3]Opex_FO!AD71 -> -0.258073 | AE71: =[3]Opex_FO!AE71 -> -0.162686 | AF71: =[3]Opex_FO!AF71 -> -0.18148 | AG71: =[3]Opex_FO!AG71 -> -0.276953 | AH71: =[3]Opex_FO!AH71 -> 0 | AI71: =[3]Opex_FO!AI71 -> 0 | AJ71: =[3]Opex_FO!AJ71 -> 0 | AK71: =[3]Opex_FO!AK71 -> 0 | AL71: =[3]Opex_FO!AL71 -> 0
D72: 8 | E72: =[3]Opex_FO!E72 -> LGC Purchases | H72: Sewerage | AC72: =[3]Opex_FO!AC72 -> 0 | AD72: =[3]Opex_FO!AD72 -> 0.011404 | AE72: =[3]Opex_FO!AE72 -> 0.066476 | AF72: =[3]Opex_FO!AF72 -> 0.045427 | AG72: =[3]Opex_FO!AG72 -> 0.033443 | AH72: =[3]Opex_FO!AH72 -> 0.03377743 | AI72: =[3]Opex_FO!AI72 -> 0.0341152043 | AJ72: =[3]Opex_FO!AJ72 -> 0.03445635634 | AK72: =[3]Opex_FO!AK72 -> 0.03480091991 | AL72: =[3]Opex_FO!AL72 -> 0.03514892911
D73: 9 | E73: =[3]Opex_FO!E73 -> 0 | H73: Water | AC73: =[3]Opex_FO!AC73 -> 0 | AD73: =[3]Opex_FO!AD73 -> 0 | AE73: =[3]Opex_FO!AE73 -> 0 | AF73: =[3]Opex_FO!AF73 -> 0 | AG73: =[3]Opex_FO!AG73 -> 0 | AH73: =[3]Opex_FO!AH73 -> 0 | AI73: =[3]Opex_FO!AI73 -> 0 | AJ73: =[3]Opex_FO!AJ73 -> 0 | AK73: =[3]Opex_FO!AK73 -> 0 | AL73: =[3]Opex_FO!AL73 -> 0
D74: 10 | E74: =[3]Opex_FO!E74 -> 0 | H74: Water | AC74: =[3]Opex_FO!AC74 -> 0 | AD74: =[3]Opex_FO!AD74 -> 0 | AE74: =[3]Opex_FO!AE74 -> 0 | AF74: =[3]Opex_FO!AF74 -> 0 | AG74: =[3]Opex_FO!AG74 -> 0 | AH74: =[3]Opex_FO!AH74 -> 0 | AI74: =[3]Opex_FO!AI74 -> 0 | AJ74: =[3]Opex_FO!AJ74 -> 0 | AK74: =[3]Opex_FO!AK74 -> 0 | AL74: =[3]Opex_FO!AL74 -> 0
D75: 11 | E75: =[3]Opex_FO!E75 -> 0 | H75: Water | AC75: =[3]Opex_FO!AC75 -> 0 | AD75: =[3]Opex_FO!AD75 -> 0 | AE75: =[3]Opex_FO!AE75 -> 0 | AF75: =[3]Opex_FO!AF75 -> 0 | AG75: =[3]Opex_FO!AG75 -> 0 | AH75: =[3]Opex_FO!AH75 -> 0 | AI75: =[3]Opex_FO!AI75 -> 0 | AJ75: =[3]Opex_FO!AJ75 -> 0 | AK75: =[3]Opex_FO!AK75 -> 0 | AL75: =[3]Opex_FO!AL75 -> 0
D76: 12 | E76: =[3]Opex_FO!E76 -> 0 | H76: Water | AC76: =[3]Opex_FO!AC76 -> 0 | AD76: =[3]Opex_FO!AD76 -> 0 | AE76: =[3]Opex_FO!AE76 -> 0 | AF76: =[3]Opex_FO!AF76 -> 0 | AG76: =[3]Opex_FO!AG76 -> 0 | AH76: =[3]Opex_FO!AH76 -> 0 | AI76: =[3]Opex_FO!AI76 -> 0 | AJ76: =[3]Opex_FO!AJ76 -> 0 | AK76: =[3]Opex_FO!AK76 -> 0 | AL76: =[3]Opex_FO!AL76 -> 0
D77: 13 | E77: =[3]Opex_FO!E77 -> 0 | H77: Water | AC77: =[3]Opex_FO!AC77 -> 0 | AD77: =[3]Opex_FO!AD77 -> 0 | AE77: =[3]Opex_FO!AE77 -> 0 | AF77: =[3]Opex_FO!AF77 -> 0 | AG77: =[3]Opex_FO!AG77 -> 0 | AH77: =[3]Opex_FO!AH77 -> 0 | AI77: =[3]Opex_FO!AI77 -> 0 | AJ77: =[3]Opex_FO!AJ77 -> 0 | AK77: =[3]Opex_FO!AK77 -> 0 | AL77: =[3]Opex_FO!AL77 -> 0
D78: 14 | E78: =[3]Opex_FO!E78 -> 0 | H78: Water | AC78: =[3]Opex_FO!AC78 -> 0 | AD78: =[3]Opex_FO!AD78 -> 0 | AE78: =[3]Opex_FO!AE78 -> 0 | AF78: =[3]Opex_FO!AF78 -> 0 | AG78: =[3]Opex_FO!AG78 -> 0 | AH78: =[3]Opex_FO!AH78 -> 0 | AI78: =[3]Opex_FO!AI78 -> 0 | AJ78: =[3]Opex_FO!AJ78 -> 0 | AK78: =[3]Opex_FO!AK78 -> 0 | AL78: =[3]Opex_FO!AL78 -> 0
D79: 15 | E79: =[3]Opex_FO!E79 -> Balancing variations | H79: Water | AC79: =[3]Opex_FO!AC79 -> -0.06072303022 | AD79: =[3]Opex_FO!AD79 -> -0.08889937453 | AE79: =[3]Opex_FO!AE79 -> -0.4040490404 | AF79: =[3]Opex_FO!AF79 -> 0.03769753106 | AG79: =[3]Opex_FO!AG79 -> -0.2912632534 | AH79: =[3]Opex_FO!AH79 -> -0.6353695056 | AI79: =[3]Opex_FO!AI79 -> -0.3689369563 | AJ79: =[3]Opex_FO!AJ79 -> -0.09929309793 | AK79: =[3]Opex_FO!AK79 -> 0.1735977457 | AL79: =[3]Opex_FO!AL79 -> 0.4497716444
D80: 16 | H80: [Service]
D81: 17 | H81: [Service]
D83: Total changes required to baseline operating expenditure | AC83: =SUM(AC65:AC82) -> -0.2498342674 | AD83: -0.1098691169 | AE83: -0.002149809028 | AF83: 0.4572479471 | AG83: -0.1143162058 | AH83: =SUM(AH65:AH82) -> 0.1567834198 | AI83: 0.4311374984 | AJ83: 0.7087821013 | AK83: 0.9897536969 | AL83: 1.274089155
D86: Total controllable operating expenditure | AC86: =+AC83+AC61 -> 26.96409844 | AD86: 27.10950638 | AE86: =+AE83+AE61 -> 27.22266956 | AF86: 27.68751228 | AG86: 27.12139418 | AH86: 27.41972952 | AI86: 27.72134654 | AJ86: 28.02628135 | AK86: 28.33457045 | AL86: 28.64625072
D88: Non-controllable operating expenditure
D89: External bulk water charges (excl. temporary purchases) | AC89: =+Opex_Breakdown!AC29 -> 0.71970903 | AD89: =+Opex_Breakdown!AD29 -> 0.73440703 | AE89: =+Opex_Breakdown!AE29 -> 0.74910403 | AF89: =+Opex_Breakdown!AF29 -> 0.76380103 | AG89: =+Opex_Breakdown!AG29 -> 0.76380103 | AH89: =+Opex_Breakdown!AH29 -> 0.7722028413 | AI89: =+Opex_Breakdown!AI29 -> 0.7806970726 | AJ89: =+Opex_Breakdown!AJ29 -> 0.7892847404 | AK89: =+Opex_Breakdown!AK29 -> 0.7979668725 | AL89: =+Opex_Breakdown!AL29 -> 0.8067445081
D90: External temporary water purchases | AC90: =+Opex_Breakdown!AC30 -> 0 | AD90: =+Opex_Breakdown!AD30 -> 0 | AE90: =+Opex_Breakdown!AE30 -> 0 | AF90: =+Opex_Breakdown!AF30 -> 0 | AG90: =+Opex_Breakdown!AG30 -> 0 | AH90: =+Opex_Breakdown!AH30 -> 0 | AI90: =+Opex_Breakdown!AI30 -> 0 | AJ90: =+Opex_Breakdown!AJ30 -> 0 | AK90: =+Opex_Breakdown!AK30 -> 0 | AL90: =+Opex_Breakdown!AL30 -> 0
D91: Licence fees | AC91: =+Opex_Breakdown!AC31 -> 0.08486985 | AD91: =+Opex_Breakdown!AD31 -> 0.08486985 | AE91: =+Opex_Breakdown!AE31 -> 0.08486985 | AF91: =+Opex_Breakdown!AF31 -> 0.09734985 | AG91: =+Opex_Breakdown!AG31 -> 0.09734985 | AH91: =+Opex_Breakdown!AH31 -> 0.09061065 | AI91: =+Opex_Breakdown!AI31 -> 0.09061065 | AJ91: =+Opex_Breakdown!AJ31 -> 0.09061065 | AK91: =+Opex_Breakdown!AK31 -> 0.09734985 | AL91: =+Opex_Breakdown!AL31 -> 0.09734985
D92: Environment Contribution | AC92: =+Opex_Breakdown!AC32 -> 1.784246 | AD92: =+Opex_Breakdown!AD32 -> 1.784246 | AE92: =+Opex_Breakdown!AE32 -> 1.784246 | AF92: =+Opex_Breakdown!AF32 -> 1.784246 | AG92: =+Opex_Breakdown!AG32 -> 1.784246 | AH92: =+Opex_Breakdown!AH32 -> 1.784246 | AI92: =+Opex_Breakdown!AI32 -> 1.784246 | AJ92: =+Opex_Breakdown!AJ32 -> 1.784246 | AK92: =+Opex_Breakdown!AK32 -> 1.784246 | AL92: =+Opex_Breakdown!AL32 -> 1.784246
D93: Other non-controllable | AC93: =+Opex_Breakdown!AC33 -> 0 | AD93: =+Opex_Breakdown!AD33 -> 0 | AE93: =+Opex_Breakdown!AE33 -> 0 | AF93: =+Opex_Breakdown!AF33 -> 0 | AG93: =+Opex_Breakdown!AG33 -> 0 | AH93: =+Opex_Breakdown!AH33 -> 0 | AI93: =+Opex_Breakdown!AI33 -> 0 | AJ93: =+Opex_Breakdown!AJ33 -> 0 | AK93: =+Opex_Breakdown!AK33 -> 0 | AL93: =+Opex_Breakdown!AL33 -> 0
D94: Total non-controllable operating expenditure | AC94: =SUM(AC89:AC93) -> 2.58882488 | AD94: 2.60352288 | AE94: 2.61821988 | AF94: 2.64539688 | AG94: 2.64539688 | AH94: =SUM(AH89:AH93) -> 2.647059491 | AI94: 2.655553723 | AJ94: 2.66414139 | AK94: 2.679562723 | AL94: 2.688340358
D97: Total prescribed operating expenditure | AC97: =+AC94+AC86 -> 29.55292332 | AD97: 29.71302926 | AE97: =+AE94+AE86 -> 29.84088944 | AF97: 30.33290916 | AG97: 29.76679106 | AH97: 30.06678901 | AI97: 30.37690026 | AJ97: 30.69042274 | AK97: 31.01413317 | AL97: =+AL94+AL86 -> 31.33459108
AB100: To reconcile to 'Opex_Breakdown' tab row 37 >> | AC100: =+Opex_Breakdown!AC37 -> 29.55292332 | AD100: =+Opex_Breakdown!AD37 -> 29.71302926 | AE100: =+Opex_Breakdown!AE37 -> 29.84088944 | AF100: =+Opex_Breakdown!AF37 -> 30.33290916 | AG100: =+Opex_Breakdown!AG37 -> 29.76679106 | AH100: =+Opex_Breakdown!AH37 -> 30.06678901 | AI100: =+Opex_Breakdown!AI37 -> 30.37690026 | AJ100: =+Opex_Breakdown!AJ37 -> 30.69042274 | AK100: =+Opex_Breakdown!AK37 -> 31.01413317 | AL100: =+Opex_Breakdown!AL37 -> 31.33459108
AB101: Difference | AC101: =+AC100-AC97 -> 0 | AD101: 0 | AE101: 0 | AF101: 0 | AG101: 0 | AH101: =+AH100-AH97 -> 0 | AI101: 0 | AJ101: 0 | AK101: 0 | AL101: 0
AB102: Test | AC102: =IF(ROUND(AC100,2)=ROUND(AC97,2),0,1) -> 0 | AD102: 0 | AE102: 0 | AF102: 0 | AG102: 0 | AH102: =IF(ROUND(AH100,2)=ROUND(AH97,2),0,1) -> 0 | AI102: 0 | AJ102: 0 | AK102: 0 | AL102: 0
AC141: =+AC$162 -> 2023-24 | AD141: 2024-25 | AE141: 2025-26 | AF141: 2026-27 | AG141: 2027-28 | AH141: 2028-29 | AI141: 2029-30 | AJ141: 2030-31 | AK141: 2031-32 | AL141: 2032-33
AB142: Total controllable opex | AC142: =+AC86 -> 26.96409844 | AD142: 27.10950638 | AE142: 27.22266956 | AF142: 27.68751228 | AG142: 27.12139418 | AH142: 27.41972952 | AI142: 27.72134654 | AJ142: 28.02628135 | AK142: 28.33457045 | AL142: 28.64625072
AB143: Change - $ | AD143: =+AD142-AC142 -> 0.145407937 | AE143: =+AE142-AD142 -> 0.113163183 | AF143: =+AF142-AE142 -> 0.46484272 | AG143: =+AG142-AF142 -> -0.5661181 | AH143: =+AH142-AG142 -> 0.298335336 | AI143: =+AI142-AH142 -> 0.3016170247 | AJ143: =+AJ142-AI142 -> 0.3049348119 | AK143: =+AK142-AJ142 -> 0.3082890949 | AL143: =+AL142-AK142 -> 0.3116802749
AB144: Change - % | AD144: =IFERROR(AD143/AC142,"") -> 0.005392649687 | AE144: =IFERROR(AE143/AD142,"") -> 0.004174298913 | AF144: =IFERROR(AF143/AE142,"") -> 0.01707557442 | AG144: =IFERROR(AG143/AF142,"") -> -0.02044669432 | AH144: =IFERROR(AH143/AG142,"") -> 0.011 | AI144: =IFERROR(AI143/AH142,"") -> 0.011 | AJ144: =IFERROR(AJ143/AI142,"") -> 0.011 | AK144: =IFERROR(AK143/AJ142,"") -> 0.011 | AL144: =IFERROR(AL143/AK142,"") -> 0.011
AC146: =+AC$162 -> 2023-24 | AD146: 2024-25 | AE146: 2025-26 | AF146: 2026-27 | AG146: 2027-28 | AH146: 2028-29 | AI146: 2029-30 | AJ146: 2030-31 | AK146: 2031-32 | AL146: 2032-33
AB147: Total non-controllable opex | AC147: =+AC94 -> 2.58882488 | AD147: 2.60352288 | AE147: 2.61821988 | AF147: 2.64539688 | AG147: 2.64539688 | AH147: 2.647059491 | AI147: 2.655553723 | AJ147: 2.66414139 | AK147: 2.679562723 | AL147: 2.688340358
AB148: Change - $ | AD148: =+AD147-AC147 -> 0.014698 | AE148: =+AE147-AD147 -> 0.014697 | AF148: =+AF147-AE147 -> 0.027177 | AG148: =+AG147-AF147 -> 0 | AH148: =+AH147-AG147 -> 0.00166261133 | AI148: =+AI147-AH147 -> 0.008494231255 | AJ148: =+AJ147-AI147 -> 0.008587667798 | AK148: =+AK147-AJ147 -> 0.01542133214 | AL148: =+AL147-AK147 -> 0.008777635598
AB149: Change - % | AD149: =IFERROR(AD148/AC147,"") -> 0.005677479428 | AE149: =IFERROR(AE148/AD147,"") -> 0.005645043534 | AF149: =IFERROR(AF148/AE147,"") -> 0.01037995327 | AG149: =IFERROR(AG148/AF147,"") -> 0 | AH149: =IFERROR(AH148/AG147,"") -> 0.0006284922095 | AI149: =IFERROR(AI148/AH147,"") -> 0.003208930998 | AJ149: =IFERROR(AJ148/AI147,"") -> 0.003233852031 | AK149: =IFERROR(AK148/AJ147,"") -> 0.005788481122 | AL149: =IFERROR(AL148/AK147,"") -> 0.003275771649
AC151: =+AC$162 -> 2023-24 | AD151: 2024-25 | AE151: 2025-26 | AF151: 2026-27 | AG151: 2027-28 | AH151: 2028-29 | AI151: 2029-30 | AJ151: 2030-31 | AK151: 2031-32 | AL151: 2032-33
AB152: Total prescribed opex | AC152: =+AC142+AC147 -> 29.55292332 | AD152: 29.71302926 | AE152: 29.84088944 | AF152: 30.33290916 | AG152: 29.76679106 | AH152: 30.06678901 | AI152: 30.37690026 | AJ152: 30.69042274 | AK152: 31.01413317 | AL152: 31.33459108
AB153: Change - $ | AD153: =+AD152-AC152 -> 0.160105937 | AE153: =+AE152-AD152 -> 0.127860183 | AF153: =+AF152-AE152 -> 0.49201972 | AG153: =+AG152-AF152 -> -0.5661181 | AH153: =+AH152-AG152 -> 0.2999979473 | AI153: =+AI152-AH152 -> 0.3101112559 | AJ153: =+AJ152-AI152 -> 0.3135224797 | AK153: =+AK152-AJ152 -> 0.323710427 | AL153: =+AL152-AK152 -> 0.3204579105
AB154: Change - % | AD154: =IFERROR(AD153/AC152,"") -> 0.005417600664 | AE154: =IFERROR(AE153/AD152,"") -> 0.004303168886 | AF154: =IFERROR(AF153/AE152,"") -> 0.01648810505 | AG154: =IFERROR(AG153/AF152,"") -> -0.01866349505 | AH154: =IFERROR(AH153/AG152,"") -> 0.01007827638 | AI154: =IFERROR(AI153/AH152,"") -> 0.01031407963 | AJ154: =IFERROR(AJ153/AI152,"") -> 0.01032108204 | AK154: =IFERROR(AK153/AJ152,"") -> 0.01054760404 | AL154: =IFERROR(AL153/AK152,"") -> 0.01033264121
AB157: Controllable vs. Non-controllable opex - % | AC157: =+AC$162 -> 2023-24 | AD157: 2024-25 | AE157: 2025-26 | AF157: 2026-27 | AG157: 2027-28 | AH157: 2028-29 | AI157: 2029-30 | AJ157: 2030-31 | AK157: 2031-32 | AL157: 2032-33
AB158: Controllable opex - % | AC158: =+AC86/AC97 -> 0.9124003791 | AD158: 0.9123777365 | AE158: 0.9122606622 | AF158: 0.9127878943 | AG158: 0.9111292556 | AH158: 0.9119606856 | AI158: 0.9125798321 | AJ158: 0.9131930696 | AK158: 0.9136018825 | AL158: 0.9142053473
AB159: Non-controllable opex - % | AC159: =+AC94/AC97 -> 0.08759962092 | AD159: 0.08762226354 | AE159: 0.08773933784 | AF159: 0.0872121057 | AG159: 0.0888707444 | AH159: 0.08803931443 | AI159: 0.08742016794 | AJ159: 0.08680693038 | AK159: 0.08639811752 | AL159: 0.08579465266
AC160: =SUM(AC158:AC159) -> 1 | AD160: 1 | AE160: 1 | AF160: 1 | AG160: 1 | AH160: 1 | AI160: 1 | AJ160: 1 | AK160: 1 | AL160: 1
AA162: =+AA6 -> 2021-22 | AB162: 2022-23 | AC162: 2023-24 | AD162: 2024-25 | AE162: 2025-26 | AF162: 2026-27 | AG162: 2027-28 | AH162: 2028-29 | AI162: 2029-30 | AJ162: 2030-31 | AK162: 2031-32 | AL162: 2032-33
Z163: Third Reg period Opex | AA163: =+AA171-SUM(AA164:AA170) -> 26.97154401 | AB163: =+AB171-SUM(AB164:AB170) -> 25.04550432
Z164: Adjusted baseline opex | AC164: =+AC61 -> 27.21393271 | AD164: 27.21937549 | AE164: 27.22481937 | AF164: 27.23026433 | AG164: 27.23571039 | AH164: 27.2629461 | AI164: 27.29020904 | AJ164: 27.31749925 | AK164: 27.34481675 | AL164: 27.37216157
Z165: Forecast variations to baseline operating expenditure | AC165: =+AC83 -> -0.2498342674 | AD165: =+AD83 -> -0.1098691169 | AE165: -0.002149809028 | AF165: 0.4572479471 | AG165: -0.1143162058 | AH165: 0.1567834198 | AI165: 0.4311374984 | AJ165: 0.7087821013 | AK165: 0.9897536969 | AL165: 1.274089155
Z166: Licence fees | AA166: =+AA195 -> 0.1162683905 | AB166: =+AB195 -> 0.09140985 | AC166: =+AC91 -> 0.08486985 | AD166: 0.08486985 | AE166: 0.08486985 | AF166: 0.09734985 | AG166: 0.09734985 | AH166: 0.09061065 | AI166: 0.09061065 | AJ166: 0.09061065 | AK166: 0.09734985 | AL166: 0.09734985
Z167: Environment Contribution | AA167: =+AA196 -> 1.875944784 | AB167: =+AB196 -> 1.784246 | AC167: =+AC92 -> 1.784246 | AD167: 1.784246 | AE167: 1.784246 | AF167: 1.784246 | AG167: 1.784246 | AH167: 1.784246 | AI167: 1.784246 | AJ167: 1.784246 | AK167: 1.784246 | AL167: 1.784246
Z168: External bulk water charges | AA168: =+AA193 -> 0.7072387709 | AB168: =+AB193 -> 0.70385048 | AC168: =+AC89 -> 0.71970903 | AD168: 0.73440703 | AE168: 0.74910403 | AF168: 0.76380103 | AG168: 0.76380103 | AH168: 0.7722028413 | AI168: 0.7806970726 | AJ168: 0.7892847404 | AK168: 0.7979668725 | AL168: 0.8067445081
Z169: External temporary water purchases | AA169: =+AA194 -> 0.0009780218321 | AB169: =+AB194 -> 0 | AC169: =+AC90 -> 0 | AD169: 0 | AE169: 0 | AF169: 0 | AG169: 0 | AH169: 0 | AI169: 0 | AJ169: 0 | AK169: 0 | AL169: 0
Z170: Other non-controllable | AA170: =+AA197 -> 0 | AB170: =+AB197 -> 0 | AC170: =+AC93 -> 0 | AD170: 0 | AE170: 0 | AF170: 0 | AG170: 0 | AH170: 0 | AI170: 0 | AJ170: 0 | AK170: 0 | AL170: 0
Z171: Total prescribed opex | AA171: =+Opex_Breakdown!AA37 -> 29.67197398 | AB171: =+Opex_Breakdown!AB37 -> 27.62501065 | AC171: =SUM(AC164:AC170) -> 29.55292332 | AD171: 29.71302926 | AE171: 29.84088944 | AF171: 30.33290916 | AG171: 29.76679106 | AH171: 30.06678901 | AI171: 30.37690026 | AJ171: 30.69042274 | AK171: 31.01413317 | AL171: 31.33459108
AC173: =+AC$162 -> 2023-24 | AD173: 2024-25 | AE173: 2025-26 | AF173: 2026-27 | AG173: 2027-28 | AH173: 2028-29 | AI173: 2029-30 | AJ173: 2030-31 | AK173: 2031-32 | AL173: 2032-33
AB174: Adjusted baseline opex | AC174: =+AC164/AC$171 -> 0.9208541711 | AD174: 0.9160754112 | AE174: 0.9123327046 | AF174: 0.8977135754 | AG174: 0.9149696496 | AH174: 0.9067461806 | AI174: 0.8983868929 | AJ174: 0.8900985001 | AK174: 0.8816888933 | AL174: 0.8735445597
AB175: Forecast variations to baseline operating expenditure | AC175: =+AC165/AC$171 -> -0.008453792022 | AD175: -0.003697674713 | AE175: -7.20423911e-05 | AF175: 0.01507431894 | AG175: -0.003840393999 | AH175: 0.005214504941 | AI175: 0.0141929392 | AJ175: 0.02309456951 | AK175: 0.0319129892 | AL175: 0.04066078768
AB176: Licence fees | AC176: =+AC166/AC$171 -> 0.002871792042 | AD176: 0.002856317653 | AE176: 0.002844079101 | AF176: 0.003209380593 | AG176: 0.003270418024 | AH176: 0.00301364572 | AI176: 0.002982880057 | AJ176: 0.002952408012 | AK176: 0.003138886696 | AL176: 0.003106785397
AB177: Environment Contribution | AC177: =+AC167/AC$171 -> 0.06037460256 | AD177: 0.06004927955 | AE177: 0.05979198454 | AF177: 0.05882211926 | AG177: 0.05994082454 | AH177: 0.05934275188 | AI177: 0.05873693446 | AJ177: 0.05813689876 | AK177: 0.05753009411 | AL177: 0.05694173559
AB178: External bulk water charges (excl. temporary purchases) | AC178: =+AC168/AC$171 -> 0.02435322632 | AD178: 0.02471666634 | AE178: 0.0251032742 | AF178: 0.02518060586 | AG178: 0.02565950184 | AH178: 0.02568291683 | AI178: 0.02570035342 | AJ178: 0.02571762361 | AK178: 0.02572913672 | AL178: 0.02574613168
AB179: External temporary water purchases | AC179: =+AC169/AC$171 -> 0 | AD179: 0 | AE179: 0 | AF179: 0 | AG179: 0 | AH179: 0 | AI179: 0 | AJ179: 0 | AK179: 0 | AL179: 0
AB180: Other non-controllable | AC180: =+AC170/AC$171 -> 0 | AD180: 0 | AE180: 0 | AF180: 0 | AG180: 0 | AH180: 0 | AI180: 0 | AJ180: 0 | AK180: 0 | AL180: 0
AB181: Total prescribed opex | AC181: =+AC171/AC$171 -> 1 | AD181: 1 | AE181: 1 | AF181: 1 | AG181: 1 | AH181: 1 | AI181: 1 | AJ181: 1 | AK181: 1 | AL181: 1
AC183: =+AC$162 -> 2023-24 | AD183: 2024-25 | AE183: 2025-26 | AF183: 2026-27 | AG183: 2027-28 | AH183: 2028-29 | AI183: 2029-30 | AJ183: 2030-31 | AK183: 2031-32 | AL183: 2032-33
AB184: Water | AC184: =+SUMIF($H$65:$H$81,$AB184,AC$65:AC$81) -> -0.08996390739 | AD184: -0.02861559693 | AE184: -0.09994058903 | AF184: 0.3670588871 | AG184: -0.1122711258 | AH184: -0.1983819894 | AI184: 0.07242043511 | AJ184: 0.3464778674 | AK184: 0.6238264207 | AL184: 0.9045026061
AB185: Sewerage | AC185: -0.15987036 | AD185: -0.08125352 | AE185: 0.09779078 | AF185: 0.09018906 | AG185: -0.00204508 | AH185: 0.3551654092 | AI185: 0.3587170633 | AJ185: 0.3623042339 | AK185: 0.3659272763 | AL185: 0.369586549
AB186: Recycled Water | AC186: 0 | AD186: 0 | AE186: 0 | AF186: 0 | AG186: 0 | AH186: 0 | AI186: 0 | AJ186: 0 | AK186: 0 | AL186: 0
AB187: Rural water | AC187: 0 | AD187: 0 | AE187: 0 | AF187: 0 | AG187: 0 | AH187: 0 | AI187: 0 | AJ187: 0 | AK187: 0 | AL187: 0
AB188: Bulk Water | AC188: 0 | AD188: 0 | AE188: 0 | AF188: 0 | AG188: 0 | AH188: 0 | AI188: 0 | AJ188: 0 | AK188: 0 | AL188: 0
AB189: Forecast variations to baseline operating expenditure | AC189: =SUM(AC184:AC188) -> -0.2498342674 | AD189: -0.1098691169 | AE189: -0.002149809028 | AF189: 0.4572479471 | AG189: -0.1143162058 | AH189: 0.1567834198 | AI189: 0.4311374984 | AJ189: 0.7087821013 | AK189: 0.9897536969 | AL189: 1.274089155
AA192: =+AA6 -> 2021-22 | AB192: 2022-23 | AC192: 2023-24 | AD192: 2024-25 | AE192: 2025-26 | AF192: 2026-27 | AG192: 2027-28 | AH192: 2028-29 | AI192: 2029-30 | AJ192: 2030-31 | AK192: 2031-32 | AL192: 2032-33
Z193: External bulk water charges (excl. temporary purchases) | AA193: =+Opex_Breakdown!AA29 -> 0.7072387709 | AB193: =+Opex_Breakdown!AB29 -> 0.70385048 | AC193: =+AC89 -> 0.71970903 | AD193: 0.73440703 | AE193: 0.74910403 | AF193: 0.76380103 | AG193: 0.76380103 | AH193: =+AH89 -> 0.7722028413 | AI193: 0.7806970726 | AJ193: 0.7892847404 | AK193: 0.7979668725 | AL193: 0.8067445081
Z194: External temporary water purchases | AA194: =+Opex_Breakdown!AA30 -> 0.0009780218321 | AB194: =+Opex_Breakdown!AB30 -> 0 | AC194: =+AC90 -> 0 | AD194: 0 | AE194: 0 | AF194: 0 | AG194: 0 | AH194: 0 | AI194: 0 | AJ194: 0 | AK194: 0 | AL194: 0
Z195: Licence fees | AA195: =+Opex_Breakdown!AA31 -> 0.1162683905 | AB195: =+Opex_Breakdown!AB31 -> 0.09140985 | AC195: =+AC91 -> 0.08486985 | AD195: 0.08486985 | AE195: 0.08486985 | AF195: 0.09734985 | AG195: 0.09734985 | AH195: 0.09061065 | AI195: 0.09061065 | AJ195: 0.09061065 | AK195: 0.09734985 | AL195: 0.09734985
Z196: Environment Contribution | AA196: =+Opex_Breakdown!AA32 -> 1.875944784 | AB196: =+Opex_Breakdown!AB32 -> 1.784246 | AC196: =+AC92 -> 1.784246 | AD196: 1.784246 | AE196: 1.784246 | AF196: 1.784246 | AG196: 1.784246 | AH196: 1.784246 | AI196: 1.784246 | AJ196: 1.784246 | AK196: 1.784246 | AL196: 1.784246
Z197: Other non-controllable | AA197: =+Opex_Breakdown!AA33 -> 0 | AB197: =+Opex_Breakdown!AB33 -> 0 | AC197: =+AC93 -> 0 | AD197: 0 | AE197: 0 | AF197: 0 | AG197: 0 | AH197: 0 | AI197: 0 | AJ197: 0 | AK197: 0 | AL197: 0
Z198: Total Non-controllable operating expenditure | AA198: =+Opex_Breakdown!AA34 -> 2.700429967 | AB198: =+Opex_Breakdown!AB34 -> 2.57950633 | AC198: =SUM(AC193:AC197) -> 2.58882488 | AD198: 2.60352288 | AE198: 2.61821988 | AF198: 2.64539688 | AG198: 2.64539688 | AH198: 2.647059491 | AI198: 2.655553723 | AJ198: 2.66414139 | AK198: 2.679562723 | AL198: 2.688340358
AB200: Check | AC200: =IF(ROUND(AC171,2)=ROUND(AC97,2),0,1) -> 0 | AD200: =IF(ROUND(AD171,2)=ROUND(AD97,2),0,1) -> 0 | AE200: 0 | AF200: 0 | AG200: 0 | AH200: 0 | AI200: 0 | AJ200: 0 | AK200: 0 | AL200: 0
AC201: =IF(ROUND(AC189,2)=ROUND(AC165,2),0,1) -> 0 | AD201: =IF(ROUND(AD189,2)=ROUND(AD165,2),0,1) -> 0 | AE201: 0 | AF201: 0 | AG201: 0 | AH201: 0 | AI201: 0 | AJ201: 0 | AK201: 0 | AL201: 0
AC202: =IF(ROUND(AC152,2)=ROUND(AC171,2),0,1) -> 0 | AD202: =IF(ROUND(AD152,2)=ROUND(AD171,2),0,1) -> 0 | AE202: 0 | AF202: 0 | AG202: 0 | AH202: 0 | AI202: 0 | AJ202: 0 | AK202: 0 | AL202: 0
AC203: =IF(ROUND(AC198,2)=ROUND(AC147,2),0,1) -> 0 | AD203: =IF(ROUND(AD198,2)=ROUND(AD147,2),0,1) -> 0 | AE203: 0 | AF203: 0 | AG203: 0 | AH203: 0 | AI203: 0 | AJ203: 0 | AK203: 0 | AL203: 0

Sheet Opex_Breakdown
A1: 80 | B1: Operating Expenditure - Breakdown
B2: =+Contents!H7 -> Lower Murray Water - Urban
B3: Go to Table of Contents
L4: FIRST REG PERIOD | P4: SECOND REG PERIOD | U4: THIRD REG PERIOD | Z4: FOURTH REG PERIOD | AE4: FIFTH REG PERIOD | AJ4: SIXTH REG PERIOD
K6: 2006 | L6: 2007 | M6: 2008 | N6: 2009 | O6: 2010 | P6: 2011 | Q6: 2012 | R6: 2013 | S6: 2014 | T6: 2015 | U6: 2016 | V6: 2017 | W6: 2018 | X6: 2019 | Y6: 2020 | Z6: 2021 | AA6: 2022 | AB6: 2023 | AC6: 2024 | AD6: 2025 | AE6: 2026 | AF6: 2027 | AG6: 2028 | AH6: 2029 | AI6: 2030 | AJ6: 2031 | AK6: 2032 | AL6: 2033
B7: $m, 01/01/23 | K7: =+CONCATENATE(K6-1,"-",RIGHT(K6,2)) -> 2005-06 | L7: =+CONCATENATE(L6-1,"-",RIGHT(L6,2)) -> 2006-07 | M7: 2007-08 | N7: 2008-09 | O7: 2009-10 | P7: 2010-11 | Q7: 2011-12 | R7: 2012-13 | S7: 2013-14 | T7: 2014-15 | U7: 2015-16 | V7: 2016-17 | W7: 2017-18 | X7: =+CONCATENATE(X6-1,"-",RIGHT(X6,2)) -> 2018-19 | Y7: =+CONCATENATE(Y6-1,"-",RIGHT(Y6,2)) -> 2019-20 | Z7: =+CONCATENATE(Z6-1,"-",RIGHT(Z6,2)) -> 2020-21 | AA7: =+CONCATENATE(AA6-1,"-",RIGHT(AA6,2)) -> 2021-22 | AB7: =+CONCATENATE(AB6-1,"-",RIGHT(AB6,2)) -> 2022-23 | AC7: =+CONCATENATE(AC6-1,"-",RIGHT(AC6,2)) -> 2023-24 | AD7: 2024-25 | AE7: 2025-26 | AF7: 2026-27 | AG7: 2027-28 | AH7: =+CONCATENATE(AH6-1,"-",RIGHT(AH6,2)) -> 2028-29 | AI7: 2029-30 | AJ7: 2030-31 | AK7: 2031-32 | AL7: 2032-33
D10: Operating Expenditure Summary
E12: =C48 -> Water | W12: =+W57-W50-W54 -> 14.81528171 | X12: 15.33448418 | Y12: 15.43250541 | Z12: 15.78214212 | AA12: 16.75739491 | AB12: 15.54336591 | AC12: =+AC57-AC50-AC54 -> 16.67732731 | AD12: 16.49328898 | AE12: 16.75660007 | AF12: 16.93836243 | AG12: 16.70408095 | AH12: =+AH57-AH50-AH54 -> 16.88782584 | AI12: 17.07359192 | AJ12: 17.26140144 | AK12: 17.45127685 | AL12: 17.6432409
E13: =C59 -> Sewerage | W13: =W68-W61-W65 -> 9.364371904 | X13: 8.952602588 | Y13: 9.209201715 | Z13: 8.960290345 | AA13: 10.2141491 | AB13: 9.50213841 | AC13: =AC68-AC61-AC65 -> 10.28677113 | AD13: 10.6162174 | AE13: 10.46606949 | AF13: 10.74914985 | AG13: 10.41731323 | AH13: =AH68-AH61-AH65 -> 10.53190368 | AI13: 10.64775462 | AJ13: 10.76487992 | AK13: 10.8832936 | AL13: 11.00300983
E14: =C70 -> Recycled Water | W14: =W79-W72-W76 -> 0.26869481 | X14: 0.264746571 | Y14: 0.2663817423 | Z14: 0.2364662316 | AA14: 0 | AB14: 0 | AC14: =AC79-AC72-AC76 -> 0 | AD14: 0 | AE14: 0 | AF14: 0 | AG14: 0 | AH14: =AH79-AH72-AH76 -> 0 | AI14: 0 | AJ14: 0 | AK14: 0 | AL14: 0
E15: =C81 -> Rural Water | W15: =W90-W83-W87 -> 0 | X15: 0 | Y15: 0 | Z15: 0 | AA15: 0 | AB15: 0 | AC15: =AC90-AC83-AC87 -> 0 | AD15: 0 | AE15: 0 | AF15: 0 | AG15: 0 | AH15: =AH90-AH83-AH87 -> 0 | AI15: 0 | AJ15: 0 | AK15: 0 | AL15: 0
E16: Bulk Water | W16: =W101-W97 -> 0 | X16: 0 | Y16: 0 | Z16: 0 | AA16: 0 | AB16: 0 | AC16: =AC101-AC97 -> 0 | AD16: 0 | AE16: 0 | AF16: 0 | AG16: 0 | AH16: =AH101-AH97 -> 0 | AI16: 0 | AJ16: 0 | AK16: 0 | AL16: 0
E17: Total controllable operating expenditure | W17: =SUM(W12:W16) -> 24.44834842 | X17: 24.55183333 | Y17: 24.90808886 | Z17: 24.97889869 | AA17: 26.97154401 | AB17: 25.04550432 | AC17: 26.96409844 | AD17: 27.10950638 | AE17: 27.22266956 | AF17: 27.68751228 | AG17: 27.12139418 | AH17: =SUM(AH12:AH16) -> 27.41972952 | AI17: 27.72134654 | AJ17: 28.02628135 | AK17: 28.33457045 | AL17: 28.64625072
E20: Operations & Maintenance | W20: =W49+W60+W71+W82+W93 -> 16.87630021 | X20: 17.27039794 | Y20: 16.48297419 | Z20: 16.73504126 | AA20: 17.34635946 | AB20: 15.83673687 | AC20: 17.05235274 | AD20: 17.16583623 | AE20: 17.22405288 | AF20: 17.26643355 | AG20: 17.078588 | AH20: =AH49+AH60+AH71+AH82+AH93 -> 17.26645247 | AI20: 17.45638345 | AJ20: 17.64840366 | AK20: 17.8425361 | AL20: 18.038804
E21: Treatment | W21: =W51+W62+W73+W84+W94 -> 1.447771455 | X21: 1.441611029 | Y21: 1.407761975 | Z21: 1.430534226 | AA21: 1.252785246 | AB21: 1.16592734 | AC21: 1.2278983 | AD21: 1.38194094 | AE21: 1.22883441 | AF21: 1.34353539 | AG21: 1.29916509 | AH21: =AH51+AH62+AH73+AH84+AH94 -> 1.313455906 | AI21: 1.327903921 | AJ21: 1.342510864 | AK21: 1.357278484 | AL21: 1.372208547
E22: Customer Service and billing | W22: =W52+W63+W74+W85+W95 -> 2.885944646 | X22: 2.399126349 | Y22: 3.4351526 | Z22: 3.62491874 | AA22: 3.082153256 | AB22: 3.05971938 | AC22: 3.36636421 | AD22: 3.26189373 | AE22: 3.29317388 | AF22: 3.31345388 | AG22: 3.31698514 | AH22: =AH52+AH63+AH74+AH85+AH95 -> 3.353471977 | AI22: 3.390360168 | AJ22: 3.42765413 | AK22: 3.465358326 | AL22: 3.503477267
E23: GSL Payments | W23: =W53+W64+W75+W86+W96 -> 0 | X23: 0 | Y23: 0 | Z23: 0 | AA23: 0 | AB23: 0 | AC23: 0 | AD23: 0 | AE23: 0 | AF23: 0 | AG23: 0 | AH23: =AH53+AH64+AH75+AH86+AH96 -> 0 | AI23: 0 | AJ23: 0 | AK23: 0 | AL23: 0
E24: Corporate | W24: =W55+W66+W77+W88+W98 -> 3.238332111 | X24: 3.440698018 | Y24: 3.582200097 | Z24: 3.188404467 | AA24: 5.290246049 | AB24: 4.98312073 | AC24: 5.31748319 | AD24: 5.299835477 | AE24: 5.47660839 | AF24: 5.76408946 | AG24: 5.42665595 | AH24: =AH55+AH66+AH77+AH88+AH98 -> 5.486349165 | AI24: 5.546699006 | AJ24: 5.607712695 | AK24: 5.669397535 | AL24: 5.731760908
E25: Other operating expenditure | W25: =W56+W67+W78+W89+W100 -> 0 | X25: 0 | Y25: 0 | Z25: 0 | AA25: 0 | AB25: 0 | AC25: 0 | AD25: 0 | AE25: 0 | AF25: 0 | AG25: 0 | AH25: =AH56+AH67+AH78+AH89+AH100 -> 0 | AI25: 0 | AJ25: 0 | AK25: 0 | AL25: 0
E26: Total controllable operating expenditure | W26: =SUM(W20:W25) -> 24.44834842 | X26: 24.55183333 | Y26: 24.90808886 | Z26: 24.97889869 | AA26: 26.97154401 | AB26: 25.04550432 | AC26: 26.96409844 | AD26: 27.10950638 | AE26: 27.22266956 | AF26: 27.68751228 | AG26: 27.12139418 | AH26: =SUM(AH20:AH25) -> 27.41972952 | AI26: 27.72134654 | AJ26: 28.02628135 | AK26: 28.33457045 | AL26: 28.64625072
AC27: =IF(ROUND(AC17,2)=ROUND(AC26,2),0,1) -> 0 | AD27: =IF(ROUND(AD17,2)=ROUND(AD26,2),0,1) -> 0 | AE27: 0 | AF27: 0 | AG27: 0 | AH27: 0 | AI27: 0 | AJ27: 0 | AK27: 0 | AL27: 0
E29: External bulk water charges (excl. temporary purchases) | W29: =W50+W61+W72+W83 -> 0.7743242178 | X29: =X50+X61+X72+X83 -> 0.7442124253 | Y29: =Y50+Y61+Y72+Y83 -> 0.7189898106 | Z29: 0.7145816995 | AA29: 0.7072387709 | AB29: 0.70385048 | AC29: 0.71970903 | AD29: 0.73440703 | AE29: 0.74910403 | AF29: 0.76380103 | AG29: 0.76380103 | AH29: =AH50+AH61+AH72+AH83 -> 0.7722028413 | AI29: 0.7806970726 | AJ29: 0.7892847404 | AK29: 0.7979668725 | AL29: 0.8067445081
E30: External temporary water purchases | W30: =+W103 -> 0.0001388888333 | X30: 0 | Y30: 0 | Z30: 0 | AA30: 0.0009780218321 | AB30: 0 | AC30: 0 | AD30: 0 | AE30: 0 | AF30: 0 | AG30: 0 | AH30: =+AH103 -> 0 | AI30: 0 | AJ30: 0 | AK30: 0 | AL30: 0
E31: Licence fees | W31: =+W110 -> 0.08507837376 | X31: 0.09314641898 | Y31: 0.0361369661 | Z31: 0.08743195832 | AA31: 0.1162683905 | AB31: 0.09140985 | AC31: 0.08486985 | AD31: 0.08486985 | AE31: 0.08486985 | AF31: 0.09734985 | AG31: 0.09734985 | AH31: =+AH110 -> 0.09061065 | AI31: 0.09061065 | AJ31: 0.09061065 | AK31: 0.09734985 | AL31: 0.09734985
E32: Environment Contribution | W32: =W112 -> 1.355611765 | X32: 1.942126998 | Y32: 1.916595092 | Z32: 1.89686012 | AA32: 1.875944784 | AB32: 1.784246 | AC32: 1.784246 | AD32: 1.784246 | AE32: 1.784246 | AF32: 1.784246 | AG32: 1.784246 | AH32: =AH112 -> 1.784246 | AI32: 1.784246 | AJ32: 1.784246 | AK32: 1.784246 | AL32: 1.784246
E33: Other non-controllable | W33: =+W125 -> 0 | X33: 0 | Y33: 0 | Z33: 0 | AA33: 0 | AB33: 0 | AC33: 0 | AD33: 0 | AE33: 0 | AF33: 0 | AG33: =+AG125 -> 0 | AH33: 0 | AI33: 0 | AJ33: 0 | AK33: 0 | AL33: =+AL125 -> 0
E34: Total non-controllable operating expenditure | W34: =SUM(W29:W33) -> 2.215153245 | X34: 2.779485842 | Y34: 2.671721869 | Z34: 2.698873778 | AA34: 2.700429967 | AB34: 2.57950633 | AC34: 2.58882488 | AD34: 2.60352288 | AE34: 2.61821988 | AF34: 2.64539688 | AG34: 2.64539688 | AH34: =SUM(AH29:AH33) -> 2.647059491 | AI34: 2.655553723 | AJ34: 2.66414139 | AK34: 2.679562723 | AL34: 2.688340358
E37: Total prescribed operating expenditure | W37: =+W34+W17 -> 26.66350167 | X37: 27.33131918 | Y37: 27.57981073 | Z37: 27.67777247 | AA37: 29.67197398 | AB37: 27.62501065 | AC37: 29.55292332 | AD37: 29.71302926 | AE37: 29.84088944 | AF37: 30.33290916 | AG37: 29.76679106 | AH37: =+AH34+AH17 -> 30.06678901 | AI37: 30.37690026 | AJ37: 30.69042274 | AK37: 31.01413317 | AL37: 31.33459108
AB40: To reconcile to 'Opex_FO' tab row 97>> | AC40: =+Opex_FO!AC97 -> 29.55292332 | AD40: =+Opex_FO!AD97 -> 29.71302926 | AE40: =+Opex_FO!AE97 -> 29.84088944 | AF40: =+Opex_FO!AF97 -> 30.33290916 | AG40: =+Opex_FO!AG97 -> 29.76679106 | AH40: =+Opex_FO!AH97 -> 30.06678901 | AI40: =+Opex_FO!AI97 -> 30.37690026 | AJ40: =+Opex_FO!AJ97 -> 30.69042274 | AK40: =+Opex_FO!AK97 -> 31.01413317 | AL40: =+Opex_FO!AL97 -> 31.33459108
AB41: Difference | AC41: =+AC40-AC37 -> 0 | AD41: 0 | AE41: 0 | AF41: 0 | AG41: 0 | AH41: =+AH40-AH37 -> 0 | AI41: 0 | AJ41: 0 | AK41: 0 | AL41: 0
AB42: Test | AC42: =IF(ROUND(AC40,2)=ROUND(AC37,2),0,1) -> 0 | AD42: 0 | AE42: 0 | AF42: 0 | AG42: 0 | AH42: 0 | AI42: 0 | AJ42: 0 | AK42: 0 | AL42: 0
B46: Total operating expenditure
C48: Water
D49: Operations & Maintenance | W49: =[3]Opex_Breakdown!W49 -> 11.54829764 | X49: =[3]Opex_Breakdown!X49 -> 12.26398989 | Y49: =[3]Opex_Breakdown!Y49 -> 11.44054503 | Z49: =[3]Opex_Breakdown!Z49 -> 11.52386449 | AA49: =[3]Opex_Breakdown!AA49 -> 11.87541758 | AB49: =[3]Opex_Breakdown!AB49 -> 10.84523225 | AC49: =[3]Opex_Breakdown!AC49 -> 11.71310468 | AD49: =[3]Opex_Breakdown!AD49 -> 11.59389186 | AE49: =[3]Opex_Breakdown!AE49 -> 11.73090007 | AF49: =[3]Opex_Breakdown!AF49 -> 11.75137328 | AG49: =[3]Opex_Breakdown!AG49 -> 11.70116765 | AH49: =[3]Opex_Breakdown!AH49 -> 11.82988049 | AI49: =[3]Opex_Breakdown!AI49 -> 11.96000918 | AJ49: =[3]Opex_Breakdown!AJ49 -> 12.09156928 | AK49: =[3]Opex_Breakdown!AK49 -> 12.22457654 | AL49: =[3]Opex_Breakdown!AL49 -> 12.35904688
D50: External bulk charges (excl. temporary purchases) | W50: =+W132 -> 0.7743242178 | X50: =+X132 -> 0.7442124253 | Y50: 0.7189898106 | Z50: 0.7145816995 | AA50: 0.7072387709 | AB50: 0.70385048 | AC50: 0.71970903 | AD50: 0.73440703 | AE50: 0.74910403 | AF50: 0.76380103 | AG50: 0.76380103 | AH50: =+AH132 -> 0.7722028413 | AI50: 0.7806970726 | AJ50: 0.7892847404 | AK50: 0.7979668725 | AL50: 0.8067445081
D51: Treatment | W51: =[3]Opex_Breakdown!W51 -> 0 | X51: =[3]Opex_Breakdown!X51 -> 0 | Y51: =[3]Opex_Breakdown!Y51 -> 0 | Z51: =[3]Opex_Breakdown!Z51 -> 0 | AA51: =[3]Opex_Breakdown!AA51 -> 0 | AB51: =[3]Opex_Breakdown!AB51 -> 0 | AC51: =[3]Opex_Breakdown!AC51 -> 0 | AD51: =[3]Opex_Breakdown!AD51 -> 0 | AE51: =[3]Opex_Breakdown!AE51 -> 0 | AF51: =[3]Opex_Breakdown!AF51 -> 0 | AG51: =[3]Opex_Breakdown!AG51 -> 0 | AH51: =[3]Opex_Breakdown!AH51 -> 0 | AI51: =[3]Opex_Breakdown!AI51 -> 0 | AJ51: =[3]Opex_Breakdown!AJ51 -> 0 | AK51: =[3]Opex_Breakdown!AK51 -> 0 | AL51: =[3]Opex_Breakdown!AL51 -> 0
D52: Customer Service and billing | W52: =[3]Opex_Breakdown!W52 -> 1.706738482 | X52: =[3]Opex_Breakdown!X52 -> 1.397479665 | Y52: =[3]Opex_Breakdown!Y52 -> 2.219464188 | Z52: =[3]Opex_Breakdown!Z52 -> 2.450076891 | AA52: =[3]Opex_Breakdown!AA52 -> 1.898447315 | AB52: =[3]Opex_Breakdown!AB52 -> 1.86532447 | AC52: =[3]Opex_Breakdown!AC52 -> 2.03586764 | AD52: =[3]Opex_Breakdown!AD52 -> 1.9783193 | AE52: =[3]Opex_Breakdown!AE52 -> 1.99565377 | AF52: =[3]Opex_Breakdown!AF52 -> 2.00660497 | AG52: =[3]Opex_Breakdown!AG52 -> 2.00802773 | AH52: =[3]Opex_Breakdown!AH52 -> 2.030116035 | AI52: =[3]Opex_Breakdown!AI52 -> 2.052447311 | AJ52: =[3]Opex_Breakdown!AJ52 -> 2.075024232 | AK52: =[3]Opex_Breakdown!AK52 -> 2.097849498 | AL52: =[3]Opex_Breakdown!AL52 -> 2.120925843
D53: GSL Payments | W53: =[3]Opex_Breakdown!W53 -> 0 | X53: =[3]Opex_Breakdown!X53 -> 0 | Y53: =[3]Opex_Breakdown!Y53 -> 0 | Z53: =[3]Opex_Breakdown!Z53 -> 0 | AA53: =[3]Opex_Breakdown!AA53 -> 0 | AB53: =[3]Opex_Breakdown!AB53 -> 0 | AC53: =[3]Opex_Breakdown!AC53 -> 0 | AD53: =[3]Opex_Breakdown!AD53 -> 0 | AE53: =[3]Opex_Breakdown!AE53 -> 0 | AF53: =[3]Opex_Breakdown!AF53 -> 0 | AG53: =[3]Opex_Breakdown!AG53 -> 0 | AH53: =[3]Opex_Breakdown!AH53 -> 0 | AI53: =[3]Opex_Breakdown!AI53 -> 0 | AJ53: =[3]Opex_Breakdown!AJ53 -> 0 | AK53: =[3]Opex_Breakdown!AK53 -> 0 | AL53: =[3]Opex_Breakdown!AL53 -> 0
D54: Licence Fees | W54: =[3]Opex_Breakdown!W54 -> 0.03109889327 | X54: =[3]Opex_Breakdown!X54 -> 0.03551286446 | Y54: =[3]Opex_Breakdown!Y54 -> 0.02833079863 | Z54: =[3]Opex_Breakdown!Z54 -> 0.032019477 | AA54: =[3]Opex_Breakdown!AA54 -> 0.04788684557 | AB54: =[3]Opex_Breakdown!AB54 -> 0.03491985 | AC54: =[3]Opex_Breakdown!AC54 -> 0.03138825 | AD54: =[3]Opex_Breakdown!AD54 -> 0.03138825 | AE54: =[3]Opex_Breakdown!AE54 -> 0.03138825 | AF54: =[3]Opex_Breakdown!AF54 -> 0.03812745 | AG54: =[3]Opex_Breakdown!AG54 -> 0.03812745 | AH54: =[3]Opex_Breakdown!AH54 -> 0.03138825 | AI54: =[3]Opex_Breakdown!AI54 -> 0.03138825 | AJ54: =[3]Opex_Breakdown!AJ54 -> 0.03138825 | AK54: =[3]Opex_Breakdown!AK54 -> 0.03812745 | AL54: =[3]Opex_Breakdown!AL54 -> 0.03812745
D55: Corporate | W55: =[3]Opex_Breakdown!W55 -> 1.560245587 | X55: =[3]Opex_Breakdown!X55 -> 1.673014625 | Y55: =[3]Opex_Breakdown!Y55 -> 1.772496187 | Z55: =[3]Opex_Breakdown!Z55 -> 1.808200731 | AA55: =[3]Opex_Breakdown!AA55 -> 2.983530012 | AB55: =[3]Opex_Breakdown!AB55 -> 2.83280919 | AC55: =[3]Opex_Breakdown!AC55 -> 2.92835499 | AD55: =[3]Opex_Breakdown!AD55 -> 2.921077817 | AE55: =[3]Opex_Breakdown!AE55 -> 3.03004623 | AF55: =[3]Opex_Breakdown!AF55 -> 3.18038418 | AG55: =[3]Opex_Breakdown!AG55 -> 2.99488557 | AH55: =[3]Opex_Breakdown!AH55 -> 3.027829311 | AI55: =[3]Opex_Breakdown!AI55 -> 3.061135434 | AJ55: =[3]Opex_Breakdown!AJ55 -> 3.094807923 | AK55: =[3]Opex_Breakdown!AK55 -> 3.128850811 | AL55: =[3]Opex_Breakdown!AL55 -> 3.16326817
D56: Other operating expenditure | W56: =[3]Opex_Breakdown!W56 -> 0 | X56: =[3]Opex_Breakdown!X56 -> 0 | Y56: =[3]Opex_Breakdown!Y56 -> 0 | Z56: =[3]Opex_Breakdown!Z56 -> 0 | AA56: =[3]Opex_Breakdown!AA56 -> 0 | AB56: =[3]Opex_Breakdown!AB56 -> 0 | AC56: =[3]Opex_Breakdown!AC56 -> 0 | AD56: =[3]Opex_Breakdown!AD56 -> 0 | AE56: =[3]Opex_Breakdown!AE56 -> 0 | AF56: =[3]Opex_Breakdown!AF56 -> 0 | AG56: =[3]Opex_Breakdown!AG56 -> 0 | AH56: =[3]Opex_Breakdown!AH56 -> 0 | AI56: =[3]Opex_Breakdown!AI56 -> 0 | AJ56: =[3]Opex_Breakdown!AJ56 -> 0 | AK56: =[3]Opex_Breakdown!AK56 -> 0 | AL56: =[3]Opex_Breakdown!AL56 -> 0
C57: =+CONCATENATE("Total ",C48) -> Total Water | W57: =+SUM(W49:W56) -> 15.62070482 | X57: =+SUM(X49:X56) -> 16.11420947 | Y57: 16.17982601 | Z57: 16.52874329 | AA57: 17.51252053 | AB57: 16.28213624 | AC57: =+SUM(AC49:AC56) -> 17.42842459 | AD57: 17.25908426 | AE57: 17.53709235 | AF57: 17.74029091 | AG57: 17.50600943 | AH57: =+SUM(AH49:AH56) -> 17.69141693 | AI57: 17.88567725 | AJ57: 18.08207443 | AK57: 18.28737117 | AL57: 18.48811286
C59: Sewerage
D60: =D49 -> Operations & Maintenance | W60: =[3]Opex_Breakdown!W60 -> 5.059307761 | X60: =[3]Opex_Breakdown!X60 -> 4.741661481 | Y60: =[3]Opex_Breakdown!Y60 -> 4.776047418 | Z60: =[3]Opex_Breakdown!Z60 -> 4.974710534 | AA60: =[3]Opex_Breakdown!AA60 -> 5.470941872 | AB60: =[3]Opex_Breakdown!AB60 -> 4.99150462 | AC60: =[3]Opex_Breakdown!AC60 -> 5.33924806 | AD60: =[3]Opex_Breakdown!AD60 -> 5.57194437 | AE60: =[3]Opex_Breakdown!AE60 -> 5.49315281 | AF60: =[3]Opex_Breakdown!AF60 -> 5.51506027 | AG60: =[3]Opex_Breakdown!AG60 -> 5.37742035 | AH60: =[3]Opex_Breakdown!AH60 -> 5.436571974 | AI60: =[3]Opex_Breakdown!AI60 -> 5.496374266 | AJ60: =[3]Opex_Breakdown!AJ60 -> 5.556834382 | AK60: =[3]Opex_Breakdown!AK60 -> 5.617959561 | AL60: =[3]Opex_Breakdown!AL60 -> 5.679757116
D61: =D50 -> External bulk charges (excl. temporary purchases) | W61: =+W133 -> 0 | X61: =+X133 -> 0 | Y61: 0 | Z61: 0 | AA61: 0 | AB61: 0 | AC61: 0 | AD61: 0 | AE61: 0 | AF61: 0 | AG61: 0 | AH61: =+AH133 -> 0 | AI61: 0 | AJ61: 0 | AK61: 0 | AL61: 0
D62: Treatment | W62: =[3]Opex_Breakdown!W62 -> 1.447771455 | X62: =[3]Opex_Breakdown!X62 -> 1.441611029 | Y62: =[3]Opex_Breakdown!Y62 -> 1.407761975 | Z62: =[3]Opex_Breakdown!Z62 -> 1.430534226 | AA62: =[3]Opex_Breakdown!AA62 -> 1.252785246 | AB62: =[3]Opex_Breakdown!AB62 -> 1.16592734 | AC62: =[3]Opex_Breakdown!AC62 -> 1.2278983 | AD62: =[3]Opex_Breakdown!AD62 -> 1.38194094 | AE62: =[3]Opex_Breakdown!AE62 -> 1.22883441 | AF62: =[3]Opex_Breakdown!AF62 -> 1.34353539 | AG62: =[3]Opex_Breakdown!AG62 -> 1.29916509 | AH62: =[3]Opex_Breakdown!AH62 -> 1.313455906 | AI62: =[3]Opex_Breakdown!AI62 -> 1.327903921 | AJ62: =[3]Opex_Breakdown!AJ62 -> 1.342510864 | AK62: =[3]Opex_Breakdown!AK62 -> 1.357278484 | AL62: =[3]Opex_Breakdown!AL62 -> 1.372208547
D63: Customer Service and billing | W63: =[3]Opex_Breakdown!W63 -> 1.179206164 | X63: =[3]Opex_Breakdown!X63 -> 1.001646685 | Y63: =[3]Opex_Breakdown!Y63 -> 1.215688412 | Z63: =[3]Opex_Breakdown!Z63 -> 1.174841849 | AA63: =[3]Opex_Breakdown!AA63 -> 1.183705942 | AB63: =[3]Opex_Breakdown!AB63 -> 1.19439491 | AC63: =[3]Opex_Breakdown!AC63 -> 1.33049657 | AD63: =[3]Opex_Breakdown!AD63 -> 1.28357443 | AE63: =[3]Opex_Breakdown!AE63 -> 1.29752011 | AF63: =[3]Opex_Breakdown!AF63 -> 1.30684891 | AG63: =[3]Opex_Breakdown!AG63 -> 1.30895741 | AH63: =[3]Opex_Breakdown!AH63 -> 1.323355942 | AI63: =[3]Opex_Breakdown!AI63 -> 1.337912857 | AJ63: =[3]Opex_Breakdown!AJ63 -> 1.352629898 | AK63: =[3]Opex_Breakdown!AK63 -> 1.367508827 | AL63: =[3]Opex_Breakdown!AL63 -> 1.382551424
D64: GSL Payments | W64: =[3]Opex_Breakdown!W64 -> 0 | X64: =[3]Opex_Breakdown!X64 -> 0 | Y64: =[3]Opex_Breakdown!Y64 -> 0 | Z64: =[3]Opex_Breakdown!Z64 -> 0 | AA64: =[3]Opex_Breakdown!AA64 -> 0 | AB64: =[3]Opex_Breakdown!AB64 -> 0 | AC64: =[3]Opex_Breakdown!AC64 -> 0 | AD64: =[3]Opex_Breakdown!AD64 -> 0 | AE64: =[3]Opex_Breakdown!AE64 -> 0 | AF64: =[3]Opex_Breakdown!AF64 -> 0 | AG64: =[3]Opex_Breakdown!AG64 -> 0 | AH64: =[3]Opex_Breakdown!AH64 -> 0 | AI64: =[3]Opex_Breakdown!AI64 -> 0 | AJ64: =[3]Opex_Breakdown!AJ64 -> 0 | AK64: =[3]Opex_Breakdown!AK64 -> 0 | AL64: =[3]Opex_Breakdown!AL64 -> 0
D65: Licence Fees | W65: =[3]Opex_Breakdown!W65 -> 0.05397948048 | X65: =[3]Opex_Breakdown!X65 -> 0.05763355452 | Y65: =[3]Opex_Breakdown!Y65 -> 0.007806167475 | Z65: =[3]Opex_Breakdown!Z65 -> 0.05541248132 | AA65: =[3]Opex_Breakdown!AA65 -> 0.06838154496 | AB65: =[3]Opex_Breakdown!AB65 -> 0.05649 | AC65: =[3]Opex_Breakdown!AC65 -> 0.0534816 | AD65: =[3]Opex_Breakdown!AD65 -> 0.0534816 | AE65: =[3]Opex_Breakdown!AE65 -> 0.0534816 | AF65: =[3]Opex_Breakdown!AF65 -> 0.0592224 | AG65: =[3]Opex_Breakdown!AG65 -> 0.0592224 | AH65: =[3]Opex_Breakdown!AH65 -> 0.0592224 | AI65: =[3]Opex_Breakdown!AI65 -> 0.0592224 | AJ65: =[3]Opex_Breakdown!AJ65 -> 0.0592224 | AK65: =[3]Opex_Breakdown!AK65 -> 0.0592224 | AL65: =[3]Opex_Breakdown!AL65 -> 0.0592224
D66: Corporate | W66: =[3]Opex_Breakdown!W66 -> 1.678086524 | X66: =[3]Opex_Breakdown!X66 -> 1.767683393 | Y66: =[3]Opex_Breakdown!Y66 -> 1.80970391 | Z66: =[3]Opex_Breakdown!Z66 -> 1.380203736 | AA66: =[3]Opex_Breakdown!AA66 -> 2.306716037 | AB66: =[3]Opex_Breakdown!AB66 -> 2.15031154 | AC66: =[3]Opex_Breakdown!AC66 -> 2.3891282 | AD66: =[3]Opex_Breakdown!AD66 -> 2.37875766 | AE66: =[3]Opex_Breakdown!AE66 -> 2.44656216 | AF66: =[3]Opex_Breakdown!AF66 -> 2.58370528 | AG66: =[3]Opex_Breakdown!AG66 -> 2.43177038 | AH66: =[3]Opex_Breakdown!AH66 -> 2.458519854 | AI66: =[3]Opex_Breakdown!AI66 -> 2.485563573 | AJ66: =[3]Opex_Breakdown!AJ66 -> 2.512904772 | AK66: =[3]Opex_Breakdown!AK66 -> 2.540546724 | AL66: =[3]Opex_Breakdown!AL66 -> 2.568492738
D67: Other operating expenditure | W67: =[3]Opex_Breakdown!W67 -> 0 | X67: =[3]Opex_Breakdown!X67 -> 0 | Y67: =[3]Opex_Breakdown!Y67 -> 0 | Z67: =[3]Opex_Breakdown!Z67 -> 0 | AA67: =[3]Opex_Breakdown!AA67 -> 0 | AB67: =[3]Opex_Breakdown!AB67 -> 0 | AC67: =[3]Opex_Breakdown!AC67 -> 0 | AD67: =[3]Opex_Breakdown!AD67 -> 0 | AE67: =[3]Opex_Breakdown!AE67 -> 0 | AF67: =[3]Opex_Breakdown!AF67 -> 0 | AG67: =[3]Opex_Breakdown!AG67 -> 0 | AH67: =[3]Opex_Breakdown!AH67 -> 0 | AI67: =[3]Opex_Breakdown!AI67 -> 0 | AJ67: =[3]Opex_Breakdown!AJ67 -> 0 | AK67: =[3]Opex_Breakdown!AK67 -> 0 | AL67: =[3]Opex_Breakdown!AL67 -> 0
C68: =+CONCATENATE("Total ",C59) -> Total Sewerage | W68: =+SUM(W60:W67) -> 9.418351385 | X68: =+SUM(X60:X67) -> 9.010236142 | Y68: 9.217007882 | Z68: 9.015702826 | AA68: 10.28253064 | AB68: 9.55862841 | AC68: =+SUM(AC60:AC67) -> 10.34025273 | AD68: 10.669699 | AE68: 10.51955109 | AF68: 10.80837225 | AG68: 10.47653563 | AH68: =+SUM(AH60:AH67) -> 10.59112608 | AI68: 10.70697702 | AJ68: 10.82410232 | AK68: 10.942516 | AL68: 11.06223223
C70: Recycled Water
D71: =D60 -> Operations & Maintenance | W71: =[3]Opex_Breakdown!W71 -> 0.26869481 | X71: =[3]Opex_Breakdown!X71 -> 0.264746571 | Y71: =[3]Opex_Breakdown!Y71 -> 0.2663817423 | Z71: =[3]Opex_Breakdown!Z71 -> 0.2364662316 | AA71: =[3]Opex_Breakdown!AA71 -> 0 | AB71: =[3]Opex_Breakdown!AB71 -> 0 | AC71: =[3]Opex_Breakdown!AC71 -> 0 | AD71: =[3]Opex_Breakdown!AD71 -> 0 | AE71: =[3]Opex_Breakdown!AE71 -> 0 | AF71: =[3]Opex_Breakdown!AF71 -> 0 | AG71: =[3]Opex_Breakdown!AG71 -> 0 | AH71: =[3]Opex_Breakdown!AH71 -> 0 | AI71: =[3]Opex_Breakdown!AI71 -> 0 | AJ71: =[3]Opex_Breakdown!AJ71 -> 0 | AK71: =[3]Opex_Breakdown!AK71 -> 0 | AL71: =[3]Opex_Breakdown!AL71 -> 0
D72: External bulk charges (excl. temporary purchases) | W72: =+W134 -> 0 | X72: =+X134 -> 0 | Y72: 0 | Z72: 0 | AA72: 0 | AB72: 0 | AC72: 0 | AD72: 0 | AE72: 0 | AF72: 0 | AG72: 0 | AH72: =+AH134 -> 0 | AI72: 0 | AJ72: 0 | AK72: 0 | AL72: 0
D73: Treatment | W73: =[3]Opex_Breakdown!W73 -> 0 | X73: =[3]Opex_Breakdown!X73 -> 0 | Y73: =[3]Opex_Breakdown!Y73 -> 0 | Z73: =[3]Opex_Breakdown!Z73 -> 0 | AA73: =[3]Opex_Breakdown!AA73 -> 0 | AB73: =[3]Opex_Breakdown!AB73 -> 0 | AC73: =[3]Opex_Breakdown!AC73 -> 0 | AD73: =[3]Opex_Breakdown!AD73 -> 0 | AE73: =[3]Opex_Breakdown!AE73 -> 0 | AF73: =[3]Opex_Breakdown!AF73 -> 0 | AG73: =[3]Opex_Breakdown!AG73 -> 0 | AH73: =[3]Opex_Breakdown!AH73 -> 0 | AI73: =[3]Opex_Breakdown!AI73 -> 0 | AJ73: =[3]Opex_Breakdown!AJ73 -> 0 | AK73: =[3]Opex_Breakdown!AK73 -> 0 | AL73: =[3]Opex_Breakdown!AL73 -> 0
D74: Customer Service and billing | W74: =[3]Opex_Breakdown!W74 -> 0 | X74: =[3]Opex_Breakdown!X74 -> 0 | Y74: =[3]Opex_Breakdown!Y74 -> 0 | Z74: =[3]Opex_Breakdown!Z74 -> 0 | AA74: =[3]Opex_Breakdown!AA74 -> 0 | AB74: =[3]Opex_Breakdown!AB74 -> 0 | AC74: =[3]Opex_Breakdown!AC74 -> 0 | AD74: =[3]Opex_Breakdown!AD74 -> 0 | AE74: =[3]Opex_Breakdown!AE74 -> 0 | AF74: =[3]Opex_Breakdown!AF74 -> 0 | AG74: =[3]Opex_Breakdown!AG74 -> 0 | AH74: =[3]Opex_Breakdown!AH74 -> 0 | AI74: =[3]Opex_Breakdown!AI74 -> 0 | AJ74: =[3]Opex_Breakdown!AJ74 -> 0 | AK74: =[3]Opex_Breakdown!AK74 -> 0 | AL74: =[3]Opex_Breakdown!AL74 -> 0
D75: GSL Payments | W75: =[3]Opex_Breakdown!W75 -> 0 | X75: =[3]Opex_Breakdown!X75 -> 0 | Y75: =[3]Opex_Breakdown!Y75 -> 0 | Z75: =[3]Opex_Breakdown!Z75 -> 0 | AA75: =[3]Opex_Breakdown!AA75 -> 0 | AB75: =[3]Opex_Breakdown!AB75 -> 0 | AC75: =[3]Opex_Breakdown!AC75 -> 0 | AD75: =[3]Opex_Breakdown!AD75 -> 0 | AE75: =[3]Opex_Breakdown!AE75 -> 0 | AF75: =[3]Opex_Breakdown!AF75 -> 0 | AG75: =[3]Opex_Breakdown!AG75 -> 0 | AH75: =[3]Opex_Breakdown!AH75 -> 0 | AI75: =[3]Opex_Breakdown!AI75 -> 0 | AJ75: =[3]Opex_Breakdown!AJ75 -> 0 | AK75: =[3]Opex_Breakdown!AK75 -> 0 | AL75: =[3]Opex_Breakdown!AL75 -> 0
D76: Licence Fees | W76: =[3]Opex_Breakdown!W76 -> 0 | X76: =[3]Opex_Breakdown!X76 -> 0 | Y76: =[3]Opex_Breakdown!Y76 -> 0 | Z76: =[3]Opex_Breakdown!Z76 -> 0 | AA76: =[3]Opex_Breakdown!AA76 -> 0 | AB76: =[3]Opex_Breakdown!AB76 -> 0 | AC76: =[3]Opex_Breakdown!AC76 -> 0 | AD76: =[3]Opex_Breakdown!AD76 -> 0 | AE76: =[3]Opex_Breakdown!AE76 -> 0 | AF76: =[3]Opex_Breakdown!AF76 -> 0 | AG76: =[3]Opex_Breakdown!AG76 -> 0 | AH76: =[3]Opex_Breakdown!AH76 -> 0 | AI76: =[3]Opex_Breakdown!AI76 -> 0 | AJ76: =[3]Opex_Breakdown!AJ76 -> 0 | AK76: =[3]Opex_Breakdown!AK76 -> 0 | AL76: =[3]Opex_Breakdown!AL76 -> 0
D77: Corporate | W77: =[3]Opex_Breakdown!W77 -> 0 | X77: =[3]Opex_Breakdown!X77 -> 0 | Y77: =[3]Opex_Breakdown!Y77 -> 0 | Z77: =[3]Opex_Breakdown!Z77 -> 0 | AA77: =[3]Opex_Breakdown!AA77 -> 0 | AB77: =[3]Opex_Breakdown!AB77 -> 0 | AC77: =[3]Opex_Breakdown!AC77 -> 0 | AD77: =[3]Opex_Breakdown!AD77 -> 0 | AE77: =[3]Opex_Breakdown!AE77 -> 0 | AF77: =[3]Opex_Breakdown!AF77 -> 0 | AG77: =[3]Opex_Breakdown!AG77 -> 0 | AH77: =[3]Opex_Breakdown!AH77 -> 0 | AI77: =[3]Opex_Breakdown!AI77 -> 0 | AJ77: =[3]Opex_Breakdown!AJ77 -> 0 | AK77: =[3]Opex_Breakdown!AK77 -> 0 | AL77: =[3]Opex_Breakdown!AL77 -> 0
D78: Other operating expenditure | W78: =[3]Opex_Breakdown!W78 -> 0 | X78: =[3]Opex_Breakdown!X78 -> 0 | Y78: =[3]Opex_Breakdown!Y78 -> 0 | Z78: =[3]Opex_Breakdown!Z78 -> 0 | AA78: =[3]Opex_Breakdown!AA78 -> 0 | AB78: =[3]Opex_Breakdown!AB78 -> 0 | AC78: =[3]Opex_Breakdown!AC78 -> 0 | AD78: =[3]Opex_Breakdown!AD78 -> 0 | AE78: =[3]Opex_Breakdown!AE78 -> 0 | AF78: =[3]Opex_Breakdown!AF78 -> 0 | AG78: =[3]Opex_Breakdown!AG78 -> 0 | AH78: =[3]Opex_Breakdown!AH78 -> 0 | AI78: =[3]Opex_Breakdown!AI78 -> 0 | AJ78: =[3]Opex_Breakdown!AJ78 -> 0 | AK78: =[3]Opex_Breakdown!AK78 -> 0 | AL78: =[3]Opex_Breakdown!AL78 -> 0
C79: =+CONCATENATE("Total ",C70) -> Total Recycled Water | W79: =+SUM(W71:W78) -> 0.26869481 | X79: =+SUM(X71:X78) -> 0.264746571 | Y79: =+SUM(Y71:Y78) -> 0.2663817423 | Z79: =+SUM(Z71:Z78) -> 0.2364662316 | AA79: =+SUM(AA71:AA78) -> 0 | AB79: =+SUM(AB71:AB78) -> 0 | AC79: =+SUM(AC71:AC78) -> 0 | AD79: 0 | AE79: 0 | AF79: 0 | AG79: 0 | AH79: =+SUM(AH71:AH78) -> 0 | AI79: 0 | AJ79: 0 | AK79: 0 | AL79: 0
C81: Rural Water
D82: =D71 -> Operations & Maintenance
D83: External bulk charges (excl. temporary purchases) | W83: =+W135 -> 0 | X83: =+X135 -> 0 | Y83: 0 | Z83: 0 | AA83: 0 | AB83: 0 | AC83: 0 | AD83: 0 | AE83: 0 | AF83: 0 | AG83: 0 | AH83: =+AH135 -> 0 | AI83: 0 | AJ83: 0 | AK83: 0 | AL83: 0
D84: Treatment
D85: Customer Service and billing
D86: GSL Payments
D87: Licence Fees
D88: Corporate
D89: Other operating expenditure
C90: =+CONCATENATE("Total ",C81) -> Total Rural Water | W90: =+SUM(W82:W89) -> 0 | X90: =+SUM(X82:X89) -> 0 | Y90: =+SUM(Y82:Y89) -> 0 | Z90: =+SUM(Z82:Z89) -> 0 | AA90: =+SUM(AA82:AA89) -> 0 | AB90: =+SUM(AB82:AB89) -> 0 | AC90: =+SUM(AC82:AC89) -> 0 | AD90: 0 | AE90: 0 | AF90: 0 | AG90: 0 | AH90: =+SUM(AH82:AH89) -> 0 | AI90: 0 | AJ90: 0 | AK90: 0 | AL90: 0
C92: Bulk Water
D93: =D82 -> Operations & Maintenance | W93: =[3]Opex_Breakdown!W93 -> 0 | X93: =[3]Opex_Breakdown!X93 -> 0 | Y93: =[3]Opex_Breakdown!Y93 -> 0 | Z93: =[3]Opex_Breakdown!Z93 -> 0 | AA93: =[3]Opex_Breakdown!AA93 -> 0 | AB93: =[3]Opex_Breakdown!AB93 -> 0 | AC93: =[3]Opex_Breakdown!AC93 -> 0 | AD93: =[3]Opex_Breakdown!AD93 -> 0 | AE93: =[3]Opex_Breakdown!AE93 -> 0 | AF93: =[3]Opex_Breakdown!AF93 -> 0 | AG93: =[3]Opex_Breakdown!AG93 -> 0 | AH93: =[3]Opex_Breakdown!AH93 -> 0 | AI93: =[3]Opex_Breakdown!AI93 -> 0 | AJ93: =[3]Opex_Breakdown!AJ93 -> 0 | AK93: =[3]Opex_Breakdown!AK93 -> 0 | AL93: =[3]Opex_Breakdown!AL93 -> 0
D94: External bulk charges (excl. temporary purchases) | W94: =[3]Opex_Breakdown!W94 -> 0 | X94: =[3]Opex_Breakdown!X94 -> 0 | Y94: =[3]Opex_Breakdown!Y94 -> 0 | Z94: =[3]Opex_Breakdown!Z94 -> 0 | AA94: =[3]Opex_Breakdown!AA94 -> 0 | AB94: =[3]Opex_Breakdown!AB94 -> 0 | AC94: =[3]Opex_Breakdown!AC94 -> 0 | AD94: =[3]Opex_Breakdown!AD94 -> 0 | AE94: =[3]Opex_Breakdown!AE94 -> 0 | AF94: =[3]Opex_Breakdown!AF94 -> 0 | AG94: =[3]Opex_Breakdown!AG94 -> 0 | AH94: =[3]Opex_Breakdown!AH94 -> 0 | AI94: =[3]Opex_Breakdown!AI94 -> 0 | AJ94: =[3]Opex_Breakdown!AJ94 -> 0 | AK94: =[3]Opex_Breakdown!AK94 -> 0 | AL94: =[3]Opex_Breakdown!AL94 -> 0
D95: Treatment | W95: =[3]Opex_Breakdown!W95 -> 0 | X95: =[3]Opex_Breakdown!X95 -> 0 | Y95: =[3]Opex_Breakdown!Y95 -> 0 | Z95: =[3]Opex_Breakdown!Z95 -> 0 | AA95: =[3]Opex_Breakdown!AA95 -> 0 | AB95: =[3]Opex_Breakdown!AB95 -> 0 | AC95: =[3]Opex_Breakdown!AC95 -> 0 | AD95: =[3]Opex_Breakdown!AD95 -> 0 | AE95: =[3]Opex_Breakdown!AE95 -> 0 | AF95: =[3]Opex_Breakdown!AF95 -> 0 | AG95: =[3]Opex_Breakdown!AG95 -> 0 | AH95: =[3]Opex_Breakdown!AH95 -> 0 | AI95: =[3]Opex_Breakdown!AI95 -> 0 | AJ95: =[3]Opex_Breakdown!AJ95 -> 0 | AK95: =[3]Opex_Breakdown!AK95 -> 0 | AL95: =[3]Opex_Breakdown!AL95 -> 0
D96: Customer Service and billing | W96: =[3]Opex_Breakdown!W96 -> 0 | X96: =[3]Opex_Breakdown!X96 -> 0 | Y96: =[3]Opex_Breakdown!Y96 -> 0 | Z96: =[3]Opex_Breakdown!Z96 -> 0 | AA96: =[3]Opex_Breakdown!AA96 -> 0 | AB96: =[3]Opex_Breakdown!AB96 -> 0 | AC96: =[3]Opex_Breakdown!AC96 -> 0 | AD96: =[3]Opex_Breakdown!AD96 -> 0 | AE96: =[3]Opex_Breakdown!AE96 -> 0 | AF96: =[3]Opex_Breakdown!AF96 -> 0 | AG96: =[3]Opex_Breakdown!AG96 -> 0 | AH96: =[3]Opex_Breakdown!AH96 -> 0 | AI96: =[3]Opex_Breakdown!AI96 -> 0 | AJ96: =[3]Opex_Breakdown!AJ96 -> 0 | AK96: =[3]Opex_Breakdown!AK96 -> 0 | AL96: =[3]Opex_Breakdown!AL96 -> 0
D97: GSL Payments | W97: =[3]Opex_Breakdown!W97 -> 0 | X97: =[3]Opex_Breakdown!X97 -> 0 | Y97: =[3]Opex_Breakdown!Y97 -> 0 | Z97: =[3]Opex_Breakdown!Z97 -> 0 | AA97: =[3]Opex_Breakdown!AA97 -> 0 | AB97: =[3]Opex_Breakdown!AB97 -> 0 | AC97: =[3]Opex_Breakdown!AC97 -> 0 | AD97: =[3]Opex_Breakdown!AD97 -> 0 | AE97: =[3]Opex_Breakdown!AE97 -> 0 | AF97: =[3]Opex_Breakdown!AF97 -> 0 | AG97: =[3]Opex_Breakdown!AG97 -> 0 | AH97: =[3]Opex_Breakdown!AH97 -> 0 | AI97: =[3]Opex_Breakdown!AI97 -> 0 | AJ97: =[3]Opex_Breakdown!AJ97 -> 0 | AK97: =[3]Opex_Breakdown!AK97 -> 0 | AL97: =[3]Opex_Breakdown!AL97 -> 0
D98: Licence Fees | W98: =[3]Opex_Breakdown!W98 -> 0 | X98: =[3]Opex_Breakdown!X98 -> 0 | Y98: =[3]Opex_Breakdown!Y98 -> 0 | Z98: =[3]Opex_Breakdown!Z98 -> 0 | AA98: =[3]Opex_Breakdown!AA98 -> 0 | AB98: =[3]Opex_Breakdown!AB98 -> 0 | AC98: =[3]Opex_Breakdown!AC98 -> 0 | AD98: =[3]Opex_Breakdown!AD98 -> 0 | AE98: =[3]Opex_Breakdown!AE98 -> 0 | AF98: =[3]Opex_Breakdown!AF98 -> 0 | AG98: =[3]Opex_Breakdown!AG98 -> 0 | AH98: =[3]Opex_Breakdown!AH98 -> 0 | AI98: =[3]Opex_Breakdown!AI98 -> 0 | AJ98: =[3]Opex_Breakdown!AJ98 -> 0 | AK98: =[3]Opex_Breakdown!AK98 -> 0 | AL98: =[3]Opex_Breakdown!AL98 -> 0
D99: Corporate | W99: =[3]Opex_Breakdown!W99 -> 0 | X99: =[3]Opex_Breakdown!X99 -> 0 | Y99: =[3]Opex_Breakdown!Y99 -> 0 | Z99: =[3]Opex_Breakdown!Z99 -> 0 | AA99: =[3]Opex_Breakdown!AA99 -> 0 | AB99: =[3]Opex_Breakdown!AB99 -> 0 | AC99: =[3]Opex_Breakdown!AC99 -> 0 | AD99: =[3]Opex_Breakdown!AD99 -> 0 | AE99: =[3]Opex_Breakdown!AE99 -> 0 | AF99: =[3]Opex_Breakdown!AF99 -> 0 | AG99: =[3]Opex_Breakdown!AG99 -> 0 | AH99: =[3]Opex_Breakdown!AH99 -> 0 | AI99: =[3]Opex_Breakdown!AI99 -> 0 | AJ99: =[3]Opex_Breakdown!AJ99 -> 0 | AK99: =[3]Opex_Breakdown!AK99 -> 0 | AL99: =[3]Opex_Breakdown!AL99 -> 0
D100: Other operating expenditure | W100: =[3]Opex_Breakdown!W100 -> 0 | X100: =[3]Opex_Breakdown!X100 -> 0 | Y100: =[3]Opex_Breakdown!Y100 -> 0 | Z100: =[3]Opex_Breakdown!Z100 -> 0 | AA100: =[3]Opex_Breakdown!AA100 -> 0 | AB100: =[3]Opex_Breakdown!AB100 -> 0 | AC100: =[3]Opex_Breakdown!AC100 -> 0 | AD100: =[3]Opex_Breakdown!AD100 -> 0 | AE100: =[3]Opex_Breakdown!AE100 -> 0 | AF100: =[3]Opex_Breakdown!AF100 -> 0 | AG100: =[3]Opex_Breakdown!AG100 -> 0 | AH100: =[3]Opex_Breakdown!AH100 -> 0 | AI100: =[3]Opex_Breakdown!AI100 -> 0 | AJ100: =[3]Opex_Breakdown!AJ100 -> 0 | AK100: =[3]Opex_Breakdown!AK100 -> 0 | AL100: =[3]Opex_Breakdown!AL100 -> 0
C101: Total Bulk water | W101: =+SUM(W93:W100) -> 0 | X101: =+SUM(X93:X100) -> 0 | Y101: 0 | Z101: 0 | AA101: 0 | AB101: 0 | AC101: =+SUM(AC93:AC100) -> 0 | AD101: 0 | AE101: 0 | AF101: 0 | AG101: 0 | AH101: =+SUM(AH93:AH100) -> 0 | AI101: 0 | AJ101: 0 | AK101: 0 | AL101: 0
C103: External temporary water purchases | W103: =[3]Opex_Breakdown!W103 -> 0.0001388888333 | X103: =[3]Opex_Breakdown!X103 -> 0 | Y103: =[3]Opex_Breakdown!Y103 -> 0 | Z103: =[3]Opex_Breakdown!Z103 -> 0 | AA103: =[3]Opex_Breakdown!AA103 -> 0.0009780218321 | AB103: =[3]Opex_Breakdown!AB103 -> 0 | AC103: =[3]Opex_Breakdown!AC103 -> 0 | AD103: =[3]Opex_Breakdown!AD103 -> 0 | AE103: =[3]Opex_Breakdown!AE103 -> 0 | AF103: =[3]Opex_Breakdown!AF103 -> 0 | AG103: =[3]Opex_Breakdown!AG103 -> 0 | AH103: =[3]Opex_Breakdown!AH103 -> 0 | AI103: =[3]Opex_Breakdown!AI103 -> 0 | AJ103: =[3]Opex_Breakdown!AJ103 -> 0 | AK103: =[3]Opex_Breakdown!AK103 -> 0 | AL103: =[3]Opex_Breakdown!AL103 -> 0
C106: Licence fees
D107: Essential Services Commission | W107: =[3]Opex_Breakdown!W107 -> 0.0224658171 | X107: =[3]Opex_Breakdown!X107 -> 0.03067342014 | Y107: =[3]Opex_Breakdown!Y107 -> 0.01696992929 | Z107: =[3]Opex_Breakdown!Z107 -> 0.02456184674 | AA107: =[3]Opex_Breakdown!AA107 -> 0.05381288064 | AB107: =[3]Opex_Breakdown!AB107 -> 0.0315 | AC107: =[3]Opex_Breakdown!AC107 -> 0.02496 | AD107: =[3]Opex_Breakdown!AD107 -> 0.02496 | AE107: =[3]Opex_Breakdown!AE107 -> 0.02496 | AF107: =[3]Opex_Breakdown!AF107 -> 0.03744 | AG107: =[3]Opex_Breakdown!AG107 -> 0.03744 | AH107: =[3]Opex_Breakdown!AH107 -> 0.0307008 | AI107: =[3]Opex_Breakdown!AI107 -> 0.0307008 | AJ107: =[3]Opex_Breakdown!AJ107 -> 0.0307008 | AK107: =[3]Opex_Breakdown!AK107 -> 0.03744 | AL107: =[3]Opex_Breakdown!AL107 -> 0.03744
D108: Department of Human Services | W108: =[3]Opex_Breakdown!W108 -> 0.01896735204 | X108: =[3]Opex_Breakdown!X108 -> 0.01894921758 | Y108: =[3]Opex_Breakdown!Y108 -> 0.01916703681 | Z108: =[3]Opex_Breakdown!Z108 -> 0.01875607976 | AA108: =[3]Opex_Breakdown!AA108 -> 0.01882789234 | AB108: =[3]Opex_Breakdown!AB108 -> 0.01790985 | AC108: =[3]Opex_Breakdown!AC108 -> 0.01790985 | AD108: =[3]Opex_Breakdown!AD108 -> 0.01790985 | AE108: =[3]Opex_Breakdown!AE108 -> 0.01790985 | AF108: =[3]Opex_Breakdown!AF108 -> 0.01790985 | AG108: =[3]Opex_Breakdown!AG108 -> 0.01790985 | AH108: =[3]Opex_Breakdown!AH108 -> 0.01790985 | AI108: =[3]Opex_Breakdown!AI108 -> 0.01790985 | AJ108: =[3]Opex_Breakdown!AJ108 -> 0.01790985 | AK108: =[3]Opex_Breakdown!AK108 -> 0.01790985 | AL108: =[3]Opex_Breakdown!AL108 -> 0.01790985
D109: Environment Protection Authority | W109: =[3]Opex_Breakdown!W109 -> 0.04364520462 | X109: =[3]Opex_Breakdown!X109 -> 0.04352378126 | Y109: =[3]Opex_Breakdown!Y109 -> 0 | Z109: =[3]Opex_Breakdown!Z109 -> 0.04411403182 | AA109: =[3]Opex_Breakdown!AA109 -> 0.04362761756 | AB109: =[3]Opex_Breakdown!AB109 -> 0.042 | AC109: =[3]Opex_Breakdown!AC109 -> 0.042 | AD109: =[3]Opex_Breakdown!AD109 -> 0.042 | AE109: =[3]Opex_Breakdown!AE109 -> 0.042 | AF109: =[3]Opex_Breakdown!AF109 -> 0.042 | AG109: =[3]Opex_Breakdown!AG109 -> 0.042 | AH109: =[3]Opex_Breakdown!AH109 -> 0.042 | AI109: =[3]Opex_Breakdown!AI109 -> 0.042 | AJ109: =[3]Opex_Breakdown!AJ109 -> 0.042 | AK109: =[3]Opex_Breakdown!AK109 -> 0.042 | AL109: =[3]Opex_Breakdown!AL109 -> 0.042
C110: =+CONCATENATE("Total ",C106) -> Total Licence fees | W110: =+SUM(W107:W109) -> 0.08507837376 | X110: =+SUM(X107:X109) -> 0.09314641898 | Y110: =+SUM(Y107:Y109) -> 0.0361369661 | Z110: =+SUM(Z107:Z109) -> 0.08743195832 | AA110: =+SUM(AA107:AA109) -> 0.1162683905 | AB110: =+SUM(AB107:AB109) -> 0.09140985 | AC110: =+SUM(AC107:AC109) -> 0.08486985 | AD110: 0.08486985 | AE110: 0.08486985 | AF110: 0.09734985 | AG110: 0.09734985 | AH110: =+SUM(AH107:AH109) -> 0.09061065 | AI110: 0.09061065 | AJ110: 0.09061065 | AK110: 0.09734985 | AL110: 0.09734985
C112: Environment Contribution | W112: =[3]Opex_Breakdown!W112 -> 1.355611765 | X112: =[3]Opex_Breakdown!X112 -> 1.942126998 | Y112: =[3]Opex_Breakdown!Y112 -> 1.916595092 | Z112: =[3]Opex_Breakdown!Z112 -> 1.89686012 | AA112: =[3]Opex_Breakdown!AA112 -> 1.875944784 | AB112: =[3]Opex_Breakdown!AB112 -> 1.784246 | AC112: =[3]Opex_Breakdown!AC112 -> 1.784246 | AD112: =[3]Opex_Breakdown!AD112 -> 1.784246 | AE112: =[3]Opex_Breakdown!AE112 -> 1.784246 | AF112: =[3]Opex_Breakdown!AF112 -> 1.784246 | AG112: =[3]Opex_Breakdown!AG112 -> 1.784246 | AH112: =[3]Opex_Breakdown!AH112 -> 1.784246 | AI112: =[3]Opex_Breakdown!AI112 -> 1.784246 | AJ112: =[3]Opex_Breakdown!AJ112 -> 1.784246 | AK112: =[3]Opex_Breakdown!AK112 -> 1.784246 | AL112: =[3]Opex_Breakdown!AL112 -> 1.784246
C114: Other non-controllable
D115: [Non-controllable 1]
D116: [Non-controllable 2]
D117: [Non-controllable 3]
D118: [Non-controllable 4]
D119: [Non-controllable 5]
D120: [Non-controllable 6]
D121: [Non-controllable 7]
D122: [Non-controllable 8]
D123: [Non-controllable 9]
D124: [Non-controllable 10]
W125: =SUM(W115:W124) -> 0 | X125: =SUM(X115:X124) -> 0 | Y125: 0 | Z125: 0 | AA125: 0 | AB125: 0 | AC125: 0 | AD125: 0 | AE125: 0 | AF125: 0 | AG125: 0 | AH125: =SUM(AH115:AH124) -> 0 | AI125: 0 | AJ125: 0 | AK125: 0 | AL125: 0
C128: External bulk charges (excl. temporary purchases)
C129: Reconciliation
C131: Service | W131: =+W7 -> 2017-18 | X131: 2018-19 | Y131: 2019-20 | Z131: 2020-21 | AA131: =+AA7 -> 2021-22 | AB131: 2022-23 | AC131: 2023-24 | AD131: 2024-25 | AE131: 2025-26 | AF131: 2026-27 | AG131: 2027-28 | AH131: =+AH7 -> 2028-29 | AI131: 2029-30 | AJ131: 2030-31 | AK131: 2031-32 | AL131: 2032-33
D132: Water | W132: =+SUMIF($I$139:$I$180,$D$132,W$139:W$180) -> 0.7743242178 | X132: 0.7442124253 | Y132: 0.7189898106 | Z132: 0.7145816995 | AA132: 0.7072387709 | AB132: 0.70385048 | AC132: 0.71970903 | AD132: 0.73440703 | AE132: 0.74910403 | AF132: 0.76380103 | AG132: 0.76380103 | AH132: 0.7722028413 | AI132: 0.7806970726 | AJ132: 0.7892847404 | AK132: 0.7979668725 | AL132: 0.8067445081
D133: Sewerage | W133: =+SUMIF($I$139:$I$180,$D$133,W$139:W$180) -> 0 | X133: 0 | Y133: 0 | Z133: 0 | AA133: 0 | AB133: 0 | AC133: 0 | AD133: 0 | AE133: 0 | AF133: 0 | AG133: 0 | AH133: 0 | AI133: 0 | AJ133: 0 | AK133: 0 | AL133: 0
D134: Recycled Water | W134: =+SUMIF($I$139:$I$180,$D$134,W$139:W$180) -> 0 | X134: 0 | Y134: 0 | Z134: 0 | AA134: 0 | AB134: 0 | AC134: 0 | AD134: 0 | AE134: 0 | AF134: 0 | AG134: 0 | AH134: 0 | AI134: 0 | AJ134: 0 | AK134: 0 | AL134: 0
D135: Rural Water | W135: =+SUMIF($I$139:$I$180,$D$135,W$139:W$180) -> 0 | X135: 0 | Y135: 0 | Z135: 0 | AA135: 0 | AB135: 0 | AC135: 0 | AD135: 0 | AE135: 0 | AF135: 0 | AG135: 0 | AH135: 0 | AI135: 0 | AJ135: 0 | AK135: 0 | AL135: 0
C136: Total External Bulk Charges | W136: =SUM(W132:W135) -> 0.7743242178 | X136: =SUM(X132:X135) -> 0.7442124253 | Y136: =SUM(Y132:Y135) -> 0.7189898106 | Z136: 0.7145816995 | AA136: =SUM(AA132:AA135) -> 0.7072387709 | AB136: 0.70385048 | AC136: 0.71970903 | AD136: 0.73440703 | AE136: 0.74910403 | AF136: 0.76380103 | AG136: 0.76380103 | AH136: =SUM(AH132:AH135) -> 0.7722028413 | AI136: 0.7806970726 | AJ136: 0.7892847404 | AK136: 0.7979668725 | AL136: 0.8067445081
C138: Description | H138: Source | I138: Service | J138: Price
B139: 1 | C139: =[3]Opex_Breakdown!C139 -> Water external purchases | D139: =[3]Opex_Breakdown!D139 -> 0 | E139: =[3]Opex_Breakdown!E139 -> 0 | F139: =[3]Opex_Breakdown!F139 -> 0 | G139: =[3]Opex_Breakdown!G139 -> 0 | H139: [Source] | I139: =[3]Opex_Breakdown!$I$139 -> Water | J139: =[3]Opex_Breakdown!$J$139 -> Variable | W139: =[3]Opex_Breakdown!W139 -> 0.7743242178 | X139: =[3]Opex_Breakdown!X139 -> 0.7442124253 | Y139: =[3]Opex_Breakdown!Y139 -> 0.7189898106 | Z139: =[3]Opex_Breakdown!Z139 -> 0.7145816995 | AA139: =[3]Opex_Breakdown!AA139 -> 0.7072387709 | AB139: =[3]Opex_Breakdown!AB139 -> 0.70385048 | AC139: =[3]Opex_Breakdown!AC139 -> 0.71970903 | AD139: =[3]Opex_Breakdown!AD139 -> 0.73440703 | AE139: =[3]Opex_Breakdown!AE139 -> 0.74910403 | AF139: =[3]Opex_Breakdown!AF139 -> 0.76380103 | AG139: =[3]Opex_Breakdown!AG139 -> 0.76380103 | AH139: =[3]Opex_Breakdown!AH139 -> 0.7722028413 | AI139: =[3]Opex_Breakdown!AI139 -> 0.7806970726 | AJ139: =[3]Opex_Breakdown!AJ139 -> 0.7892847404 | AK139: =[3]Opex_Breakdown!AK139 -> 0.7979668725 | AL139: =[3]Opex_Breakdown!AL139 -> 0.8067445081 | AO139: ESC USE ONLY
B140: 2 | H140: [Source] | I140: [Service] | J140: [Price]
B141: 3 | H141: [Source] | I141: [Service] | J141: [Price] | AO141: [Service]
B142: 4 | H142: [Source] | I142: [Service] | J142: [Price] | AO142: Water
B143: 5 | H143: [Source] | I143: [Service] | J143: [Price] | AO143: Sewerage
B144: 6 | H144: [Source] | I144: [Service] | J144: [Price] | AO144: Recycled Water
B145: 7 | H145: [Source] | I145: [Service] | J145: [Price] | AO145: Rural Water
B146: 8 | H146: [Source] | I146: [Service] | J146: [Price]
B147: 9 | H147: [Source] | I147: [Service] | J147: [Price] | AO147: [Source]
B148: 10 | H148: [Source] | I148: [Service] | J148: [Price] | AO148: Melbourne Water
B149: 11 | H149: [Source] | I149: [Service] | J149: [Price] | AO149: Goulburn-Murray Water
B150: 12 | H150: [Source] | I150: [Service] | J150: [Price] | AO150: Other Sources
B151: 13 | H151: [Source] | I151: [Service] | J151: [Price]
B152: 14 | H152: [Source] | I152: [Service] | J152: [Price]
B153: 15 | H153: [Source] | I153: [Service] | J153: [Price]
B154: 16 | H154: [Source] | I154: [Service] | J154: [Price]
B155: 17 | H155: [Source] | I155: [Service] | J155: [Price]
B156: 18 | H156: [Source] | I156: [Service] | J156: [Price]
B157: 19 | H157: [Source] | I157: [Service] | J157: [Price]
B158: 20 | H158: [Source] | I158: [Service] | J158: [Price]
B159: 21 | H159: [Source] | I159: [Service] | J159: [Price]
B160: 22 | H160: [Source] | I160: [Service] | J160: [Price]
B161: 23 | H161: [Source] | I161: [Service] | J161: [Price]
B162: 24 | H162: [Source] | I162: [Service] | J162: [Price]
B163: 25 | H163: [Source] | I163: [Service] | J163: [Price]
B164: 26 | H164: [Source] | I164: [Service] | J164: [Price]
B165: 27 | H165: [Source] | I165: [Service] | J165: [Price]
B166: 28 | H166: [Source] | I166: [Service] | J166: [Price]
B167: 29 | H167: [Source] | I167: [Service] | J167: [Price]
B168: 30 | H168: [Source] | I168: [Service] | J168: [Price]
B169: 31 | H169: [Source] | I169: [Service] | J169: [Price]
B170: 32 | H170: [Source] | I170: [Service] | J170: [Price]
B171: 33 | H171: [Source] | I171: [Service] | J171: [Price]
B172: 34 | H172: [Source] | I172: [Service] | J172: [Price]
B173: 35 | H173: [Source] | I173: [Service] | J173: [Price]
B174: 36 | H174: [Source] | I174: [Service] | J174: [Price]
B175: 37 | H175: [Source] | I175: [Service] | J175: [Price]
B176: 38 | H176: [Source] | I176: [Service] | J176: [Price]
B177: 39 | H177: [Source] | I177: [Service] | J177: [Price]
B178: 40 | H178: [Source] | I178: [Service] | J178: [Price]

Sheet Capex_FO input
B1: Capital Expenditure - Forecast Input
B2: =+Contents!H7 -> Lower Murray Water - Urban
B3: Go to Table of Contents
C7: Input Summary | F7: FIFTH REG PERIOD | K7: SIXTH REG PERIOD
D9: =+O39 -> 2023-24 | E9: =+P39 -> 2024-25 | F9: 2025-26 | G9: 2026-27 | H9: 2027-28 | I9: 2028-29 | J9: 2029-30 | K9: 2030-31 | L9: 2031-32 | M9: 2032-33
C10: By Cost Driver
C11: Net capital expenditure - Renewals | D11: =+SUMIF($F$42:$F$1119,"Renewals",AV$42:AV$1119) -> 11.05071525 | E11: 10.41382627 | F11: 7.686991504 | G11: 6.950179904 | H11: 5.863981392 | I11: 6.199601412 | J11: 7.843108235 | K11: 5.043108235 | L11: 6.328108235 | M11: 8.737108235
C12: Net capital expenditure - Growth | D12: =+SUMIF($F$42:$F$1119,"Growth",AV$42:AV$1119) -> 0.808669 | E12: 0.238669 | F12: 1.538669 | G12: 6.385669 | H12: 5.857669 | I12: 31.844669 | J12: 32.734669 | K12: 7.399669 | L12: 5.509669 | M12: 0.309669
C13: Net capital expenditure - Improvements / Compliance | D13: =+SUMIF($F$42:$F$1119,"Improvements / Compliance",AV$42:AV$1119) -> 10.91492 | E13: 11.46376 | F13: 6.70544 | G13: 2.18496 | H13: 1.99112 | I13: 3.2986 | J13: 4.3986 | K13: 3.0486 | L13: 3.6636 | M13: 6.6736
C14: Government Contributions | D14: =+Z41 -> 0 | E14: =+AA41 -> 0 | F14: 0 | G14: 0 | H14: 0 | I14: 0 | J14: 0 | K14: 0 | L14: 0 | M14: 0
C15: Customer Contributions | D15: =+AK41 -> 1.711331 | E15: =+AL41 -> 1.711331 | F15: 1.711331 | G15: 1.711331 | H15: 1.711331 | I15: 1.711331 | J15: 1.711331 | K15: 1.711331 | L15: 1.711331 | M15: 1.711331
C16: Total prescribed capex | D16: =SUM(D11:D15) -> 24.48563525 | E16: 23.82758627 | F16: 17.6424315 | G16: 17.2321399 | H16: 15.42410139 | I16: 43.05420141 | J16: 46.68770824 | K16: 17.20270824 | L16: 17.21270824 | M16: 17.43170824
C18: By Capital Type
C19: Top 10 Major Projects | D19: =+SUMIF($H$42:$H$1119,$C$19,O$42:O$1119) -> 3.88568 | E19: 8.65568 | F19: 7.30568 | G19: 8.23988 | H19: 7.41188 | I19: 6.475 | J19: 7.475 | K19: 3.6 | L19: 2.6 | M19: 1.6
C20: Significant projects | D20: =+SUMIF($H$42:$H$1119,$C$20,O$42:O$1119) -> 7.813 | E20: 7.935 | F20: 3.278 | G20: 3.84 | H20: 2.742 | I20: 31.328 | J20: 34.183 | K20: 8.533 | L20: 9.543 | M20: 10.692
C21: Capital Programs / Allocation | D21: =+SUMIF($H$42:$H$1119,$C$21,O$42:O$1119) -> 7.074 | E21: 3.209 | F21: 3.249 | G21: 3.249 | H21: 3.231 | I21: 3.6 | J21: 3.6 | K21: 3.64 | L21: 3.64 | M21: 3.71
C22: Other Capital expenditure | D22: =+SUMIF($H$42:$H$1119,$C$22,O$42:O$1119) -> 5.712955248 | E22: 4.027906272 | F22: 3.809751504 | G22: 1.903259904 | H22: 2.039221392 | I22: 1.651201412 | J22: 1.429708235 | K22: 1.429708235 | L22: 1.429708235 | M22: 1.429708235
C23: Total prescribed capex | D23: =SUM(D19:D22) -> 24.48563525 | E23: =SUM(E19:E22) -> 23.82758627 | F23: 17.6424315 | G23: 17.2321399 | H23: 15.42410139 | I23: 43.05420141 | J23: 46.68770824 | K23: 17.20270824 | L23: 17.21270824 | M23: 17.43170824
C25: Difference | D25: =+D23-D16 -> 0 | E25: =+E23-E16 -> 0 | F25: 0 | G25: 0 | H25: 0 | I25: 0 | J25: 0 | K25: 0 | L25: 0 | M25: 0
C26: Test | D26: =IF(ROUND(D23,2)=ROUND(D16,2),0,1) -> 0 | E26: =IF(ROUND(E23,2)=ROUND(E16,2),0,1) -> 0 | F26: 0 | G26: 0 | H26: 0 | I26: 0 | J26: 0 | K26: 0 | L26: 0 | M26: 0
C29: Total prescribed capex | D29: =+D23 -> 24.48563525 | E29: =+E23 -> 23.82758627 | F29: 17.6424315 | G29: 17.2321399 | H29: 15.42410139 | I29: 43.05420141 | J29: 46.68770824 | K29: 17.20270824 | L29: 17.21270824 | M29: 17.43170824
C32: Regulatory Depreciation | D32: =+BG41 -> 0.4499339304 | E32: =+BH41 -> 1.29934206 | F32: 2.043333316 | G32: 2.653055212 | H32: 3.162796041 | I32: 3.324909376 | J32: 3.724088179 | K32: 4.279574291 | L32: 4.463395873 | M32: 4.688523605
B35: $m, 01/01/23
O36: Gross capital expenditure | Z36: Government contributions | AK36: Customer contributions | AV36: Net capital expenditure | BG36: Regulatory Depreciation | BR36: Accumulated capex | CC36: Gross capital expenditure | CN36: Tax Depreciation
O37: $m, 01/01/23 | Z37: $m, 01/01/23 | AK37: $m, 01/01/23 | AV37: $m, 01/01/23 | BG37: $m, 01/01/23 | BR37: $m, 01/01/23 | CC37: Nominal,$ | CN37: Nominal,$
O39: 2023-24 | P39: 2024-25 | Q39: 2025-26 | R39: 2026-27 | S39: 2027-28 | T39: 2028-29 | U39: 2029-30 | V39: 2030-31 | W39: 2031-32 | X39: 2032-33 | Z39: 2023-24 | AA39: 2024-25 | AB39: 2025-26 | AC39: 2026-27 | AD39: 2027-28 | AE39: 2028-29 | AF39: 2029-30 | AG39: 2030-31 | AH39: 2031-32 | AI39: 2032-33 | AK39: 2023-24 | AL39: 2024-25 | AM39: 2025-26 | AN39: 2026-27 | AO39: 2027-28 | AP39: 2028-29 | AQ39: 2029-30 | AR39: 2030-31 | AS39: 2031-32 | AT39: 2032-33 | AV39: 2023-24 | AW39: 2024-25 | AX39: 2025-26 | AY39: 2026-27 | AZ39: 2027-28 | BA39: 2028-29 | BB39: 2029-30 | BC39: 2030-31 | BD39: 2031-32 | BE39: 2032-33 | BG39: 2023-24 | BH39: 2024-25 | BI39: 2025-26 | BJ39: 2026-27 | BK39: 2027-28 | BL39: 2028-29 | BM39: 2029-30 | BN39: 2030-31 | BO39: 2031-32 | BP39: 2032-33 | BR39: 2023-24 | BS39: 2024-25 | BT39: 2025-26 | BU39: 2026-27 | BV39: 2027-28 | BW39: 2028-29 | BX39: 2029-30 | BY39: 2030-31 | BZ39: 2031-32 | CA39: 2032-33 | CC39: 2023-24 | CD39: 2024-25 | CE39: 2025-26 | CF39: 2026-27 | CG39: 2027-28 | CH39: 2028-29 | CI39: 2029-30 | CJ39: 2030-31 | CK39: 2031-32 | CL39: 2032-33 | CN39: 2023-24 | CO39: 2024-25 | CP39: 2025-26 | CQ39: 2026-27 | CR39: 2027-28 | CS39: 2028-29 | CT39: 2029-30 | CU39: 2030-31 | CV39: 2031-32 | CW39: 2032-33
BG40: 1 | BH40: 2 | BI40: 3 | BJ40: 4 | BK40: 5 | BL40: 6 | BM40: 7 | BN40: 8 | BO40: 9 | BP40: 10 | CN40: 1 | CO40: 2 | CP40: 3 | CQ40: 4 | CR40: 5 | CS40: 6 | CT40: 7 | CU40: 8 | CV40: 9 | CW40: 10
C41: Project/program Name | E41: Service | F41: Major cost driver | G41: Asset category | H41: Capital type | J41: Reg Depreciation Method | K41: Year asset operational | L41: Asset life (Regulatory) | M41: Asset life (Tax) | O41: =SUM(O42:O1119) -> 24.48563525 | P41: 23.82758627 | Q41: 17.6424315 | R41: 17.2321399 | S41: 15.42410139 | T41: 43.05420141 | U41: 46.68770824 | V41: 17.20270824 | W41: 17.21270824 | X41: 17.43170824 | Z41: =SUM(Z42:Z1119) -> 0 | AA41: 0 | AB41: 0 | AC41: 0 | AD41: 0 | AE41: 0 | AF41: 0 | AG41: 0 | AH41: 0 | AI41: 0 | AK41: =SUM(AK42:AK1119) -> 1.711331 | AL41: 1.711331 | AM41: 1.711331 | AN41: 1.711331 | AO41: 1.711331 | AP41: 1.711331 | AQ41: 1.711331 | AR41: 1.711331 | AS41: 1.711331 | AT41: 1.711331 | AV41: =SUM(AV42:AV1119) -> 22.77430425 | AW41: 22.11625527 | AX41: 15.9311005 | AY41: 15.5208089 | AZ41: 13.71277039 | BA41: 41.34287041 | BB41: 44.97637724 | BC41: 15.49137724 | BD41: 15.50137724 | BE41: 15.72037724 | BG41: =SUM(BG42:BG1119) -> 0.4499339304 | BH41: 1.29934206 | BI41: 2.043333316 | BJ41: 2.653055212 | BK41: 3.162796041 | BL41: 3.324909376 | BM41: 3.724088179 | BN41: 4.279574291 | BO41: 4.463395873 | BP41: 4.688523605 | BR41: =SUM(BR42:BR1119) -> 17.00630425 | BS41: 18.98125527 | BT41: 20.0221005 | BU41: 14.7118089 | BV41: 13.06277039 | BW41: 6.907870412 | BX41: 75.48637724 | BY41: 16.33937724 | BZ41: 20.97437724 | CA41: 19.59537724 | CC41: =SUM(CC42:CC1119) -> 25.22020431 | CD41: 25.27868628 | CE41: 19.27836125 | CF41: 19.39492528 | CG41: 17.88076086 | CH41: 51.40896807 | CI41: 57.4199922 | CJ41: 21.79187611 | CK41: 22.45868013 | CL41: 23.42675822 | CN41: =SUM(CN42:CN1119) -> 1.453084309 | CO41: 4.212893689 | CP41: 5.109305155 | CQ41: 7.279878887 | CR41: 7.246059308 | CS41: 8.317687048 | CT41: 9.408096036 | CU41: 10.97472856 | CV41: 11.4210288 | CW41: 12.23280938
C42: ='[3]Capex_FO input'!C42 -> Purchase of Water | D42: ='[3]Capex_FO input'!D42 -> 0 | E42: ='[3]Capex_FO input'!E42 -> Water | F42: ='[3]Capex_FO input'!F42 -> Growth | G42: ='[3]Capex_FO input'!G42 -> Headworks | H42: ='[3]Capex_FO input'!H42 -> Top 10 Major Projects | I42: ='[3]Capex_FO input'!I42 -> 0 | J42: ='[3]Capex_FO input'!J42 -> Straight line | K42: ='[3]Capex_FO input'!K42 -> Ongoing | L42: ='[3]Capex_FO input'!L42 -> 80 | M42: ='[3]Capex_FO input'!M42 -> 22.22222222 | O42: ='[3]Capex_FO input'!O42 -> 1 | P42: ='[3]Capex_FO input'!P42 -> 1 | Q42: ='[3]Capex_FO input'!Q42 -> 1 | R42: ='[3]Capex_FO input'!R42 -> 1 | S42: ='[3]Capex_FO input'!S42 -> 4.091 | T42: ='[3]Capex_FO input'!T42 -> 1.6 | U42: ='[3]Capex_FO input'!U42 -> 1.6 | V42: ='[3]Capex_FO input'!V42 -> 1.6 | W42: ='[3]Capex_FO input'!W42 -> 1.6 | X42: ='[3]Capex_FO input'!X42 -> 1.6 | Z42: ='[3]Capex_FO input'!Z42 -> 0 | AA42: ='[3]Capex_FO input'!AA42 -> 0 | AB42: ='[3]Capex_FO input'!AB42 -> 0 | AC42: ='[3]Capex_FO input'!AC42 -> 0 | AD42: ='[3]Capex_FO input'!AD42 -> 0 | AE42: ='[3]Capex_FO input'!AE42 -> 0 | AF42: ='[3]Capex_FO input'!AF42 -> 0 | AG42: ='[3]Capex_FO input'!AG42 -> 0 | AH42: ='[3]Capex_FO input'!AH42 -> 0 | AI42: ='[3]Capex_FO input'!AI42 -> 0 | AK42: ='[3]Capex_FO input'!AK42 -> 0 | AL42: ='[3]Capex_FO input'!AL42 -> 0 | AM42: ='[3]Capex_FO input'!AM42 -> 0 | AN42: ='[3]Capex_FO input'!AN42 -> 0 | AO42: ='[3]Capex_FO input'!AO42 -> 0 | AP42: ='[3]Capex_FO input'!AP42 -> 0 | AQ42: ='[3]Capex_FO input'!AQ42 -> 0 | AR42: ='[3]Capex_FO input'!AR42 -> 0 | AS42: ='[3]Capex_FO input'!AS42 -> 0 | AT42: ='[3]Capex_FO input'!AT42 -> 0 | AV42: =+O42-Z42-AK42 -> 1 | AW42: =+P42-AA42-AL42 -> 1 | AX42: 1 | AY42: 1 | AZ42: 4.091 | BA42: 1.6 | BB42: 1.6 | BC42: 1.6 | BD42: 1.6 | BE42: 1.6 | BG42: =IF($L42=0,0, IF($L42<=0.5,BR42, IF($J42="straight line", IF((LEFT(BG$39,4)*1)-INT($L42)<LEFT($BG$39,4)*1,0,((OFFSET(BR42,0,-INT($L42+0.5),1,1))/$L42)*(IF($L42-INT($L42)>0.5,$L42-0.5-INT($L42),IF($L42-INT($L42)<=0.5,$L42-0.5-INT($L42)+1,0)))) +BR42/$L42*0.5, IF($J42="Declining Balance",-$BG$38,0)))) -> 0.00625 | BH42: =IF($L42=0,0, IF($L42<=0.5,BS42, IF(AND($J42="straight line",$L42<1.51),(BR42-((BR42/$L42)*0.5))+BS42/$L42*0.5, IF($J42="straight line", IF((LEFT(BH$39,4)*1)-INT($L42)<LEFT($BG$39,4)*1,0,((OFFSET(BS42,0,-INT($L42+0.5),1,1))/$L42)*(IF($L42-INT($L42)>0.5,$L42-0.5-INT($L42),IF($L42-INT($L42)<=0.5,$L42-0.5-INT($L42)+1,0)))) +BS42/$L42*0.5 +SUM(OFFSET(BS42,0,MAX(-INT($L42+(0.5-(10^-12))),-BH$40)+1,1,MIN(INT($L42+(0.5-(10^-12))),BH$40)-1))*1/$L42, IF($J42="Declining Balance",-$BG$38,0))))) -> 0.01875 | BI42: =IF($L42=0,0, IF($L42<=0.5,BT42, IF(AND($J42="straight line",$L42<1.51),(BS42-((BS42/$L42)*0.5))+BT42/$L42*0.5, IF($J42="straight line", IF((LEFT(BI$39,4)*1)-INT($L42)<LEFT($BG$39,4)*1,0,((OFFSET(BT42,0,-INT($L42+0.5),1,1))/$L42)*(IF($L42-INT($L42)>0.5,$L42-0.5-INT($L42),IF($L42-INT($L42)<=0.5,$L42-0.5-INT($L42)+1,0)))) +BT42/$L42*0.5 +SUM(OFFSET(BT42,0,MAX(-INT($L42+(0.5-(10^-12))),-BI$40)+1,1,MIN(INT($L42+(0.5-(10^-12))),BI$40)-1))*1/$L42, IF($J42="Declining Balance",-$BG$38,0))))) -> 0.03125 | BJ42: 0.04375 | BK42: 0.07556875 | BL42: 0.1111375 | BM42: 0.1311375 | BN42: 0.1511375 | BO42: 0.1711375 | BP42: 0.1911375 | BR42: =+IF($K42="Ongoing",AV42,IF(RIGHT($K42,2)=RIGHT(BR$39,2),SUM($AV42:AV42),0)+IF(RIGHT(BR$39,2)>RIGHT($K42,2),AV42,0)) -> 1 | BS42: =+IF($K42="Ongoing",AW42,IF(RIGHT($K42,2)=RIGHT(BS$39,2),SUM($AV42:AW42),0)+IF(RIGHT(BS$39,2)>RIGHT($K42,2),AW42,0)) -> 1 | BT42: =+IF($K42="Ongoing",AX42,IF(RIGHT($K42,2)=RIGHT(BT$39,2),SUM($AV42:AX42),0)+IF(RIGHT(BT$39,2)>RIGHT($K42,2),AX42,0)) -> 1 | BU42: =+IF($K42="Ongoing",AY42,IF(RIGHT($K42,2)=RIGHT(BU$39,2),SUM($AV42:AY42),0)+IF(RIGHT(BU$39,2)>RIGHT($K42,2),AY42,0)) -> 1 | BV42: =+IF($K42="Ongoing",AZ42,IF(RIGHT($K42,2)=RIGHT(BV$39,2),SUM($AV42:AZ42),0)+IF(RIGHT(BV$39,2)>RIGHT($K42,2),AZ42,0)) -> 4.091 | BW42: =+IF($K42="Ongoing",BA42,IF(RIGHT($K42,2)=RIGHT(BW$39,2),SUM($AV42:BA42),0)+IF(RIGHT(BW$39,2)>RIGHT($K42,2),BA42,0)) -> 1.6 | BX42: =+IF($K42="Ongoing",BB42,IF(RIGHT($K42,2)=RIGHT(BX$39,2),SUM($AV42:BB42),0)+IF(RIGHT(BX$39,2)>RIGHT($K42,2),BB42,0)) -> 1.6 | BY42: =+IF($K42="Ongoing",BC42,IF(RIGHT($K42,2)=RIGHT(BY$39,2),SUM($AV42:BC42),0)+IF(RIGHT(BY$39,2)>RIGHT($K42,2),BC42,0)) -> 1.6 | BZ42: =+IF($K42="Ongoing",BD42,IF(RIGHT($K42,2)=RIGHT(BZ$39,2),SUM($AV42:BD42),0)+IF(RIGHT(BZ$39,2)>RIGHT($K42,2),BD42,0)) -> 1.6 | CA42: =+IF($K42="Ongoing",BE42,IF(RIGHT($K42,2)=RIGHT(CA$39,2),SUM($AV42:BE42),0)+IF(RIGHT(CA$39,2)>RIGHT($K42,2),BE42,0)) -> 1.6 | CC42: =+O42*KeyAssumptionsPriceControl_FO!AC$15 -> 1.03 | CD42: =+P42*KeyAssumptionsPriceControl_FO!AD$15 -> 1.0609 | CE42: =+Q42*KeyAssumptionsPriceControl_FO!AE$15 -> 1.092727 | CF42: =+R42*KeyAssumptionsPriceControl_FO!AF$15 -> 1.12550881 | CG42: =+S42*KeyAssumptionsPriceControl_FO!AG$15 -> 4.742590238 | CH42: =+T42*KeyAssumptionsPriceControl_FO!AH$15 -> 1.910483674 | CI42: =+U42*KeyAssumptionsPriceControl_FO!AI$15 -> 1.967798185 | CJ42: =+V42*KeyAssumptionsPriceControl_FO!AJ$15 -> 2.02683213 | CK42: =+W42*KeyAssumptionsPriceControl_FO!AK$15 -> 2.087637094 | CL42: =+X42*KeyAssumptionsPriceControl_FO!AL$15 -> 2.150266207 | CN42: =IF($M42=0,0, IF($M42<=0.5,CC42, IF($J42="straight line", IF((LEFT(CN$39,4)*1)-INT($M42)<LEFT($CN$39,4)*1,0,((OFFSET(CC42,0,-INT($M42+0.5),1,1))/$M42)*(IF($M42-INT($M42)>0.5,$M42-0.5-INT($M42),IF($M42-INT($M42)<=0.5,$M42-0.5-INT($M42)+1,0)))) +CC42/$M42*0.5, IF($J42="Declining Balance",-$CN$38,0)))) -> 0.023175 | CO42: =IF($M42=0,0, IF($M42<=0.5,CD42, IF(AND($J42="straight line",$M42<1.51),(CC42-((CC42/$M42)*0.5))+CD42/$M42*0.5, IF($J42="straight line", IF((LEFT(CO$39,4)*1)-INT($M42)<LEFT($CN$39,4)*1,0,((OFFSET(CD42,0,-INT($M42+0.5),1,1))/$M42)*(IF($M42-INT($M42)>0.5,$M42-0.5-INT($M42),IF($M42-INT($M42)<=0.5,$M42-0.5-INT($M42)+1,0)))) +CD42/$M42*0.5 +SUM(OFFSET(CD42,0,MAX(-INT($M42+(0.5-(10^-12))),-CO$40)+1,1,MIN(INT($M42+(0.5-(10^-12))),CO$40)-1))*1/$M42, IF($J42="Declining Balance",-$CN$38,0))))) -> 0.07022025 | CP42: =IF($M42=0,0, IF($M42<=0.5,CE42, IF(AND($J42="straight line",$M42<1.51),(CD42-((CD42/$M42)*0.5))+CE42/$M42*0.5, IF($J42="straight line", IF((LEFT(CP$39,4)*1)-INT($M42)<LEFT($CN$39,4)*1,0,((OFFSET(CE42,0,-INT($M42+0.5),1,1))/$M42)*(IF($M42-INT($M42)>0.5,$M42-0.5-INT($M42),IF($M42-INT($M42)<=0.5,$M42-0.5-INT($M42)+1,0)))) +CE42/$M42*0.5 +SUM(OFFSET(CE42,0,MAX(-INT($M42+(0.5-(10^-12))),-CP$40)+1,1,MIN(INT($M42+(0.5-(10^-12))),CP$40)-1))*1/$M42, IF($J42="Declining Balance",-$CN$38,0))))) -> 0.1186768575 | CQ42: 0.1685871632 | CR42: 0.3006193918 | CS42: 0.4503135548 | CT42: 0.5375748967 | CU42: 0.6274540787 | CV42: 0.7200296363 | CW42: 0.8153824606
C43: ='[3]Capex_FO input'!C43 -> Water Mains Upgrade in Mildura | D43: ='[3]Capex_FO input'!D43 -> 0 | E43: ='[3]Capex_FO input'!E43 -> Water | F43: ='[3]Capex_FO input'!F43 -> Growth | G43: ='[3]Capex_FO input'!G43 -> Pipelines/network | H43: ='[3]Capex_FO input'!H43 -> Top 10 Major Projects | I43: ='[3]Capex_FO input'!I43 -> 0 | J43: ='[3]Capex_FO input'!J43 -> Straight line | K43: ='[3]Capex_FO input'!K43 -> 2031-32 | L43: ='[3]Capex_FO input'!L43 -> 80 | M43: ='[3]Capex_FO input'!M43 -> 22.22222222 | O43: ='[3]Capex_FO input'!O43 -> 0.75 | P43: ='[3]Capex_FO input'!P43 -> 0.25 | Q43: ='[3]Capex_FO input'!Q43 -> 0.75 | R43: ='[3]Capex_FO input'!R43 -> 1 | S43: ='[3]Capex_FO input'!S43 -> 1.078 | T43: ='[3]Capex_FO input'!T43 -> 1 | U43: ='[3]Capex_FO input'!U43 -> 2 | V43: ='[3]Capex_FO input'!V43 -> 2 | W43: ='[3]Capex_FO input'!W43 -> 1 | X43: ='[3]Capex_FO input'!X43 -> 0 | Z43: ='[3]Capex_FO input'!Z43 -> 0 | AA43: ='[3]Capex_FO input'!AA43 -> 0 | AB43: ='[3]Capex_FO input'!AB43 -> 0 | AC43: ='[3]Capex_FO input'!AC43 -> 0 | AD43: ='[3]Capex_FO input'!AD43 -> 0 | AE43: ='[3]Capex_FO input'!AE43 -> 0 | AF43: ='[3]Capex_FO input'!AF43 -> 0 | AG43: ='[3]Capex_FO input'!AG43 -> 0 | AH43: ='[3]Capex_FO input'!AH43 -> 0 | AI43: ='[3]Capex_FO input'!AI43 -> 0 | AK43: ='[3]Capex_FO input'!AK43 -> 0 | AL43: ='[3]Capex_FO input'!AL43 -> 0 | AM43: ='[3]Capex_FO input'!AM43 -> 0 | AN43: ='[3]Capex_FO input'!AN43 -> 0 | AO43: ='[3]Capex_FO input'!AO43 -> 0 | AP43: ='[3]Capex_FO input'!AP43 -> 0 | AQ43: ='[3]Capex_FO input'!AQ43 -> 0 | AR43: ='[3]Capex_FO input'!AR43 -> 0 | AS43: ='[3]Capex_FO input'!AS43 -> 0 | AT43: ='[3]Capex_FO input'!AT43 -> 0 | AV43: =+O43-Z43-AK43 -> 0.75 | AW43: 0.25 | AX43: 0.75 | AY43: 1 | AZ43: 1.078 | BA43: 1 | BB43: 2 | BC43: 2 | BD43: 1 | BE43: 0 | BG43: =IF($L43=0,0, IF($L43<=0.5,BR43, IF($J43="straight line", IF((LEFT(BG$39,4)*1)-INT($L43)<LEFT($BG$39,4)*1,0,((OFFSET(BR43,0,-INT($L43+0.5),1,1))/$L43)*(IF($L43-INT($L43)>0.5,$L43-0.5-INT($L43),IF($L43-INT($L43)<=0.5,$L43-0.5-INT($L43)+1,0)))) +BR43/$L43*0.5, IF($J43="Declining Balance",-$BG$38,0)))) -> 0 | BH43: =IF($L43=0,0, IF($L43<=0.5,BS43, IF(AND($J43="straight line",$L43<1.51),(BR43-((BR43/$L43)*0.5))+BS43/$L43*0.5, IF($J43="straight line", IF((LEFT(BH$39,4)*1)-INT($L43)<LEFT($BG$39,4)*1,0,((OFFSET(BS43,0,-INT($L43+0.5),1,1))/$L43)*(IF($L43-INT($L43)>0.5,$L43-0.5-INT($L43),IF($L43-INT($L43)<=0.5,$L43-0.5-INT($L43)+1,0)))) +BS43/$L43*0.5 +SUM(OFFSET(BS43,0,MAX(-INT($L43+(0.5-(10^-12))),-BH$40)+1,1,MIN(INT($L43+(0.5-(10^-12))),BH$40)-1))*1/$L43, IF($J43="Declining Balance",-$BG$38,0))))) -> 0 | BI43: 0 | BJ43: 0 | BK43: 0 | BL43: 0 | BM43: 0 | BN43: 0 | BO43: 0.061425 | BP43: 0.12285 | BR43: =+IF($K43="Ongoing",AV43,IF(RIGHT($K43,2)=RIGHT(BR$39,2),SUM($AV43:AV43),0)+IF(RIGHT(BR$39,2)>RIGHT($K43,2),AV43,0)) -> 0 | BS43: =+IF($K43="Ongoing",AW43,IF(RIGHT($K43,2)=RIGHT(BS$39,2),SUM($AV43:AW43),0)+IF(RIGHT(BS$39,2)>RIGHT($K43,2),AW43,0)) -> 0 | BT43: =+IF($K43="Ongoing",AX43,IF(RIGHT($K43,2)=RIGHT(BT$39,2),SUM($AV43:AX43),0)+IF(RIGHT(BT$39,2)>RIGHT($K43,2),AX43,0)) -> 0 | BU43: =+IF($K43="Ongoing",AY43,IF(RIGHT($K43,2)=RIGHT(BU$39,2),SUM($AV43:AY43),0)+IF(RIGHT(BU$39,2)>RIGHT($K43,2),AY43,0)) -> 0 | BV43: =+IF($K43="Ongoing",AZ43,IF(RIGHT($K43,2)=RIGHT(BV$39,2),SUM($AV43:AZ43),0)+IF(RIGHT(BV$39,2)>RIGHT($K43,2),AZ43,0)) -> 0 | BW43: =+IF($K43="Ongoing",BA43,IF(RIGHT($K43,2)=RIGHT(BW$39,2),SUM($AV43:BA43),0)+IF(RIGHT(BW$39,2)>RIGHT($K43,2),BA43,0)) -> 0 | BX43: =+IF($K43="Ongoing",BB43,IF(RIGHT($K43,2)=RIGHT(BX$39,2),SUM($AV43:BB43),0)+IF(RIGHT(BX$39,2)>RIGHT($K43,2),BB43,0)) -> 0 | BY43: =+IF($K43="Ongoing",BC43,IF(RIGHT($K43,2)=RIGHT(BY$39,2),SUM($AV43:BC43),0)+IF(RIGHT(BY$39,2)>RIGHT($K43,2),BC43,0)) -> 0 | BZ43: =+IF($K43="Ongoing",BD43,IF(RIGHT($K43,2)=RIGHT(BZ$39,2),SUM($AV43:BD43),0)+IF(RIGHT(BZ$39,2)>RIGHT($K43,2),BD43,0)) -> 9.828 | CA43: =+IF($K43="Ongoing",BE43,IF(RIGHT($K43,2)=RIGHT(CA$39,2),SUM($AV43:BE43),0)+IF(RIGHT(CA$39,2)>RIGHT($K43,2),BE43,0)) -> 0 | CC43: =+O43*KeyAssumptionsPriceControl_FO!AC$15 -> 0.7725 | CD43: =+P43*KeyAssumptionsPriceControl_FO!AD$15 -> 0.265225 | CE43: =+Q43*KeyAssumptionsPriceControl_FO!AE$15 -> 0.81954525 | CF43: =+R43*KeyAssumptionsPriceControl_FO!AF$15 -> 1.12550881 | CG43: =+S43*KeyAssumptionsPriceControl_FO!AG$15 -> 1.249697452 | CH43: =+T43*KeyAssumptionsPriceControl_FO!AH$15 -> 1.194052297 | CI43: =+U43*KeyAssumptionsPriceControl_FO!AI$15 -> 2.459747731 | CJ43: =+V43*KeyAssumptionsPriceControl_FO!AJ$15 -> 2.533540163 | CK43: =+W43*KeyAssumptionsPriceControl_FO!AK$15 -> 1.304773184 | CL43: =+X43*KeyAssumptionsPriceControl_FO!AL$15 -> 0 | CN43: =IF($M43=0,0, IF($M43<=0.5,CC43, IF($J43="straight line", IF((LEFT(CN$39,4)*1)-INT($M43)<LEFT($CN$39,4)*1,0,((OFFSET(CC43,0,-INT($M43+0.5),1,1))/$M43)*(IF($M43-INT($M43)>0.5,$M43-0.5-INT($M43),IF($M43-INT($M43)<=0.5,$M43-0.5-INT($M43)+1,0)))) +CC43/$M43*0.5, IF($J43="Declining Balance",-$CN$38,0)))) -> 0.01738125 | CO43: =IF($M43=0,0, IF($M43<=0.5,CD43, IF(AND($J43="straight line",$M43<1.51),(CC43-((CC43/$M43)*0.5))+CD43/$M43*0.5, IF($J43="straight line", IF((LEFT(CO$39,4)*1)-INT($M43)<LEFT($CN$39,4)*1,0,((OFFSET(CD43,0,-INT($M43+0.5),1,1))/$M43)*(IF($M43-INT($M43)>0.5,$M43-0.5-INT($M43),IF($M43-INT($M43)<=0.5,$M43-0.5-INT($M43)+1,0)))) +CD43/$M43*0.5 +SUM(OFFSET(CD43,0,MAX(-INT($M43+(0.5-(10^-12))),-CO$40)+1,1,MIN(INT($M43+(0.5-(10^-12))),CO$40)-1))*1/$M43, IF($J43="Declining Balance",-$CN$38,0))))) -> 0.0407300625 | CP43: 0.06513739312 | CQ43: 0.1089011095 | CR43: 0.1623432504 | CS43: 0.2173276197 | CT43: 0.2995381203 | CU43: 0.4118870979 | CV43: 0.4982491482 | CW43: 0.5276065449
C44: ='[3]Capex_FO input'!C44 -> New 10ML Treated Water Storage and Pump Station upgrade at 14th St Mildura (Stage 1) | D44: ='[3]Capex_FO input'!D44 -> 0 | E44: ='[3]Capex_FO input'!E44 -> Water | F44: ='[3]Capex_FO input'!F44 -> Renewals | G44: ='[3]Capex_FO input'!G44 -> Headworks | H44: ='[3]Capex_FO input'!H44 -> Top 10 Major Projects | I44: ='[3]Capex_FO input'!I44 -> 0 | J44: ='[3]Capex_FO input'!J44 -> Straight line | K44: ='[3]Capex_FO input'!K44 -> 2025-26 | L44: ='[3]Capex_FO input'!L44 -> 45 | M44: ='[3]Capex_FO input'!M44 -> 22.22222222 | O44: ='[3]Capex_FO input'!O44 -> 0 | P44: ='[3]Capex_FO input'!P44 -> 0.2 | Q44: ='[3]Capex_FO input'!Q44 -> 0.908 | R44: ='[3]Capex_FO input'!R44 -> 0 | S44: ='[3]Capex_FO input'!S44 -> 0 | T44: ='[3]Capex_FO input'!T44 -> 0 | U44: ='[3]Capex_FO input'!U44 -> 0 | V44: ='[3]Capex_FO input'!V44 -> 0 | W44: ='[3]Capex_FO input'!W44 -> 0 | X44: ='[3]Capex_FO input'!X44 -> 0 | Z44: ='[3]Capex_FO input'!Z44 -> 0 | AA44: ='[3]Capex_FO input'!AA44 -> 0 | AB44: ='[3]Capex_FO input'!AB44 -> 0 | AC44: ='[3]Capex_FO input'!AC44 -> 0 | AD44: ='[3]Capex_FO input'!AD44 -> 0 | AE44: ='[3]Capex_FO input'!AE44 -> 0 | AF44: ='[3]Capex_FO input'!AF44 -> 0 | AG44: ='[3]Capex_FO input'!AG44 -> 0 | AH44: ='[3]Capex_FO input'!AH44 -> 0 | AI44: ='[3]Capex_FO input'!AI44 -> 0 | AK44: ='[3]Capex_FO input'!AK44 -> 0 | AL44: ='[3]Capex_FO input'!AL44 -> 0 | AM44: ='[3]Capex_FO input'!AM44 -> 0 | AN44: ='[3]Capex_FO input'!AN44 -> 0 | AO44: ='[3]Capex_FO input'!AO44 -> 0 | AP44: ='[3]Capex_FO input'!AP44 -> 0 | AQ44: ='[3]Capex_FO input'!AQ44 -> 0 | AR44: ='[3]Capex_FO input'!AR44 -> 0 | AS44: ='[3]Capex_FO input'!AS44 -> 0 | AT44: ='[3]Capex_FO input'!AT44 -> 0 | AV44: 0 | AW44: 0.2 | AX44: 0.908 | AY44: 0 | AZ44: 0 | BA44: 0 | BB44: 0 | BC44: 0 | BD44: 0 | BE44: 0 | BG44: 0 | BH44: 0 | BI44: 0.01231111111 | BJ44: 0.02462222222 | BK44: 0.02462222222 | BL44: 0.02462222222 | BM44: 0.02462222222 | BN44: 0.02462222222 | BO44: 0.02462222222 | BP44: 0.02462222222 | BR44: =+IF($K44="Ongoing",AV44,IF(RIGHT($K44,2)=RIGHT(BR$39,2),SUM($AV44:AV44),0)+IF(RIGHT(BR$39,2)>RIGHT($K44,2),AV44,0)) -> 0 | BS44: =+IF($K44="Ongoing",AW44,IF(RIGHT($K44,2)=RIGHT(BS$39,2),SUM($AV44:AW44),0)+IF(RIGHT(BS$39,2)>RIGHT($K44,2),AW44,0)) -> 0 | BT44: =+IF($K44="Ongoing",AX44,IF(RIGHT($K44,2)=RIGHT(BT$39,2),SUM($AV44:AX44),0)+IF(RIGHT(BT$39,2)>RIGHT($K44,2),AX44,0)) -> 1.108 | BU44: =+IF($K44="Ongoing",AY44,IF(RIGHT($K44,2)=RIGHT(BU$39,2),SUM($AV44:AY44),0)+IF(RIGHT(BU$39,2)>RIGHT($K44,2),AY44,0)) -> 0 | BV44: =+IF($K44="Ongoing",AZ44,IF(RIGHT($K44,2)=RIGHT(BV$39,2),SUM($AV44:AZ44),0)+IF(RIGHT(BV$39,2)>RIGHT($K44,2),AZ44,0)) -> 0 | BW44: =+IF($K44="Ongoing",BA44,IF(RIGHT($K44,2)=RIGHT(BW$39,2),SUM($AV44:BA44),0)+IF(RIGHT(BW$39,2)>RIGHT($K44,2),BA44,0)) -> 0 | BX44: =+IF($K44="Ongoing",BB44,IF(RIGHT($K44,2)=RIGHT(BX$39,2),SUM($AV44:BB44),0)+IF(RIGHT(BX$39,2)>RIGHT($K44,2),BB44,0)) -> 0 | BY44: =+IF($K44="Ongoing",BC44,IF(RIGHT($K44,2)=RIGHT(BY$39,2),SUM($AV44:BC44),0)+IF(RIGHT(BY$39,2)>RIGHT($K44,2),BC44,0)) -> 0 | BZ44: =+IF($K44="Ongoing",BD44,IF(RIGHT($K44,2)=RIGHT(BZ$39,2),SUM($AV44:BD44),0)+IF(RIGHT(BZ$39,2)>RIGHT($K44,2),BD44,0)) -> 0 | CA44: =+IF($K44="Ongoing",BE44,IF(RIGHT($K44,2)=RIGHT(CA$39,2),SUM($AV44:BE44),0)+IF(RIGHT(CA$39,2)>RIGHT($K44,2),BE44,0)) -> 0 | CC44: =+O44*KeyAssumptionsPriceControl_FO!AC$15 -> 0 | CD44: =+P44*KeyAssumptionsPriceControl_FO!AD$15 -> 0.21218 | CE44: =+Q44*KeyAssumptionsPriceControl_FO!AE$15 -> 0.992196116 | CF44: =+R44*KeyAssumptionsPriceControl_FO!AF$15 -> 0 | CG44: =+S44*KeyAssumptionsPriceControl_FO!AG$15 -> 0 | CH44: =+T44*KeyAssumptionsPriceControl_FO!AH$15 -> 0 | CI44: =+U44*KeyAssumptionsPriceControl_FO!AI$15 -> 0 | CJ44: =+V44*KeyAssumptionsPriceControl_FO!AJ$15 -> 0 | CK44: =+W44*KeyAssumptionsPriceControl_FO!AK$15 -> 0 | CL44: =+X44*KeyAssumptionsPriceControl_FO!AL$15 -> 0 | CN44: 0 | CO44: 0.00477405 | CP44: 0.03187251261 | CQ44: 0.05419692522 | CR44: 0.05419692522 | CS44: 0.05419692522 | CT44: 0.05419692522 | CU44: 0.05419692522 | CV44: 0.05419692522 | CW44: 0.05419692522
C45: ='[3]Capex_FO input'!C45 -> Improving level of service (Pressure) in Red Cliffs Water Distribution | D45: ='[3]Capex_FO input'!D45 -> 0 | E45: ='[3]Capex_FO input'!E45 -> Water | F45: ='[3]Capex_FO input'!F45 -> Improvements / Compliance | G45: ='[3]Capex_FO input'!G45 -> Pipelines/network | H45: ='[3]Capex_FO input'!H45 -> Top 10 Major Projects | I45: ='[3]Capex_FO input'!I45 -> 0 | J45: ='[3]Capex_FO input'!J45 -> Straight line | K45: ='[3]Capex_FO input'!K45 -> 2025-26 | L45: ='[3]Capex_FO input'!L45 -> 80 | M45: ='[3]Capex_FO input'!M45 -> 22.22222222 | O45: ='[3]Capex_FO input'!O45 -> 1 | P45: ='[3]Capex_FO input'!P45 -> 6 | Q45: ='[3]Capex_FO input'!Q45 -> 2.412 | R45: ='[3]Capex_FO input'!R45 -> 0 | S45: ='[3]Capex_FO input'!S45 -> 0 | T45: ='[3]Capex_FO input'!T45 -> 0 | U45: ='[3]Capex_FO input'!U45 -> 0 | V45: ='[3]Capex_FO input'!V45 -> 0 | W45: ='[3]Capex_FO input'!W45 -> 0 | X45: ='[3]Capex_FO input'!X45 -> 0 | Z45: ='[3]Capex_FO input'!Z45 -> 0 | AA45: ='[3]Capex_FO input'!AA45 -> 0 | AB45: ='[3]Capex_FO input'!AB45 -> 0 | AC45: ='[3]Capex_FO input'!AC45 -> 0 | AD45: ='[3]Capex_FO input'!AD45 -> 0 | AE45: ='[3]Capex_FO input'!AE45 -> 0 | AF45: ='[3]Capex_FO input'!AF45 -> 0 | AG45: ='[3]Capex_FO input'!AG45 -> 0 | AH45: ='[3]Capex_FO input'!AH45 -> 0 | AI45: ='[3]Capex_FO input'!AI45 -> 0 | AK45: ='[3]Capex_FO input'!AK45 -> 0 | AL45: ='[3]Capex_FO input'!AL45 -> 0 | AM45: ='[3]Capex_FO input'!AM45 -> 0 | AN45: ='[3]Capex_FO input'!AN45 -> 0 | AO45: ='[3]Capex_FO input'!AO45 -> 0 | AP45: ='[3]Capex_FO input'!AP45 -> 0 | AQ45: ='[3]Capex_FO input'!AQ45 -> 0 | AR45: ='[3]Capex_FO input'!AR45 -> 0 | AS45: ='[3]Capex_FO input'!AS45 -> 0 | AT45: ='[3]Capex_FO input'!AT45 -> 0 | AV45: 1 | AW45: 6 | AX45: 2.412 | AY45: 0 | AZ45: 0 | BA45: 0 | BB45: 0 | BC45: 0 | BD45: 0 | BE45: 0 | BG45: 0 | BH45: 0 | BI45: 0.058825 | BJ45: 0.11765 | BK45: 0.11765 | BL45: 0.11765 | BM45: 0.11765 | BN45: 0.11765 | BO45: 0.11765 | BP45: 0.11765 | BR45: =+IF($K45="Ongoing",AV45,IF(RIGHT($K45,2)=RIGHT(BR$39,2),SUM($AV45:AV45),0)+IF(RIGHT(BR$39,2)>RIGHT($K45,2),AV45,0)) -> 0 | BS45: =+IF($K45="Ongoing",AW45,IF(RIGHT($K45,2)=RIGHT(BS$39,2),SUM($AV45:AW45),0)+IF(RIGHT(BS$39,2)>RIGHT($K45,2),AW45,0)) -> 0 | BT45: =+IF($K45="Ongoing",AX45,IF(RIGHT($K45,2)=RIGHT(BT$39,2),SUM($AV45:AX45),0)+IF(RIGHT(BT$39,2)>RIGHT($K45,2),AX45,0)) -> 9.412 | BU45: =+IF($K45="Ongoing",AY45,IF(RIGHT($K45,2)=RIGHT(BU$39,2),SUM($AV45:AY45),0)+IF(RIGHT(BU$39,2)>RIGHT($K45,2),AY45,0)) -> 0 | BV45: =+IF($K45="Ongoing",AZ45,IF(RIGHT($K45,2)=RIGHT(BV$39,2),SUM($AV45:AZ45),0)+IF(RIGHT(BV$39,2)>RIGHT($K45,2),AZ45,0)) -> 0 | BW45: =+IF($K45="Ongoing",BA45,IF(RIGHT($K45,2)=RIGHT(BW$39,2),SUM($AV45:BA45),0)+IF(RIGHT(BW$39,2)>RIGHT($K45,2),BA45,0)) -> 0 | BX45: =+IF($K45="Ongoing",BB45,IF(RIGHT($K45,2)=RIGHT(BX$39,2),SUM($AV45:BB45),0)+IF(RIGHT(BX$39,2)>RIGHT($K45,2),BB45,0)) -> 0 | BY45: =+IF($K45="Ongoing",BC45,IF(RIGHT($K45,2)=RIGHT(BY$39,2),SUM($AV45:BC45),0)+IF(RIGHT(BY$39,2)>RIGHT($K45,2),BC45,0)) -> 0 | BZ45: =+IF($K45="Ongoing",BD45,IF(RIGHT($K45,2)=RIGHT(BZ$39,2),SUM($AV45:BD45),0)+IF(RIGHT(BZ$39,2)>RIGHT($K45,2),BD45,0)) -> 0 | CA45: =+IF($K45="Ongoing",BE45,IF(RIGHT($K45,2)=RIGHT(CA$39,2),SUM($AV45:BE45),0)+IF(RIGHT(CA$39,2)>RIGHT($K45,2),BE45,0)) -> 0 | CC45: =+O45*KeyAssumptionsPriceControl_FO!AC$15 -> 1.03 | CD45: =+P45*KeyAssumptionsPriceControl_FO!AD$15 -> 6.3654 | CE45: =+Q45*KeyAssumptionsPriceControl_FO!AE$15 -> 2.635657524 | CF45: =+R45*KeyAssumptionsPriceControl_FO!AF$15 -> 0 | CG45: =+S45*KeyAssumptionsPriceControl_FO!AG$15 -> 0 | CH45: =+T45*KeyAssumptionsPriceControl_FO!AH$15 -> 0 | CI45: =+U45*KeyAssumptionsPriceControl_FO!AI$15 -> 0 | CJ45: =+V45*KeyAssumptionsPriceControl_FO!AJ$15 -> 0 | CK45: =+W45*KeyAssumptionsPriceControl_FO!AK$15 -> 0 | CL45: =+X45*KeyAssumptionsPriceControl_FO!AL$15 -> 0 | CN45: 0.023175 | CO45: 0.1895715 | CP45: 0.3920952943 | CQ45: 0.4513975886 | CR45: 0.4513975886 | CS45: 0.4513975886 | CT45: 0.4513975886 | CU45: 0.4513975886 | CV45: 0.4513975886 | CW45: 0.4513975886
C46: ='[3]Capex_FO input'!C46 -> New Swan Hill water treatment plan (Stage 1) | D46: ='[3]Capex_FO input'!D46 -> 0 | E46: ='[3]Capex_FO input'!E46 -> Water | F46: ='[3]Capex_FO input'!F46 -> Growth | G46: ='[3]Capex_FO input'!G46 -> Treatment | H46: ='[3]Capex_FO input'!H46 -> Top 10 Major Projects | I46: ='[3]Capex_FO input'!I46 -> 0 | J46: ='[3]Capex_FO input'!J46 -> Straight line | K46: ='[3]Capex_FO input'!K46 -> 2027-28 | L46: ='[3]Capex_FO input'!L46 -> 45 | M46: ='[3]Capex_FO input'!M46 -> 22.22222222 | O46: ='[3]Capex_FO input'!O46 -> 0 | P46: ='[3]Capex_FO input'!P46 -> 0 | Q46: ='[3]Capex_FO input'!Q46 -> 0 | R46: ='[3]Capex_FO input'!R46 -> 0.5 | S46: ='[3]Capex_FO input'!S46 -> 0.5 | T46: ='[3]Capex_FO input'!T46 -> 0 | U46: ='[3]Capex_FO input'!U46 -> 0 | V46: ='[3]Capex_FO input'!V46 -> 0 | W46: ='[3]Capex_FO input'!W46 -> 0 | X46: ='[3]Capex_FO input'!X46 -> 0 | Z46: ='[3]Capex_FO input'!Z46 -> 0 | AA46: ='[3]Capex_FO input'!AA46 -> 0 | AB46: ='[3]Capex_FO input'!AB46 -> 0 | AC46: ='[3]Capex_FO input'!AC46 -> 0 | AD46: ='[3]Capex_FO input'!AD46 -> 0 | AE46: ='[3]Capex_FO input'!AE46 -> 0 | AF46: ='[3]Capex_FO input'!AF46 -> 0 | AG46: ='[3]Capex_FO input'!AG46 -> 0 | AH46: ='[3]Capex_FO input'!AH46 -> 0 | AI46: ='[3]Capex_FO input'!AI46 -> 0 | AK46: ='[3]Capex_FO input'!AK46 -> 0 | AL46: ='[3]Capex_FO input'!AL46 -> 0 | AM46: ='[3]Capex_FO input'!AM46 -> 0 | AN46: ='[3]Capex_FO input'!AN46 -> 0 | AO46: ='[3]Capex_FO input'!AO46 -> 0 | AP46: ='[3]Capex_FO input'!AP46 -> 0 | AQ46: ='[3]Capex_FO input'!AQ46 -> 0 | AR46: ='[3]Capex_FO input'!AR46 -> 0 | AS46: ='[3]Capex_FO input'!AS46 -> 0 | AT46: ='[3]Capex_FO input'!AT46 -> 0 | AV46: 0 | AW46: 0 | AX46: 0 | AY46: 0.5 | AZ46: 0.5 | BA46: 0 | BB46: 0 | BC46: 0 | BD46: 0 | BE46: 0 | BG46: 0 | BH46: 0 | BI46: 0 | BJ46: 0 | BK46: 0.01111111111 | BL46: 0.02222222222 | BM46: 0.02222222222 | BN46: 0.02222222222 | BO46: 0.02222222222 | BP46: 0.02222222222 | BR46: =+IF($K46="Ongoing",AV46,IF(RIGHT($K46,2)=RIGHT(BR$39,2),SUM($AV46:AV46),0)+IF(RIGHT(BR$39,2)>RIGHT($K46,2),AV46,0)) -> 0 | BS46: =+IF($K46="Ongoing",AW46,IF(RIGHT($K46,2)=RIGHT(BS$39,2),SUM($AV46:AW46),0)+IF(RIGHT(BS$39,2)>RIGHT($K46,2),AW46,0)) -> 0 | BT46: =+IF($K46="Ongoing",AX46,IF(RIGHT($K46,2)=RIGHT(BT$39,2),SUM($AV46:AX46),0)+IF(RIGHT(BT$39,2)>RIGHT($K46,2),AX46,0)) -> 0 | BU46: =+IF($K46="Ongoing",AY46,IF(RIGHT($K46,2)=RIGHT(BU$39,2),SUM($AV46:AY46),0)+IF(RIGHT(BU$39,2)>RIGHT($K46,2),AY46,0)) -> 0 | BV46: =+IF($K46="Ongoing",AZ46,IF(RIGHT($K46,2)=RIGHT(BV$39,2),SUM($AV46:AZ46),0)+IF(RIGHT(BV$39,2)>RIGHT($K46,2),AZ46,0)) -> 1 | BW46: =+IF($K46="Ongoing",BA46,IF(RIGHT($K46,2)=RIGHT(BW$39,2),SUM($AV46:BA46),0)+IF(RIGHT(BW$39,2)>RIGHT($K46,2),BA46,0)) -> 0 | BX46: =+IF($K46="Ongoing",BB46,IF(RIGHT($K46,2)=RIGHT(BX$39,2),SUM($AV46:BB46),0)+IF(RIGHT(BX$39,2)>RIGHT($K46,2),BB46,0)) -> 0 | BY46: =+IF($K46="Ongoing",BC46,IF(RIGHT($K46,2)=RIGHT(BY$39,2),SUM($AV46:BC46),0)+IF(RIGHT(BY$39,2)>RIGHT($K46,2),BC46,0)) -> 0 | BZ46: =+IF($K46="Ongoing",BD46,IF(RIGHT($K46,2)=RIGHT(BZ$39,2),SUM($AV46:BD46),0)+IF(RIGHT(BZ$39,2)>RIGHT($K46,2),BD46,0)) -> 0 | CA46: =+IF($K46="Ongoing",BE46,IF(RIGHT($K46,2)=RIGHT(CA$39,2),SUM($AV46:BE46),0)+IF(RIGHT(CA$39,2)>RIGHT($K46,2),BE46,0)) -> 0 | CC46: =+O46*KeyAssumptionsPriceControl_FO!AC$15 -> 0 | CD46: =+P46*KeyAssumptionsPriceControl_FO!AD$15 -> 0 | CE46: =+Q46*KeyAssumptionsPriceControl_FO!AE$15 -> 0 | CF46: =+R46*KeyAssumptionsPriceControl_FO!AF$15 -> 0.562754405 | CG46: =+S46*KeyAssumptionsPriceControl_FO!AG$15 -> 0.5796370372 | CH46: =+T46*KeyAssumptionsPriceControl_FO!AH$15 -> 0 | CI46: =+U46*KeyAssumptionsPriceControl_FO!AI$15 -> 0 | CJ46: =+V46*KeyAssumptionsPriceControl_FO!AJ$15 -> 0 | CK46: =+W46*KeyAssumptionsPriceControl_FO!AK$15 -> 0 | CL46: =+X46*KeyAssumptionsPriceControl_FO!AL$15 -> 0 | CN46: 0 | CO46: 0 | CP46: 0 | CQ46: 0.01266197411 | CR46: 0.03836578156 | CS46: 0.0514076149 | CT46: 0.0514076149 | CU46: 0.0514076149 | CV46: 0.0514076149 | CW46: 0.0514076149
C47: ='[3]Capex_FO input'!C47 -> Wet Weather Storage for the Koorlong WWTP | D47: ='[3]Capex_FO input'!D47 -> 0 | E47: ='[3]Capex_FO input'!E47 -> Sewerage | F47: ='[3]Capex_FO input'!F47 -> Growth | G47: ='[3]Capex_FO input'!G47 -> Treatment | H47: ='[3]Capex_FO input'!H47 -> Top 10 Major Projects | I47: ='[3]Capex_FO input'!I47 -> 0 | J47: ='[3]Capex_FO input'!J47 -> Straight line | K47: ='[3]Capex_FO input'!K47 -> 2026-27 | L47: ='[3]Capex_FO input'!L47 -> 45 | M47: ='[3]Capex_FO input'!M47 -> 22.22222222 | O47: ='[3]Capex_FO input'!O47 -> 0 | P47: ='[3]Capex_FO input'!P47 -> 0.07 | Q47: ='[3]Capex_FO input'!Q47 -> 1.1 | R47: ='[3]Capex_FO input'!R47 -> 4.897 | S47: ='[3]Capex_FO input'!S47 -> 0 | T47: ='[3]Capex_FO input'!T47 -> 0 | U47: ='[3]Capex_FO input'!U47 -> 0 | V47: ='[3]Capex_FO input'!V47 -> 0 | W47: ='[3]Capex_FO input'!W47 -> 0 | X47: ='[3]Capex_FO input'!X47 -> 0 | Z47: ='[3]Capex_FO input'!Z47 -> 0 | AA47: ='[3]Capex_FO input'!AA47 -> 0 | AB47: ='[3]Capex_FO input'!AB47 -> 0 | AC47: ='[3]Capex_FO input'!AC47 -> 0 | AD47: ='[3]Capex_FO input'!AD47 -> 0 | AE47: ='[3]Capex_FO input'!AE47 -> 0 | AF47: ='[3]Capex_FO input'!AF47 -> 0 | AG47: ='[3]Capex_FO input'!AG47 -> 0 | AH47: ='[3]Capex_FO input'!AH47 -> 0 | AI47: ='[3]Capex_FO input'!AI47 -> 0 | AK47: ='[3]Capex_FO input'!AK47 -> 0 | AL47: ='[3]Capex_FO input'!AL47 -> 0 | AM47: ='[3]Capex_FO input'!AM47 -> 0 | AN47: ='[3]Capex_FO input'!AN47 -> 0 | AO47: ='[3]Capex_FO input'!AO47 -> 0 | AP47: ='[3]Capex_FO input'!AP47 -> 0 | AQ47: ='[3]Capex_FO input'!AQ47 -> 0 | AR47: ='[3]Capex_FO input'!AR47 -> 0 | AS47: ='[3]Capex_FO input'!AS47 -> 0 | AT47: ='[3]Capex_FO input'!AT47 -> 0 | AV47: =+O47-Z47-AK47 -> 0 | AW47: =+P47-AA47-AL47 -> 0.07 | AX47: =+Q47-AB47-AM47 -> 1.1 | AY47: =+R47-AC47-AN47 -> 4.897 | AZ47: =+S47-AD47-AO47 -> 0 | BA47: =+T47-AE47-AP47 -> 0 | BB47: =+U47-AF47-AQ47 -> 0 | BC47: =+V47-AG47-AR47 -> 0 | BD47: =+W47-AH47-AS47 -> 0 | BE47: =+X47-AI47-AT47 -> 0 | BG47: =IF($L47=0,0, IF($L47<=0.5,BR47, IF($J47="straight line", IF((LEFT(BG$39,4)*1)-INT($L47)<LEFT($BG$39,4)*1,0,((OFFSET(BR47,0,-INT($L47+0.5),1,1))/$L47)*(IF($L47-INT($L47)>0.5,$L47-0.5-INT($L47),IF($L47-INT($L47)<=0.5,$L47-0.5-INT($L47)+1,0)))) +BR47/$L47*0.5, IF($J47="Declining Balance",-$BG$38,0)))) -> 0 | BH47: =IF($L47=0,0, IF($L47<=0.5,BS47, IF(AND($J47="straight line",$L47<1.51),(BR47-((BR47/$L47)*0.5))+BS47/$L47*0.5, IF($J47="straight line", IF((LEFT(BH$39,4)*1)-INT($L47)<LEFT($BG$39,4)*1,0,((OFFSET(BS47,0,-INT($L47+0.5),1,1))/$L47)*(IF($L47-INT($L47)>0.5,$L47-0.5-INT($L47),IF($L47-INT($L47)<=0.5,$L47-0.5-INT($L47)+1,0)))) +BS47/$L47*0.5 +SUM(OFFSET(BS47,0,MAX(-INT($L47+(0.5-(10^-12))),-BH$40)+1,1,MIN(INT($L47+(0.5-(10^-12))),BH$40)-1))*1/$L47, IF($J47="Declining Balance",-$BG$38,0))))) -> 0 | BI47: =IF($L47=0,0, IF($L47<=0.5,BT47, IF(AND($J47="straight line",$L47<1.51),(BS47-((BS47/$L47)*0.5))+BT47/$L47*0.5, IF($J47="straight line", IF((LEFT(BI$39,4)*1)-INT($L47)<LEFT($BG$39,4)*1,0,((OFFSET(BT47,0,-INT($L47+0.5),1,1))/$L47)*(IF($L47-INT($L47)>0.5,$L47-0.5-INT($L47),IF($L47-INT($L47)<=0.5,$L47-0.5-INT($L47)+1,0)))) +BT47/$L47*0.5 +SUM(OFFSET(BT47,0,MAX(-INT($L47+(0.5-(10^-12))),-BI$40)+1,1,MIN(INT($L47+(0.5-(10^-12))),BI$40)-1))*1/$L47, IF($J47="Declining Balance",-$BG$38,0))))) -> 0 | BJ47: =IF($L47=0,0, IF($L47<=0.5,BU47, IF(AND($J47="straight line",$L47<1.51),(BT47-((BT47/$L47)*0.5))+BU47/$L47*0.5, IF($J47="straight line", IF((LEFT(BJ$39,4)*1)-INT($L47)<LEFT($BG$39,4)*1,0,((OFFSET(BU47,0,-INT($L47+0.5),1,1))/$L47)*(IF($L47-INT($L47)>0.5,$L47-0.5-INT($L47),IF($L47-INT($L47)<=0.5,$L47-0.5-INT($L47)+1,0)))) +BU47/$L47*0.5 +SUM(OFFSET(BU47,0,MAX(-INT($L47+(0.5-(10^-12))),-BJ$40)+1,1,MIN(INT($L47+(0.5-(10^-12))),BJ$40)-1))*1/$L47, IF($J47="Declining Balance",-$BG$38,0))))) -> 0.06741111111 | BK47: =IF($L47=0,0, IF($L47<=0.5,BV47, IF(AND($J47="straight line",$L47<1.51),(BU47-((BU47/$L47)*0.5))+BV47/$L47*0.5, IF($J47="straight line", IF((LEFT(BK$39,4)*1)-INT($L47)<LEFT($BG$39,4)*1,0,((OFFSET(BV47,0,-INT($L47+0.5),1,1))/$L47)*(IF($L47-INT($L47)>0.5,$L47-0.5-INT($L47),IF($L47-INT($L47)<=0.5,$L47-0.5-INT($L47)+1,0)))) +BV47/$L47*0.5 +SUM(OFFSET(BV47,0,MAX(-INT($L47+(0.5-(10^-12))),-BK$40)+1,1,MIN(INT($L47+(0.5-(10^-12))),BK$40)-1))*1/$L47, IF($J47="Declining Balance",-$BG$38,0))))) -> 0.1348222222 | BL47: =IF($L47=0,0, IF($L47<=0.5,BW47, IF(AND($J47="straight line",$L47<1.51),(BV47-((BV47/$L47)*0.5))+BW47/$L47*0.5, IF($J47="straight line", IF((LEFT(BL$39,4)*1)-INT($L47)<LEFT($BG$39,4)*1,0,((OFFSET(BW47,0,-INT($L47+0.5),1,1))/$L47)*(IF($L47-INT($L47)>0.5,$L47-0.5-INT($L47),IF($L47-INT($L47)<=0.5,$L47-0.5-INT($L47)+1,0)))) +BW47/$L47*0.5 +SUM(OFFSET(BW47,0,MAX(-INT($L47+(0.5-(10^-12))),-BL$40)+1,1,MIN(INT($L47+(0.5-(10^-12))),BL$40)-1))*1/$L47, IF($J47="Declining Balance",-$BG$38,0))))) -> 0.1348222222 | BM47: =IF($L47=0,0, IF($L47<=0.5,BX47, IF(AND($J47="straight line",$L47<1.51),(BW47-((BW47/$L47)*0.5))+BX47/$L47*0.5, IF($J47="straight line", IF((LEFT(BM$39,4)*1)-INT($L47)<LEFT($BG$39,4)*1,0,((OFFSET(BX47,0,-INT($L47+0.5),1,1))/$L47)*(IF($L47-INT($L47)>0.5,$L47-0.5-INT($L47),IF($L47-INT($L47)<=0.5,$L47-0.5-INT($L47)+1,0)))) +BX47/$L47*0.5 +SUM(OFFSET(BX47,0,MAX(-INT($L47+(0.5-(10^-12))),-BM$40)+1,1,MIN(INT($L47+(0.5-(10^-12))),BM$40)-1))*1/$L47, IF($J47="Declining Balance",-$BG$38,0))))) -> 0.1348222222 | BN47: =IF($L47=0,0, IF($L47<=0.5,BY47, IF(AND($J47="straight line",$L47<1.51),(BX47-((BX47/$L47)*0.5))+BY47/$L47*0.5, IF($J47="straight line", IF((LEFT(BN$39,4)*1)-INT($L47)<LEFT($BG$39,4)*1,0,((OFFSET(BY47,0,-INT($L47+0.5),1,1))/$L47)*(IF($L47-INT($L47)>0.5,$L47-0.5-INT($L47),IF($L47-INT($L47)<=0.5,$L47-0.5-INT($L47)+1,0)))) +BY47/$L47*0.5 +SUM(OFFSET(BY47,0,MAX(-INT($L47+(0.5-(10^-12))),-BN$40)+1,1,MIN(INT($L47+(0.5-(10^-12))),BN$40)-1))*1/$L47, IF($J47="Declining Balance",-$BG$38,0))))) -> 0.1348222222 | BO47: =IF($L47=0,0, IF($L47<=0.5,BZ47, IF(AND($J47="straight line",$L47<1.51),(BY47-((BY47/$L47)*0.5))+BZ47/$L47*0.5, IF($J47="straight line", IF((LEFT(BO$39,4)*1)-INT($L47)<LEFT($BG$39,4)*1,0,((OFFSET(BZ47,0,-INT($L47+0.5),1,1))/$L47)*(IF($L47-INT($L47)>0.5,$L47-0.5-INT($L47),IF($L47-INT($L47)<=0.5,$L47-0.5-INT($L47)+1,0)))) +BZ47/$L47*0.5 +SUM(OFFSET(BZ47,0,MAX(-INT($L47+(0.5-(10^-12))),-BO$40)+1,1,MIN(INT($L47+(0.5-(10^-12))),BO$40)-1))*1/$L47, IF($J47="Declining Balance",-$BG$38,0))))) -> 0.1348222222 | BP47: =IF($L47=0,0, IF($L47<=0.5,CA47, IF(AND($J47="straight line",$L47<1.51),(BZ47-((BZ47/$L47)*0.5))+CA47/$L47*0.5, IF($J47="straight line", IF((LEFT(BP$39,4)*1)-INT($L47)<LEFT($BG$39,4)*1,0,((OFFSET(CA47,0,-INT($L47+0.5),1,1))/$L47)*(IF($L47-INT($L47)>0.5,$L47-0.5-INT($L47),IF($L47-INT($L47)<=0.5,$L47-0.5-INT($L47)+1,0)))) +CA47/$L47*0.5 +SUM(OFFSET(CA47,0,MAX(-INT($L47+(0.5-(10^-12))),-BP$40)+1,1,MIN(INT($L47+(0.5-(10^-12))),BP$40)-1))*1/$L47, IF($J47="Declining Balance",-$BG$38,0))))) -> 0.1348222222 | BR47: =+IF($K47="Ongoing",AV47,IF(RIGHT($K47,2)=RIGHT(BR$39,2),SUM($AV47:AV47),0)+IF(RIGHT(BR$39,2)>RIGHT($K47,2),AV47,0)) -> 0 | BS47: =+IF($K47="Ongoing",AW47,IF(RIGHT($K47,2)=RIGHT(BS$39,2),SUM($AV47:AW47),0)+IF(RIGHT(BS$39,2)>RIGHT($K47,2),AW47,0)) -> 0 | BT47: =+IF($K47="Ongoing",AX47,IF(RIGHT($K47,2)=RIGHT(BT$39,2),SUM($AV47:AX47),0)+IF(RIGHT(BT$39,2)>RIGHT($K47,2),AX47,0)) -> 0 | BU47: =+IF($K47="Ongoing",AY47,IF(RIGHT($K47,2)=RIGHT(BU$39,2),SUM($AV47:AY47),0)+IF(RIGHT(BU$39,2)>RIGHT($K47,2),AY47,0)) -> 6.067 | BV47: =+IF($K47="Ongoing",AZ47,IF(RIGHT($K47,2)=RIGHT(BV$39,2),SUM($AV47:AZ47),0)+IF(RIGHT(BV$39,2)>RIGHT($K47,2),AZ47,0)) -> 0 | BW47: =+IF($K47="Ongoing",BA47,IF(RIGHT($K47,2)=RIGHT(BW$39,2),SUM($AV47:BA47),0)+IF(RIGHT(BW$39,2)>RIGHT($K47,2),BA47,0)) -> 0 | BX47: =+IF($K47="Ongoing",BB47,IF(RIGHT($K47,2)=RIGHT(BX$39,2),SUM($AV47:BB47),0)+IF(RIGHT(BX$39,2)>RIGHT($K47,2),BB47,0)) -> 0 | BY47: =+IF($K47="Ongoing",BC47,IF(RIGHT($K47,2)=RIGHT(BY$39,2),SUM($AV47:BC47),0)+IF(RIGHT(BY$39,2)>RIGHT($K47,2),BC47,0)) -> 0 | BZ47: =+IF($K47="Ongoing",BD47,IF(RIGHT($K47,2)=RIGHT(BZ$39,2),SUM($AV47:BD47),0)+IF(RIGHT(BZ$39,2)>RIGHT($K47,2),BD47,0)) -> 0 | CA47: =+IF($K47="Ongoing",BE47,IF(RIGHT($K47,2)=RIGHT(CA$39,2),SUM($AV47:BE47),0)+IF(RIGHT(CA$39,2)>RIGHT($K47,2),BE47,0)) -> 0 | CC47: =+O47*KeyAssumptionsPriceControl_FO!AC$15 -> 0 | CD47: =+P47*KeyAssumptionsPriceControl_FO!AD$15 -> 0.074263 | CE47: =+Q47*KeyAssumptionsPriceControl_FO!AE$15 -> 1.2019997 | CF47: =+R47*KeyAssumptionsPriceControl_FO!AF$15 -> 5.511616643 | CG47: =+S47*KeyAssumptionsPriceControl_FO!AG$15 -> 0 | CH47: =+T47*KeyAssumptionsPriceControl_FO!AH$15 -> 0 | CI47: =+U47*KeyAssumptionsPriceControl_FO!AI$15 -> 0 | CJ47: =+V47*KeyAssumptionsPriceControl_FO!AJ$15 -> 0 | CK47: =+W47*KeyAssumptionsPriceControl_FO!AK$15 -> 0 | CL47: =+X47*KeyAssumptionsPriceControl_FO!AL$15 -> 0 | CN47: =IF($M47=0,0, IF($M47<=0.5,CC47, IF($J47="straight line", IF((LEFT(CN$39,4)*1)-INT($M47)<LEFT($CN$39,4)*1,0,((OFFSET(CC47,0,-INT($M47+0.5),1,1))/$M47)*(IF($M47-INT($M47)>0.5,$M47-0.5-INT($M47),IF($M47-INT($M47)<=0.5,$M47-0.5-INT($M47)+1,0)))) +CC47/$M47*0.5, IF($J47="Declining Balance",-$CN$38,0)))) -> 0 | CO47: =IF($M47=0,0, IF($M47<=0.5,CD47, IF(AND($J47="straight line",$M47<1.51),(CC47-((CC47/$M47)*0.5))+CD47/$M47*0.5, IF($J47="straight line", IF((LEFT(CO$39,4)*1)-INT($M47)<LEFT($CN$39,4)*1,0,((OFFSET(CD47,0,-INT($M47+0.5),1,1))/$M47)*(IF($M47-INT($M47)>0.5,$M47-0.5-INT($M47),IF($M47-INT($M47)<=0.5,$M47-0.5-INT($M47)+1,0)))) +CD47/$M47*0.5 +SUM(OFFSET(CD47,0,MAX(-INT($M47+(0.5-(10^-12))),-CO$40)+1,1,MIN(INT($M47+(0.5-(10^-12))),CO$40)-1))*1/$M47, IF($J47="Declining Balance",-$CN$38,0))))) -> 0.0016709175 | CP47: =IF($M47=0,0, IF($M47<=0.5,CE47, IF(AND($J47="straight line",$M47<1.51),(CD47-((CD47/$M47)*0.5))+CE47/$M47*0.5, IF($J47="straight line", IF((LEFT(CP$39,4)*1)-INT($M47)<LEFT($CN$39,4)*1,0,((OFFSET(CE47,0,-INT($M47+0.5),1,1))/$M47)*(IF($M47-INT($M47)>0.5,$M47-0.5-INT($M47),IF($M47-INT($M47)<=0.5,$M47-0.5-INT($M47)+1,0)))) +CE47/$M47*0.5 +SUM(OFFSET(CE47,0,MAX(-INT($M47+(0.5-(10^-12))),-CP$40)+1,1,MIN(INT($M47+(0.5-(10^-12))),CP$40)-1))*1/$M47, IF($J47="Declining Balance",-$CN$38,0))))) -> 0.03038682825 | CQ47: =IF($M47=0,0, IF($M47<=0.5,CF47, IF(AND($J47="straight line",$M47<1.51),(CE47-((CE47/$M47)*0.5))+CF47/$M47*0.5, IF($J47="straight line", IF((LEFT(CQ$39,4)*1)-INT($M47)<LEFT($CN$39,4)*1,0,((OFFSET(CF47,0,-INT($M47+0.5),1,1))/$M47)*(IF($M47-INT($M47)>0.5,$M47-0.5-INT($M47),IF($M47-INT($M47)<=0.5,$M47-0.5-INT($M47)+1,0)))) +CF47/$M47*0.5 +SUM(OFFSET(CF47,0,MAX(-INT($M47+(0.5-(10^-12))),-CQ$40)+1,1,MIN(INT($M47+(0.5-(10^-12))),CQ$40)-1))*1/$M47, IF($J47="Declining Balance",-$CN$38,0))))) -> 0.181443196 | CR47: =IF($M47=0,0, IF($M47<=0.5,CG47, IF(AND($J47="straight line",$M47<1.51),(CF47-((CF47/$M47)*0.5))+CG47/$M47*0.5, IF($J47="straight line", IF((LEFT(CR$39,4)*1)-INT($M47)<LEFT($CN$39,4)*1,0,((OFFSET(CG47,0,-INT($M47+0.5),1,1))/$M47)*(IF($M47-INT($M47)>0.5,$M47-0.5-INT($M47),IF($M47-INT($M47)<=0.5,$M47-0.5-INT($M47)+1,0)))) +CG47/$M47*0.5 +SUM(OFFSET(CG47,0,MAX(-INT($M47+(0.5-(10^-12))),-CR$40)+1,1,MIN(INT($M47+(0.5-(10^-12))),CR$40)-1))*1/$M47, IF($J47="Declining Balance",-$CN$38,0))))) -> 0.3054545704 | CS47: =IF($M47=0,0, IF($M47<=0.5,CH47, IF(AND($J47="straight line",$M47<1.51),(CG47-((CG47/$M47)*0.5))+CH47/$M47*0.5, IF($J47="straight line", IF((LEFT(CS$39,4)*1)-INT($M47)<LEFT($CN$39,4)*1,0,((OFFSET(CH47,0,-INT($M47+0.5),1,1))/$M47)*(IF($M47-INT($M47)>0.5,$M47-0.5-INT($M47),IF($M47-INT($M47)<=0.5,$M47-0.5-INT($M47)+1,0)))) +CH47/$M47*0.5 +SUM(OFFSET(CH47,0,MAX(-INT($M47+(0.5-(10^-12))),-CS$40)+1,1,MIN(INT($M47+(0.5-(10^-12))),CS$40)-1))*1/$M47, IF($J47="Declining Balance",-$CN$38,0))))) -> 0.3054545704 | CT47: =IF($M47=0,0, IF($M47<=0.5,CI47, IF(AND($J47="straight line",$M47<1.51),(CH47-((CH47/$M47)*0.5))+CI47/$M47*0.5, IF($J47="straight line", IF((LEFT(CT$39,4)*1)-INT($M47)<LEFT($CN$39,4)*1,0,((OFFSET(CI47,0,-INT($M47+0.5),1,1))/$M47)*(IF($M47-INT($M47)>0.5,$M47-0.5-INT($M47),IF($M47-INT($M47)<=0.5,$M47-0.5-INT($M47)+1,0)))) +CI47/$M47*0.5 +SUM(OFFSET(CI47,0,MAX(-INT($M47+(0.5-(10^-12))),-CT$40)+1,1,MIN(INT($M47+(0.5-(10^-12))),CT$40)-1))*1/$M47, IF($J47="Declining Balance",-$CN$38,0))))) -> 0.3054545704 | CU47: =IF($M47=0,0, IF($M47<=0.5,CJ47, IF(AND($J47="straight line",$M47<1.51),(CI47-((CI47/$M47)*0.5))+CJ47/$M47*0.5, IF($J47="straight line", IF((LEFT(CU$39,4)*1)-INT($M47)<LEFT($CN$39,4)*1,0,((OFFSET(CJ47,0,-INT($M47+0.5),1,1))/$M47)*(IF($M47-INT($M47)>0.5,$M47-0.5-INT($M47),IF($M47-INT($M47)<=0.5,$M47-0.5-INT($M47)+1,0)))) +CJ47/$M47*0.5 +SUM(OFFSET(CJ47,0,MAX(-INT($M47+(0.5-(10^-12))),-CU$40)+1,1,MIN(INT($M47+(0.5-(10^-12))),CU$40)-1))*1/$M47, IF($J47="Declining Balance",-$CN$38,0))))) -> 0.3054545704 | CV47: =IF($M47=0,0, IF($M47<=0.5,CK47, IF(AND($J47="straight line",$M47<1.51),(CJ47-((CJ47/$M47)*0.5))+CK47/$M47*0.5, IF($J47="straight line", IF((LEFT(CV$39,4)*1)-INT($M47)<LEFT($CN$39,4)*1,0,((OFFSET(CK47,0,-INT($M47+0.5),1,1))/$M47)*(IF($M47-INT($M47)>0.5,$M47-0.5-INT($M47),IF($M47-INT($M47)<=0.5,$M47-0.5-INT($M47)+1,0)))) +CK47/$M47*0.5 +SUM(OFFSET(CK47,0,MAX(-INT($M47+(0.5-(10^-12))),-CV$40)+1,1,MIN(INT($M47+(0.5-(10^-12))),CV$40)-1))*1/$M47, IF($J47="Declining Balance",-$CN$38,0))))) -> 0.3054545704 | CW47: =IF($M47=0,0, IF($M47<=0.5,CL47, IF(AND($J47="straight line",$M47<1.51),(CK47-((CK47/$M47)*0.5))+CL47/$M47*0.5, IF($J47="straight line", IF((LEFT(CW$39,4)*1)-INT($M47)<LEFT($CN$39,4)*1,0,((OFFSET(CL47,0,-INT($M47+0.5),1,1))/$M47)*(IF($M47-INT($M47)>0.5,$M47-0.5-INT($M47),IF($M47-INT($M47)<=0.5,$M47-0.5-INT($M47)+1,0)))) +CL47/$M47*0.5 +SUM(OFFSET(CL47,0,MAX(-INT($M47+(0.5-(10^-12))),-CW$40)+1,1,MIN(INT($M47+(0.5-(10^-12))),CW$40)-1))*1/$M47, IF($J47="Declining Balance",-$CN$38,0))))) -> 0.3054545704
C48: ='[3]Capex_FO input'!C48 -> Koorlong Sewer Rising Main Duplication | D48: ='[3]Capex_FO input'!D48 -> 0 | E48: ='[3]Capex_FO input'!E48 -> Sewerage | F48: ='[3]Capex_FO input'!F48 -> Growth | G48: ='[3]Capex_FO input'!G48 -> Pipelines/network | H48: ='[3]Capex_FO input'!H48 -> Top 10 Major Projects | I48: ='[3]Capex_FO input'!I48 -> 0 | J48: ='[3]Capex_FO input'!J48 -> Straight line | K48: ='[3]Capex_FO input'!K48 -> 2029-30 | L48: ='[3]Capex_FO input'!L48 -> 80 | M48: ='[3]Capex_FO input'!M48 -> 22.22222222 | O48: ='[3]Capex_FO input'!O48 -> 0 | P48: ='[3]Capex_FO input'!P48 -> 0 | Q48: ='[3]Capex_FO input'!Q48 -> 0 | R48: ='[3]Capex_FO input'!R48 -> 0.3 | S48: ='[3]Capex_FO input'!S48 -> 1.2 | T48: ='[3]Capex_FO input'!T48 -> 3.875 | U48: ='[3]Capex_FO input'!U48 -> 3.875 | V48: ='[3]Capex_FO input'!V48 -> 0 | W48: ='[3]Capex_FO input'!W48 -> 0 | X48: ='[3]Capex_FO input'!X48 -> 0 | Z48: ='[3]Capex_FO input'!Z48 -> 0 | AA48: ='[3]Capex_FO input'!AA48 -> 0 | AB48: ='[3]Capex_FO input'!AB48 -> 0 | AC48: ='[3]Capex_FO input'!AC48 -> 0 | AD48: ='[3]Capex_FO input'!AD48 -> 0 | AE48: ='[3]Capex_FO input'!AE48 -> 0 | AF48: ='[3]Capex_FO input'!AF48 -> 0 | AG48: ='[3]Capex_FO input'!AG48 -> 0 | AH48: ='[3]Capex_FO input'!AH48 -> 0 | AI48: ='[3]Capex_FO input'!AI48 -> 0 | AK48: ='[3]Capex_FO input'!AK48 -> 0 | AL48: ='[3]Capex_FO input'!AL48 -> 0 | AM48: ='[3]Capex_FO input'!AM48 -> 0 | AN48: ='[3]Capex_FO input'!AN48 -> 0 | AO48: ='[3]Capex_FO input'!AO48 -> 0 | AP48: ='[3]Capex_FO input'!AP48 -> 0 | AQ48: ='[3]Capex_FO input'!AQ48 -> 0 | AR48: ='[3]Capex_FO input'!AR48 -> 0 | AS48: ='[3]Capex_FO input'!AS48 -> 0 | AT48: ='[3]Capex_FO input'!AT48 -> 0 | AV48: 0 | AW48: 0 | AX48: 0 | AY48: 0.3 | AZ48: 1.2 | BA48: 3.875 | BB48: 3.875 | BC48: 0 | BD48: 0 | BE48: 0 | BG48: 0 | BH48: 0 | BI48: 0 | BJ48: 0 | BK48: 0 | BL48: 0 | BM48: 0.0578125 | BN48: 0.115625 | BO48: 0.115625 | BP48: 0.115625 | BR48: =+IF($K48="Ongoing",AV48,IF(RIGHT($K48,2)=RIGHT(BR$39,2),SUM($AV48:AV48),0)+IF(RIGHT(BR$39,2)>RIGHT($K48,2),AV48,0)) -> 0 | BS48: =+IF($K48="Ongoing",AW48,IF(RIGHT($K48,2)=RIGHT(BS$39,2),SUM($AV48:AW48),0)+IF(RIGHT(BS$39,2)>RIGHT($K48,2),AW48,0)) -> 0 | BT48: =+IF($K48="Ongoing",AX48,IF(RIGHT($K48,2)=RIGHT(BT$39,2),SUM($AV48:AX48),0)+IF(RIGHT(BT$39,2)>RIGHT($K48,2),AX48,0)) -> 0 | BU48: =+IF($K48="Ongoing",AY48,IF(RIGHT($K48,2)=RIGHT(BU$39,2),SUM($AV48:AY48),0)+IF(RIGHT(BU$39,2)>RIGHT($K48,2),AY48,0)) -> 0 | BV48: =+IF($K48="Ongoing",AZ48,IF(RIGHT($K48,2)=RIGHT(BV$39,2),SUM($AV48:AZ48),0)+IF(RIGHT(BV$39,2)>RIGHT($K48,2),AZ48,0)) -> 0 | BW48: =+IF($K48="Ongoing",BA48,IF(RIGHT($K48,2)=RIGHT(BW$39,2),SUM($AV48:BA48),0)+IF(RIGHT(BW$39,2)>RIGHT($K48,2),BA48,0)) -> 0 | BX48: =+IF($K48="Ongoing",BB48,IF(RIGHT($K48,2)=RIGHT(BX$39,2),SUM($AV48:BB48),0)+IF(RIGHT(BX$39,2)>RIGHT($K48,2),BB48,0)) -> 9.25 | BY48: =+IF($K48="Ongoing",BC48,IF(RIGHT($K48,2)=RIGHT(BY$39,2),SUM($AV48:BC48),0)+IF(RIGHT(BY$39,2)>RIGHT($K48,2),BC48,0)) -> 0 | BZ48: =+IF($K48="Ongoing",BD48,IF(RIGHT($K48,2)=RIGHT(BZ$39,2),SUM($AV48:BD48),0)+IF(RIGHT(BZ$39,2)>RIGHT($K48,2),BD48,0)) -> 0 | CA48: =+IF($K48="Ongoing",BE48,IF(RIGHT($K48,2)=RIGHT(CA$39,2),SUM($AV48:BE48),0)+IF(RIGHT(CA$39,2)>RIGHT($K48,2),BE48,0)) -> 0 | CC48: =+O48*KeyAssumptionsPriceControl_FO!AC$15 -> 0 | CD48: =+P48*KeyAssumptionsPriceControl_FO!AD$15 -> 0 | CE48: =+Q48*KeyAssumptionsPriceControl_FO!AE$15 -> 0 | CF48: =+R48*KeyAssumptionsPriceControl_FO!AF$15 -> 0.337652643 | CG48: =+S48*KeyAssumptionsPriceControl_FO!AG$15 -> 1.391128889 | CH48: =+T48*KeyAssumptionsPriceControl_FO!AH$15 -> 4.626952649 | CI48: =+U48*KeyAssumptionsPriceControl_FO!AI$15 -> 4.765761229 | CJ48: =+V48*KeyAssumptionsPriceControl_FO!AJ$15 -> 0 | CK48: =+W48*KeyAssumptionsPriceControl_FO!AK$15 -> 0 | CL48: =+X48*KeyAssumptionsPriceControl_FO!AL$15 -> 0 | CN48: 0 | CO48: 0 | CP48: 0 | CQ48: 0.007597184468 | CR48: 0.04649476894 | CS48: 0.1819016036 | CT48: 0.3932376658 | CU48: 0.5004672934 | CV48: 0.5004672934 | CW48: 0.5004672934
C49: ='[3]Capex_FO input'!C49 -> Customer CRM, portal Phase 2 (additional process design & NextGen service catalogue Portal | D49: ='[3]Capex_FO input'!D49 -> 0 | E49: ='[3]Capex_FO input'!E49 -> Water | F49: ='[3]Capex_FO input'!F49 -> Improvements / Compliance | G49: ='[3]Capex_FO input'!G49 -> Corporate | H49: ='[3]Capex_FO input'!H49 -> Top 10 Major Projects | I49: ='[3]Capex_FO input'!I49 -> 0 | J49: ='[3]Capex_FO input'!J49 -> Straight line | K49: ='[3]Capex_FO input'!K49 -> Ongoing | L49: ='[3]Capex_FO input'!L49 -> 15 | M49: ='[3]Capex_FO input'!M49 -> 2.5 | O49: ='[3]Capex_FO input'!O49 -> 0.5928 | P49: ='[3]Capex_FO input'!P49 -> 0.5928 | Q49: ='[3]Capex_FO input'!Q49 -> 0.5928 | R49: ='[3]Capex_FO input'!R49 -> 0 | S49: ='[3]Capex_FO input'!S49 -> 0 | T49: ='[3]Capex_FO input'!T49 -> 0 | U49: ='[3]Capex_FO input'!U49 -> 0 | V49: ='[3]Capex_FO input'!V49 -> 0 | W49: ='[3]Capex_FO input'!W49 -> 0 | X49: ='[3]Capex_FO input'!X49 -> 0 | Z49: ='[3]Capex_FO input'!Z49 -> 0 | AA49: ='[3]Capex_FO input'!AA49 -> 0 | AB49: ='[3]Capex_FO input'!AB49 -> 0 | AC49: ='[3]Capex_FO input'!AC49 -> 0 | AD49: ='[3]Capex_FO input'!AD49 -> 0 | AE49: ='[3]Capex_FO input'!AE49 -> 0 | AF49: ='[3]Capex_FO input'!AF49 -> 0 | AG49: ='[3]Capex_FO input'!AG49 -> 0 | AH49: ='[3]Capex_FO input'!AH49 -> 0 | AI49: ='[3]Capex_FO input'!AI49 -> 0 | AK49: ='[3]Capex_FO input'!AK49 -> 0 | AL49: ='[3]Capex_FO input'!AL49 -> 0 | AM49: ='[3]Capex_FO input'!AM49 -> 0 | AN49: ='[3]Capex_FO input'!AN49 -> 0 | AO49: ='[3]Capex_FO input'!AO49 -> 0 | AP49: ='[3]Capex_FO input'!AP49 -> 0 | AQ49: ='[3]Capex_FO input'!AQ49 -> 0 | AR49: ='[3]Capex_FO input'!AR49 -> 0 | AS49: ='[3]Capex_FO input'!AS49 -> 0 | AT49: ='[3]Capex_FO input'!AT49 -> 0 | AV49: 0.5928 | AW49: 0.5928 | AX49: 0.5928 | AY49: 0 | AZ49: 0 | BA49: 0 | BB49: 0 | BC49: 0 | BD49: 0 | BE49: 0 | BG49: 0.01976 | BH49: 0.05928 | BI49: 0.0988 | BJ49: 0.11856 | BK49: 0.11856 | BL49: 0.11856 | BM49: 0.11856 | BN49: 0.11856 | BO49: 0.11856 | BP49: 0.11856 | BR49: =+IF($K49="Ongoing",AV49,IF(RIGHT($K49,2)=RIGHT(BR$39,2),SUM($AV49:AV49),0)+IF(RIGHT(BR$39,2)>RIGHT($K49,2),AV49,0)) -> 0.5928 | BS49: =+IF($K49="Ongoing",AW49,IF(RIGHT($K49,2)=RIGHT(BS$39,2),SUM($AV49:AW49),0)+IF(RIGHT(BS$39,2)>RIGHT($K49,2),AW49,0)) -> 0.5928 | BT49: =+IF($K49="Ongoing",AX49,IF(RIGHT($K49,2)=RIGHT(BT$39,2),SUM($AV49:AX49),0)+IF(RIGHT(BT$39,2)>RIGHT($K49,2),AX49,0)) -> 0.5928 | BU49: =+IF($K49="Ongoing",AY49,IF(RIGHT($K49,2)=RIGHT(BU$39,2),SUM($AV49:AY49),0)+IF(RIGHT(BU$39,2)>RIGHT($K49,2),AY49,0)) -> 0 | BV49: =+IF($K49="Ongoing",AZ49,IF(RIGHT($K49,2)=RIGHT(BV$39,2),SUM($AV49:AZ49),0)+IF(RIGHT(BV$39,2)>RIGHT($K49,2),AZ49,0)) -> 0 | BW49: =+IF($K49="Ongoing",BA49,IF(RIGHT($K49,2)=RIGHT(BW$39,2),SUM($AV49:BA49),0)+IF(RIGHT(BW$39,2)>RIGHT($K49,2),BA49,0)) -> 0 | BX49: =+IF($K49="Ongoing",BB49,IF(RIGHT($K49,2)=RIGHT(BX$39,2),SUM($AV49:BB49),0)+IF(RIGHT(BX$39,2)>RIGHT($K49,2),BB49,0)) -> 0 | BY49: =+IF($K49="Ongoing",BC49,IF(RIGHT($K49,2)=RIGHT(BY$39,2),SUM($AV49:BC49),0)+IF(RIGHT(BY$39,2)>RIGHT($K49,2),BC49,0)) -> 0 | BZ49: =+IF($K49="Ongoing",BD49,IF(RIGHT($K49,2)=RIGHT(BZ$39,2),SUM($AV49:BD49),0)+IF(RIGHT(BZ$39,2)>RIGHT($K49,2),BD49,0)) -> 0 | CA49: =+IF($K49="Ongoing",BE49,IF(RIGHT($K49,2)=RIGHT(CA$39,2),SUM($AV49:BE49),0)+IF(RIGHT(CA$39,2)>RIGHT($K49,2),BE49,0)) -> 0 | CC49: =+O49*KeyAssumptionsPriceControl_FO!AC$15 -> 0.610584 | CD49: =+P49*KeyAssumptionsPriceControl_FO!AD$15 -> 0.62890152 | CE49: =+Q49*KeyAssumptionsPriceControl_FO!AE$15 -> 0.6477685656 | CF49: =+R49*KeyAssumptionsPriceControl_FO!AF$15 -> 0 | CG49: =+S49*KeyAssumptionsPriceControl_FO!AG$15 -> 0 | CH49: =+T49*KeyAssumptionsPriceControl_FO!AH$15 -> 0 | CI49: =+U49*KeyAssumptionsPriceControl_FO!AI$15 -> 0 | CJ49: =+V49*KeyAssumptionsPriceControl_FO!AJ$15 -> 0 | CK49: =+W49*KeyAssumptionsPriceControl_FO!AK$15 -> 0 | CL49: =+X49*KeyAssumptionsPriceControl_FO!AL$15 -> 0 | CN49: 0.1221168 | CO49: 0.370013904 | CP49: 0.3811143211 | CQ49: 0.5033410262 | CR49: 0.251560608 | CS49: 0.2591074262 | CT49: 0 | CU49: 0 | CV49: 0 | CW49: 0
C50: ='[3]Capex_FO input'!C50 -> Asset Management Improvement - Fixed Asset Implementation & Value Study Initiatives | D50: ='[3]Capex_FO input'!D50 -> 0 | E50: ='[3]Capex_FO input'!E50 -> Water | F50: ='[3]Capex_FO input'!F50 -> Improvements / Compliance | G50: ='[3]Capex_FO input'!G50 -> Corporate | H50: ='[3]Capex_FO input'!H50 -> Top 10 Major Projects | I50: ='[3]Capex_FO input'!I50 -> 0 | J50: ='[3]Capex_FO input'!J50 -> Straight line | K50: ='[3]Capex_FO input'!K50 -> Ongoing | L50: ='[3]Capex_FO input'!L50 -> 15 | M50: ='[3]Capex_FO input'!M50 -> 2.5 | O50: ='[3]Capex_FO input'!O50 -> 0.54288 | P50: ='[3]Capex_FO input'!P50 -> 0.54288 | Q50: ='[3]Capex_FO input'!Q50 -> 0.54288 | R50: ='[3]Capex_FO input'!R50 -> 0.54288 | S50: ='[3]Capex_FO input'!S50 -> 0.54288 | T50: ='[3]Capex_FO input'!T50 -> 0 | U50: ='[3]Capex_FO input'!U50 -> 0 | V50: ='[3]Capex_FO input'!V50 -> 0 | W50: ='[3]Capex_FO input'!W50 -> 0 | X50: ='[3]Capex_FO input'!X50 -> 0 | Z50: ='[3]Capex_FO input'!Z50 -> 0 | AA50: ='[3]Capex_FO input'!AA50 -> 0 | AB50: ='[3]Capex_FO input'!AB50 -> 0 | AC50: ='[3]Capex_FO input'!AC50 -> 0 | AD50: ='[3]Capex_FO input'!AD50 -> 0 | AE50: ='[3]Capex_FO input'!AE50 -> 0 | AF50: ='[3]Capex_FO input'!AF50 -> 0 | AG50: ='[3]Capex_FO input'!AG50 -> 0 | AH50: ='[3]Capex_FO input'!AH50 -> 0 | AI50: ='[3]Capex_FO input'!AI50 -> 0 | AK50: ='[3]Capex_FO input'!AK50 -> 0 | AL50: ='[3]Capex_FO input'!AL50 -> 0 | AM50: ='[3]Capex_FO input'!AM50 -> 0 | AN50: ='[3]Capex_FO input'!AN50 -> 0 | AO50: ='[3]Capex_FO input'!AO50 -> 0 | AP50: ='[3]Capex_FO input'!AP50 -> 0 | AQ50: ='[3]Capex_FO input'!AQ50 -> 0 | AR50: ='[3]Capex_FO input'!AR50 -> 0 | AS50: ='[3]Capex_FO input'!AS50 -> 0 | AT50: ='[3]Capex_FO input'!AT50 -> 0 | AV50: 0.54288 | AW50: 0.54288 | AX50: 0.54288 | AY50: 0.54288 | AZ50: 0.54288 | BA50: 0 | BB50: 0 | BC50: 0 | BD50: 0 | BE50: 0 | BG50: 0.018096 | BH50: 0.054288 | BI50: 0.09048 | BJ50: 0.126672 | BK50: 0.162864 | BL50: 0.18096 | BM50: 0.18096 | BN50: 0.18096 | BO50: 0.18096 | BP50: 0.18096 | BR50: =+IF($K50="Ongoing",AV50,IF(RIGHT($K50,2)=RIGHT(BR$39,2),SUM($AV50:AV50),0)+IF(RIGHT(BR$39,2)>RIGHT($K50,2),AV50,0)) -> 0.54288 | BS50: =+IF($K50="Ongoing",AW50,IF(RIGHT($K50,2)=RIGHT(BS$39,2),SUM($AV50:AW50),0)+IF(RIGHT(BS$39,2)>RIGHT($K50,2),AW50,0)) -> 0.54288 | BT50: =+IF($K50="Ongoing",AX50,IF(RIGHT($K50,2)=RIGHT(BT$39,2),SUM($AV50:AX50),0)+IF(RIGHT(BT$39,2)>RIGHT($K50,2),AX50,0)) -> 0.54288 | BU50: =+IF($K50="Ongoing",AY50,IF(RIGHT($K50,2)=RIGHT(BU$39,2),SUM($AV50:AY50),0)+IF(RIGHT(BU$39,2)>RIGHT($K50,2),AY50,0)) -> 0.54288 | BV50: =+IF($K50="Ongoing",AZ50,IF(RIGHT($K50,2)=RIGHT(BV$39,2),SUM($AV50:AZ50),0)+IF(RIGHT(BV$39,2)>RIGHT($K50,2),AZ50,0)) -> 0.54288 | BW50: =+IF($K50="Ongoing",BA50,IF(RIGHT($K50,2)=RIGHT(BW$39,2),SUM($AV50:BA50),0)+IF(RIGHT(BW$39,2)>RIGHT($K50,2),BA50,0)) -> 0 | BX50: =+IF($K50="Ongoing",BB50,IF(RIGHT($K50,2)=RIGHT(BX$39,2),SUM($AV50:BB50),0)+IF(RIGHT(BX$39,2)>RIGHT($K50,2),BB50,0)) -> 0 | BY50: =+IF($K50="Ongoing",BC50,IF(RIGHT($K50,2)=RIGHT(BY$39,2),SUM($AV50:BC50),0)+IF(RIGHT(BY$39,2)>RIGHT($K50,2),BC50,0)) -> 0 | BZ50: =+IF($K50="Ongoing",BD50,IF(RIGHT($K50,2)=RIGHT(BZ$39,2),SUM($AV50:BD50),0)+IF(RIGHT(BZ$39,2)>RIGHT($K50,2),BD50,0)) -> 0 | CA50: =+IF($K50="Ongoing",BE50,IF(RIGHT($K50,2)=RIGHT(CA$39,2),SUM($AV50:BE50),0)+IF(RIGHT(CA$39,2)>RIGHT($K50,2),BE50,0)) -> 0 | CC50: =+O50*KeyAssumptionsPriceControl_FO!AC$15 -> 0.5591664 | CD50: =+P50*KeyAssumptionsPriceControl_FO!AD$15 -> 0.575941392 | CE50: =+Q50*KeyAssumptionsPriceControl_FO!AE$15 -> 0.5932196338 | CF50: =+R50*KeyAssumptionsPriceControl_FO!AF$15 -> 0.6110162228 | CG50: =+S50*KeyAssumptionsPriceControl_FO!AG$15 -> 0.6293467095 | CH50: =+T50*KeyAssumptionsPriceControl_FO!AH$15 -> 0 | CI50: =+U50*KeyAssumptionsPriceControl_FO!AI$15 -> 0 | CJ50: =+V50*KeyAssumptionsPriceControl_FO!AJ$15 -> 0 | CK50: =+W50*KeyAssumptionsPriceControl_FO!AK$15 -> 0 | CL50: =+X50*KeyAssumptionsPriceControl_FO!AL$15 -> 0 | CN50: 0.11183328 | CO50: 0.3388548384 | CP50: 0.3490204836 | CQ50: 0.5831576581 | CR50: 0.6006523878 | CS50: 0.4890265373 | CT50: 0.2444064891 | CU50: 0.2517386838 | CV50: 0 | CW50: 0
C51: ='[3]Capex_FO input'!C51 -> 0 | D51: ='[3]Capex_FO input'!D51 -> 0 | E51: ='[3]Capex_FO input'!E51 -> 0 | F51: ='[3]Capex_FO input'!F51 -> 0 | G51: ='[3]Capex_FO input'!G51 -> 0 | H51: ='[3]Capex_FO input'!H51 -> Top 10 Major Projects | I51: ='[3]Capex_FO input'!I51 -> 0 | J51: ='[3]Capex_FO input'!J51 -> Straight line | K51: ='[3]Capex_FO input'!K51 -> 0 | L51: ='[3]Capex_FO input'!L51 -> 0 | M51: ='[3]Capex_FO input'!M51 -> 0 | O51: ='[3]Capex_FO input'!O51 -> 0 | P51: ='[3]Capex_FO input'!P51 -> 0 | Q51: ='[3]Capex_FO input'!Q51 -> 0 | R51: ='[3]Capex_FO input'!R51 -> 0 | S51: ='[3]Capex_FO input'!S51 -> 0 | T51: ='[3]Capex_FO input'!T51 -> 0 | U51: ='[3]Capex_FO input'!U51 -> 0 | V51: ='[3]Capex_FO input'!V51 -> 0 | W51: ='[3]Capex_FO input'!W51 -> 0 | X51: ='[3]Capex_FO input'!X51 -> 0 | Z51: ='[3]Capex_FO input'!Z51 -> 0 | AA51: ='[3]Capex_FO input'!AA51 -> 0 | AB51: ='[3]Capex_FO input'!AB51 -> 0 | AC51: ='[3]Capex_FO input'!AC51 -> 0 | AD51: ='[3]Capex_FO input'!AD51 -> 0 | AE51: ='[3]Capex_FO input'!AE51 -> 0 | AF51: ='[3]Capex_FO input'!AF51 -> 0 | AG51: ='[3]Capex_FO input'!AG51 -> 0 | AH51: ='[3]Capex_FO input'!AH51 -> 0 | AI51: ='[3]Capex_FO input'!AI51 -> 0 | AK51: ='[3]Capex_FO input'!AK51 -> 0 | AL51: ='[3]Capex_FO input'!AL51 -> 0 | AM51: ='[3]Capex_FO input'!AM51 -> 0 | AN51: ='[3]Capex_FO input'!AN51 -> 0 | AO51: ='[3]Capex_FO input'!AO51 -> 0 | AP51: ='[3]Capex_FO input'!AP51 -> 0 | AQ51: ='[3]Capex_FO input'!AQ51 -> 0 | AR51: ='[3]Capex_FO input'!AR51 -> 0 | AS51: ='[3]Capex_FO input'!AS51 -> 0 | AT51: ='[3]Capex_FO input'!AT51 -> 0 | AV51: 0 | AW51: 0 | AX51: 0 | AY51: 0 | AZ51: 0 | BA51: 0 | BB51: 0 | BC51: 0 | BD51: 0 | BE51: 0 | BG51: 0 | BH51: 0 | BI51: 0 | BJ51: 0 | BK51: 0 | BL51: 0 | BM51: 0 | BN51: 0 | BO51: 0 | BP51: 0 | BR51: =+IF($K51="Ongoing",AV51,IF(RIGHT($K51,2)=RIGHT(BR$39,2),SUM($AV51:AV51),0)+IF(RIGHT(BR$39,2)>RIGHT($K51,2),AV51,0)) -> 0 | BS51: =+IF($K51="Ongoing",AW51,IF(RIGHT($K51,2)=RIGHT(BS$39,2),SUM($AV51:AW51),0)+IF(RIGHT(BS$39,2)>RIGHT($K51,2),AW51,0)) -> 0 | BT51: =+IF($K51="Ongoing",AX51,IF(RIGHT($K51,2)=RIGHT(BT$39,2),SUM($AV51:AX51),0)+IF(RIGHT(BT$39,2)>RIGHT($K51,2),AX51,0)) -> 0 | BU51: =+IF($K51="Ongoing",AY51,IF(RIGHT($K51,2)=RIGHT(BU$39,2),SUM($AV51:AY51),0)+IF(RIGHT(BU$39,2)>RIGHT($K51,2),AY51,0)) -> 0 | BV51: =+IF($K51="Ongoing",AZ51,IF(RIGHT($K51,2)=RIGHT(BV$39,2),SUM($AV51:AZ51),0)+IF(RIGHT(BV$39,2)>RIGHT($K51,2),AZ51,0)) -> 0 | BW51: =+IF($K51="Ongoing",BA51,IF(RIGHT($K51,2)=RIGHT(BW$39,2),SUM($AV51:BA51),0)+IF(RIGHT(BW$39,2)>RIGHT($K51,2),BA51,0)) -> 0 | BX51: =+IF($K51="Ongoing",BB51,IF(RIGHT($K51,2)=RIGHT(BX$39,2),SUM($AV51:BB51),0)+IF(RIGHT(BX$39,2)>RIGHT($K51,2),BB51,0)) -> 0 | BY51: =+IF($K51="Ongoing",BC51,IF(RIGHT($K51,2)=RIGHT(BY$39,2),SUM($AV51:BC51),0)+IF(RIGHT(BY$39,2)>RIGHT($K51,2),BC51,0)) -> 0 | BZ51: =+IF($K51="Ongoing",BD51,IF(RIGHT($K51,2)=RIGHT(BZ$39,2),SUM($AV51:BD51),0)+IF(RIGHT(BZ$39,2)>RIGHT($K51,2),BD51,0)) -> 0 | CA51: =+IF($K51="Ongoing",BE51,IF(RIGHT($K51,2)=RIGHT(CA$39,2),SUM($AV51:BE51),0)+IF(RIGHT(CA$39,2)>RIGHT($K51,2),BE51,0)) -> 0 | CC51: =+O51*KeyAssumptionsPriceControl_FO!AC$15 -> 0 | CD51: =+P51*KeyAssumptionsPriceControl_FO!AD$15 -> 0 | CE51: =+Q51*KeyAssumptionsPriceControl_FO!AE$15 -> 0 | CF51: =+R51*KeyAssumptionsPriceControl_FO!AF$15 -> 0 | CG51: =+S51*KeyAssumptionsPriceControl_FO!AG$15 -> 0 | CH51: =+T51*KeyAssumptionsPriceControl_FO!AH$15 -> 0 | CI51: =+U51*KeyAssumptionsPriceControl_FO!AI$15 -> 0 | CJ51: =+V51*KeyAssumptionsPriceControl_FO!AJ$15 -> 0 | CK51: =+W51*KeyAssumptionsPriceControl_FO!AK$15 -> 0 | CL51: =+X51*KeyAssumptionsPriceControl_FO!AL$15 -> 0 | CN51: 0 | CO51: 0 | CP51: 0 | CQ51: 0 | CR51: 0 | CS51: 0 | CT51: 0 | CU51: 0 | CV51: 0 | CW51: 0
C52: ='[3]Capex_FO input'!C52 -> 0 | AV52: 0 | AW52: 0 | AX52: 0 | AY52: 0 | AZ52: 0 | BA52: 0 | BB52: 0 | BC52: 0 | BD52: 0 | BE52: 0 | BG52: 0 | BH52: 0 | BI52: 0 | BJ52: 0 | BK52: 0 | BL52: 0 | BM52: 0 | BN52: 0 | BO52: 0 | BP52: 0 | BR52: =+IF($K52="Ongoing",AV52,IF(RIGHT($K52,2)=RIGHT(BR$39,2),SUM($AV52:AV52),0)+IF(RIGHT(BR$39,2)>RIGHT($K52,2),AV52,0)) -> 0 | BS52: =+IF($K52="Ongoing",AW52,IF(RIGHT($K52,2)=RIGHT(BS$39,2),SUM($AV52:AW52),0)+IF(RIGHT(BS$39,2)>RIGHT($K52,2),AW52,0)) -> 0 | BT52: =+IF($K52="Ongoing",AX52,IF(RIGHT($K52,2)=RIGHT(BT$39,2),SUM($AV52:AX52),0)+IF(RIGHT(BT$39,2)>RIGHT($K52,2),AX52,0)) -> 0 | BU52: =+IF($K52="Ongoing",AY52,IF(RIGHT($K52,2)=RIGHT(BU$39,2),SUM($AV52:AY52),0)+IF(RIGHT(BU$39,2)>RIGHT($K52,2),AY52,0)) -> 0 | BV52: =+IF($K52="Ongoing",AZ52,IF(RIGHT($K52,2)=RIGHT(BV$39,2),SUM($AV52:AZ52),0)+IF(RIGHT(BV$39,2)>RIGHT($K52,2),AZ52,0)) -> 0 | BW52: =+IF($K52="Ongoing",BA52,IF(RIGHT($K52,2)=RIGHT(BW$39,2),SUM($AV52:BA52),0)+IF(RIGHT(BW$39,2)>RIGHT($K52,2),BA52,0)) -> 0 | BX52: =+IF($K52="Ongoing",BB52,IF(RIGHT($K52,2)=RIGHT(BX$39,2),SUM($AV52:BB52),0)+IF(RIGHT(BX$39,2)>RIGHT($K52,2),BB52,0)) -> 0 | BY52: =+IF($K52="Ongoing",BC52,IF(RIGHT($K52,2)=RIGHT(BY$39,2),SUM($AV52:BC52),0)+IF(RIGHT(BY$39,2)>RIGHT($K52,2),BC52,0)) -> 0 | BZ52: =+IF($K52="Ongoing",BD52,IF(RIGHT($K52,2)=RIGHT(BZ$39,2),SUM($AV52:BD52),0)+IF(RIGHT(BZ$39,2)>RIGHT($K52,2),BD52,0)) -> 0 | CA52: =+IF($K52="Ongoing",BE52,IF(RIGHT($K52,2)=RIGHT(CA$39,2),SUM($AV52:BE52),0)+IF(RIGHT(CA$39,2)>RIGHT($K52,2),BE52,0)) -> 0 | CC52: =+O52*KeyAssumptionsPriceControl_FO!AC$15 -> 0 | CD52: =+P52*KeyAssumptionsPriceControl_FO!AD$15 -> 0 | CE52: =+Q52*KeyAssumptionsPriceControl_FO!AE$15 -> 0 | CF52: =+R52*KeyAssumptionsPriceControl_FO!AF$15 -> 0 | CG52: =+S52*KeyAssumptionsPriceControl_FO!AG$15 -> 0 | CH52: =+T52*KeyAssumptionsPriceControl_FO!AH$15 -> 0 | CI52: =+U52*KeyAssumptionsPriceControl_FO!AI$15 -> 0 | CJ52: =+V52*KeyAssumptionsPriceControl_FO!AJ$15 -> 0 | CK52: =+W52*KeyAssumptionsPriceControl_FO!AK$15 -> 0 | CL52: =+X52*KeyAssumptionsPriceControl_FO!AL$15 -> 0 | CN52: 0 | CO52: 0 | CP52: 0 | CQ52: 0 | CR52: 0 | CS52: 0 | CT52: 0 | CU52: 0 | CV52: 0 | CW52: 0
C53: ='[3]Capex_FO input'!C53 -> 0 | AV53: 0 | AW53: 0 | AX53: 0 | AY53: 0 | AZ53: 0 | BA53: 0 | BB53: 0 | BC53: 0 | BD53: 0 | BE53: 0 | BG53: 0 | BH53: 0 | BI53: 0 | BJ53: 0 | BK53: 0 | BL53: 0 | BM53: 0 | BN53: 0 | BO53: 0 | BP53: 0 | BR53: =+IF($K53="Ongoing",AV53,IF(RIGHT($K53,2)=RIGHT(BR$39,2),SUM($AV53:AV53),0)+IF(RIGHT(BR$39,2)>RIGHT($K53,2),AV53,0)) -> 0 | BS53: =+IF($K53="Ongoing",AW53,IF(RIGHT($K53,2)=RIGHT(BS$39,2),SUM($AV53:AW53),0)+IF(RIGHT(BS$39,2)>RIGHT($K53,2),AW53,0)) -> 0 | BT53: =+IF($K53="Ongoing",AX53,IF(RIGHT($K53,2)=RIGHT(BT$39,2),SUM($AV53:AX53),0)+IF(RIGHT(BT$39,2)>RIGHT($K53,2),AX53,0)) -> 0 | BU53: =+IF($K53="Ongoing",AY53,IF(RIGHT($K53,2)=RIGHT(BU$39,2),SUM($AV53:AY53),0)+IF(RIGHT(BU$39,2)>RIGHT($K53,2),AY53,0)) -> 0 | BV53: =+IF($K53="Ongoing",AZ53,IF(RIGHT($K53,2)=RIGHT(BV$39,2),SUM($AV53:AZ53),0)+IF(RIGHT(BV$39,2)>RIGHT($K53,2),AZ53,0)) -> 0 | BW53: =+IF($K53="Ongoing",BA53,IF(RIGHT($K53,2)=RIGHT(BW$39,2),SUM($AV53:BA53),0)+IF(RIGHT(BW$39,2)>RIGHT($K53,2),BA53,0)) -> 0 | BX53: =+IF($K53="Ongoing",BB53,IF(RIGHT($K53,2)=RIGHT(BX$39,2),SUM($AV53:BB53),0)+IF(RIGHT(BX$39,2)>RIGHT($K53,2),BB53,0)) -> 0 | BY53: =+IF($K53="Ongoing",BC53,IF(RIGHT($K53,2)=RIGHT(BY$39,2),SUM($AV53:BC53),0)+IF(RIGHT(BY$39,2)>RIGHT($K53,2),BC53,0)) -> 0 | BZ53: =+IF($K53="Ongoing",BD53,IF(RIGHT($K53,2)=RIGHT(BZ$39,2),SUM($AV53:BD53),0)+IF(RIGHT(BZ$39,2)>RIGHT($K53,2),BD53,0)) -> 0 | CA53: =+IF($K53="Ongoing",BE53,IF(RIGHT($K53,2)=RIGHT(CA$39,2),SUM($AV53:BE53),0)+IF(RIGHT(CA$39,2)>RIGHT($K53,2),BE53,0)) -> 0 | CC53: =+O53*KeyAssumptionsPriceControl_FO!AC$15 -> 0 | CD53: =+P53*KeyAssumptionsPriceControl_FO!AD$15 -> 0 | CE53: =+Q53*KeyAssumptionsPriceControl_FO!AE$15 -> 0 | CF53: =+R53*KeyAssumptionsPriceControl_FO!AF$15 -> 0 | CG53: =+S53*KeyAssumptionsPriceControl_FO!AG$15 -> 0 | CH53: =+T53*KeyAssumptionsPriceControl_FO!AH$15 -> 0 | CI53: =+U53*KeyAssumptionsPriceControl_FO!AI$15 -> 0 | CJ53: =+V53*KeyAssumptionsPriceControl_FO!AJ$15 -> 0 | CK53: =+W53*KeyAssumptionsPriceControl_FO!AK$15 -> 0 | CL53: =+X53*KeyAssumptionsPriceControl_FO!AL$15 -> 0 | CN53: 0 | CO53: 0 | CP53: 0 | CQ53: 0 | CR53: 0 | CS53: 0 | CT53: 0 | CU53: 0 | CV53: 0 | CW53: 0
C54: ='[3]Capex_FO input'!C54 -> 0 | AV54: 0 | AW54: 0 | AX54: 0 | AY54: 0 | AZ54: 0 | BA54: 0 | BB54: 0 | BC54: 0 | BD54: 0 | BE54: 0 | BG54: 0 | BH54: 0 | BI54: 0 | BJ54: 0 | BK54: 0 | BL54: 0 | BM54: 0 | BN54: 0 | BO54: 0 | BP54: 0 | BR54: =+IF($K54="Ongoing",AV54,IF(RIGHT($K54,2)=RIGHT(BR$39,2),SUM($AV54:AV54),0)+IF(RIGHT(BR$39,2)>RIGHT($K54,2),AV54,0)) -> 0 | BS54: =+IF($K54="Ongoing",AW54,IF(RIGHT($K54,2)=RIGHT(BS$39,2),SUM($AV54:AW54),0)+IF(RIGHT(BS$39,2)>RIGHT($K54,2),AW54,0)) -> 0 | BT54: =+IF($K54="Ongoing",AX54,IF(RIGHT($K54,2)=RIGHT(BT$39,2),SUM($AV54:AX54),0)+IF(RIGHT(BT$39,2)>RIGHT($K54,2),AX54,0)) -> 0 | BU54: =+IF($K54="Ongoing",AY54,IF(RIGHT($K54,2)=RIGHT(BU$39,2),SUM($AV54:AY54),0)+IF(RIGHT(BU$39,2)>RIGHT($K54,2),AY54,0)) -> 0 | BV54: =+IF($K54="Ongoing",AZ54,IF(RIGHT($K54,2)=RIGHT(BV$39,2),SUM($AV54:AZ54),0)+IF(RIGHT(BV$39,2)>RIGHT($K54,2),AZ54,0)) -> 0 | BW54: =+IF($K54="Ongoing",BA54,IF(RIGHT($K54,2)=RIGHT(BW$39,2),SUM($AV54:BA54),0)+IF(RIGHT(BW$39,2)>RIGHT($K54,2),BA54,0)) -> 0 | BX54: =+IF($K54="Ongoing",BB54,IF(RIGHT($K54,2)=RIGHT(BX$39,2),SUM($AV54:BB54),0)+IF(RIGHT(BX$39,2)>RIGHT($K54,2),BB54,0)) -> 0 | BY54: =+IF($K54="Ongoing",BC54,IF(RIGHT($K54,2)=RIGHT(BY$39,2),SUM($AV54:BC54),0)+IF(RIGHT(BY$39,2)>RIGHT($K54,2),BC54,0)) -> 0 | BZ54: =+IF($K54="Ongoing",BD54,IF(RIGHT($K54,2)=RIGHT(BZ$39,2),SUM($AV54:BD54),0)+IF(RIGHT(BZ$39,2)>RIGHT($K54,2),BD54,0)) -> 0 | CA54: =+IF($K54="Ongoing",BE54,IF(RIGHT($K54,2)=RIGHT(CA$39,2),SUM($AV54:BE54),0)+IF(RIGHT(CA$39,2)>RIGHT($K54,2),BE54,0)) -> 0 | CC54: =+O54*KeyAssumptionsPriceControl_FO!AC$15 -> 0 | CD54: =+P54*KeyAssumptionsPriceControl_FO!AD$15 -> 0 | CE54: =+Q54*KeyAssumptionsPriceControl_FO!AE$15 -> 0 | CF54: =+R54*KeyAssumptionsPriceControl_FO!AF$15 -> 0 | CG54: =+S54*KeyAssumptionsPriceControl_FO!AG$15 -> 0 | CH54: =+T54*KeyAssumptionsPriceControl_FO!AH$15 -> 0 | CI54: =+U54*KeyAssumptionsPriceControl_FO!AI$15 -> 0 | CJ54: =+V54*KeyAssumptionsPriceControl_FO!AJ$15 -> 0 | CK54: =+W54*KeyAssumptionsPriceControl_FO!AK$15 -> 0 | CL54: =+X54*KeyAssumptionsPriceControl_FO!AL$15 -> 0 | CN54: 0 | CO54: 0 | CP54: 0 | CQ54: 0 | CR54: 0 | CS54: 0 | CT54: 0 | CU54: 0 | CV54: 0 | CW54: 0
C55: ='[3]Capex_FO input'!C55 -> 0 | AV55: 0 | AW55: 0 | AX55: 0 | AY55: 0 | AZ55: 0 | BA55: 0 | BB55: 0 | BC55: 0 | BD55: 0 | BE55: 0 | BG55: 0 | BH55: 0 | BI55: 0 | BJ55: 0 | BK55: 0 | BL55: 0 | BM55: 0 | BN55: 0 | BO55: 0 | BP55: 0 | BR55: =+IF($K55="Ongoing",AV55,IF(RIGHT($K55,2)=RIGHT(BR$39,2),SUM($AV55:AV55),0)+IF(RIGHT(BR$39,2)>RIGHT($K55,2),AV55,0)) -> 0 | BS55: =+IF($K55="Ongoing",AW55,IF(RIGHT($K55,2)=RIGHT(BS$39,2),SUM($AV55:AW55),0)+IF(RIGHT(BS$39,2)>RIGHT($K55,2),AW55,0)) -> 0 | BT55: =+IF($K55="Ongoing",AX55,IF(RIGHT($K55,2)=RIGHT(BT$39,2),SUM($AV55:AX55),0)+IF(RIGHT(BT$39,2)>RIGHT($K55,2),AX55,0)) -> 0 | BU55: =+IF($K55="Ongoing",AY55,IF(RIGHT($K55,2)=RIGHT(BU$39,2),SUM($AV55:AY55),0)+IF(RIGHT(BU$39,2)>RIGHT($K55,2),AY55,0)) -> 0 | BV55: =+IF($K55="Ongoing",AZ55,IF(RIGHT($K55,2)=RIGHT(BV$39,2),SUM($AV55:AZ55),0)+IF(RIGHT(BV$39,2)>RIGHT($K55,2),AZ55,0)) -> 0 | BW55: =+IF($K55="Ongoing",BA55,IF(RIGHT($K55,2)=RIGHT(BW$39,2),SUM($AV55:BA55),0)+IF(RIGHT(BW$39,2)>RIGHT($K55,2),BA55,0)) -> 0 | BX55: =+IF($K55="Ongoing",BB55,IF(RIGHT($K55,2)=RIGHT(BX$39,2),SUM($AV55:BB55),0)+IF(RIGHT(BX$39,2)>RIGHT($K55,2),BB55,0)) -> 0 | BY55: =+IF($K55="Ongoing",BC55,IF(RIGHT($K55,2)=RIGHT(BY$39,2),SUM($AV55:BC55),0)+IF(RIGHT(BY$39,2)>RIGHT($K55,2),BC55,0)) -> 0 | BZ55: =+IF($K55="Ongoing",BD55,IF(RIGHT($K55,2)=RIGHT(BZ$39,2),SUM($AV55:BD55),0)+IF(RIGHT(BZ$39,2)>RIGHT($K55,2),BD55,0)) -> 0 | CA55: =+IF($K55="Ongoing",BE55,IF(RIGHT($K55,2)=RIGHT(CA$39,2),SUM($AV55:BE55),0)+IF(RIGHT(CA$39,2)>RIGHT($K55,2),BE55,0)) -> 0 | CC55: =+O55*KeyAssumptionsPriceControl_FO!AC$15 -> 0 | CD55: =+P55*KeyAssumptionsPriceControl_FO!AD$15 -> 0 | CE55: =+Q55*KeyAssumptionsPriceControl_FO!AE$15 -> 0 | CF55: =+R55*KeyAssumptionsPriceControl_FO!AF$15 -> 0 | CG55: =+S55*KeyAssumptionsPriceControl_FO!AG$15 -> 0 | CH55: =+T55*KeyAssumptionsPriceControl_FO!AH$15 -> 0 | CI55: =+U55*KeyAssumptionsPriceControl_FO!AI$15 -> 0 | CJ55: =+V55*KeyAssumptionsPriceControl_FO!AJ$15 -> 0 | CK55: =+W55*KeyAssumptionsPriceControl_FO!AK$15 -> 0 | CL55: =+X55*KeyAssumptionsPriceControl_FO!AL$15 -> 0 | CN55: 0 | CO55: 0 | CP55: 0 | CQ55: 0 | CR55: 0 | CS55: 0 | CT55: 0 | CU55: 0 | CV55: 0 | CW55: 0
C56: ='[3]Capex_FO input'!C56 -> 0 | AV56: 0 | AW56: 0 | AX56: 0 | AY56: 0 | AZ56: 0 | BA56: 0 | BB56: 0 | BC56: 0 | BD56: 0 | BE56: 0 | BG56: 0 | BH56: 0 | BI56: 0 | BJ56: 0 | BK56: 0 | BL56: 0 | BM56: 0 | BN56: 0 | BO56: 0 | BP56: 0 | BR56: =+IF($K56="Ongoing",AV56,IF(RIGHT($K56,2)=RIGHT(BR$39,2),SUM($AV56:AV56),0)+IF(RIGHT(BR$39,2)>RIGHT($K56,2),AV56,0)) -> 0 | BS56: =+IF($K56="Ongoing",AW56,IF(RIGHT($K56,2)=RIGHT(BS$39,2),SUM($AV56:AW56),0)+IF(RIGHT(BS$39,2)>RIGHT($K56,2),AW56,0)) -> 0 | BT56: =+IF($K56="Ongoing",AX56,IF(RIGHT($K56,2)=RIGHT(BT$39,2),SUM($AV56:AX56),0)+IF(RIGHT(BT$39,2)>RIGHT($K56,2),AX56,0)) -> 0 | BU56: =+IF($K56="Ongoing",AY56,IF(RIGHT($K56,2)=RIGHT(BU$39,2),SUM($AV56:AY56),0)+IF(RIGHT(BU$39,2)>RIGHT($K56,2),AY56,0)) -> 0 | BV56: =+IF($K56="Ongoing",AZ56,IF(RIGHT($K56,2)=RIGHT(BV$39,2),SUM($AV56:AZ56),0)+IF(RIGHT(BV$39,2)>RIGHT($K56,2),AZ56,0)) -> 0 | BW56: =+IF($K56="Ongoing",BA56,IF(RIGHT($K56,2)=RIGHT(BW$39,2),SUM($AV56:BA56),0)+IF(RIGHT(BW$39,2)>RIGHT($K56,2),BA56,0)) -> 0 | BX56: =+IF($K56="Ongoing",BB56,IF(RIGHT($K56,2)=RIGHT(BX$39,2),SUM($AV56:BB56),0)+IF(RIGHT(BX$39,2)>RIGHT($K56,2),BB56,0)) -> 0 | BY56: =+IF($K56="Ongoing",BC56,IF(RIGHT($K56,2)=RIGHT(BY$39,2),SUM($AV56:BC56),0)+IF(RIGHT(BY$39,2)>RIGHT($K56,2),BC56,0)) -> 0 | BZ56: =+IF($K56="Ongoing",BD56,IF(RIGHT($K56,2)=RIGHT(BZ$39,2),SUM($AV56:BD56),0)+IF(RIGHT(BZ$39,2)>RIGHT($K56,2),BD56,0)) -> 0 | CA56: =+IF($K56="Ongoing",BE56,IF(RIGHT($K56,2)=RIGHT(CA$39,2),SUM($AV56:BE56),0)+IF(RIGHT(CA$39,2)>RIGHT($K56,2),BE56,0)) -> 0 | CC56: =+O56*KeyAssumptionsPriceControl_FO!AC$15 -> 0 | CD56: =+P56*KeyAssumptionsPriceControl_FO!AD$15 -> 0 | CE56: =+Q56*KeyAssumptionsPriceControl_FO!AE$15 -> 0 | CF56: =+R56*KeyAssumptionsPriceControl_FO!AF$15 -> 0 | CG56: =+S56*KeyAssumptionsPriceControl_FO!AG$15 -> 0 | CH56: =+T56*KeyAssumptionsPriceControl_FO!AH$15 -> 0 | CI56: =+U56*KeyAssumptionsPriceControl_FO!AI$15 -> 0 | CJ56: =+V56*KeyAssumptionsPriceControl_FO!AJ$15 -> 0 | CK56: =+W56*KeyAssumptionsPriceControl_FO!AK$15 -> 0 | CL56: =+X56*KeyAssumptionsPriceControl_FO!AL$15 -> 0 | CN56: 0 | CO56: 0 | CP56: 0 | CQ56: 0 | CR56: 0 | CS56: 0 | CT56: 0 | CU56: 0 | CV56: 0 | CW56: 0
C58: ='[3]Capex_FO input'!C58 -> [Capex Item - Significant Project / Capital Program / Other Capex] | D58: ='[3]Capex_FO input'!D53 -> 0 | E58: ='[3]Capex_FO input'!E58 -> [Service] | F58: ='[3]Capex_FO input'!F58 -> [Major Cost Driver] | G58: ='[3]Capex_FO input'!G58 -> [Asset category] | H58: ='[3]Capex_FO input'!H58 -> [Capital type] | I58: ='[3]Capex_FO input'!I58 -> 0 | J58: ='[3]Capex_FO input'!J58 -> Straight line | K58: ='[3]Capex_FO input'!K58 -> [Year finalised?] | L58: ='[3]Capex_FO input'!L58 -> 0 | M58: ='[3]Capex_FO input'!M58 -> 0 | O58: ='[3]Capex_FO input'!O58 -> 0 | P58: ='[3]Capex_FO input'!P58 -> 0 | Q58: ='[3]Capex_FO input'!Q58 -> 0 | R58: ='[3]Capex_FO input'!R58 -> 0 | S58: ='[3]Capex_FO input'!S58 -> 0 | T58: ='[3]Capex_FO input'!T58 -> 0 | U58: ='[3]Capex_FO input'!U58 -> 0 | V58: ='[3]Capex_FO input'!V58 -> 0 | W58: ='[3]Capex_FO input'!W58 -> 0 | X58: ='[3]Capex_FO input'!X58 -> 0 | Z58: ='[3]Capex_FO input'!Z58 -> 0 | AA58: ='[3]Capex_FO input'!AA58 -> 0 | AB58: ='[3]Capex_FO input'!AB58 -> 0 | AC58: ='[3]Capex_FO input'!AC58 -> 0 | AD58: ='[3]Capex_FO input'!AD58 -> 0 | AE58: ='[3]Capex_FO input'!AE58 -> 0 | AF58: ='[3]Capex_FO input'!AF58 -> 0 | AG58: ='[3]Capex_FO input'!AG58 -> 0 | AH58: ='[3]Capex_FO input'!AH58 -> 0 | AI58: ='[3]Capex_FO input'!AI58 -> 0 | AK58: ='[3]Capex_FO input'!AK58 -> 0 | AL58: ='[3]Capex_FO input'!AL58 -> 0 | AM58: ='[3]Capex_FO input'!AM58 -> 0 | AN58: ='[3]Capex_FO input'!AN58 -> 0 | AO58: ='[3]Capex_FO input'!AO58 -> 0 | AP58: ='[3]Capex_FO input'!AP58 -> 0 | AQ58: ='[3]Capex_FO input'!AQ58 -> 0 | AR58: ='[3]Capex_FO input'!AR58 -> 0 | AS58: ='[3]Capex_FO input'!AS58 -> 0 | AT58: ='[3]Capex_FO input'!AT58 -> 0 | AV58: 0 | AW58: 0 | AX58: 0 | AY58: 0 | AZ58: 0 | BA58: 0 | BB58: 0 | BC58: 0 | BD58: 0 | BE58: 0 | BG58: 0 | BH58: 0 | BI58: 0 | BJ58: 0 | BK58: 0 | BL58: 0 | BM58: 0 | BN58: 0 | BO58: 0 | BP58: 0 | BR58: =+IF($K58="Ongoing",AV58,IF(RIGHT($K58,2)=RIGHT(BR$39,2),SUM($AV58:AV58),0)+IF(RIGHT(BR$39,2)>RIGHT($K58,2),AV58,0)) -> 0 | BS58: =+IF($K58="Ongoing",AW58,IF(RIGHT($K58,2)=RIGHT(BS$39,2),SUM($AV58:AW58),0)+IF(RIGHT(BS$39,2)>RIGHT($K58,2),AW58,0)) -> 0 | BT58: =+IF($K58="Ongoing",AX58,IF(RIGHT($K58,2)=RIGHT(BT$39,2),SUM($AV58:AX58),0)+IF(RIGHT(BT$39,2)>RIGHT($K58,2),AX58,0)) -> 0 | BU58: =+IF($K58="Ongoing",AY58,IF(RIGHT($K58,2)=RIGHT(BU$39,2),SUM($AV58:AY58),0)+IF(RIGHT(BU$39,2)>RIGHT($K58,2),AY58,0)) -> 0 | BV58: =+IF($K58="Ongoing",AZ58,IF(RIGHT($K58,2)=RIGHT(BV$39,2),SUM($AV58:AZ58),0)+IF(RIGHT(BV$39,2)>RIGHT($K58,2),AZ58,0)) -> 0 | BW58: =+IF($K58="Ongoing",BA58,IF(RIGHT($K58,2)=RIGHT(BW$39,2),SUM($AV58:BA58),0)+IF(RIGHT(BW$39,2)>RIGHT($K58,2),BA58,0)) -> 0 | BX58: =+IF($K58="Ongoing",BB58,IF(RIGHT($K58,2)=RIGHT(BX$39,2),SUM($AV58:BB58),0)+IF(RIGHT(BX$39,2)>RIGHT($K58,2),BB58,0)) -> 0 | BY58: =+IF($K58="Ongoing",BC58,IF(RIGHT($K58,2)=RIGHT(BY$39,2),SUM($AV58:BC58),0)+IF(RIGHT(BY$39,2)>RIGHT($K58,2),BC58,0)) -> 0 | BZ58: =+IF($K58="Ongoing",BD58,IF(RIGHT($K58,2)=RIGHT(BZ$39,2),SUM($AV58:BD58),0)+IF(RIGHT(BZ$39,2)>RIGHT($K58,2),BD58,0)) -> 0 | CA58: =+IF($K58="Ongoing",BE58,IF(RIGHT($K58,2)=RIGHT(CA$39,2),SUM($AV58:BE58),0)+IF(RIGHT(CA$39,2)>RIGHT($K58,2),BE58,0)) -> 0 | CC58: =+O58*KeyAssumptionsPriceControl_FO!AC$15 -> 0 | CD58: =+P58*KeyAssumptionsPriceControl_FO!AD$15 -> 0 | CE58: =+Q58*KeyAssumptionsPriceControl_FO!AE$15 -> 0 | CF58: =+R58*KeyAssumptionsPriceControl_FO!AF$15 -> 0 | CG58: =+S58*KeyAssumptionsPriceControl_FO!AG$15 -> 0 | CH58: =+T58*KeyAssumptionsPriceControl_FO!AH$15 -> 0 | CI58: =+U58*KeyAssumptionsPriceControl_FO!AI$15 -> 0 | CJ58: =+V58*KeyAssumptionsPriceControl_FO!AJ$15 -> 0 | CK58: =+W58*KeyAssumptionsPriceControl_FO!AK$15 -> 0 | CL58: =+X58*KeyAssumptionsPriceControl_FO!AL$15 -> 0 | CN58: 0 | CO58: 0 | CP58: 0 | CQ58: 0 | CR58: 0 | CS58: 0 | CT58: 0 | CU58: 0 | CV58: 0 | CW58: 0
C59: ='[3]Capex_FO input'!C59 -> Ongoing capital programs | D59: ='[3]Capex_FO input'!D54 -> 0 | E59: ='[3]Capex_FO input'!E59 -> 0 | F59: ='[3]Capex_FO input'!F59 -> 0 | G59: ='[3]Capex_FO input'!G59 -> 0 | H59: ='[3]Capex_FO input'!H59 -> 0 | I59: ='[3]Capex_FO input'!I59 -> 0 | J59: ='[3]Capex_FO input'!J59 -> Straight line | K59: ='[3]Capex_FO input'!K59 -> 0 | L59: ='[3]Capex_FO input'!L59 -> 0 | M59: ='[3]Capex_FO input'!M59 -> 0 | O59: ='[3]Capex_FO input'!O59 -> 0 | P59: ='[3]Capex_FO input'!P59 -> 0 | Q59: ='[3]Capex_FO input'!Q59 -> 0 | R59: ='[3]Capex_FO input'!R59 -> 0 | S59: ='[3]Capex_FO input'!S59 -> 0 | T59: ='[3]Capex_FO input'!T59 -> 0 | U59: ='[3]Capex_FO input'!U59 -> 0 | V59: ='[3]Capex_FO input'!V59 -> 0 | W59: ='[3]Capex_FO input'!W59 -> 0 | X59: ='[3]Capex_FO input'!X59 -> 0 | Z59: ='[3]Capex_FO input'!Z59 -> 0 | AA59: ='[3]Capex_FO input'!AA59 -> 0 | AB59: ='[3]Capex_FO input'!AB59 -> 0 | AC59: ='[3]Capex_FO input'!AC59 -> 0 | AD59: ='[3]Capex_FO input'!AD59 -> 0 | AE59: ='[3]Capex_FO input'!AE59 -> 0 | AF59: ='[3]Capex_FO input'!AF59 -> 0 | AG59: ='[3]Capex_FO input'!AG59 -> 0 | AH59: ='[3]Capex_FO input'!AH59 -> 0 | AI59: ='[3]Capex_FO input'!AI59 -> 0 | AK59: ='[3]Capex_FO input'!AK59 -> 0 | AL59: ='[3]Capex_FO input'!AL59 -> 0 | AM59: ='[3]Capex_FO input'!AM59 -> 0 | AN59: ='[3]Capex_FO input'!AN59 -> 0 | AO59: ='[3]Capex_FO input'!AO59 -> 0 | AP59: ='[3]Capex_FO input'!AP59 -> 0 | AQ59: ='[3]Capex_FO input'!AQ59 -> 0 | AR59: ='[3]Capex_FO input'!AR59 -> 0 | AS59: ='[3]Capex_FO input'!AS59 -> 0 | AT59: ='[3]Capex_FO input'!AT59 -> 0 | AV59: 0 | AW59: 0 | AX59: 0 | AY59: 0 | AZ59: 0 | BA59: 0 | BB59: 0 | BC59: 0 | BD59: 0 | BE59: 0 | BG59: 0 | BH59: 0 | BI59: 0 | BJ59: 0 | BK59: 0 | BL59: 0 | BM59: 0 | BN59: 0 | BO59: 0 | BP59: 0 | BR59: =+IF($K59="Ongoing",AV59,IF(RIGHT($K59,2)=RIGHT(BR$39,2),SUM($AV59:AV59),0)+IF(RIGHT(BR$39,2)>RIGHT($K59,2),AV59,0)) -> 0 | BS59: =+IF($K59="Ongoing",AW59,IF(RIGHT($K59,2)=RIGHT(BS$39,2),SUM($AV59:AW59),0)+IF(RIGHT(BS$39,2)>RIGHT($K59,2),AW59,0)) -> 0 | BT59: =+IF($K59="Ongoing",AX59,IF(RIGHT($K59,2)=RIGHT(BT$39,2),SUM($AV59:AX59),0)+IF(RIGHT(BT$39,2)>RIGHT($K59,2),AX59,0)) -> 0 | BU59: =+IF($K59="Ongoing",AY59,IF(RIGHT($K59,2)=RIGHT(BU$39,2),SUM($AV59:AY59),0)+IF(RIGHT(BU$39,2)>RIGHT($K59,2),AY59,0)) -> 0 | BV59: =+IF($K59="Ongoing",AZ59,IF(RIGHT($K59,2)=RIGHT(BV$39,2),SUM($AV59:AZ59),0)+IF(RIGHT(BV$39,2)>RIGHT($K59,2),AZ59,0)) -> 0 | BW59: =+IF($K59="Ongoing",BA59,IF(RIGHT($K59,2)=RIGHT(BW$39,2),SUM($AV59:BA59),0)+IF(RIGHT(BW$39,2)>RIGHT($K59,2),BA59,0)) -> 0 | BX59: =+IF($K59="Ongoing",BB59,IF(RIGHT($K59,2)=RIGHT(BX$39,2),SUM($AV59:BB59),0)+IF(RIGHT(BX$39,2)>RIGHT($K59,2),BB59,0)) -> 0 | BY59: =+IF($K59="Ongoing",BC59,IF(RIGHT($K59,2)=RIGHT(BY$39,2),SUM($AV59:BC59),0)+IF(RIGHT(BY$39,2)>RIGHT($K59,2),BC59,0)) -> 0 | BZ59: =+IF($K59="Ongoing",BD59,IF(RIGHT($K59,2)=RIGHT(BZ$39,2),SUM($AV59:BD59),0)+IF(RIGHT(BZ$39,2)>RIGHT($K59,2),BD59,0)) -> 0 | CA59: =+IF($K59="Ongoing",BE59,IF(RIGHT($K59,2)=RIGHT(CA$39,2),SUM($AV59:BE59),0)+IF(RIGHT(CA$39,2)>RIGHT($K59,2),BE59,0)) -> 0 | CC59: =+O59*KeyAssumptionsPriceControl_FO!AC$15 -> 0 | CD59: =+P59*KeyAssumptionsPriceControl_FO!AD$15 -> 0 | CE59: =+Q59*KeyAssumptionsPriceControl_FO!AE$15 -> 0 | CF59: =+R59*KeyAssumptionsPriceControl_FO!AF$15 -> 0 | CG59: =+S59*KeyAssumptionsPriceControl_FO!AG$15 -> 0 | CH59: =+T59*KeyAssumptionsPriceControl_FO!AH$15 -> 0 | CI59: =+U59*KeyAssumptionsPriceControl_FO!AI$15 -> 0 | CJ59: =+V59*KeyAssumptionsPriceControl_FO!AJ$15 -> 0 | CK59: =+W59*KeyAssumptionsPriceControl_FO!AK$15 -> 0 | CL59: =+X59*KeyAssumptionsPriceControl_FO!AL$15 -> 0 | CN59: 0 | CO59: 0 | CP59: 0 | CQ59: 0 | CR59: 0 | CS59: 0 | CT59: 0 | CU59: 0 | CV59: 0 | CW59: 0
C60: ='[3]Capex_FO input'!C60 -> ALL SITES Land Development | D60: ='[3]Capex_FO input'!D55 -> 0 | E60: ='[3]Capex_FO input'!E60 -> Water | F60: ='[3]Capex_FO input'!F60 -> Growth | G60: ='[3]Capex_FO input'!G60 -> Pipelines/network | H60: ='[3]Capex_FO input'!H60 -> Capital programs / Allocation | I60: ='[3]Capex_FO input'!I60 -> 0 | J60: ='[3]Capex_FO input'!J60 -> Straight line | K60: ='[3]Capex_FO input'!K60 -> Ongoing | L60: ='[3]Capex_FO input'!L60 -> 80 | M60: ='[3]Capex_FO input'!M60 -> 22.22222222 | O60: ='[3]Capex_FO input'!O60 -> 0.15 | P60: ='[3]Capex_FO input'!P60 -> 0.15 | Q60: ='[3]Capex_FO input'!Q60 -> 0.15 | R60: ='[3]Capex_FO input'!R60 -> 0.15 | S60: ='[3]Capex_FO input'!S60 -> 0.15 | T60: ='[3]Capex_FO input'!T60 -> 0.158 | U60: ='[3]Capex_FO input'!U60 -> 0.158 | V60: ='[3]Capex_FO input'!V60 -> 0.158 | W60: ='[3]Capex_FO input'!W60 -> 0.158 | X60: ='[3]Capex_FO input'!X60 -> 0.158 | Z60: ='[3]Capex_FO input'!Z60 -> 0 | AA60: ='[3]Capex_FO input'!AA60 -> 0 | AB60: ='[3]Capex_FO input'!AB60 -> 0 | AC60: ='[3]Capex_FO input'!AC60 -> 0 | AD60: ='[3]Capex_FO input'!AD60 -> 0 | AE60: ='[3]Capex_FO input'!AE60 -> 0 | AF60: ='[3]Capex_FO input'!AF60 -> 0 | AG60: ='[3]Capex_FO input'!AG60 -> 0 | AH60: ='[3]Capex_FO input'!AH60 -> 0 | AI60: ='[3]Capex_FO input'!AI60 -> 0 | AK60: ='[3]Capex_FO input'!AK60 -> 0 | AL60: ='[3]Capex_FO input'!AL60 -> 0 | AM60: ='[3]Capex_FO input'!AM60 -> 0 | AN60: ='[3]Capex_FO input'!AN60 -> 0 | AO60: ='[3]Capex_FO input'!AO60 -> 0 | AP60: ='[3]Capex_FO input'!AP60 -> 0 | AQ60: ='[3]Capex_FO input'!AQ60 -> 0 | AR60: ='[3]Capex_FO input'!AR60 -> 0 | AS60: ='[3]Capex_FO input'!AS60 -> 0 | AT60: ='[3]Capex_FO input'!AT60 -> 0 | AV60: =+O60-Z60-AK60 -> 0.15 | AW60: =+P60-AA60-AL60 -> 0.15 | AX60: =+Q60-AB60-AM60 -> 0.15 | AY60: =+R60-AC60-AN60 -> 0.15 | AZ60: =+S60-AD60-AO60 -> 0.15 | BA60: =+T60-AE60-AP60 -> 0.158 | BB60: =+U60-AF60-AQ60 -> 0.158 | BC60: =+V60-AG60-AR60 -> 0.158 | BD60: =+W60-AH60-AS60 -> 0.158 | BE60: =+X60-AI60-AT60 -> 0.158 | BG60: =IF($L60=0,0, IF($L60<=0.5,BR60, IF($J60="straight line", IF((LEFT(BG$39,4)*1)-INT($L60)<LEFT($BG$39,4)*1,0,((OFFSET(BR60,0,-INT($L60+0.5),1,1))/$L60)*(IF($L60-INT($L60)>0.5,$L60-0.5-INT($L60),IF($L60-INT($L60)<=0.5,$L60-0.5-INT($L60)+1,0)))) +BR60/$L60*0.5, IF($J60="Declining Balance",-$BG$38,0)))) -> 0.0009375 | BH60: =IF($L60=0,0, IF($L60<=0.5,BS60, IF(AND($J60="straight line",$L60<1.51),(BR60-((BR60/$L60)*0.5))+BS60/$L60*0.5, IF($J60="straight line", IF((LEFT(BH$39,4)*1)-INT($L60)<LEFT($BG$39,4)*1,0,((OFFSET(BS60,0,-INT($L60+0.5),1,1))/$L60)*(IF($L60-INT($L60)>0.5,$L60-0.5-INT($L60),IF($L60-INT($L60)<=0.5,$L60-0.5-INT($L60)+1,0)))) +BS60/$L60*0.5 +SUM(OFFSET(BS60,0,MAX(-INT($L60+(0.5-(10^-12))),-BH$40)+1,1,MIN(INT($L60+(0.5-(10^-12))),BH$40)-1))*1/$L60, IF($J60="Declining Balance",-$BG$38,0))))) -> 0.0028125 | BI60: =IF($L60=0,0, IF($L60<=0.5,BT60, IF(AND($J60="straight line",$L60<1.51),(BS60-((BS60/$L60)*0.5))+BT60/$L60*0.5, IF($J60="straight line", IF((LEFT(BI$39,4)*1)-INT($L60)<LEFT($BG$39,4)*1,0,((OFFSET(BT60,0,-INT($L60+0.5),1,1))/$L60)*(IF($L60-INT($L60)>0.5,$L60-0.5-INT($L60),IF($L60-INT($L60)<=0.5,$L60-0.5-INT($L60)+1,0)))) +BT60/$L60*0.5 +SUM(OFFSET(BT60,0,MAX(-INT($L60+(0.5-(10^-12))),-BI$40)+1,1,MIN(INT($L60+(0.5-(10^-12))),BI$40)-1))*1/$L60, IF($J60="Declining Balance",-$BG$38,0))))) -> 0.0046875 | BJ60: =IF($L60=0,0, IF($L60<=0.5,BU60, IF(AND($J60="straight line",$L60<1.51),(BT60-((BT60/$L60)*0.5))+BU60/$L60*0.5, IF($J60="straight line", IF((LEFT(BJ$39,4)*1)-INT($L60)<LEFT($BG$39,4)*1,0,((OFFSET(BU60,0,-INT($L60+0.5),1,1))/$L60)*(IF($L60-INT($L60)>0.5,$L60-0.5-INT($L60),IF($L60-INT($L60)<=0.5,$L60-0.5-INT($L60)+1,0)))) +BU60/$L60*0.5 +SUM(OFFSET(BU60,0,MAX(-INT($L60+(0.5-(10^-12))),-BJ$40)+1,1,MIN(INT($L60+(0.5-(10^-12))),BJ$40)-1))*1/$L60, IF($J60="Declining Balance",-$BG$38,0))))) -> 0.0065625 | BK60: =IF($L60=0,0, IF($L60<=0.5,BV60, IF(AND($J60="straight line",$L60<1.51),(BU60-((BU60/$L60)*0.5))+BV60/$L60*0.5, IF($J60="straight line", IF((LEFT(BK$39,4)*1)-INT($L60)<LEFT($BG$39,4)*1,0,((OFFSET(BV60,0,-INT($L60+0.5),1,1))/$L60)*(IF($L60-INT($L60)>0.5,$L60-0.5-INT($L60),IF($L60-INT($L60)<=0.5,$L60-0.5-INT($L60)+1,0)))) +BV60/$L60*0.5 +SUM(OFFSET(BV60,0,MAX(-INT($L60+(0.5-(10^-12))),-BK$40)+1,1,MIN(INT($L60+(0.5-(10^-12))),BK$40)-1))*1/$L60, IF($J60="Declining Balance",-$BG$38,0))))) -> 0.0084375 | BL60: =IF($L60=0,0, IF($L60<=0.5,BW60, IF(AND($J60="straight line",$L60<1.51),(BV60-((BV60/$L60)*0.5))+BW60/$L60*0.5, IF($J60="straight line", IF((LEFT(BL$39,4)*1)-INT($L60)<LEFT($BG$39,4)*1,0,((OFFSET(BW60,0,-INT($L60+0.5),1,1))/$L60)*(IF($L60-INT($L60)>0.5,$L60-0.5-INT($L60),IF($L60-INT($L60)<=0.5,$L60-0.5-INT($L60)+1,0)))) +BW60/$L60*0.5 +SUM(OFFSET(BW60,0,MAX(-INT($L60+(0.5-(10^-12))),-BL$40)+1,1,MIN(INT($L60+(0.5-(10^-12))),BL$40)-1))*1/$L60, IF($J60="Declining Balance",-$BG$38,0))))) -> 0.0103625 | BM60: =IF($L60=0,0, IF($L60<=0.5,BX60, IF(AND($J60="straight line",$L60<1.51),(BW60-((BW60/$L60)*0.5))+BX60/$L60*0.5, IF($J60="straight line", IF((LEFT(BM$39,4)*1)-INT($L60)<LEFT($BG$39,4)*1,0,((OFFSET(BX60,0,-INT($L60+0.5),1,1))/$L60)*(IF($L60-INT($L60)>0.5,$L60-0.5-INT($L60),IF($L60-INT($L60)<=0.5,$L60-0.5-INT($L60)+1,0)))) +BX60/$L60*0.5 +SUM(OFFSET(BX60,0,MAX(-INT($L60+(0.5-(10^-12))),-BM$40)+1,1,MIN(INT($L60+(0.5-(10^-12))),BM$40)-1))*1/$L60, IF($J60="Declining Balance",-$BG$38,0))))) -> 0.0123375 | BN60: =IF($L60=0,0, IF($L60<=0.5,BY60, IF(AND($J60="straight line",$L60<1.51),(BX60-((BX60/$L60)*0.5))+BY60/$L60*0.5, IF($J60="straight line", IF((LEFT(BN$39,4)*1)-INT($L60)<LEFT($BG$39,4)*1,0,((OFFSET(BY60,0,-INT($L60+0.5),1,1))/$L60)*(IF($L60-INT($L60)>0.5,$L60-0.5-INT($L60),IF($L60-INT($L60)<=0.5,$L60-0.5-INT($L60)+1,0)))) +BY60/$L60*0.5 +SUM(OFFSET(BY60,0,MAX(-INT($L60+(0.5-(10^-12))),-BN$40)+1,1,MIN(INT($L60+(0.5-(10^-12))),BN$40)-1))*1/$L60, IF($J60="Declining Balance",-$BG$38,0))))) -> 0.0143125 | BO60: =IF($L60=0,0, IF($L60<=0.5,BZ60, IF(AND($J60="straight line",$L60<1.51),(BY60-((BY60/$L60)*0.5))+BZ60/$L60*0.5, IF($J60="straight line", IF((LEFT(BO$39,4)*1)-INT($L60)<LEFT($BG$39,4)*1,0,((OFFSET(BZ60,0,-INT($L60+0.5),1,1))/$L60)*(IF($L60-INT($L60)>0.5,$L60-0.5-INT($L60),IF($L60-INT($L60)<=0.5,$L60-0.5-INT($L60)+1,0)))) +BZ60/$L60*0.5 +SUM(OFFSET(BZ60,0,MAX(-INT($L60+(0.5-(10^-12))),-BO$40)+1,1,MIN(INT($L60+(0.5-(10^-12))),BO$40)-1))*1/$L60, IF($J60="Declining Balance",-$BG$38,0))))) -> 0.0162875 | BP60: =IF($L60=0,0, IF($L60<=0.5,CA60, IF(AND($J60="straight line",$L60<1.51),(BZ60-((BZ60/$L60)*0.5))+CA60/$L60*0.5, IF($J60="straight line", IF((LEFT(BP$39,4)*1)-INT($L60)<LEFT($BG$39,4)*1,0,((OFFSET(CA60,0,-INT($L60+0.5),1,1))/$L60)*(IF($L60-INT($L60)>0.5,$L60-0.5-INT($L60),IF($L60-INT($L60)<=0.5,$L60-0.5-INT($L60)+1,0)))) +CA60/$L60*0.5 +SUM(OFFSET(CA60,0,MAX(-INT($L60+(0.5-(10^-12))),-BP$40)+1,1,MIN(INT($L60+(0.5-(10^-12))),BP$40)-1))*1/$L60, IF($J60="Declining Balance",-$BG$38,0))))) -> 0.0182625 | BR60: =+IF($K60="Ongoing",AV60,IF(RIGHT($K60,2)=RIGHT(BR$39,2),SUM($AV60:AV60),0)+IF(RIGHT(BR$39,2)>RIGHT($K60,2),AV60,0)) -> 0.15 | BS60: =+IF($K60="Ongoing",AW60,IF(RIGHT($K60,2)=RIGHT(BS$39,2),SUM($AV60:AW60),0)+IF(RIGHT(BS$39,2)>RIGHT($K60,2),AW60,0)) -> 0.15 | BT60: =+IF($K60="Ongoing",AX60,IF(RIGHT($K60,2)=RIGHT(BT$39,2),SUM($AV60:AX60),0)+IF(RIGHT(BT$39,2)>RIGHT($K60,2),AX60,0)) -> 0.15 | BU60: =+IF($K60="Ongoing",AY60,IF(RIGHT($K60,2)=RIGHT(BU$39,2),SUM($AV60:AY60),0)+IF(RIGHT(BU$39,2)>RIGHT($K60,2),AY60,0)) -> 0.15 | BV60: =+IF($K60="Ongoing",AZ60,IF(RIGHT($K60,2)=RIGHT(BV$39,2),SUM($AV60:AZ60),0)+IF(RIGHT(BV$39,2)>RIGHT($K60,2),AZ60,0)) -> 0.15 | BW60: =+IF($K60="Ongoing",BA60,IF(RIGHT($K60,2)=RIGHT(BW$39,2),SUM($AV60:BA60),0)+IF(RIGHT(BW$39,2)>RIGHT($K60,2),BA60,0)) -> 0.158 | BX60: =+IF($K60="Ongoing",BB60,IF(RIGHT($K60,2)=RIGHT(BX$39,2),SUM($AV60:BB60),0)+IF(RIGHT(BX$39,2)>RIGHT($K60,2),BB60,0)) -> 0.158 | BY60: =+IF($K60="Ongoing",BC60,IF(RIGHT($K60,2)=RIGHT(BY$39,2),SUM($AV60:BC60),0)+IF(RIGHT(BY$39,2)>RIGHT($K60,2),BC60,0)) -> 0.158 | BZ60: =+IF($K60="Ongoing",BD60,IF(RIGHT($K60,2)=RIGHT(BZ$39,2),SUM($AV60:BD60),0)+IF(RIGHT(BZ$39,2)>RIGHT($K60,2),BD60,0)) -> 0.158 | CA60: =+IF($K60="Ongoing",BE60,IF(RIGHT($K60,2)=RIGHT(CA$39,2),SUM($AV60:BE60),0)+IF(RIGHT(CA$39,2)>RIGHT($K60,2),BE60,0)) -> 0.158 | CC60: =+O60*KeyAssumptionsPriceControl_FO!AC$15 -> 0.1545 | CD60: =+P60*KeyAssumptionsPriceControl_FO!AD$15 -> 0.159135 | CE60: =+Q60*KeyAssumptionsPriceControl_FO!AE$15 -> 0.16390905 | CF60: =+R60*KeyAssumptionsPriceControl_FO!AF$15 -> 0.1688263215 | CG60: =+S60*KeyAssumptionsPriceControl_FO!AG$15 -> 0.1738911111 | CH60: =+T60*KeyAssumptionsPriceControl_FO!AH$15 -> 0.1886602629 | CI60: =+U60*KeyAssumptionsPriceControl_FO!AI$15 -> 0.1943200707 | CJ60: =+V60*KeyAssumptionsPriceControl_FO!AJ$15 -> 0.2001496729 | CK60: =+W60*KeyAssumptionsPriceControl_FO!AK$15 -> 0.206154163 | CL60: =+X60*KeyAssumptionsPriceControl_FO!AL$15 -> 0.2123387879 | CN60: =IF($M60=0,0, IF($M60<=0.5,CC60, IF($J60="straight line", IF((LEFT(CN$39,4)*1)-INT($M60)<LEFT($CN$39,4)*1,0,((OFFSET(CC60,0,-INT($M60+0.5),1,1))/$M60)*(IF($M60-INT($M60)>0.5,$M60-0.5-INT($M60),IF($M60-INT($M60)<=0.5,$M60-0.5-INT($M60)+1,0)))) +CC60/$M60*0.5, IF($J60="Declining Balance",-$CN$38,0)))) -> 0.00347625 | CO60: =IF($M60=0,0, IF($M60<=0.5,CD60, IF(AND($J60="straight line",$M60<1.51),(CC60-((CC60/$M60)*0.5))+CD60/$M60*0.5, IF($J60="straight line", IF((LEFT(CO$39,4)*1)-INT($M60)<LEFT($CN$39,4)*1,0,((OFFSET(CD60,0,-INT($M60+0.5),1,1))/$M60)*(IF($M60-INT($M60)>0.5,$M60-0.5-INT($M60),IF($M60-INT($M60)<=0.5,$M60-0.5-INT($M60)+1,0)))) +CD60/$M60*0.5 +SUM(OFFSET(CD60,0,MAX(-INT($M60+(0.5-(10^-12))),-CO$40)+1,1,MIN(INT($M60+(0.5-(10^-12))),CO$40)-1))*1/$M60, IF($J60="Declining Balance",-$CN$38,0))))) -> 0.0105330375 | CP60: =IF($M60=0,0, IF($M60<=0.5,CE60, IF(AND($J60="straight line",$M60<1.51),(CD60-((CD60/$M60)*0.5))+CE60/$M60*0.5, IF($J60="straight line", IF((LEFT(CP$39,4)*1)-INT($M60)<LEFT($CN$39,4)*1,0,((OFFSET(CE60,0,-INT($M60+0.5),1,1))/$M60)*(IF($M60-INT($M60)>0.5,$M60-0.5-INT($M60),IF($M60-INT($M60)<=0.5,$M60-0.5-INT($M60)+1,0)))) +CE60/$M60*0.5 +SUM(OFFSET(CE60,0,MAX(-INT($M60+(0.5-(10^-12))),-CP$40)+1,1,MIN(INT($M60+(0.5-(10^-12))),CP$40)-1))*1/$M60, IF($J60="Declining Balance",-$CN$38,0))))) -> 0.01780152863 | CQ60: =IF($M60=0,0, IF($M60<=0.5,CF60, IF(AND($J60="straight line",$M60<1.51),(CE60-((CE60/$M60)*0.5))+CF60/$M60*0.5, IF($J60="straight line", IF((LEFT(CQ$39,4)*1)-INT($M60)<LEFT($CN$39,4)*1,0,((OFFSET(CF60,0,-INT($M60+0.5),1,1))/$M60)*(IF($M60-INT($M60)>0.5,$M60-0.5-INT($M60),IF($M60-INT($M60)<=0.5,$M60-0.5-INT($M60)+1,0)))) +CF60/$M60*0.5 +SUM(OFFSET(CF60,0,MAX(-INT($M60+(0.5-(10^-12))),-CQ$40)+1,1,MIN(INT($M60+(0.5-(10^-12))),CQ$40)-1))*1/$M60, IF($J60="Declining Balance",-$CN$38,0))))) -> 0.02528807448 | CR60: =IF($M60=0,0, IF($M60<=0.5,CG60, IF(AND($J60="straight line",$M60<1.51),(CF60-((CF60/$M60)*0.5))+CG60/$M60*0.5, IF($J60="straight line", IF((LEFT(CR$39,4)*1)-INT($M60)<LEFT($CN$39,4)*1,0,((OFFSET(CG60,0,-INT($M60+0.5),1,1))/$M60)*(IF($M60-INT($M60)>0.5,$M60-0.5-INT($M60),IF($M60-INT($M60)<=0.5,$M60-0.5-INT($M60)+1,0)))) +CG60/$M60*0.5 +SUM(OFFSET(CG60,0,MAX(-INT($M60+(0.5-(10^-12))),-CR$40)+1,1,MIN(INT($M60+(0.5-(10^-12))),CR$40)-1))*1/$M60, IF($J60="Declining Balance",-$CN$38,0))))) -> 0.03299921672 | CS60: =IF($M60=0,0, IF($M60<=0.5,CH60, IF(AND($J60="straight line",$M60<1.51),(CG60-((CG60/$M60)*0.5))+CH60/$M60*0.5, IF($J60="straight line", IF((LEFT(CS$39,4)*1)-INT($M60)<LEFT($CN$39,4)*1,0,((OFFSET(CH60,0,-INT($M60+0.5),1,1))/$M60)*(IF($M60-INT($M60)>0.5,$M60-0.5-INT($M60),IF($M60-INT($M60)<=0.5,$M60-0.5-INT($M60)+1,0)))) +CH60/$M60*0.5 +SUM(OFFSET(CH60,0,MAX(-INT($M60+(0.5-(10^-12))),-CS$40)+1,1,MIN(INT($M60+(0.5-(10^-12))),CS$40)-1))*1/$M60, IF($J60="Declining Balance",-$CN$38,0))))) -> 0.04115662263 | CT60: =IF($M60=0,0, IF($M60<=0.5,CI60, IF(AND($J60="straight line",$M60<1.51),(CH60-((CH60/$M60)*0.5))+CI60/$M60*0.5, IF($J60="straight line", IF((LEFT(CT$39,4)*1)-INT($M60)<LEFT($CN$39,4)*1,0,((OFFSET(CI60,0,-INT($M60+0.5),1,1))/$M60)*(IF($M60-INT($M60)>0.5,$M60-0.5-INT($M60),IF($M60-INT($M60)<=0.5,$M60-0.5-INT($M60)+1,0)))) +CI60/$M60*0.5 +SUM(OFFSET(CI60,0,MAX(-INT($M60+(0.5-(10^-12))),-CT$40)+1,1,MIN(INT($M60+(0.5-(10^-12))),CT$40)-1))*1/$M60, IF($J60="Declining Balance",-$CN$38,0))))) -> 0.04977368014 | CU60: =IF($M60=0,0, IF($M60<=0.5,CJ60, IF(AND($J60="straight line",$M60<1.51),(CI60-((CI60/$M60)*0.5))+CJ60/$M60*0.5, IF($J60="straight line", IF((LEFT(CU$39,4)*1)-INT($M60)<LEFT($CN$39,4)*1,0,((OFFSET(CJ60,0,-INT($M60+0.5),1,1))/$M60)*(IF($M60-INT($M60)>0.5,$M60-0.5-INT($M60),IF($M60-INT($M60)<=0.5,$M60-0.5-INT($M60)+1,0)))) +CJ60/$M60*0.5 +SUM(OFFSET(CJ60,0,MAX(-INT($M60+(0.5-(10^-12))),-CU$40)+1,1,MIN(INT($M60+(0.5-(10^-12))),CU$40)-1))*1/$M60, IF($J60="Declining Balance",-$CN$38,0))))) -> 0.05864924937 | CV60: =IF($M60=0,0, IF($M60<=0.5,CK60, IF(AND($J60="straight line",$M60<1.51),(CJ60-((CJ60/$M60)*0.5))+CK60/$M60*0.5, IF($J60="straight line", IF((LEFT(CV$39,4)*1)-INT($M60)<LEFT($CN$39,4)*1,0,((OFFSET(CK60,0,-INT($M60+0.5),1,1))/$M60)*(IF($M60-INT($M60)>0.5,$M60-0.5-INT($M60),IF($M60-INT($M60)<=0.5,$M60-0.5-INT($M60)+1,0)))) +CK60/$M60*0.5 +SUM(OFFSET(CK60,0,MAX(-INT($M60+(0.5-(10^-12))),-CV$40)+1,1,MIN(INT($M60+(0.5-(10^-12))),CV$40)-1))*1/$M60, IF($J60="Declining Balance",-$CN$38,0))))) -> 0.06779108568 | CW60: =IF($M60=0,0, IF($M60<=0.5,CL60, IF(AND($J60="straight line",$M60<1.51),(CK60-((CK60/$M60)*0.5))+CL60/$M60*0.5, IF($J60="straight line", IF((LEFT(CW$39,4)*1)-INT($M60)<LEFT($CN$39,4)*1,0,((OFFSET(CL60,0,-INT($M60+0.5),1,1))/$M60)*(IF($M60-INT($M60)>0.5,$M60-0.5-INT($M60),IF($M60-INT($M60)<=0.5,$M60-0.5-INT($M60)+1,0)))) +CL60/$M60*0.5 +SUM(OFFSET(CL60,0,MAX(-INT($M60+(0.5-(10^-12))),-CW$40)+1,1,MIN(INT($M60+(0.5-(10^-12))),CW$40)-1))*1/$M60, IF($J60="Declining Balance",-$CN$38,0))))) -> 0.07720717707
C61: ='[3]Capex_FO input'!C61 -> ALL SITES Minor Capital Works - Replacement | D61: ='[3]Capex_FO input'!D56 -> 0 | E61: ='[3]Capex_FO input'!E61 -> Water | F61: ='[3]Capex_FO input'!F61 -> Renewals | G61: ='[3]Capex_FO input'!G61 -> Pipelines/network | H61: ='[3]Capex_FO input'!H61 -> Capital programs / Allocation | I61: ='[3]Capex_FO input'!I61 -> 0 | J61: ='[3]Capex_FO input'!J61 -> Straight line | K61: ='[3]Capex_FO input'!K61 -> Ongoing | L61: ='[3]Capex_FO input'!L61 -> 45 | M61: ='[3]Capex_FO input'!M61 -> 22.22222222 | O61: ='[3]Capex_FO input'!O61 -> 0.338 | P61: ='[3]Capex_FO input'!P61 -> 0.338 | Q61: ='[3]Capex_FO input'!Q61 -> 0.338 | R61: ='[3]Capex_FO input'!R61 -> 0.338 | S61: ='[3]Capex_FO input'!S61 -> 0.338 | T61: ='[3]Capex_FO input'!T61 -> 0.355 | U61: ='[3]Capex_FO input'!U61 -> 0.355 | V61: ='[3]Capex_FO input'!V61 -> 0.355 | W61: ='[3]Capex_FO input'!W61 -> 0.355 | X61: ='[3]Capex_FO input'!X61 -> 0.355 | Z61: ='[3]Capex_FO input'!Z61 -> 0 | AA61: ='[3]Capex_FO input'!AA61 -> 0 | AB61: ='[3]Capex_FO input'!AB61 -> 0 | AC61: ='[3]Capex_FO input'!AC61 -> 0 | AD61: ='[3]Capex_FO input'!AD61 -> 0 | AE61: ='[3]Capex_FO input'!AE61 -> 0 | AF61: ='[3]Capex_FO input'!AF61 -> 0 | AG61: ='[3]Capex_FO input'!AG61 -> 0 | AH61: ='[3]Capex_FO input'!AH61 -> 0 | AI61: ='[3]Capex_FO input'!AI61 -> 0 | AK61: ='[3]Capex_FO input'!AK61 -> 0 | AL61: ='[3]Capex_FO input'!AL61 -> 0 | AM61: ='[3]Capex_FO input'!AM61 -> 0 | AN61: ='[3]Capex_FO input'!AN61 -> 0 | AO61: ='[3]Capex_FO input'!AO61 -> 0 | AP61: ='[3]Capex_FO input'!AP61 -> 0 | AQ61: ='[3]Capex_FO input'!AQ61 -> 0 | AR61: ='[3]Capex_FO input'!AR61 -> 0 | AS61: ='[3]Capex_FO input'!AS61 -> 0 | AT61: ='[3]Capex_FO input'!AT61 -> 0 | AV61: 0.338 | AW61: 0.338 | AX61: 0.338 | AY61: 0.338 | AZ61: 0.338 | BA61: 0.355 | BB61: 0.355 | BC61: 0.355 | BD61: 0.355 | BE61: 0.355 | BG61: 0.003755555556 | BH61: 0.01126666667 | BI61: 0.01877777778 | BJ61: 0.02628888889 | BK61: 0.0338 | BL61: 0.0415 | BM61: 0.04938888889 | BN61: 0.05727777778 | BO61: 0.06516666667 | BP61: 0.07305555556 | BR61: =+IF($K61="Ongoing",AV61,IF(RIGHT($K61,2)=RIGHT(BR$39,2),SUM($AV61:AV61),0)+IF(RIGHT(BR$39,2)>RIGHT($K61,2),AV61,0)) -> 0.338 | BS61: =+IF($K61="Ongoing",AW61,IF(RIGHT($K61,2)=RIGHT(BS$39,2),SUM($AV61:AW61),0)+IF(RIGHT(BS$39,2)>RIGHT($K61,2),AW61,0)) -> 0.338 | BT61: =+IF($K61="Ongoing",AX61,IF(RIGHT($K61,2)=RIGHT(BT$39,2),SUM($AV61:AX61),0)+IF(RIGHT(BT$39,2)>RIGHT($K61,2),AX61,0)) -> 0.338 | BU61: =+IF($K61="Ongoing",AY61,IF(RIGHT($K61,2)=RIGHT(BU$39,2),SUM($AV61:AY61),0)+IF(RIGHT(BU$39,2)>RIGHT($K61,2),AY61,0)) -> 0.338 | BV61: =+IF($K61="Ongoing",AZ61,IF(RIGHT($K61,2)=RIGHT(BV$39,2),SUM($AV61:AZ61),0)+IF(RIGHT(BV$39,2)>RIGHT($K61,2),AZ61,0)) -> 0.338 | BW61: =+IF($K61="Ongoing",BA61,IF(RIGHT($K61,2)=RIGHT(BW$39,2),SUM($AV61:BA61),0)+IF(RIGHT(BW$39,2)>RIGHT($K61,2),BA61,0)) -> 0.355 | BX61: =+IF($K61="Ongoing",BB61,IF(RIGHT($K61,2)=RIGHT(BX$39,2),SUM($AV61:BB61),0)+IF(RIGHT(BX$39,2)>RIGHT($K61,2),BB61,0)) -> 0.355 | BY61: =+IF($K61="Ongoing",BC61,IF(RIGHT($K61,2)=RIGHT(BY$39,2),SUM($AV61:BC61),0)+IF(RIGHT(BY$39,2)>RIGHT($K61,2),BC61,0)) -> 0.355 | BZ61: =+IF($K61="Ongoing",BD61,IF(RIGHT($K61,2)=RIGHT(BZ$39,2),SUM($AV61:BD61),0)+IF(RIGHT(BZ$39,2)>RIGHT($K61,2),BD61,0)) -> 0.355 | CA61: =+IF($K61="Ongoing",BE61,IF(RIGHT($K61,2)=RIGHT(CA$39,2),SUM($AV61:BE61),0)+IF(RIGHT(CA$39,2)>RIGHT($K61,2),BE61,0)) -> 0.355 | CC61: =+O61*KeyAssumptionsPriceControl_FO!AC$15 -> 0.34814 | CD61: =+P61*KeyAssumptionsPriceControl_FO!AD$15 -> 0.3585842 | CE61: =+Q61*KeyAssumptionsPriceControl_FO!AE$15 -> 0.369341726 | CF61: =+R61*KeyAssumptionsPriceControl_FO!AF$15 -> 0.3804219778 | CG61: =+S61*KeyAssumptionsPriceControl_FO!AG$15 -> 0.3918346371 | CH61: =+T61*KeyAssumptionsPriceControl_FO!AH$15 -> 0.4238885653 | CI61: =+U61*KeyAssumptionsPriceControl_FO!AI$15 -> 0.4366052222 | CJ61: =+V61*KeyAssumptionsPriceControl_FO!AJ$15 -> 0.4497033789 | CK61: =+W61*KeyAssumptionsPriceControl_FO!AK$15 -> 0.4631944803 | CL61: =+X61*KeyAssumptionsPriceControl_FO!AL$15 -> 0.4770903147 | CN61: 0.00783315 | CO61: 0.0237344445 | CP61: 0.04011277784 | CQ61: 0.05698246117 | CR61: 0.07435823501 | CS61: 0.09271200706 | CT61: 0.1120731173 | CU61: 0.1320150608 | CV61: 0.1525552626 | CW61: 0.1737116705
C62: ='[3]Capex_FO input'!C62 -> ALL SITES Minor Capital Works - New | D62: ='[3]Capex_FO input'!D57 -> 0 | E62: ='[3]Capex_FO input'!E62 -> Water | F62: ='[3]Capex_FO input'!F62 -> Improvements / Compliance | G62: ='[3]Capex_FO input'!G62 -> Pipelines/network | H62: ='[3]Capex_FO input'!H62 -> Capital programs / Allocation | I62: ='[3]Capex_FO input'!I62 -> 0 | J62: ='[3]Capex_FO input'!J62 -> Straight line | K62: ='[3]Capex_FO input'!K62 -> Ongoing | L62: ='[3]Capex_FO input'!L62 -> 45 | M62: ='[3]Capex_FO input'!M62 -> 22.22222222 | O62: ='[3]Capex_FO input'!O62 -> 0.317 | P62: ='[3]Capex_FO input'!P62 -> 0.317 | Q62: ='[3]Capex_FO input'!Q62 -> 0.317 | R62: ='[3]Capex_FO input'!R62 -> 0.317 | S62: ='[3]Capex_FO input'!S62 -> 0.317 | T62: ='[3]Capex_FO input'!T62 -> 0.333 | U62: ='[3]Capex_FO input'!U62 -> 0.333 | V62: ='[3]Capex_FO input'!V62 -> 0.333 | W62: ='[3]Capex_FO input'!W62 -> 0.333 | X62: ='[3]Capex_FO input'!X62 -> 0.333 | Z62: ='[3]Capex_FO input'!Z62 -> 0 | AA62: ='[3]Capex_FO input'!AA62 -> 0 | AB62: ='[3]Capex_FO input'!AB62 -> 0 | AC62: ='[3]Capex_FO input'!AC62 -> 0 | AD62: ='[3]Capex_FO input'!AD62 -> 0 | AE62: ='[3]Capex_FO input'!AE62 -> 0 | AF62: ='[3]Capex_FO input'!AF62 -> 0 | AG62: ='[3]Capex_FO input'!AG62 -> 0 | AH62: ='[3]Capex_FO input'!AH62 -> 0 | AI62: ='[3]Capex_FO input'!AI62 -> 0 | AK62: ='[3]Capex_FO input'!AK62 -> 0 | AL62: ='[3]Capex_FO input'!AL62 -> 0 | AM62: ='[3]Capex_FO input'!AM62 -> 0 | AN62: ='[3]Capex_FO input'!AN62 -> 0 | AO62: ='[3]Capex_FO input'!AO62 -> 0 | AP62: ='[3]Capex_FO input'!AP62 -> 0 | AQ62: ='[3]Capex_FO input'!AQ62 -> 0 | AR62: ='[3]Capex_FO input'!AR62 -> 0 | AS62: ='[3]Capex_FO input'!AS62 -> 0 | AT62: ='[3]Capex_FO input'!AT62 -> 0 | AV62: 0.317 | AW62: 0.317 | AX62: 0.317 | AY62: 0.317 | AZ62: 0.317 | BA62: 0.333 | BB62: 0.333 | BC62: 0.333 | BD62: 0.333 | BE62: 0.333 | BG62: 0.003522222222 | BH62: 0.01056666667 | BI62: 0.01761111111 | BJ62: 0.02465555556 | BK62: 0.0317 | BL62: 0.03892222222 | BM62: 0.04632222222 | BN62: 0.05372222222 | BO62: 0.06112222222 | BP62: 0.06852222222 | BR62: =+IF($K62="Ongoing",AV62,IF(RIGHT($K62,2)=RIGHT(BR$39,2),SUM($AV62:AV62),0)+IF(RIGHT(BR$39,2)>RIGHT($K62,2),AV62,0)) -> 0.317 | BS62: =+IF($K62="Ongoing",AW62,IF(RIGHT($K62,2)=RIGHT(BS$39,2),SUM($AV62:AW62),0)+IF(RIGHT(BS$39,2)>RIGHT($K62,2),AW62,0)) -> 0.317 | BT62: =+IF($K62="Ongoing",AX62,IF(RIGHT($K62,2)=RIGHT(BT$39,2),SUM($AV62:AX62),0)+IF(RIGHT(BT$39,2)>RIGHT($K62,2),AX62,0)) -> 0.317 | BU62: =+IF($K62="Ongoing",AY62,IF(RIGHT($K62,2)=RIGHT(BU$39,2),SUM($AV62:AY62),0)+IF(RIGHT(BU$39,2)>RIGHT($K62,2),AY62,0)) -> 0.317 | BV62: =+IF($K62="Ongoing",AZ62,IF(RIGHT($K62,2)=RIGHT(BV$39,2),SUM($AV62:AZ62),0)+IF(RIGHT(BV$39,2)>RIGHT($K62,2),AZ62,0)) -> 0.317 | BW62: =+IF($K62="Ongoing",BA62,IF(RIGHT($K62,2)=RIGHT(BW$39,2),SUM($AV62:BA62),0)+IF(RIGHT(BW$39,2)>RIGHT($K62,2),BA62,0)) -> 0.333 | BX62: =+IF($K62="Ongoing",BB62,IF(RIGHT($K62,2)=RIGHT(BX$39,2),SUM($AV62:BB62),0)+IF(RIGHT(BX$39,2)>RIGHT($K62,2),BB62,0)) -> 0.333 | BY62: =+IF($K62="Ongoing",BC62,IF(RIGHT($K62,2)=RIGHT(BY$39,2),SUM($AV62:BC62),0)+IF(RIGHT(BY$39,2)>RIGHT($K62,2),BC62,0)) -> 0.333 | BZ62: =+IF($K62="Ongoing",BD62,IF(RIGHT($K62,2)=RIGHT(BZ$39,2),SUM($AV62:BD62),0)+IF(RIGHT(BZ$39,2)>RIGHT($K62,2),BD62,0)) -> 0.333 | CA62: =+IF($K62="Ongoing",BE62,IF(RIGHT($K62,2)=RIGHT(CA$39,2),SUM($AV62:BE62),0)+IF(RIGHT(CA$39,2)>RIGHT($K62,2),BE62,0)) -> 0.333 | CC62: =+O62*KeyAssumptionsPriceControl_FO!AC$15 -> 0.32651 | CD62: =+P62*KeyAssumptionsPriceControl_FO!AD$15 -> 0.3363053 | CE62: =+Q62*KeyAssumptionsPriceControl_FO!AE$15 -> 0.346394459 | CF62: =+R62*KeyAssumptionsPriceControl_FO!AF$15 -> 0.3567862928 | CG62: =+S62*KeyAssumptionsPriceControl_FO!AG$15 -> 0.3674898816 | CH62: =+T62*KeyAssumptionsPriceControl_FO!AH$15 -> 0.3976194147 | CI62: =+U62*KeyAssumptionsPriceControl_FO!AI$15 -> 0.4095479972 | CJ62: =+V62*KeyAssumptionsPriceControl_FO!AJ$15 -> 0.4218344371 | CK62: =+W62*KeyAssumptionsPriceControl_FO!AK$15 -> 0.4344894702 | CL62: =+X62*KeyAssumptionsPriceControl_FO!AL$15 -> 0.4475241543 | CN62: 0.007346475 | CO62: 0.02225981925 | CP62: 0.03762056383 | CQ62: 0.05344213074 | CR62: 0.06973834466 | CS62: 0.08695330383 | CT62: 0.1051145706 | CU62: 0.1238206754 | CV62: 0.1430879633 | CW62: 0.1629332698
C63: ='[3]Capex_FO input'!C63 -> ALL SITES Main Replacement | D63: ='[3]Capex_FO input'!D58 -> 0 | E63: ='[3]Capex_FO input'!E63 -> Water | F63: ='[3]Capex_FO input'!F63 -> Renewals | G63: ='[3]Capex_FO input'!G63 -> Pipelines/network | H63: ='[3]Capex_FO input'!H63 -> Capital programs / Allocation | I63: ='[3]Capex_FO input'!I63 -> 0 | J63: ='[3]Capex_FO input'!J63 -> Straight line | K63: ='[3]Capex_FO input'!K63 -> Ongoing | L63: ='[3]Capex_FO input'!L63 -> 80 | M63: ='[3]Capex_FO input'!M63 -> 22.22222222 | O63: ='[3]Capex_FO input'!O63 -> 0.975 | P63: ='[3]Capex_FO input'!P63 -> 0.975 | Q63: ='[3]Capex_FO input'!Q63 -> 0.975 | R63: ='[3]Capex_FO input'!R63 -> 0.975 | S63: ='[3]Capex_FO input'!S63 -> 0.975 | T63: ='[3]Capex_FO input'!T63 -> 0.975 | U63: ='[3]Capex_FO input'!U63 -> 0.975 | V63: ='[3]Capex_FO input'!V63 -> 0.975 | W63: ='[3]Capex_FO input'!W63 -> 0.975 | X63: ='[3]Capex_FO input'!X63 -> 0.975 | Z63: ='[3]Capex_FO input'!Z63 -> 0 | AA63: ='[3]Capex_FO input'!AA63 -> 0 | AB63: ='[3]Capex_FO input'!AB63 -> 0 | AC63: ='[3]Capex_FO input'!AC63 -> 0 | AD63: ='[3]Capex_FO input'!AD63 -> 0 | AE63: ='[3]Capex_FO input'!AE63 -> 0 | AF63: ='[3]Capex_FO input'!AF63 -> 0 | AG63: ='[3]Capex_FO input'!AG63 -> 0 | AH63: ='[3]Capex_FO input'!AH63 -> 0 | AI63: ='[3]Capex_FO input'!AI63 -> 0 | AK63: ='[3]Capex_FO input'!AK63 -> 0 | AL63: ='[3]Capex_FO input'!AL63 -> 0 | AM63: ='[3]Capex_FO input'!AM63 -> 0 | AN63: ='[3]Capex_FO input'!AN63 -> 0 | AO63: ='[3]Capex_FO input'!AO63 -> 0 | AP63: ='[3]Capex_FO input'!AP63 -> 0 | AQ63: ='[3]Capex_FO input'!AQ63 -> 0 | AR63: ='[3]Capex_FO input'!AR63 -> 0 | AS63: ='[3]Capex_FO input'!AS63 -> 0 | AT63: ='[3]Capex_FO input'!AT63 -> 0 | AV63: 0.975 | AW63: 0.975 | AX63: 0.975 | AY63: 0.975 | AZ63: 0.975 | BA63: 0.975 | BB63: 0.975 | BC63: 0.975 | BD63: 0.975 | BE63: 0.975 | BG63: 0.00609375 | BH63: 0.01828125 | BI63: 0.03046875 | BJ63: 0.04265625 | BK63: 0.05484375 | BL63: 0.06703125 | BM63: 0.07921875 | BN63: 0.09140625 | BO63: 0.10359375 | BP63: 0.11578125 | BR63: =+IF($K63="Ongoing",AV63,IF(RIGHT($K63,2)=RIGHT(BR$39,2),SUM($AV63:AV63),0)+IF(RIGHT(BR$39,2)>RIGHT($K63,2),AV63,0)) -> 0.975 | BS63: =+IF($K63="Ongoing",AW63,IF(RIGHT($K63,2)=RIGHT(BS$39,2),SUM($AV63:AW63),0)+IF(RIGHT(BS$39,2)>RIGHT($K63,2),AW63,0)) -> 0.975 | BT63: =+IF($K63="Ongoing",AX63,IF(RIGHT($K63,2)=RIGHT(BT$39,2),SUM($AV63:AX63),0)+IF(RIGHT(BT$39,2)>RIGHT($K63,2),AX63,0)) -> 0.975 | BU63: =+IF($K63="Ongoing",AY63,IF(RIGHT($K63,2)=RIGHT(BU$39,2),SUM($AV63:AY63),0)+IF(RIGHT(BU$39,2)>RIGHT($K63,2),AY63,0)) -> 0.975 | BV63: =+IF($K63="Ongoing",AZ63,IF(RIGHT($K63,2)=RIGHT(BV$39,2),SUM($AV63:AZ63),0)+IF(RIGHT(BV$39,2)>RIGHT($K63,2),AZ63,0)) -> 0.975 | BW63: =+IF($K63="Ongoing",BA63,IF(RIGHT($K63,2)=RIGHT(BW$39,2),SUM($AV63:BA63),0)+IF(RIGHT(BW$39,2)>RIGHT($K63,2),BA63,0)) -> 0.975 | BX63: =+IF($K63="Ongoing",BB63,IF(RIGHT($K63,2)=RIGHT(BX$39,2),SUM($AV63:BB63),0)+IF(RIGHT(BX$39,2)>RIGHT($K63,2),BB63,0)) -> 0.975 | BY63: =+IF($K63="Ongoing",BC63,IF(RIGHT($K63,2)=RIGHT(BY$39,2),SUM($AV63:BC63),0)+IF(RIGHT(BY$39,2)>RIGHT($K63,2),BC63,0)) -> 0.975 | BZ63: =+IF($K63="Ongoing",BD63,IF(RIGHT($K63,2)=RIGHT(BZ$39,2),SUM($AV63:BD63),0)+IF(RIGHT(BZ$39,2)>RIGHT($K63,2),BD63,0)) -> 0.975 | CA63: =+IF($K63="Ongoing",BE63,IF(RIGHT($K63,2)=RIGHT(CA$39,2),SUM($AV63:BE63),0)+IF(RIGHT(CA$39,2)>RIGHT($K63,2),BE63,0)) -> 0.975 | CC63: =+O63*KeyAssumptionsPriceControl_FO!AC$15 -> 1.00425 | CD63: =+P63*KeyAssumptionsPriceControl_FO!AD$15 -> 1.0343775 | CE63: =+Q63*KeyAssumptionsPriceControl_FO!AE$15 -> 1.065408825 | CF63: =+R63*KeyAssumptionsPriceControl_FO!AF$15 -> 1.09737109 | CG63: =+S63*KeyAssumptionsPriceControl_FO!AG$15 -> 1.130292222 | CH63: =+T63*KeyAssumptionsPriceControl_FO!AH$15 -> 1.164200989 | CI63: =+U63*KeyAssumptionsPriceControl_FO!AI$15 -> 1.199127019 | CJ63: =+V63*KeyAssumptionsPriceControl_FO!AJ$15 -> 1.235100829 | CK63: =+W63*KeyAssumptionsPriceControl_FO!AK$15 -> 1.272153854 | CL63: =+X63*KeyAssumptionsPriceControl_FO!AL$15 -> 1.31031847 | CN63: 0.022595625 | CO63: 0.06846474375 | CP63: 0.1157099361 | CQ63: 0.1643724841 | CR63: 0.2144949087 | CS63: 0.2661210059 | CT63: 0.3192958861 | CU63: 0.3740660127 | CV63: 0.4304792431 | CW63: 0.4885848704
C64: ='[3]Capex_FO input'!C64 -> ALL SITES - PSP Replacement | D64: ='[3]Capex_FO input'!D59 -> 0 | E64: ='[3]Capex_FO input'!E64 -> Water | F64: ='[3]Capex_FO input'!F64 -> Renewals | G64: ='[3]Capex_FO input'!G64 -> Pipelines/network | H64: ='[3]Capex_FO input'!H64 -> Capital programs / Allocation | I64: ='[3]Capex_FO input'!I64 -> 0 | J64: ='[3]Capex_FO input'!J64 -> Straight line | K64: ='[3]Capex_FO input'!K64 -> Ongoing | L64: ='[3]Capex_FO input'!L64 -> 80 | M64: ='[3]Capex_FO input'!M64 -> 22.22222222 | O64: ='[3]Capex_FO input'!O64 -> 0.244 | P64: ='[3]Capex_FO input'!P64 -> 0.244 | Q64: ='[3]Capex_FO input'!Q64 -> 0.244 | R64: ='[3]Capex_FO input'!R64 -> 0.244 | S64: ='[3]Capex_FO input'!S64 -> 0.244 | T64: ='[3]Capex_FO input'!T64 -> 0.244 | U64: ='[3]Capex_FO input'!U64 -> 0.244 | V64: ='[3]Capex_FO input'!V64 -> 0.244 | W64: ='[3]Capex_FO input'!W64 -> 0.244 | X64: ='[3]Capex_FO input'!X64 -> 0.244 | Z64: ='[3]Capex_FO input'!Z64 -> 0 | AA64: ='[3]Capex_FO input'!AA64 -> 0 | AB64: ='[3]Capex_FO input'!AB64 -> 0 | AC64: ='[3]Capex_FO input'!AC64 -> 0 | AD64: ='[3]Capex_FO input'!AD64 -> 0 | AE64: ='[3]Capex_FO input'!AE64 -> 0 | AF64: ='[3]Capex_FO input'!AF64 -> 0 | AG64: ='[3]Capex_FO input'!AG64 -> 0 | AH64: ='[3]Capex_FO input'!AH64 -> 0 | AI64: ='[3]Capex_FO input'!AI64 -> 0 | AK64: ='[3]Capex_FO input'!AK64 -> 0 | AL64: ='[3]Capex_FO input'!AL64 -> 0 | AM64: ='[3]Capex_FO input'!AM64 -> 0 | AN64: ='[3]Capex_FO input'!AN64 -> 0 | AO64: ='[3]Capex_FO input'!AO64 -> 0 | AP64: ='[3]Capex_FO input'!AP64 -> 0 | AQ64: ='[3]Capex_FO input'!AQ64 -> 0 | AR64: ='[3]Capex_FO input'!AR64 -> 0 | AS64: ='[3]Capex_FO input'!AS64 -> 0 | AT64: ='[3]Capex_FO input'!AT64 -> 0 | AV64: 0.244 | AW64: 0.244 | AX64: 0.244 | AY64: 0.244 | AZ64: 0.244 | BA64: 0.244 | BB64: 0.244 | BC64: 0.244 | BD64: 0.244 | BE64: 0.244 | BG64: 0.001525 | BH64: 0.004575 | BI64: 0.007625 | BJ64: 0.010675 | BK64: 0.013725 | BL64: 0.016775 | BM64: 0.019825 | BN64: 0.022875 | BO64: 0.025925 | BP64: 0.028975 | BR64: =+IF($K64="Ongoing",AV64,IF(RIGHT($K64,2)=RIGHT(BR$39,2),SUM($AV64:AV64),0)+IF(RIGHT(BR$39,2)>RIGHT($K64,2),AV64,0)) -> 0.244 | BS64: =+IF($K64="Ongoing",AW64,IF(RIGHT($K64,2)=RIGHT(BS$39,2),SUM($AV64:AW64),0)+IF(RIGHT(BS$39,2)>RIGHT($K64,2),AW64,0)) -> 0.244 | BT64: =+IF($K64="Ongoing",AX64,IF(RIGHT($K64,2)=RIGHT(BT$39,2),SUM($AV64:AX64),0)+IF(RIGHT(BT$39,2)>RIGHT($K64,2),AX64,0)) -> 0.244 | BU64: =+IF($K64="Ongoing",AY64,IF(RIGHT($K64,2)=RIGHT(BU$39,2),SUM($AV64:AY64),0)+IF(RIGHT(BU$39,2)>RIGHT($K64,2),AY64,0)) -> 0.244 | BV64: =+IF($K64="Ongoing",AZ64,IF(RIGHT($K64,2)=RIGHT(BV$39,2),SUM($AV64:AZ64),0)+IF(RIGHT(BV$39,2)>RIGHT($K64,2),AZ64,0)) -> 0.244 | BW64: =+IF($K64="Ongoing",BA64,IF(RIGHT($K64,2)=RIGHT(BW$39,2),SUM($AV64:BA64),0)+IF(RIGHT(BW$39,2)>RIGHT($K64,2),BA64,0)) -> 0.244 | BX64: =+IF($K64="Ongoing",BB64,IF(RIGHT($K64,2)=RIGHT(BX$39,2),SUM($AV64:BB64),0)+IF(RIGHT(BX$39,2)>RIGHT($K64,2),BB64,0)) -> 0.244 | BY64: =+IF($K64="Ongoing",BC64,IF(RIGHT($K64,2)=RIGHT(BY$39,2),SUM($AV64:BC64),0)+IF(RIGHT(BY$39,2)>RIGHT($K64,2),BC64,0)) -> 0.244 | BZ64: =+IF($K64="Ongoing",BD64,IF(RIGHT($K64,2)=RIGHT(BZ$39,2),SUM($AV64:BD64),0)+IF(RIGHT(BZ$39,2)>RIGHT($K64,2),BD64,0)) -> 0.244 | CA64: =+IF($K64="Ongoing",BE64,IF(RIGHT($K64,2)=RIGHT(CA$39,2),SUM($AV64:BE64),0)+IF(RIGHT(CA$39,2)>RIGHT($K64,2),BE64,0)) -> 0.244 | CC64: =+O64*KeyAssumptionsPriceControl_FO!AC$15 -> 0.25132 | CD64: =+P64*KeyAssumptionsPriceControl_FO!AD$15 -> 0.2588596 | CE64: =+Q64*KeyAssumptionsPriceControl_FO!AE$15 -> 0.266625388 | CF64: =+R64*KeyAssumptionsPriceControl_FO!AF$15 -> 0.2746241496 | CG64: =+S64*KeyAssumptionsPriceControl_FO!AG$15 -> 0.2828628741 | CH64: =+T64*KeyAssumptionsPriceControl_FO!AH$15 -> 0.2913487604 | CI64: =+U64*KeyAssumptionsPriceControl_FO!AI$15 -> 0.3000892232 | CJ64: =+V64*KeyAssumptionsPriceControl_FO!AJ$15 -> 0.3090918999 | CK64: =+W64*KeyAssumptionsPriceControl_FO!AK$15 -> 0.3183646569 | CL64: =+X64*KeyAssumptionsPriceControl_FO!AL$15 -> 0.3279155966 | CN64: 0.0056547 | CO64: 0.017133741 | CP64: 0.02895715323 | CQ64: 0.04113526783 | CR64: 0.05367872586 | CS64: 0.06659848764 | CT64: 0.07990584227 | CU64: 0.09361241753 | CV64: 0.1077301901 | CW64: 0.1222714958
C65: ='[3]Capex_FO input'!C65 -> Stage 3 UV Works | D65: ='[3]Capex_FO input'!D60 -> 0 | E65: ='[3]Capex_FO input'!E65 -> Water | F65: ='[3]Capex_FO input'!F65 -> Improvements / Compliance | G65: ='[3]Capex_FO input'!G65 -> Treatment | H65: ='[3]Capex_FO input'!H65 -> Capital programs / Allocation | I65: ='[3]Capex_FO input'!I65 -> 0 | J65: ='[3]Capex_FO input'!J65 -> Straight line | K65: ='[3]Capex_FO input'!K65 -> 2023-24 | L65: ='[3]Capex_FO input'!L65 -> 45 | M65: ='[3]Capex_FO input'!M65 -> 22.22222222 | O65: ='[3]Capex_FO input'!O65 -> 3.765 | P65: ='[3]Capex_FO input'!P65 -> 0 | Q65: ='[3]Capex_FO input'!Q65 -> 0 | R65: ='[3]Capex_FO input'!R65 -> 0 | S65: ='[3]Capex_FO input'!S65 -> 0 | T65: ='[3]Capex_FO input'!T65 -> 0 | U65: ='[3]Capex_FO input'!U65 -> 0 | V65: ='[3]Capex_FO input'!V65 -> 0 | W65: ='[3]Capex_FO input'!W65 -> 0 | X65: ='[3]Capex_FO input'!X65 -> 0 | Z65: ='[3]Capex_FO input'!Z65 -> 0 | AA65: ='[3]Capex_FO input'!AA65 -> 0 | AB65: ='[3]Capex_FO input'!AB65 -> 0 | AC65: ='[3]Capex_FO input'!AC65 -> 0 | AD65: ='[3]Capex_FO input'!AD65 -> 0 | AE65: ='[3]Capex_FO input'!AE65 -> 0 | AF65: ='[3]Capex_FO input'!AF65 -> 0 | AG65: ='[3]Capex_FO input'!AG65 -> 0 | AH65: ='[3]Capex_FO input'!AH65 -> 0 | AI65: ='[3]Capex_FO input'!AI65 -> 0 | AK65: ='[3]Capex_FO input'!AK65 -> 0 | AL65: ='[3]Capex_FO input'!AL65 -> 0 | AM65: ='[3]Capex_FO input'!AM65 -> 0 | AN65: ='[3]Capex_FO input'!AN65 -> 0 | AO65: ='[3]Capex_FO input'!AO65 -> 0 | AP65: ='[3]Capex_FO input'!AP65 -> 0 | AQ65: ='[3]Capex_FO input'!AQ65 -> 0 | AR65: ='[3]Capex_FO input'!AR65 -> 0 | AS65: ='[3]Capex_FO input'!AS65 -> 0 | AT65: ='[3]Capex_FO input'!AT65 -> 0 | AV65: 3.765 | AW65: 0 | AX65: 0 | AY65: 0 | AZ65: 0 | BA65: 0 | BB65: 0 | BC65: 0 | BD65: 0 | BE65: 0 | BG65: 0.04183333333 | BH65: 0.08366666667 | BI65: 0.08366666667 | BJ65: 0.08366666667 | BK65: 0.08366666667 | BL65: 0.08366666667 | BM65: 0.08366666667 | BN65: 0.08366666667 | BO65: 0.08366666667 | BP65: 0.08366666667 | BR65: =+IF($K65="Ongoing",AV65,IF(RIGHT($K65,2)=RIGHT(BR$39,2),SUM($AV65:AV65),0)+IF(RIGHT(BR$39,2)>RIGHT($K65,2),AV65,0)) -> 3.765 | BS65: =+IF($K65="Ongoing",AW65,IF(RIGHT($K65,2)=RIGHT(BS$39,2),SUM($AV65:AW65),0)+IF(RIGHT(BS$39,2)>RIGHT($K65,2),AW65,0)) -> 0 | BT65: =+IF($K65="Ongoing",AX65,IF(RIGHT($K65,2)=RIGHT(BT$39,2),SUM($AV65:AX65),0)+IF(RIGHT(BT$39,2)>RIGHT($K65,2),AX65,0)) -> 0 | BU65: =+IF($K65="Ongoing",AY65,IF(RIGHT($K65,2)=RIGHT(BU$39,2),SUM($AV65:AY65),0)+IF(RIGHT(BU$39,2)>RIGHT($K65,2),AY65,0)) -> 0 | BV65: =+IF($K65="Ongoing",AZ65,IF(RIGHT($K65,2)=RIGHT(BV$39,2),SUM($AV65:AZ65),0)+IF(RIGHT(BV$39,2)>RIGHT($K65,2),AZ65,0)) -> 0 | BW65: =+IF($K65="Ongoing",BA65,IF(RIGHT($K65,2)=RIGHT(BW$39,2),SUM($AV65:BA65),0)+IF(RIGHT(BW$39,2)>RIGHT($K65,2),BA65,0)) -> 0 | BX65: =+IF($K65="Ongoing",BB65,IF(RIGHT($K65,2)=RIGHT(BX$39,2),SUM($AV65:BB65),0)+IF(RIGHT(BX$39,2)>RIGHT($K65,2),BB65,0)) -> 0 | BY65: =+IF($K65="Ongoing",BC65,IF(RIGHT($K65,2)=RIGHT(BY$39,2),SUM($AV65:BC65),0)+IF(RIGHT(BY$39,2)>RIGHT($K65,2),BC65,0)) -> 0 | BZ65: =+IF($K65="Ongoing",BD65,IF(RIGHT($K65,2)=RIGHT(BZ$39,2),SUM($AV65:BD65),0)+IF(RIGHT(BZ$39,2)>RIGHT($K65,2),BD65,0)) -> 0 | CA65: =+IF($K65="Ongoing",BE65,IF(RIGHT($K65,2)=RIGHT(CA$39,2),SUM($AV65:BE65),0)+IF(RIGHT(CA$39,2)>RIGHT($K65,2),BE65,0)) -> 0 | CC65: =+O65*KeyAssumptionsPriceControl_FO!AC$15 -> 3.87795 | CD65: =+P65*KeyAssumptionsPriceControl_FO!AD$15 -> 0 | CE65: =+Q65*KeyAssumptionsPriceControl_FO!AE$15 -> 0 | CF65: =+R65*KeyAssumptionsPriceControl_FO!AF$15 -> 0 | CG65: =+S65*KeyAssumptionsPriceControl_FO!AG$15 -> 0 | CH65: =+T65*KeyAssumptionsPriceControl_FO!AH$15 -> 0 | CI65: =+U65*KeyAssumptionsPriceControl_FO!AI$15 -> 0 | CJ65: =+V65*KeyAssumptionsPriceControl_FO!AJ$15 -> 0 | CK65: =+W65*KeyAssumptionsPriceControl_FO!AK$15 -> 0 | CL65: =+X65*KeyAssumptionsPriceControl_FO!AL$15 -> 0 | CN65: 0.087253875 | CO65: 0.17450775 | CP65: 0.17450775 | CQ65: 0.17450775 | CR65: 0.17450775 | CS65: 0.17450775 | CT65: 0.17450775 | CU65: 0.17450775 | CV65: 0.17450775 | CW65: 0.17450775
C66: ='[3]Capex_FO input'!C66 -> ALL SITES Asset Performance & Condition Monitoring Equipment | D66: ='[3]Capex_FO input'!D61 -> 0 | E66: ='[3]Capex_FO input'!E66 -> Sewerage | F66: ='[3]Capex_FO input'!F66 -> Improvements / Compliance | G66: ='[3]Capex_FO input'!G66 -> Pipelines/network | H66: ='[3]Capex_FO input'!H66 -> Capital programs / Allocation | I66: ='[3]Capex_FO input'!I66 -> 0 | J66: ='[3]Capex_FO input'!J66 -> Straight line | K66: ='[3]Capex_FO input'!K66 -> 2031-32 | L66: ='[3]Capex_FO input'!L66 -> 45 | M66: ='[3]Capex_FO input'!M66 -> 22.22222222 | O66: ='[3]Capex_FO input'!O66 -> 0 | P66: ='[3]Capex_FO input'!P66 -> 0 | Q66: ='[3]Capex_FO input'!Q66 -> 0.04 | R66: ='[3]Capex_FO input'!R66 -> 0.04 | S66: ='[3]Capex_FO input'!S66 -> 0 | T66: ='[3]Capex_FO input'!T66 -> 0 | U66: ='[3]Capex_FO input'!U66 -> 0 | V66: ='[3]Capex_FO input'!V66 -> 0.04 | W66: ='[3]Capex_FO input'!W66 -> 0.04 | X66: ='[3]Capex_FO input'!X66 -> 0 | Z66: ='[3]Capex_FO input'!Z66 -> 0 | AA66: ='[3]Capex_FO input'!AA66 -> 0 | AB66: ='[3]Capex_FO input'!AB66 -> 0 | AC66: ='[3]Capex_FO input'!AC66 -> 0 | AD66: ='[3]Capex_FO input'!AD66 -> 0 | AE66: ='[3]Capex_FO input'!AE66 -> 0 | AF66: ='[3]Capex_FO input'!AF66 -> 0 | AG66: ='[3]Capex_FO input'!AG66 -> 0 | AH66: ='[3]Capex_FO input'!AH66 -> 0 | AI66: ='[3]Capex_FO input'!AI66 -> 0 | AK66: ='[3]Capex_FO input'!AK66 -> 0 | AL66: ='[3]Capex_FO input'!AL66 -> 0 | AM66: ='[3]Capex_FO input'!AM66 -> 0 | AN66: ='[3]Capex_FO input'!AN66 -> 0 | AO66: ='[3]Capex_FO input'!AO66 -> 0 | AP66: ='[3]Capex_FO input'!AP66 -> 0 | AQ66: ='[3]Capex_FO input'!AQ66 -> 0 | AR66: ='[3]Capex_FO input'!AR66 -> 0 | AS66: ='[3]Capex_FO input'!AS66 -> 0 | AT66: ='[3]Capex_FO input'!AT66 -> 0 | AV66: 0 | AW66: 0 | AX66: 0.04 | AY66: 0.04 | AZ66: 0 | BA66: 0 | BB66: 0 | BC66: 0.04 | BD66: 0.04 | BE66: 0 | BG66: 0 | BH66: 0 | BI66: 0 | BJ66: 0 | BK66: 0 | BL66: 0 | BM66: 0 | BN66: 0 | BO66: 0.001777777778 | BP66: 0.003555555556 | BR66: =+IF($K66="Ongoing",AV66,IF(RIGHT($K66,2)=RIGHT(BR$39,2),SUM($AV66:AV66),0)+IF(RIGHT(BR$39,2)>RIGHT($K66,2),AV66,0)) -> 0 | BS66: =+IF($K66="Ongoing",AW66,IF(RIGHT($K66,2)=RIGHT(BS$39,2),SUM($AV66:AW66),0)+IF(RIGHT(BS$39,2)>RIGHT($K66,2),AW66,0)) -> 0 | BT66: =+IF($K66="Ongoing",AX66,IF(RIGHT($K66,2)=RIGHT(BT$39,2),SUM($AV66:AX66),0)+IF(RIGHT(BT$39,2)>RIGHT($K66,2),AX66,0)) -> 0 | BU66: =+IF($K66="Ongoing",AY66,IF(RIGHT($K66,2)=RIGHT(BU$39,2),SUM($AV66:AY66),0)+IF(RIGHT(BU$39,2)>RIGHT($K66,2),AY66,0)) -> 0 | BV66: =+IF($K66="Ongoing",AZ66,IF(RIGHT($K66,2)=RIGHT(BV$39,2),SUM($AV66:AZ66),0)+IF(RIGHT(BV$39,2)>RIGHT($K66,2),AZ66,0)) -> 0 | BW66: =+IF($K66="Ongoing",BA66,IF(RIGHT($K66,2)=RIGHT(BW$39,2),SUM($AV66:BA66),0)+IF(RIGHT(BW$39,2)>RIGHT($K66,2),BA66,0)) -> 0 | BX66: =+IF($K66="Ongoing",BB66,IF(RIGHT($K66,2)=RIGHT(BX$39,2),SUM($AV66:BB66),0)+IF(RIGHT(BX$39,2)>RIGHT($K66,2),BB66,0)) -> 0 | BY66: =+IF($K66="Ongoing",BC66,IF(RIGHT($K66,2)=RIGHT(BY$39,2),SUM($AV66:BC66),0)+IF(RIGHT(BY$39,2)>RIGHT($K66,2),BC66,0)) -> 0 | BZ66: =+IF($K66="Ongoing",BD66,IF(RIGHT($K66,2)=RIGHT(BZ$39,2),SUM($AV66:BD66),0)+IF(RIGHT(BZ$39,2)>RIGHT($K66,2),BD66,0)) -> 0.16 | CA66: =+IF($K66="Ongoing",BE66,IF(RIGHT($K66,2)=RIGHT(CA$39,2),SUM($AV66:BE66),0)+IF(RIGHT(CA$39,2)>RIGHT($K66,2),BE66,0)) -> 0 | CC66: =+O66*KeyAssumptionsPriceControl_FO!AC$15 -> 0 | CD66: =+P66*KeyAssumptionsPriceControl_FO!AD$15 -> 0 | CE66: =+Q66*KeyAssumptionsPriceControl_FO!AE$15 -> 0.04370908 | CF66: =+R66*KeyAssumptionsPriceControl_FO!AF$15 -> 0.0450203524 | CG66: =+S66*KeyAssumptionsPriceControl_FO!AG$15 -> 0 | CH66: =+T66*KeyAssumptionsPriceControl_FO!AH$15 -> 0 | CI66: =+U66*KeyAssumptionsPriceControl_FO!AI$15 -> 0 | CJ66: =+V66*KeyAssumptionsPriceControl_FO!AJ$15 -> 0.05067080326 | CK66: =+W66*KeyAssumptionsPriceControl_FO!AK$15 -> 0.05219092735 | CL66: =+X66*KeyAssumptionsPriceControl_FO!AL$15 -> 0 | CN66: 0 | CO66: 0 | CP66: 0.0009834543 | CQ66: 0.002979866529 | CR66: 0.003992824458 | CS66: 0.003992824458 | CT66: 0.003992824458 | CU66: 0.005132917531 | CV66: 0.00744730647 | CW66: 0.008621602335
C67: ='[3]Capex_FO input'!C67 -> Minor Capital Works - Replacement | D67: ='[3]Capex_FO input'!D62 -> 0 | E67: ='[3]Capex_FO input'!E67 -> Sewerage | F67: ='[3]Capex_FO input'!F67 -> Renewals | G67: ='[3]Capex_FO input'!G67 -> Pipelines/network | H67: ='[3]Capex_FO input'!H67 -> Capital programs / Allocation | I67: ='[3]Capex_FO input'!I67 -> 0 | J67: ='[3]Capex_FO input'!J67 -> Straight line | K67: ='[3]Capex_FO input'!K67 -> Ongoing | L67: ='[3]Capex_FO input'!L67 -> 45 | M67: ='[3]Capex_FO input'!M67 -> 22.22222222 | O67: ='[3]Capex_FO input'!O67 -> 0.465 | P67: ='[3]Capex_FO input'!P67 -> 0.465 | Q67: ='[3]Capex_FO input'!Q67 -> 0.465 | R67: ='[3]Capex_FO input'!R67 -> 0.465 | S67: ='[3]Capex_FO input'!S67 -> 0.465 | T67: ='[3]Capex_FO input'!T67 -> 0.488 | U67: ='[3]Capex_FO input'!U67 -> 0.488 | V67: ='[3]Capex_FO input'!V67 -> 0.488 | W67: ='[3]Capex_FO input'!W67 -> 0.488 | X67: ='[3]Capex_FO input'!X67 -> 0.488 | Z67: ='[3]Capex_FO input'!Z67 -> 0 | AA67: ='[3]Capex_FO input'!AA67 -> 0 | AB67: ='[3]Capex_FO input'!AB67 -> 0 | AC67: ='[3]Capex_FO input'!AC67 -> 0 | AD67: ='[3]Capex_FO input'!AD67 -> 0 | AE67: ='[3]Capex_FO input'!AE67 -> 0 | AF67: ='[3]Capex_FO input'!AF67 -> 0 | AG67: ='[3]Capex_FO input'!AG67 -> 0 | AH67: ='[3]Capex_FO input'!AH67 -> 0 | AI67: ='[3]Capex_FO input'!AI67 -> 0 | AK67: ='[3]Capex_FO input'!AK67 -> 0 | AL67: ='[3]Capex_FO input'!AL67 -> 0 | AM67: ='[3]Capex_FO input'!AM67 -> 0 | AN67: ='[3]Capex_FO input'!AN67 -> 0 | AO67: ='[3]Capex_FO input'!AO67 -> 0 | AP67: ='[3]Capex_FO input'!AP67 -> 0 | AQ67: ='[3]Capex_FO input'!AQ67 -> 0 | AR67: ='[3]Capex_FO input'!AR67 -> 0 | AS67: ='[3]Capex_FO input'!AS67 -> 0 | AT67: ='[3]Capex_FO input'!AT67 -> 0 | AV67: 0.465 | AW67: 0.465 | AX67: 0.465 | AY67: 0.465 | AZ67: 0.465 | BA67: 0.488 | BB67: 0.488 | BC67: 0.488 | BD67: 0.488 | BE67: 0.488 | BG67: 0.005166666667 | BH67: 0.0155 | BI67: 0.02583333333 | BJ67: 0.03616666667 | BK67: 0.0465 | BL67: 0.05708888889 | BM67: 0.06793333333 | BN67: 0.07877777778 | BO67: 0.08962222222 | BP67: 0.1004666667 | BR67: =+IF($K67="Ongoing",AV67,IF(RIGHT($K67,2)=RIGHT(BR$39,2),SUM($AV67:AV67),0)+IF(RIGHT(BR$39,2)>RIGHT($K67,2),AV67,0)) -> 0.465 | BS67: =+IF($K67="Ongoing",AW67,IF(RIGHT($K67,2)=RIGHT(BS$39,2),SUM($AV67:AW67),0)+IF(RIGHT(BS$39,2)>RIGHT($K67,2),AW67,0)) -> 0.465 | BT67: =+IF($K67="Ongoing",AX67,IF(RIGHT($K67,2)=RIGHT(BT$39,2),SUM($AV67:AX67),0)+IF(RIGHT(BT$39,2)>RIGHT($K67,2),AX67,0)) -> 0.465 | BU67: =+IF($K67="Ongoing",AY67,IF(RIGHT($K67,2)=RIGHT(BU$39,2),SUM($AV67:AY67),0)+IF(RIGHT(BU$39,2)>RIGHT($K67,2),AY67,0)) -> 0.465 | BV67: =+IF($K67="Ongoing",AZ67,IF(RIGHT($K67,2)=RIGHT(BV$39,2),SUM($AV67:AZ67),0)+IF(RIGHT(BV$39,2)>RIGHT($K67,2),AZ67,0)) -> 0.465 | BW67: =+IF($K67="Ongoing",BA67,IF(RIGHT($K67,2)=RIGHT(BW$39,2),SUM($AV67:BA67),0)+IF(RIGHT(BW$39,2)>RIGHT($K67,2),BA67,0)) -> 0.488 | BX67: =+IF($K67="Ongoing",BB67,IF(RIGHT($K67,2)=RIGHT(BX$39,2),SUM($AV67:BB67),0)+IF(RIGHT(BX$39,2)>RIGHT($K67,2),BB67,0)) -> 0.488 | BY67: =+IF($K67="Ongoing",BC67,IF(RIGHT($K67,2)=RIGHT(BY$39,2),SUM($AV67:BC67),0)+IF(RIGHT(BY$39,2)>RIGHT($K67,2),BC67,0)) -> 0.488 | BZ67: =+IF($K67="Ongoing",BD67,IF(RIGHT($K67,2)=RIGHT(BZ$39,2),SUM($AV67:BD67),0)+IF(RIGHT(BZ$39,2)>RIGHT($K67,2),BD67,0)) -> 0.488 | CA67: =+IF($K67="Ongoing",BE67,IF(RIGHT($K67,2)=RIGHT(CA$39,2),SUM($AV67:BE67),0)+IF(RIGHT(CA$39,2)>RIGHT($K67,2),BE67,0)) -> 0.488 | CC67: =+O67*KeyAssumptionsPriceControl_FO!AC$15 -> 0.47895 | CD67: =+P67*KeyAssumptionsPriceControl_FO!AD$15 -> 0.4933185 | CE67: =+Q67*KeyAssumptionsPriceControl_FO!AE$15 -> 0.508118055 | CF67: =+R67*KeyAssumptionsPriceControl_FO!AF$15 -> 0.5233615967 | CG67: =+S67*KeyAssumptionsPriceControl_FO!AG$15 -> 0.5390624445 | CH67: =+T67*KeyAssumptionsPriceControl_FO!AH$15 -> 0.5826975207 | CI67: =+U67*KeyAssumptionsPriceControl_FO!AI$15 -> 0.6001784463 | CJ67: =+V67*KeyAssumptionsPriceControl_FO!AJ$15 -> 0.6181837997 | CK67: =+W67*KeyAssumptionsPriceControl_FO!AK$15 -> 0.6367293137 | CL67: =+X67*KeyAssumptionsPriceControl_FO!AL$15 -> 0.6558311931 | CN67: 0.010776375 | CO67: 0.03265241625 | CP67: 0.05518473874 | CQ67: 0.0783930309 | CR67: 0.1022975718 | CS67: 0.127537171 | CT67: 0.1541518803 | CU67: 0.1815650308 | CV67: 0.2098005759 | CW67: 0.2388831873
C68: ='[3]Capex_FO input'!C68 -> Minor Capital Works - New | D68: ='[3]Capex_FO input'!D63 -> 0 | E68: ='[3]Capex_FO input'!E68 -> Sewerage | F68: ='[3]Capex_FO input'!F68 -> Improvements / Compliance | G68: ='[3]Capex_FO input'!G68 -> Treatment | H68: ='[3]Capex_FO input'!H68 -> Capital programs / Allocation | I68: ='[3]Capex_FO input'!I68 -> 0 | J68: ='[3]Capex_FO input'!J68 -> Straight line | K68: ='[3]Capex_FO input'!K68 -> Ongoing | L68: ='[3]Capex_FO input'!L68 -> 45 | M68: ='[3]Capex_FO input'!M68 -> 22.22222222 | O68: ='[3]Capex_FO input'!O68 -> 0.296 | P68: ='[3]Capex_FO input'!P68 -> 0.296 | Q68: ='[3]Capex_FO input'!Q68 -> 0.296 | R68: ='[3]Capex_FO input'!R68 -> 0.296 | S68: ='[3]Capex_FO input'!S68 -> 0.296 | T68: ='[3]Capex_FO input'!T68 -> 0.31 | U68: ='[3]Capex_FO input'!U68 -> 0.31 | V68: ='[3]Capex_FO input'!V68 -> 0.31 | W68: ='[3]Capex_FO input'!W68 -> 0.31 | X68: ='[3]Capex_FO input'!X68 -> 0.31 | Z68: ='[3]Capex_FO input'!Z68 -> 0 | AA68: ='[3]Capex_FO input'!AA68 -> 0 | AB68: ='[3]Capex_FO input'!AB68 -> 0 | AC68: ='[3]Capex_FO input'!AC68 -> 0 | AD68: ='[3]Capex_FO input'!AD68 -> 0 | AE68: ='[3]Capex_FO input'!AE68 -> 0 | AF68: ='[3]Capex_FO input'!AF68 -> 0 | AG68: ='[3]Capex_FO input'!AG68 -> 0 | AH68: ='[3]Capex_FO input'!AH68 -> 0 | AI68: ='[3]Capex_FO input'!AI68 -> 0 | AK68: ='[3]Capex_FO input'!AK68 -> 0 | AL68: ='[3]Capex_FO input'!AL68 -> 0 | AM68: ='[3]Capex_FO input'!AM68 -> 0 | AN68: ='[3]Capex_FO input'!AN68 -> 0 | AO68: ='[3]Capex_FO input'!AO68 -> 0 | AP68: ='[3]Capex_FO input'!AP68 -> 0 | AQ68: ='[3]Capex_FO input'!AQ68 -> 0 | AR68: ='[3]Capex_FO input'!AR68 -> 0 | AS68: ='[3]Capex_FO input'!AS68 -> 0 | AT68: ='[3]Capex_FO input'!AT68 -> 0 | AV68: 0.296 | AW68: 0.296 | AX68: 0.296 | AY68: 0.296 | AZ68: 0.296 | BA68: 0.31 | BB68: 0.31 | BC68: 0.31 | BD68: 0.31 | BE68: 0.31 | BG68: 0.003288888889 | BH68: 0.009866666667 | BI68: 0.01644444444 | BJ68: 0.02302222222 | BK68: 0.0296 | BL68: 0.03633333333 | BM68: 0.04322222222 | BN68: 0.05011111111 | BO68: 0.057 | BP68: 0.06388888889 | BR68: =+IF($K68="Ongoing",AV68,IF(RIGHT($K68,2)=RIGHT(BR$39,2),SUM($AV68:AV68),0)+IF(RIGHT(BR$39,2)>RIGHT($K68,2),AV68,0)) -> 0.296 | BS68: =+IF($K68="Ongoing",AW68,IF(RIGHT($K68,2)=RIGHT(BS$39,2),SUM($AV68:AW68),0)+IF(RIGHT(BS$39,2)>RIGHT($K68,2),AW68,0)) -> 0.296 | BT68: =+IF($K68="Ongoing",AX68,IF(RIGHT($K68,2)=RIGHT(BT$39,2),SUM($AV68:AX68),0)+IF(RIGHT(BT$39,2)>RIGHT($K68,2),AX68,0)) -> 0.296 | BU68: =+IF($K68="Ongoing",AY68,IF(RIGHT($K68,2)=RIGHT(BU$39,2),SUM($AV68:AY68),0)+IF(RIGHT(BU$39,2)>RIGHT($K68,2),AY68,0)) -> 0.296 | BV68: =+IF($K68="Ongoing",AZ68,IF(RIGHT($K68,2)=RIGHT(BV$39,2),SUM($AV68:AZ68),0)+IF(RIGHT(BV$39,2)>RIGHT($K68,2),AZ68,0)) -> 0.296 | BW68: =+IF($K68="Ongoing",BA68,IF(RIGHT($K68,2)=RIGHT(BW$39,2),SUM($AV68:BA68),0)+IF(RIGHT(BW$39,2)>RIGHT($K68,2),BA68,0)) -> 0.31 | BX68: =+IF($K68="Ongoing",BB68,IF(RIGHT($K68,2)=RIGHT(BX$39,2),SUM($AV68:BB68),0)+IF(RIGHT(BX$39,2)>RIGHT($K68,2),BB68,0)) -> 0.31 | BY68: =+IF($K68="Ongoing",BC68,IF(RIGHT($K68,2)=RIGHT(BY$39,2),SUM($AV68:BC68),0)+IF(RIGHT(BY$39,2)>RIGHT($K68,2),BC68,0)) -> 0.31 | BZ68: =+IF($K68="Ongoing",BD68,IF(RIGHT($K68,2)=RIGHT(BZ$39,2),SUM($AV68:BD68),0)+IF(RIGHT(BZ$39,2)>RIGHT($K68,2),BD68,0)) -> 0.31 | CA68: =+IF($K68="Ongoing",BE68,IF(RIGHT($K68,2)=RIGHT(CA$39,2),SUM($AV68:BE68),0)+IF(RIGHT(CA$39,2)>RIGHT($K68,2),BE68,0)) -> 0.31 | CC68: =+O68*KeyAssumptionsPriceControl_FO!AC$15 -> 0.30488 | CD68: =+P68*KeyAssumptionsPriceControl_FO!AD$15 -> 0.3140264 | CE68: =+Q68*KeyAssumptionsPriceControl_FO!AE$15 -> 0.323447192 | CF68: =+R68*KeyAssumptionsPriceControl_FO!AF$15 -> 0.3331506078 | CG68: =+S68*KeyAssumptionsPriceControl_FO!AG$15 -> 0.343145126 | CH68: =+T68*KeyAssumptionsPriceControl_FO!AH$15 -> 0.3701562119 | CI68: =+U68*KeyAssumptionsPriceControl_FO!AI$15 -> 0.3812608983 | CJ68: =+V68*KeyAssumptionsPriceControl_FO!AJ$15 -> 0.3926987252 | CK68: =+W68*KeyAssumptionsPriceControl_FO!AK$15 -> 0.404479687 | CL68: =+X68*KeyAssumptionsPriceControl_FO!AL$15 -> 0.4166140776 | CN68: 0.0068598 | CO68: 0.020785194 | CP68: 0.03512834982 | CQ68: 0.04990180031 | CR68: 0.06511845432 | CS68: 0.08116773443 | CT68: 0.09807461941 | CU68: 0.1154887109 | CV68: 0.1334252252 | CW68: 0.1518998349
C69: ='[3]Capex_FO input'!C69 -> Land Development | D69: ='[3]Capex_FO input'!D64 -> 0 | E69: ='[3]Capex_FO input'!E69 -> Sewerage | F69: ='[3]Capex_FO input'!F69 -> Growth | G69: ='[3]Capex_FO input'!G69 -> Pipelines/network | H69: ='[3]Capex_FO input'!H69 -> Capital programs / Allocation | I69: ='[3]Capex_FO input'!I69 -> 0 | J69: ='[3]Capex_FO input'!J69 -> Straight line | K69: ='[3]Capex_FO input'!K69 -> Ongoing | L69: ='[3]Capex_FO input'!L69 -> 80 | M69: ='[3]Capex_FO input'!M69 -> 22.22222222 | O69: ='[3]Capex_FO input'!O69 -> 0.25 | P69: ='[3]Capex_FO input'!P69 -> 0.25 | Q69: ='[3]Capex_FO input'!Q69 -> 0.25 | R69: ='[3]Capex_FO input'!R69 -> 0.25 | S69: ='[3]Capex_FO input'!S69 -> 0.25 | T69: ='[3]Capex_FO input'!T69 -> 0.263 | U69: ='[3]Capex_FO input'!U69 -> 0.263 | V69: ='[3]Capex_FO input'!V69 -> 0.263 | W69: ='[3]Capex_FO input'!W69 -> 0.263 | X69: ='[3]Capex_FO input'!X69 -> 0.263 | Z69: ='[3]Capex_FO input'!Z69 -> 0 | AA69: ='[3]Capex_FO input'!AA69 -> 0 | AB69: ='[3]Capex_FO input'!AB69 -> 0 | AC69: ='[3]Capex_FO input'!AC69 -> 0 | AD69: ='[3]Capex_FO input'!AD69 -> 0 | AE69: ='[3]Capex_FO input'!AE69 -> 0 | AF69: ='[3]Capex_FO input'!AF69 -> 0 | AG69: ='[3]Capex_FO input'!AG69 -> 0 | AH69: ='[3]Capex_FO input'!AH69 -> 0 | AI69: ='[3]Capex_FO input'!AI69 -> 0 | AK69: ='[3]Capex_FO input'!AK69 -> 0 | AL69: ='[3]Capex_FO input'!AL69 -> 0 | AM69: ='[3]Capex_FO input'!AM69 -> 0 | AN69: ='[3]Capex_FO input'!AN69 -> 0 | AO69: ='[3]Capex_FO input'!AO69 -> 0 | AP69: ='[3]Capex_FO input'!AP69 -> 0 | AQ69: ='[3]Capex_FO input'!AQ69 -> 0 | AR69: ='[3]Capex_FO input'!AR69 -> 0 | AS69: ='[3]Capex_FO input'!AS69 -> 0 | AT69: ='[3]Capex_FO input'!AT69 -> 0 | AV69: 0.25 | AW69: 0.25 | AX69: 0.25 | AY69: 0.25 | AZ69: 0.25 | BA69: 0.263 | BB69: 0.263 | BC69: 0.263 | BD69: 0.263 | BE69: 0.263 | BG69: 0.0015625 | BH69: 0.0046875 | BI69: 0.0078125 | BJ69: 0.0109375 | BK69: 0.0140625 | BL69: 0.01726875 | BM69: 0.02055625 | BN69: 0.02384375 | BO69: 0.02713125 | BP69: 0.03041875 | BR69: =+IF($K69="Ongoing",AV69,IF(RIGHT($K69,2)=RIGHT(BR$39,2),SUM($AV69:AV69),0)+IF(RIGHT(BR$39,2)>RIGHT($K69,2),AV69,0)) -> 0.25 | BS69: =+IF($K69="Ongoing",AW69,IF(RIGHT($K69,2)=RIGHT(BS$39,2),SUM($AV69:AW69),0)+IF(RIGHT(BS$39,2)>RIGHT($K69,2),AW69,0)) -> 0.25 | BT69: =+IF($K69="Ongoing",AX69,IF(RIGHT($K69,2)=RIGHT(BT$39,2),SUM($AV69:AX69),0)+IF(RIGHT(BT$39,2)>RIGHT($K69,2),AX69,0)) -> 0.25 | BU69: =+IF($K69="Ongoing",AY69,IF(RIGHT($K69,2)=RIGHT(BU$39,2),SUM($AV69:AY69),0)+IF(RIGHT(BU$39,2)>RIGHT($K69,2),AY69,0)) -> 0.25 | BV69: =+IF($K69="Ongoing",AZ69,IF(RIGHT($K69,2)=RIGHT(BV$39,2),SUM($AV69:AZ69),0)+IF(RIGHT(BV$39,2)>RIGHT($K69,2),AZ69,0)) -> 0.25 | BW69: =+IF($K69="Ongoing",BA69,IF(RIGHT($K69,2)=RIGHT(BW$39,2),SUM($AV69:BA69),0)+IF(RIGHT(BW$39,2)>RIGHT($K69,2),BA69,0)) -> 0.263 | BX69: =+IF($K69="Ongoing",BB69,IF(RIGHT($K69,2)=RIGHT(BX$39,2),SUM($AV69:BB69),0)+IF(RIGHT(BX$39,2)>RIGHT($K69,2),BB69,0)) -> 0.263 | BY69: =+IF($K69="Ongoing",BC69,IF(RIGHT($K69,2)=RIGHT(BY$39,2),SUM($AV69:BC69),0)+IF(RIGHT(BY$39,2)>RIGHT($K69,2),BC69,0)) -> 0.263 | BZ69: =+IF($K69="Ongoing",BD69,IF(RIGHT($K69,2)=RIGHT(BZ$39,2),SUM($AV69:BD69),0)+IF(RIGHT(BZ$39,2)>RIGHT($K69,2),BD69,0)) -> 0.263 | CA69: =+IF($K69="Ongoing",BE69,IF(RIGHT($K69,2)=RIGHT(CA$39,2),SUM($AV69:BE69),0)+IF(RIGHT(CA$39,2)>RIGHT($K69,2),BE69,0)) -> 0.263 | CC69: =+O69*KeyAssumptionsPriceControl_FO!AC$15 -> 0.2575 | CD69: =+P69*KeyAssumptionsPriceControl_FO!AD$15 -> 0.265225 | CE69: =+Q69*KeyAssumptionsPriceControl_FO!AE$15 -> 0.27318175 | CF69: =+R69*KeyAssumptionsPriceControl_FO!AF$15 -> 0.2813772025 | CG69: =+S69*KeyAssumptionsPriceControl_FO!AG$15 -> 0.2898185186 | CH69: =+T69*KeyAssumptionsPriceControl_FO!AH$15 -> 0.314035754 | CI69: =+U69*KeyAssumptionsPriceControl_FO!AI$15 -> 0.3234568266 | CJ69: =+V69*KeyAssumptionsPriceControl_FO!AJ$15 -> 0.3331605314 | CK69: =+W69*KeyAssumptionsPriceControl_FO!AK$15 -> 0.3431553473 | CL69: =+X69*KeyAssumptionsPriceControl_FO!AL$15 -> 0.3534500078 | CN69: 0.00579375 | CO69: 0.0175550625 | CP69: 0.02966921438 | CQ69: 0.04214679081 | CR69: 0.05499869453 | CS69: 0.06858541566 | CT69: 0.08292899873 | CU69: 0.09770288928 | CV69: 0.1129199966 | CW69: 0.128593617
C70: ='[3]Capex_FO input'!C70 -> ALL SITES SCADA Upgrades | D70: ='[3]Capex_FO input'!D65 -> 0 | E70: ='[3]Capex_FO input'!E70 -> Sewerage | F70: ='[3]Capex_FO input'!F70 -> Renewals | G70: ='[3]Capex_FO input'!G70 -> Treatment | H70: ='[3]Capex_FO input'!H70 -> Capital programs / Allocation | I70: ='[3]Capex_FO input'!I70 -> 0 | J70: ='[3]Capex_FO input'!J70 -> Straight line | K70: ='[3]Capex_FO input'!K70 -> 2023-24 | L70: ='[3]Capex_FO input'!L70 -> 45 | M70: ='[3]Capex_FO input'!M70 -> 22.22222222 | O70: ='[3]Capex_FO input'!O70 -> 0.2 | P70: ='[3]Capex_FO input'!P70 -> 0 | Q70: ='[3]Capex_FO input'!Q70 -> 0 | R70: ='[3]Capex_FO input'!R70 -> 0 | S70: ='[3]Capex_FO input'!S70 -> 0 | T70: ='[3]Capex_FO input'!T70 -> 0 | U70: ='[3]Capex_FO input'!U70 -> 0 | V70: ='[3]Capex_FO input'!V70 -> 0 | W70: ='[3]Capex_FO input'!W70 -> 0 | X70: ='[3]Capex_FO input'!X70 -> 0 | Z70: ='[3]Capex_FO input'!Z70 -> 0 | AA70: ='[3]Capex_FO input'!AA70 -> 0 | AB70: ='[3]Capex_FO input'!AB70 -> 0 | AC70: ='[3]Capex_FO input'!AC70 -> 0 | AD70: ='[3]Capex_FO input'!AD70 -> 0 | AE70: ='[3]Capex_FO input'!AE70 -> 0 | AF70: ='[3]Capex_FO input'!AF70 -> 0 | AG70: ='[3]Capex_FO input'!AG70 -> 0 | AH70: ='[3]Capex_FO input'!AH70 -> 0 | AI70: ='[3]Capex_FO input'!AI70 -> 0 | AK70: ='[3]Capex_FO input'!AK70 -> 0 | AL70: ='[3]Capex_FO input'!AL70 -> 0 | AM70: ='[3]Capex_FO input'!AM70 -> 0 | AN70: ='[3]Capex_FO input'!AN70 -> 0 | AO70: ='[3]Capex_FO input'!AO70 -> 0 | AP70: ='[3]Capex_FO input'!AP70 -> 0 | AQ70: ='[3]Capex_FO input'!AQ70 -> 0 | AR70: ='[3]Capex_FO input'!AR70 -> 0 | AS70: ='[3]Capex_FO input'!AS70 -> 0 | AT70: ='[3]Capex_FO input'!AT70 -> 0 | AV70: 0.2 | AW70: 0 | AX70: 0 | AY70: 0 | AZ70: 0 | BA70: 0 | BB70: 0 | BC70: 0 | BD70: 0 | BE70: 0 | BG70: 0.002222222222 | BH70: 0.004444444444 | BI70: 0.004444444444 | BJ70: 0.004444444444 | BK70: 0.004444444444 | BL70: 0.004444444444 | BM70: 0.004444444444 | BN70: 0.004444444444 | BO70: 0.004444444444 | BP70: 0.004444444444 | BR70: =+IF($K70="Ongoing",AV70,IF(RIGHT($K70,2)=RIGHT(BR$39,2),SUM($AV70:AV70),0)+IF(RIGHT(BR$39,2)>RIGHT($K70,2),AV70,0)) -> 0.2 | BS70: =+IF($K70="Ongoing",AW70,IF(RIGHT($K70,2)=RIGHT(BS$39,2),SUM($AV70:AW70),0)+IF(RIGHT(BS$39,2)>RIGHT($K70,2),AW70,0)) -> 0 | BT70: =+IF($K70="Ongoing",AX70,IF(RIGHT($K70,2)=RIGHT(BT$39,2),SUM($AV70:AX70),0)+IF(RIGHT(BT$39,2)>RIGHT($K70,2),AX70,0)) -> 0 | BU70: =+IF($K70="Ongoing",AY70,IF(RIGHT($K70,2)=RIGHT(BU$39,2),SUM($AV70:AY70),0)+IF(RIGHT(BU$39,2)>RIGHT($K70,2),AY70,0)) -> 0 | BV70: =+IF($K70="Ongoing",AZ70,IF(RIGHT($K70,2)=RIGHT(BV$39,2),SUM($AV70:AZ70),0)+IF(RIGHT(BV$39,2)>RIGHT($K70,2),AZ70,0)) -> 0 | BW70: =+IF($K70="Ongoing",BA70,IF(RIGHT($K70,2)=RIGHT(BW$39,2),SUM($AV70:BA70),0)+IF(RIGHT(BW$39,2)>RIGHT($K70,2),BA70,0)) -> 0 | BX70: =+IF($K70="Ongoing",BB70,IF(RIGHT($K70,2)=RIGHT(BX$39,2),SUM($AV70:BB70),0)+IF(RIGHT(BX$39,2)>RIGHT($K70,2),BB70,0)) -> 0 | BY70: =+IF($K70="Ongoing",BC70,IF(RIGHT($K70,2)=RIGHT(BY$39,2),SUM($AV70:BC70),0)+IF(RIGHT(BY$39,2)>RIGHT($K70,2),BC70,0)) -> 0 | BZ70: =+IF($K70="Ongoing",BD70,IF(RIGHT($K70,2)=RIGHT(BZ$39,2),SUM($AV70:BD70),0)+IF(RIGHT(BZ$39,2)>RIGHT($K70,2),BD70,0)) -> 0 | CA70: =+IF($K70="Ongoing",BE70,IF(RIGHT($K70,2)=RIGHT(CA$39,2),SUM($AV70:BE70),0)+IF(RIGHT(CA$39,2)>RIGHT($K70,2),BE70,0)) -> 0 | CC70: =+O70*KeyAssumptionsPriceControl_FO!AC$15 -> 0.206 | CD70: =+P70*KeyAssumptionsPriceControl_FO!AD$15 -> 0 | CE70: =+Q70*KeyAssumptionsPriceControl_FO!AE$15 -> 0 | CF70: =+R70*KeyAssumptionsPriceControl_FO!AF$15 -> 0 | CG70: =+S70*KeyAssumptionsPriceControl_FO!AG$15 -> 0 | CH70: =+T70*KeyAssumptionsPriceControl_FO!AH$15 -> 0 | CI70: =+U70*KeyAssumptionsPriceControl_FO!AI$15 -> 0 | CJ70: =+V70*KeyAssumptionsPriceControl_FO!AJ$15 -> 0 | CK70: =+W70*KeyAssumptionsPriceControl_FO!AK$15 -> 0 | CL70: =+X70*KeyAssumptionsPriceControl_FO!AL$15 -> 0 | CN70: 0.004635 | CO70: 0.00927 | CP70: 0.00927 | CQ70: 0.00927 | CR70: 0.00927 | CS70: 0.00927 | CT70: 0.00927 | CU70: 0.00927 | CV70: 0.00927 | CW70: 0.00927
C71: ='[3]Capex_FO input'!C71 -> ALL SITES Sewerage Pump Replacement Program | D71: ='[3]Capex_FO input'!D66 -> 0 | E71: ='[3]Capex_FO input'!E71 -> Sewerage | F71: ='[3]Capex_FO input'!F71 -> Renewals | G71: ='[3]Capex_FO input'!G71 -> Pipelines/network | H71: ='[3]Capex_FO input'!H71 -> Capital programs / Allocation | I71: ='[3]Capex_FO input'!I71 -> 0 | J71: ='[3]Capex_FO input'!J71 -> Straight line | K71: ='[3]Capex_FO input'!K71 -> Ongoing | L71: ='[3]Capex_FO input'!L71 -> 45 | M71: ='[3]Capex_FO input'!M71 -> 22.22222222 | O71: ='[3]Capex_FO input'!O71 -> 0.074 | P71: ='[3]Capex_FO input'!P71 -> 0.074 | Q71: ='[3]Capex_FO input'!Q71 -> 0.074 | R71: ='[3]Capex_FO input'!R71 -> 0.074 | S71: ='[3]Capex_FO input'!S71 -> 0.074 | T71: ='[3]Capex_FO input'!T71 -> 0.074 | U71: ='[3]Capex_FO input'!U71 -> 0.074 | V71: ='[3]Capex_FO input'!V71 -> 0.074 | W71: ='[3]Capex_FO input'!W71 -> 0.074 | X71: ='[3]Capex_FO input'!X71 -> 0.074 | Z71: ='[3]Capex_FO input'!Z71 -> 0 | AA71: ='[3]Capex_FO input'!AA71 -> 0 | AB71: ='[3]Capex_FO input'!AB71 -> 0 | AC71: ='[3]Capex_FO input'!AC71 -> 0 | AD71: ='[3]Capex_FO input'!AD71 -> 0 | AE71: ='[3]Capex_FO input'!AE71 -> 0 | AF71: ='[3]Capex_FO input'!AF71 -> 0 | AG71: ='[3]Capex_FO input'!AG71 -> 0 | AH71: ='[3]Capex_FO input'!AH71 -> 0 | AI71: ='[3]Capex_FO input'!AI71 -> 0 | AK71: ='[3]Capex_FO input'!AK71 -> 0 | AL71: ='[3]Capex_FO input'!AL71 -> 0 | AM71: ='[3]Capex_FO input'!AM71 -> 0 | AN71: ='[3]Capex_FO input'!AN71 -> 0 | AO71: ='[3]Capex_FO input'!AO71 -> 0 | AP71: ='[3]Capex_FO input'!AP71 -> 0 | AQ71: ='[3]Capex_FO input'!AQ71 -> 0 | AR71: ='[3]Capex_FO input'!AR71 -> 0 | AS71: ='[3]Capex_FO input'!AS71 -> 0 | AT71: ='[3]Capex_FO input'!AT71 -> 0 | AV71: 0.074 | AW71: 0.074 | AX71: 0.074 | AY71: 0.074 | AZ71: 0.074 | BA71: 0.074 | BB71: 0.074 | BC71: 0.074 | BD71: 0.074 | BE71: 0.074 | BG71: 0.0008222222222 | BH71: 0.002466666667 | BI71: 0.004111111111 | BJ71: 0.005755555556 | BK71: 0.0074 | BL71: 0.009044444444 | BM71: 0.01068888889 | BN71: 0.01233333333 | BO71: 0.01397777778 | BP71: 0.01562222222 | BR71: =+IF($K71="Ongoing",AV71,IF(RIGHT($K71,2)=RIGHT(BR$39,2),SUM($AV71:AV71),0)+IF(RIGHT(BR$39,2)>RIGHT($K71,2),AV71,0)) -> 0.074 | BS71: =+IF($K71="Ongoing",AW71,IF(RIGHT($K71,2)=RIGHT(BS$39,2),SUM($AV71:AW71),0)+IF(RIGHT(BS$39,2)>RIGHT($K71,2),AW71,0)) -> 0.074 | BT71: =+IF($K71="Ongoing",AX71,IF(RIGHT($K71,2)=RIGHT(BT$39,2),SUM($AV71:AX71),0)+IF(RIGHT(BT$39,2)>RIGHT($K71,2),AX71,0)) -> 0.074 | BU71: =+IF($K71="Ongoing",AY71,IF(RIGHT($K71,2)=RIGHT(BU$39,2),SUM($AV71:AY71),0)+IF(RIGHT(BU$39,2)>RIGHT($K71,2),AY71,0)) -> 0.074 | BV71: =+IF($K71="Ongoing",AZ71,IF(RIGHT($K71,2)=RIGHT(BV$39,2),SUM($AV71:AZ71),0)+IF(RIGHT(BV$39,2)>RIGHT($K71,2),AZ71,0)) -> 0.074 | BW71: =+IF($K71="Ongoing",BA71,IF(RIGHT($K71,2)=RIGHT(BW$39,2),SUM($AV71:BA71),0)+IF(RIGHT(BW$39,2)>RIGHT($K71,2),BA71,0)) -> 0.074 | BX71: =+IF($K71="Ongoing",BB71,IF(RIGHT($K71,2)=RIGHT(BX$39,2),SUM($AV71:BB71),0)+IF(RIGHT(BX$39,2)>RIGHT($K71,2),BB71,0)) -> 0.074 | BY71: =+IF($K71="Ongoing",BC71,IF(RIGHT($K71,2)=RIGHT(BY$39,2),SUM($AV71:BC71),0)+IF(RIGHT(BY$39,2)>RIGHT($K71,2),BC71,0)) -> 0.074 | BZ71: =+IF($K71="Ongoing",BD71,IF(RIGHT($K71,2)=RIGHT(BZ$39,2),SUM($AV71:BD71),0)+IF(RIGHT(BZ$39,2)>RIGHT($K71,2),BD71,0)) -> 0.074 | CA71: =+IF($K71="Ongoing",BE71,IF(RIGHT($K71,2)=RIGHT(CA$39,2),SUM($AV71:BE71),0)+IF(RIGHT(CA$39,2)>RIGHT($K71,2),BE71,0)) -> 0.074 | CC71: =+O71*KeyAssumptionsPriceControl_FO!AC$15 -> 0.07622 | CD71: =+P71*KeyAssumptionsPriceControl_FO!AD$15 -> 0.0785066 | CE71: =+Q71*KeyAssumptionsPriceControl_FO!AE$15 -> 0.080861798 | CF71: =+R71*KeyAssumptionsPriceControl_FO!AF$15 -> 0.08328765194 | CG71: =+S71*KeyAssumptionsPriceControl_FO!AG$15 -> 0.0857862815 | CH71: =+T71*KeyAssumptionsPriceControl_FO!AH$15 -> 0.08835986994 | CI71: =+U71*KeyAssumptionsPriceControl_FO!AI$15 -> 0.09101066604 | CJ71: =+V71*KeyAssumptionsPriceControl_FO!AJ$15 -> 0.09374098602 | CK71: =+W71*KeyAssumptionsPriceControl_FO!AK$15 -> 0.0965532156 | CL71: =+X71*KeyAssumptionsPriceControl_FO!AL$15 -> 0.09944981207 | CN71: 0.00171495 | CO71: 0.0051962985 | CP71: 0.008782087455 | CQ71: 0.01247545008 | CR71: 0.01627961358 | CS71: 0.02019790199 | CT71: 0.02423373905 | CU71: 0.02839065122 | CV71: 0.03267227076 | CW71: 0.03708233888
C72: ='[3]Capex_FO input'!C72 -> ALL SITES SPS Switchboard Replacement/Upgrade Program | D72: ='[3]Capex_FO input'!D67 -> 0 | E72: ='[3]Capex_FO input'!E72 -> Sewerage | F72: ='[3]Capex_FO input'!F72 -> Renewals | G72: ='[3]Capex_FO input'!G72 -> Pipelines/network | H72: ='[3]Capex_FO input'!H72 -> Capital programs / Allocation | I72: ='[3]Capex_FO input'!I72 -> 0 | J72: ='[3]Capex_FO input'!J72 -> Straight line | K72: ='[3]Capex_FO input'!K72 -> Ongoing | L72: ='[3]Capex_FO input'!L72 -> 45 | M72: ='[3]Capex_FO input'!M72 -> 22.22222222 | O72: ='[3]Capex_FO input'!O72 -> 0 | P72: ='[3]Capex_FO input'!P72 -> 0.1 | Q72: ='[3]Capex_FO input'!Q72 -> 0.1 | R72: ='[3]Capex_FO input'!R72 -> 0.1 | S72: ='[3]Capex_FO input'!S72 -> 0.122 | T72: ='[3]Capex_FO input'!T72 -> 0.4 | U72: ='[3]Capex_FO input'!U72 -> 0.4 | V72: ='[3]Capex_FO input'!V72 -> 0.4 | W72: ='[3]Capex_FO input'!W72 -> 0.4 | X72: ='[3]Capex_FO input'!X72 -> 0.51 | Z72: ='[3]Capex_FO input'!Z72 -> 0 | AA72: ='[3]Capex_FO input'!AA72 -> 0 | AB72: ='[3]Capex_FO input'!AB72 -> 0 | AC72: ='[3]Capex_FO input'!AC72 -> 0 | AD72: ='[3]Capex_FO input'!AD72 -> 0 | AE72: ='[3]Capex_FO input'!AE72 -> 0 | AF72: ='[3]Capex_FO input'!AF72 -> 0 | AG72: ='[3]Capex_FO input'!AG72 -> 0 | AH72: ='[3]Capex_FO input'!AH72 -> 0 | AI72: ='[3]Capex_FO input'!AI72 -> 0 | AK72: ='[3]Capex_FO input'!AK72 -> 0 | AL72: ='[3]Capex_FO input'!AL72 -> 0 | AM72: ='[3]Capex_FO input'!AM72 -> 0 | AN72: ='[3]Capex_FO input'!AN72 -> 0 | AO72: ='[3]Capex_FO input'!AO72 -> 0 | AP72: ='[3]Capex_FO input'!AP72 -> 0 | AQ72: ='[3]Capex_FO input'!AQ72 -> 0 | AR72: ='[3]Capex_FO input'!AR72 -> 0 | AS72: ='[3]Capex_FO input'!AS72 -> 0 | AT72: ='[3]Capex_FO input'!AT72 -> 0 | AV72: 0 | AW72: 0.1 | AX72: 0.1 | AY72: 0.1 | AZ72: 0.122 | BA72: 0.4 | BB72: 0.4 | BC72: 0.4 | BD72: 0.4 | BE72: 0.51 | BG72: 0 | BH72: 0.001111111111 | BI72: 0.003333333333 | BJ72: 0.005555555556 | BK72: 0.008022222222 | BL72: 0.01382222222 | BM72: 0.02271111111 | BN72: 0.0316 | BO72: 0.04048888889 | BP72: 0.0506 | BR72: =+IF($K72="Ongoing",AV72,IF(RIGHT($K72,2)=RIGHT(BR$39,2),SUM($AV72:AV72),0)+IF(RIGHT(BR$39,2)>RIGHT($K72,2),AV72,0)) -> 0 | BS72: =+IF($K72="Ongoing",AW72,IF(RIGHT($K72,2)=RIGHT(BS$39,2),SUM($AV72:AW72),0)+IF(RIGHT(BS$39,2)>RIGHT($K72,2),AW72,0)) -> 0.1 | BT72: =+IF($K72="Ongoing",AX72,IF(RIGHT($K72,2)=RIGHT(BT$39,2),SUM($AV72:AX72),0)+IF(RIGHT(BT$39,2)>RIGHT($K72,2),AX72,0)) -> 0.1 | BU72: =+IF($K72="Ongoing",AY72,IF(RIGHT($K72,2)=RIGHT(BU$39,2),SUM($AV72:AY72),0)+IF(RIGHT(BU$39,2)>RIGHT($K72,2),AY72,0)) -> 0.1 | BV72: =+IF($K72="Ongoing",AZ72,IF(RIGHT($K72,2)=RIGHT(BV$39,2),SUM($AV72:AZ72),0)+IF(RIGHT(BV$39,2)>RIGHT($K72,2),AZ72,0)) -> 0.122 | BW72: =+IF($K72="Ongoing",BA72,IF(RIGHT($K72,2)=RIGHT(BW$39,2),SUM($AV72:BA72),0)+IF(RIGHT(BW$39,2)>RIGHT($K72,2),BA72,0)) -> 0.4 | BX72: =+IF($K72="Ongoing",BB72,IF(RIGHT($K72,2)=RIGHT(BX$39,2),SUM($AV72:BB72),0)+IF(RIGHT(BX$39,2)>RIGHT($K72,2),BB72,0)) -> 0.4 | BY72: =+IF($K72="Ongoing",BC72,IF(RIGHT($K72,2)=RIGHT(BY$39,2),SUM($AV72:BC72),0)+IF(RIGHT(BY$39,2)>RIGHT($K72,2),BC72,0)) -> 0.4 | BZ72: =+IF($K72="Ongoing",BD72,IF(RIGHT($K72,2)=RIGHT(BZ$39,2),SUM($AV72:BD72),0)+IF(RIGHT(BZ$39,2)>RIGHT($K72,2),BD72,0)) -> 0.4 | CA72: =+IF($K72="Ongoing",BE72,IF(RIGHT($K72,2)=RIGHT(CA$39,2),SUM($AV72:BE72),0)+IF(RIGHT(CA$39,2)>RIGHT($K72,2),BE72,0)) -> 0.51 | CC72: =+O72*KeyAssumptionsPriceControl_FO!AC$15 -> 0 | CD72: =+P72*KeyAssumptionsPriceControl_FO!AD$15 -> 0.10609 | CE72: =+Q72*KeyAssumptionsPriceControl_FO!AE$15 -> 0.1092727 | CF72: =+R72*KeyAssumptionsPriceControl_FO!AF$15 -> 0.112550881 | CG72: =+S72*KeyAssumptionsPriceControl_FO!AG$15 -> 0.1414314371 | CH72: =+T72*KeyAssumptionsPriceControl_FO!AH$15 -> 0.4776209186 | CI72: =+U72*KeyAssumptionsPriceControl_FO!AI$15 -> 0.4919495462 | CJ72: =+V72*KeyAssumptionsPriceControl_FO!AJ$15 -> 0.5067080326 | CK72: =+W72*KeyAssumptionsPriceControl_FO!AK$15 -> 0.5219092735 | CL72: =+X72*KeyAssumptionsPriceControl_FO!AL$15 -> 0.6853973535 | CN72: 0 | CO72: 0.002387025 | CP72: 0.00723268575 | CQ72: 0.01222371632 | CR72: 0.01793831848 | CS72: 0.03186699648 | CT72: 0.05368233194 | CU72: 0.07615212746 | CV72: 0.09929601685 | CW72: 0.126460416
C73: ='[3]Capex_FO input'!C73 -> 0 | D73: ='[3]Capex_FO input'!D68 -> 0 | E73: ='[3]Capex_FO input'!E73 -> 0 | F73: ='[3]Capex_FO input'!F73 -> 0 | G73: ='[3]Capex_FO input'!G73 -> 0 | H73: ='[3]Capex_FO input'!H73 -> 0 | I73: ='[3]Capex_FO input'!I73 -> 0 | J73: ='[3]Capex_FO input'!J73 -> Straight line | K73: ='[3]Capex_FO input'!K73 -> 0 | L73: ='[3]Capex_FO input'!L73 -> 0 | M73: ='[3]Capex_FO input'!M73 -> 0 | O73: ='[3]Capex_FO input'!O73 -> 0 | P73: ='[3]Capex_FO input'!P73 -> 0 | Q73: ='[3]Capex_FO input'!Q73 -> 0 | R73: ='[3]Capex_FO input'!R73 -> 0 | S73: ='[3]Capex_FO input'!S73 -> 0 | T73: ='[3]Capex_FO input'!T73 -> 0 | U73: ='[3]Capex_FO input'!U73 -> 0 | V73: ='[3]Capex_FO input'!V73 -> 0 | W73: ='[3]Capex_FO input'!W73 -> 0 | X73: ='[3]Capex_FO input'!X73 -> 0 | Z73: ='[3]Capex_FO input'!Z73 -> 0 | AA73: ='[3]Capex_FO input'!AA73 -> 0 | AB73: ='[3]Capex_FO input'!AB73 -> 0 | AC73: ='[3]Capex_FO input'!AC73 -> 0 | AD73: ='[3]Capex_FO input'!AD73 -> 0 | AE73: ='[3]Capex_FO input'!AE73 -> 0 | AF73: ='[3]Capex_FO input'!AF73 -> 0 | AG73: ='[3]Capex_FO input'!AG73 -> 0 | AH73: ='[3]Capex_FO input'!AH73 -> 0 | AI73: ='[3]Capex_FO input'!AI73 -> 0 | AK73: ='[3]Capex_FO input'!AK73 -> 0 | AL73: ='[3]Capex_FO input'!AL73 -> 0 | AM73: ='[3]Capex_FO input'!AM73 -> 0 | AN73: ='[3]Capex_FO input'!AN73 -> 0 | AO73: ='[3]Capex_FO input'!AO73 -> 0 | AP73: ='[3]Capex_FO input'!AP73 -> 0 | AQ73: ='[3]Capex_FO input'!AQ73 -> 0 | AR73: ='[3]Capex_FO input'!AR73 -> 0 | AS73: ='[3]Capex_FO input'!AS73 -> 0 | AT73: ='[3]Capex_FO input'!AT73 -> 0 | AV73: 0 | AW73: 0 | AX73: 0 | AY73: 0 | AZ73: 0 | BA73: 0 | BB73: 0 | BC73: 0 | BD73: 0 | BE73: 0 | BG73: 0 | BH73: 0 | BI73: 0 | BJ73: 0 | BK73: 0 | BL73: 0 | BM73: 0 | BN73: 0 | BO73: 0 | BP73: 0 | BR73: =+IF($K73="Ongoing",AV73,IF(RIGHT($K73,2)=RIGHT(BR$39,2),SUM($AV73:AV73),0)+IF(RIGHT(BR$39,2)>RIGHT($K73,2),AV73,0)) -> 0 | BS73: =+IF($K73="Ongoing",AW73,IF(RIGHT($K73,2)=RIGHT(BS$39,2),SUM($AV73:AW73),0)+IF(RIGHT(BS$39,2)>RIGHT($K73,2),AW73,0)) -> 0 | BT73: =+IF($K73="Ongoing",AX73,IF(RIGHT($K73,2)=RIGHT(BT$39,2),SUM($AV73:AX73),0)+IF(RIGHT(BT$39,2)>RIGHT($K73,2),AX73,0)) -> 0 | BU73: =+IF($K73="Ongoing",AY73,IF(RIGHT($K73,2)=RIGHT(BU$39,2),SUM($AV73:AY73),0)+IF(RIGHT(BU$39,2)>RIGHT($K73,2),AY73,0)) -> 0 | BV73: =+IF($K73="Ongoing",AZ73,IF(RIGHT($K73,2)=RIGHT(BV$39,2),SUM($AV73:AZ73),0)+IF(RIGHT(BV$39,2)>RIGHT($K73,2),AZ73,0)) -> 0 | BW73: =+IF($K73="Ongoing",BA73,IF(RIGHT($K73,2)=RIGHT(BW$39,2),SUM($AV73:BA73),0)+IF(RIGHT(BW$39,2)>RIGHT($K73,2),BA73,0)) -> 0 | BX73: =+IF($K73="Ongoing",BB73,IF(RIGHT($K73,2)=RIGHT(BX$39,2),SUM($AV73:BB73),0)+IF(RIGHT(BX$39,2)>RIGHT($K73,2),BB73,0)) -> 0 | BY73: =+IF($K73="Ongoing",BC73,IF(RIGHT($K73,2)=RIGHT(BY$39,2),SUM($AV73:BC73),0)+IF(RIGHT(BY$39,2)>RIGHT($K73,2),BC73,0)) -> 0 | BZ73: =+IF($K73="Ongoing",BD73,IF(RIGHT($K73,2)=RIGHT(BZ$39,2),SUM($AV73:BD73),0)+IF(RIGHT(BZ$39,2)>RIGHT($K73,2),BD73,0)) -> 0 | CA73: =+IF($K73="Ongoing",BE73,IF(RIGHT($K73,2)=RIGHT(CA$39,2),SUM($AV73:BE73),0)+IF(RIGHT(CA$39,2)>RIGHT($K73,2),BE73,0)) -> 0 | CC73: =+O73*KeyAssumptionsPriceControl_FO!AC$15 -> 0 | CD73: =+P73*KeyAssumptionsPriceControl_FO!AD$15 -> 0 | CE73: =+Q73*KeyAssumptionsPriceControl_FO!AE$15 -> 0 | CF73: =+R73*KeyAssumptionsPriceControl_FO!AF$15 -> 0 | CG73: =+S73*KeyAssumptionsPriceControl_FO!AG$15 -> 0 | CH73: =+T73*KeyAssumptionsPriceControl_FO!AH$15 -> 0 | CI73: =+U73*KeyAssumptionsPriceControl_FO!AI$15 -> 0 | CJ73: =+V73*KeyAssumptionsPriceControl_FO!AJ$15 -> 0 | CK73: =+W73*KeyAssumptionsPriceControl_FO!AK$15 -> 0 | CL73: =+X73*KeyAssumptionsPriceControl_FO!AL$15 -> 0 | CN73: 0 | CO73: 0 | CP73: 0 | CQ73: 0 | CR73: 0 | CS73: 0 | CT73: 0 | CU73: 0 | CV73: 0 | CW73: 0
C74: ='[3]Capex_FO input'!C74 -> [Capex Item - Significant Project / Capital Program / Other Capex] | D74: ='[3]Capex_FO input'!D69 -> 0 | E74: ='[3]Capex_FO input'!E74 -> [Service] | F74: ='[3]Capex_FO input'!F74 -> [Major Cost Driver] | G74: ='[3]Capex_FO input'!G74 -> [Asset category] | H74: ='[3]Capex_FO input'!H74 -> [Capital type] | I74: ='[3]Capex_FO input'!I74 -> 0 | J74: ='[3]Capex_FO input'!J74 -> Straight line | K74: ='[3]Capex_FO input'!K74 -> [Year finalised?] | L74: ='[3]Capex_FO input'!L74 -> 0 | M74: ='[3]Capex_FO input'!M74 -> 0 | O74: ='[3]Capex_FO input'!O74 -> 0 | P74: ='[3]Capex_FO input'!P74 -> 0 | Q74: ='[3]Capex_FO input'!Q74 -> 0 | R74: ='[3]Capex_FO input'!R74 -> 0 | S74: ='[3]Capex_FO input'!S74 -> 0 | T74: ='[3]Capex_FO input'!T74 -> 0 | U74: ='[3]Capex_FO input'!U74 -> 0 | V74: ='[3]Capex_FO input'!V74 -> 0 | W74: ='[3]Capex_FO input'!W74 -> 0 | X74: ='[3]Capex_FO input'!X74 -> 0 | Z74: ='[3]Capex_FO input'!Z74 -> 0 | AA74: ='[3]Capex_FO input'!AA74 -> 0 | AB74: ='[3]Capex_FO input'!AB74 -> 0 | AC74: ='[3]Capex_FO input'!AC74 -> 0 | AD74: ='[3]Capex_FO input'!AD74 -> 0 | AE74: ='[3]Capex_FO input'!AE74 -> 0 | AF74: ='[3]Capex_FO input'!AF74 -> 0 | AG74: ='[3]Capex_FO input'!AG74 -> 0 | AH74: ='[3]Capex_FO input'!AH74 -> 0 | AI74: ='[3]Capex_FO input'!AI74 -> 0 | AK74: ='[3]Capex_FO input'!AK74 -> 0 | AL74: ='[3]Capex_FO input'!AL74 -> 0 | AM74: ='[3]Capex_FO input'!AM74 -> 0 | AN74: ='[3]Capex_FO input'!AN74 -> 0 | AO74: ='[3]Capex_FO input'!AO74 -> 0 | AP74: ='[3]Capex_FO input'!AP74 -> 0 | AQ74: ='[3]Capex_FO input'!AQ74 -> 0 | AR74: ='[3]Capex_FO input'!AR74 -> 0 | AS74: ='[3]Capex_FO input'!AS74 -> 0 | AT74: ='[3]Capex_FO input'!AT74 -> 0 | AV74: 0 | AW74: 0 | AX74: 0 | AY74: 0 | AZ74: 0 | BA74: 0 | BB74: 0 | BC74: 0 | BD74: 0 | BE74: 0 | BG74: 0 | BH74: 0 | BI74: 0 | BJ74: 0 | BK74: 0 | BL74: 0 | BM74: 0 | BN74: 0 | BO74: 0 | BP74: 0 | BR74: =+IF($K74="Ongoing",AV74,IF(RIGHT($K74,2)=RIGHT(BR$39,2),SUM($AV74:AV74),0)+IF(RIGHT(BR$39,2)>RIGHT($K74,2),AV74,0)) -> 0 | BS74: =+IF($K74="Ongoing",AW74,IF(RIGHT($K74,2)=RIGHT(BS$39,2),SUM($AV74:AW74),0)+IF(RIGHT(BS$39,2)>RIGHT($K74,2),AW74,0)) -> 0 | BT74: =+IF($K74="Ongoing",AX74,IF(RIGHT($K74,2)=RIGHT(BT$39,2),SUM($AV74:AX74),0)+IF(RIGHT(BT$39,2)>RIGHT($K74,2),AX74,0)) -> 0 | BU74: =+IF($K74="Ongoing",AY74,IF(RIGHT($K74,2)=RIGHT(BU$39,2),SUM($AV74:AY74),0)+IF(RIGHT(BU$39,2)>RIGHT($K74,2),AY74,0)) -> 0 | BV74: =+IF($K74="Ongoing",AZ74,IF(RIGHT($K74,2)=RIGHT(BV$39,2),SUM($AV74:AZ74),0)+IF(RIGHT(BV$39,2)>RIGHT($K74,2),AZ74,0)) -> 0 | BW74: =+IF($K74="Ongoing",BA74,IF(RIGHT($K74,2)=RIGHT(BW$39,2),SUM($AV74:BA74),0)+IF(RIGHT(BW$39,2)>RIGHT($K74,2),BA74,0)) -> 0 | BX74: =+IF($K74="Ongoing",BB74,IF(RIGHT($K74,2)=RIGHT(BX$39,2),SUM($AV74:BB74),0)+IF(RIGHT(BX$39,2)>RIGHT($K74,2),BB74,0)) -> 0 | BY74: =+IF($K74="Ongoing",BC74,IF(RIGHT($K74,2)=RIGHT(BY$39,2),SUM($AV74:BC74),0)+IF(RIGHT(BY$39,2)>RIGHT($K74,2),BC74,0)) -> 0 | BZ74: =+IF($K74="Ongoing",BD74,IF(RIGHT($K74,2)=RIGHT(BZ$39,2),SUM($AV74:BD74),0)+IF(RIGHT(BZ$39,2)>RIGHT($K74,2),BD74,0)) -> 0 | CA74: =+IF($K74="Ongoing",BE74,IF(RIGHT($K74,2)=RIGHT(CA$39,2),SUM($AV74:BE74),0)+IF(RIGHT(CA$39,2)>RIGHT($K74,2),BE74,0)) -> 0 | CC74: =+O74*KeyAssumptionsPriceControl_FO!AC$15 -> 0 | CD74: =+P74*KeyAssumptionsPriceControl_FO!AD$15 -> 0 | CE74: =+Q74*KeyAssumptionsPriceControl_FO!AE$15 -> 0 | CF74: =+R74*KeyAssumptionsPriceControl_FO!AF$15 -> 0 | CG74: =+S74*KeyAssumptionsPriceControl_FO!AG$15 -> 0 | CH74: =+T74*KeyAssumptionsPriceControl_FO!AH$15 -> 0 | CI74: =+U74*KeyAssumptionsPriceControl_FO!AI$15 -> 0 | CJ74: =+V74*KeyAssumptionsPriceControl_FO!AJ$15 -> 0 | CK74: =+W74*KeyAssumptionsPriceControl_FO!AK$15 -> 0 | CL74: =+X74*KeyAssumptionsPriceControl_FO!AL$15 -> 0 | CN74: 0 | CO74: 0 | CP74: 0 | CQ74: 0 | CR74: 0 | CS74: 0 | CT74: 0 | CU74: 0 | CV74: 0 | CW74: 0
C75: ='[3]Capex_FO input'!C75 -> Reticulation - Water | D75: ='[3]Capex_FO input'!D70 -> 0 | E75: ='[3]Capex_FO input'!E75 -> 0 | F75: ='[3]Capex_FO input'!F75 -> 0 | G75: ='[3]Capex_FO input'!G75 -> 0 | H75: ='[3]Capex_FO input'!H75 -> 0 | I75: ='[3]Capex_FO input'!I75 -> 0 | J75: ='[3]Capex_FO input'!J75 -> 0 | K75: ='[3]Capex_FO input'!K75 -> 0 | L75: ='[3]Capex_FO input'!L75 -> 0 | M75: ='[3]Capex_FO input'!M75 -> 0 | O75: ='[3]Capex_FO input'!O75 -> 0 | P75: ='[3]Capex_FO input'!P75 -> 0 | Q75: ='[3]Capex_FO input'!Q75 -> 0 | R75: ='[3]Capex_FO input'!R75 -> 0 | S75: ='[3]Capex_FO input'!S75 -> 0 | T75: ='[3]Capex_FO input'!T75 -> 0 | U75: ='[3]Capex_FO input'!U75 -> 0 | V75: ='[3]Capex_FO input'!V75 -> 0 | W75: ='[3]Capex_FO input'!W75 -> 0 | X75: ='[3]Capex_FO input'!X75 -> 0 | Z75: ='[3]Capex_FO input'!Z75 -> 0 | AA75: ='[3]Capex_FO input'!AA75 -> 0 | AB75: ='[3]Capex_FO input'!AB75 -> 0 | AC75: ='[3]Capex_FO input'!AC75 -> 0 | AD75: ='[3]Capex_FO input'!AD75 -> 0 | AE75: ='[3]Capex_FO input'!AE75 -> 0 | AF75: ='[3]Capex_FO input'!AF75 -> 0 | AG75: ='[3]Capex_FO input'!AG75 -> 0 | AH75: ='[3]Capex_FO input'!AH75 -> 0 | AI75: ='[3]Capex_FO input'!AI75 -> 0 | AK75: ='[3]Capex_FO input'!AK75 -> 0 | AL75: ='[3]Capex_FO input'!AL75 -> 0 | AM75: ='[3]Capex_FO input'!AM75 -> 0 | AN75: ='[3]Capex_FO input'!AN75 -> 0 | AO75: ='[3]Capex_FO input'!AO75 -> 0 | AP75: ='[3]Capex_FO input'!AP75 -> 0 | AQ75: ='[3]Capex_FO input'!AQ75 -> 0 | AR75: ='[3]Capex_FO input'!AR75 -> 0 | AS75: ='[3]Capex_FO input'!AS75 -> 0 | AT75: ='[3]Capex_FO input'!AT75 -> 0 | AV75: 0 | AW75: 0 | AX75: 0 | AY75: 0 | AZ75: 0 | BA75: 0 | BB75: 0 | BC75: 0 | BD75: 0 | BE75: 0 | BG75: 0 | BH75: 0 | BI75: 0 | BJ75: 0 | BK75: 0 | BL75: 0 | BM75: 0 | BN75: 0 | BO75: 0 | BP75: 0 | BR75: =+IF($K75="Ongoing",AV75,IF(RIGHT($K75,2)=RIGHT(BR$39,2),SUM($AV75:AV75),0)+IF(RIGHT(BR$39,2)>RIGHT($K75,2),AV75,0)) -> 0 | BS75: =+IF($K75="Ongoing",AW75,IF(RIGHT($K75,2)=RIGHT(BS$39,2),SUM($AV75:AW75),0)+IF(RIGHT(BS$39,2)>RIGHT($K75,2),AW75,0)) -> 0 | BT75: =+IF($K75="Ongoing",AX75,IF(RIGHT($K75,2)=RIGHT(BT$39,2),SUM($AV75:AX75),0)+IF(RIGHT(BT$39,2)>RIGHT($K75,2),AX75,0)) -> 0 | BU75: =+IF($K75="Ongoing",AY75,IF(RIGHT($K75,2)=RIGHT(BU$39,2),SUM($AV75:AY75),0)+IF(RIGHT(BU$39,2)>RIGHT($K75,2),AY75,0)) -> 0 | BV75: =+IF($K75="Ongoing",AZ75,IF(RIGHT($K75,2)=RIGHT(BV$39,2),SUM($AV75:AZ75),0)+IF(RIGHT(BV$39,2)>RIGHT($K75,2),AZ75,0)) -> 0 | BW75: =+IF($K75="Ongoing",BA75,IF(RIGHT($K75,2)=RIGHT(BW$39,2),SUM($AV75:BA75),0)+IF(RIGHT(BW$39,2)>RIGHT($K75,2),BA75,0)) -> 0 | BX75: =+IF($K75="Ongoing",BB75,IF(RIGHT($K75,2)=RIGHT(BX$39,2),SUM($AV75:BB75),0)+IF(RIGHT(BX$39,2)>RIGHT($K75,2),BB75,0)) -> 0 | BY75: =+IF($K75="Ongoing",BC75,IF(RIGHT($K75,2)=RIGHT(BY$39,2),SUM($AV75:BC75),0)+IF(RIGHT(BY$39,2)>RIGHT($K75,2),BC75,0)) -> 0 | BZ75: =+IF($K75="Ongoing",BD75,IF(RIGHT($K75,2)=RIGHT(BZ$39,2),SUM($AV75:BD75),0)+IF(RIGHT(BZ$39,2)>RIGHT($K75,2),BD75,0)) -> 0 | CA75: =+IF($K75="Ongoing",BE75,IF(RIGHT($K75,2)=RIGHT(CA$39,2),SUM($AV75:BE75),0)+IF(RIGHT(CA$39,2)>RIGHT($K75,2),BE75,0)) -> 0 | CC75: =+O75*KeyAssumptionsPriceControl_FO!AC$15 -> 0 | CD75: =+P75*KeyAssumptionsPriceControl_FO!AD$15 -> 0 | CE75: =+Q75*KeyAssumptionsPriceControl_FO!AE$15 -> 0 | CF75: =+R75*KeyAssumptionsPriceControl_FO!AF$15 -> 0 | CG75: =+S75*KeyAssumptionsPriceControl_FO!AG$15 -> 0 | CH75: =+T75*KeyAssumptionsPriceControl_FO!AH$15 -> 0 | CI75: =+U75*KeyAssumptionsPriceControl_FO!AI$15 -> 0 | CJ75: =+V75*KeyAssumptionsPriceControl_FO!AJ$15 -> 0 | CK75: =+W75*KeyAssumptionsPriceControl_FO!AK$15 -> 0 | CL75: =+X75*KeyAssumptionsPriceControl_FO!AL$15 -> 0 | CN75: 0 | CO75: 0 | CP75: 0 | CQ75: 0 | CR75: 0 | CS75: 0 | CT75: 0 | CU75: 0 | CV75: 0 | CW75: 0
C76: ='[3]Capex_FO input'!C76 -> KER Dual Rising Main Replacement across highway | D76: ='[3]Capex_FO input'!D71 -> 0 | E76: ='[3]Capex_FO input'!E76 -> Water | F76: ='[3]Capex_FO input'!F76 -> Renewals | G76: ='[3]Capex_FO input'!G76 -> Pipelines/network | H76: ='[3]Capex_FO input'!H76 -> Significant Projects | I76: ='[3]Capex_FO input'!I76 -> 0 | J76: ='[3]Capex_FO input'!J76 -> Straight line | K76: ='[3]Capex_FO input'!K76 -> 2029-30 | L76: ='[3]Capex_FO input'!L76 -> 80 | M76: ='[3]Capex_FO input'!M76 -> 22.22222222 | O76: ='[3]Capex_FO input'!O76 -> 0 | P76: ='[3]Capex_FO input'!P76 -> 0 | Q76: ='[3]Capex_FO input'!Q76 -> 0 | R76: ='[3]Capex_FO input'!R76 -> 0 | S76: ='[3]Capex_FO input'!S76 -> 0 | T76: ='[3]Capex_FO input'!T76 -> 0.05 | U76: ='[3]Capex_FO input'!U76 -> 0.75 | V76: ='[3]Capex_FO input'!V76 -> 0 | W76: ='[3]Capex_FO input'!W76 -> 0 | X76: ='[3]Capex_FO input'!X76 -> 0 | Z76: ='[3]Capex_FO input'!Z76 -> 0 | AA76: ='[3]Capex_FO input'!AA76 -> 0 | AB76: ='[3]Capex_FO input'!AB76 -> 0 | AC76: ='[3]Capex_FO input'!AC76 -> 0 | AD76: ='[3]Capex_FO input'!AD76 -> 0 | AE76: ='[3]Capex_FO input'!AE76 -> 0 | AF76: ='[3]Capex_FO input'!AF76 -> 0 | AG76: ='[3]Capex_FO input'!AG76 -> 0 | AH76: ='[3]Capex_FO input'!AH76 -> 0 | AI76: ='[3]Capex_FO input'!AI76 -> 0 | AK76: ='[3]Capex_FO input'!AK76 -> 0 | AL76: ='[3]Capex_FO input'!AL76 -> 0 | AM76: ='[3]Capex_FO input'!AM76 -> 0 | AN76: ='[3]Capex_FO input'!AN76 -> 0 | AO76: ='[3]Capex_FO input'!AO76 -> 0 | AP76: ='[3]Capex_FO input'!AP76 -> 0 | AQ76: ='[3]Capex_FO input'!AQ76 -> 0 | AR76: ='[3]Capex_FO input'!AR76 -> 0 | AS76: ='[3]Capex_FO input'!AS76 -> 0 | AT76: ='[3]Capex_FO input'!AT76 -> 0 | AV76: 0 | AW76: 0 | AX76: 0 | AY76: 0 | AZ76: 0 | BA76: 0.05 | BB76: 0.75 | BC76: 0 | BD76: 0 | BE76: 0 | BG76: 0 | BH76: 0 | BI76: 0 | BJ76: 0 | BK76: 0 | BL76: 0 | BM76: 0.005 | BN76: 0.01 | BO76: 0.01 | BP76: 0.01 | BR76: =+IF($K76="Ongoing",AV76,IF(RIGHT($K76,2)=RIGHT(BR$39,2),SUM($AV76:AV76),0)+IF(RIGHT(BR$39,2)>RIGHT($K76,2),AV76,0)) -> 0 | BS76: =+IF($K76="Ongoing",AW76,IF(RIGHT($K76,2)=RIGHT(BS$39,2),SUM($AV76:AW76),0)+IF(RIGHT(BS$39,2)>RIGHT($K76,2),AW76,0)) -> 0 | BT76: =+IF($K76="Ongoing",AX76,IF(RIGHT($K76,2)=RIGHT(BT$39,2),SUM($AV76:AX76),0)+IF(RIGHT(BT$39,2)>RIGHT($K76,2),AX76,0)) -> 0 | BU76: =+IF($K76="Ongoing",AY76,IF(RIGHT($K76,2)=RIGHT(BU$39,2),SUM($AV76:AY76),0)+IF(RIGHT(BU$39,2)>RIGHT($K76,2),AY76,0)) -> 0 | BV76: =+IF($K76="Ongoing",AZ76,IF(RIGHT($K76,2)=RIGHT(BV$39,2),SUM($AV76:AZ76),0)+IF(RIGHT(BV$39,2)>RIGHT($K76,2),AZ76,0)) -> 0 | BW76: =+IF($K76="Ongoing",BA76,IF(RIGHT($K76,2)=RIGHT(BW$39,2),SUM($AV76:BA76),0)+IF(RIGHT(BW$39,2)>RIGHT($K76,2),BA76,0)) -> 0 | BX76: =+IF($K76="Ongoing",BB76,IF(RIGHT($K76,2)=RIGHT(BX$39,2),SUM($AV76:BB76),0)+IF(RIGHT(BX$39,2)>RIGHT($K76,2),BB76,0)) -> 0.8 | BY76: =+IF($K76="Ongoing",BC76,IF(RIGHT($K76,2)=RIGHT(BY$39,2),SUM($AV76:BC76),0)+IF(RIGHT(BY$39,2)>RIGHT($K76,2),BC76,0)) -> 0 | BZ76: =+IF($K76="Ongoing",BD76,IF(RIGHT($K76,2)=RIGHT(BZ$39,2),SUM($AV76:BD76),0)+IF(RIGHT(BZ$39,2)>RIGHT($K76,2),BD76,0)) -> 0 | CA76: =+IF($K76="Ongoing",BE76,IF(RIGHT($K76,2)=RIGHT(CA$39,2),SUM($AV76:BE76),0)+IF(RIGHT(CA$39,2)>RIGHT($K76,2),BE76,0)) -> 0 | CC76: =+O76*KeyAssumptionsPriceControl_FO!AC$15 -> 0 | CD76: =+P76*KeyAssumptionsPriceControl_FO!AD$15 -> 0 | CE76: =+Q76*KeyAssumptionsPriceControl_FO!AE$15 -> 0 | CF76: =+R76*KeyAssumptionsPriceControl_FO!AF$15 -> 0 | CG76: =+S76*KeyAssumptionsPriceControl_FO!AG$15 -> 0 | CH76: =+T76*KeyAssumptionsPriceControl_FO!AH$15 -> 0.05970261483 | CI76: =+U76*KeyAssumptionsPriceControl_FO!AI$15 -> 0.9224053991 | CJ76: =+V76*KeyAssumptionsPriceControl_FO!AJ$15 -> 0 | CK76: =+W76*KeyAssumptionsPriceControl_FO!AK$15 -> 0 | CL76: =+X76*KeyAssumptionsPriceControl_FO!AL$15 -> 0 | CN76: 0 | CO76: 0 | CP76: 0 | CQ76: 0 | CR76: 0 | CS76: 0.001343308834 | CT76: 0.02344073915 | CU76: 0.04419486063 | CV76: 0.04419486063 | CW76: 0.04419486063
C77: ='[3]Capex_FO input'!C77 -> MUR Koondrook to Murrabit Interconnect (Replacing Murrabit WTP) | D77: ='[3]Capex_FO input'!D72 -> 0 | E77: ='[3]Capex_FO input'!E77 -> Water | F77: ='[3]Capex_FO input'!F77 -> Improvements / Compliance | G77: ='[3]Capex_FO input'!G77 -> Pipelines/network | H77: ='[3]Capex_FO input'!H77 -> Significant Projects | I77: ='[3]Capex_FO input'!I77 -> 0 | J77: ='[3]Capex_FO input'!J77 -> Straight line | K77: ='[3]Capex_FO input'!K77 -> 2032-33 | L77: ='[3]Capex_FO input'!L77 -> 80 | M77: ='[3]Capex_FO input'!M77 -> 22.22222222 | O77: ='[3]Capex_FO input'!O77 -> 0 | P77: ='[3]Capex_FO input'!P77 -> 0 | Q77: ='[3]Capex_FO input'!Q77 -> 0 | R77: ='[3]Capex_FO input'!R77 -> 0 | S77: ='[3]Capex_FO input'!S77 -> 0 | T77: ='[3]Capex_FO input'!T77 -> 0 | U77: ='[3]Capex_FO input'!U77 -> 0 | V77: ='[3]Capex_FO input'!V77 -> 0 | W77: ='[3]Capex_FO input'!W77 -> 1 | X77: ='[3]Capex_FO input'!X77 -> 3 | Z77: ='[3]Capex_FO input'!Z77 -> 0 | AA77: ='[3]Capex_FO input'!AA77 -> 0 | AB77: ='[3]Capex_FO input'!AB77 -> 0 | AC77: ='[3]Capex_FO input'!AC77 -> 0 | AD77: ='[3]Capex_FO input'!AD77 -> 0 | AE77: ='[3]Capex_FO input'!AE77 -> 0 | AF77: ='[3]Capex_FO input'!AF77 -> 0 | AG77: ='[3]Capex_FO input'!AG77 -> 0 | AH77: ='[3]Capex_FO input'!AH77 -> 0 | AI77: ='[3]Capex_FO input'!AI77 -> 0 | AK77: ='[3]Capex_FO input'!AK77 -> 0 | AL77: ='[3]Capex_FO input'!AL77 -> 0 | AM77: ='[3]Capex_FO input'!AM77 -> 0 | AN77: ='[3]Capex_FO input'!AN77 -> 0 | AO77: ='[3]Capex_FO input'!AO77 -> 0 | AP77: ='[3]Capex_FO input'!AP77 -> 0 | AQ77: ='[3]Capex_FO input'!AQ77 -> 0 | AR77: ='[3]Capex_FO input'!AR77 -> 0 | AS77: ='[3]Capex_FO input'!AS77 -> 0 | AT77: ='[3]Capex_FO input'!AT77 -> 0 | AV77: 0 | AW77: 0 | AX77: 0 | AY77: 0 | AZ77: 0 | BA77: 0 | BB77: 0 | BC77: 0 | BD77: 1 | BE77: 3 | BG77: 0 | BH77: 0 | BI77: 0 | BJ77: 0 | BK77: 0 | BL77: 0 | BM77: 0 | BN77: 0 | BO77: 0 | BP77: 0.025 | BR77: =+IF($K77="Ongoing",AV77,IF(RIGHT($K77,2)=RIGHT(BR$39,2),SUM($AV77:AV77),0)+IF(RIGHT(BR$39,2)>RIGHT($K77,2),AV77,0)) -> 0 | BS77: =+IF($K77="Ongoing",AW77,IF(RIGHT($K77,2)=RIGHT(BS$39,2),SUM($AV77:AW77),0)+IF(RIGHT(BS$39,2)>RIGHT($K77,2),AW77,0)) -> 0 | BT77: =+IF($K77="Ongoing",AX77,IF(RIGHT($K77,2)=RIGHT(BT$39,2),SUM($AV77:AX77),0)+IF(RIGHT(BT$39,2)>RIGHT($K77,2),AX77,0)) -> 0 | BU77: =+IF($K77="Ongoing",AY77,IF(RIGHT($K77,2)=RIGHT(BU$39,2),SUM($AV77:AY77),0)+IF(RIGHT(BU$39,2)>RIGHT($K77,2),AY77,0)) -> 0 | BV77: =+IF($K77="Ongoing",AZ77,IF(RIGHT($K77,2)=RIGHT(BV$39,2),SUM($AV77:AZ77),0)+IF(RIGHT(BV$39,2)>RIGHT($K77,2),AZ77,0)) -> 0 | BW77: =+IF($K77="Ongoing",BA77,IF(RIGHT($K77,2)=RIGHT(BW$39,2),SUM($AV77:BA77),0)+IF(RIGHT(BW$39,2)>RIGHT($K77,2),BA77,0)) -> 0 | BX77: =+IF($K77="Ongoing",BB77,IF(RIGHT($K77,2)=RIGHT(BX$39,2),SUM($AV77:BB77),0)+IF(RIGHT(BX$39,2)>RIGHT($K77,2),BB77,0)) -> 0 | BY77: =+IF($K77="Ongoing",BC77,IF(RIGHT($K77,2)=RIGHT(BY$39,2),SUM($AV77:BC77),0)+IF(RIGHT(BY$39,2)>RIGHT($K77,2),BC77,0)) -> 0 | BZ77: =+IF($K77="Ongoing",BD77,IF(RIGHT($K77,2)=RIGHT(BZ$39,2),SUM($AV77:BD77),0)+IF(RIGHT(BZ$39,2)>RIGHT($K77,2),BD77,0)) -> 0 | CA77: =+IF($K77="Ongoing",BE77,IF(RIGHT($K77,2)=RIGHT(CA$39,2),SUM($AV77:BE77),0)+IF(RIGHT(CA$39,2)>RIGHT($K77,2),BE77,0)) -> 4 | CC77: =+O77*KeyAssumptionsPriceControl_FO!AC$15 -> 0 | CD77: =+P77*KeyAssumptionsPriceControl_FO!AD$15 -> 0 | CE77: =+Q77*KeyAssumptionsPriceControl_FO!AE$15 -> 0 | CF77: =+R77*KeyAssumptionsPriceControl_FO!AF$15 -> 0 | CG77: =+S77*KeyAssumptionsPriceControl_FO!AG$15 -> 0 | CH77: =+T77*KeyAssumptionsPriceControl_FO!AH$15 -> 0 | CI77: =+U77*KeyAssumptionsPriceControl_FO!AI$15 -> 0 | CJ77: =+V77*KeyAssumptionsPriceControl_FO!AJ$15 -> 0 | CK77: =+W77*KeyAssumptionsPriceControl_FO!AK$15 -> 1.304773184 | CL77: =+X77*KeyAssumptionsPriceControl_FO!AL$15 -> 4.031749138 | CN77: 0 | CO77: 0 | CP77: 0 | CQ77: 0 | CR77: 0 | CS77: 0 | CT77: 0 | CU77: 0 | CV77: 0.02935739664 | CW77: 0.1494291489
C78: ='[3]Capex_FO input'!C78 -> RC - DN375 Truck Main for MDA to RC interconnection (includes Ginguam PS upgrade) 14th Street to Beevers Lane (9,500 m) | D78: ='[3]Capex_FO input'!D73 -> 0 | E78: ='[3]Capex_FO input'!E78 -> Water | F78: ='[3]Capex_FO input'!F78 -> Growth | G78: ='[3]Capex_FO input'!G78 -> Pipelines/network | H78: ='[3]Capex_FO input'!H78 -> Significant Projects | I78: ='[3]Capex_FO input'!I78 -> 0 | J78: ='[3]Capex_FO input'!J78 -> Straight line | K78: ='[3]Capex_FO input'!K78 -> 2029-30 | L78: ='[3]Capex_FO input'!L78 -> 80 | M78: ='[3]Capex_FO input'!M78 -> 22.22222222 | O78: ='[3]Capex_FO input'!O78 -> 0 | P78: ='[3]Capex_FO input'!P78 -> 0 | Q78: ='[3]Capex_FO input'!Q78 -> 0 | R78: ='[3]Capex_FO input'!R78 -> 0 | S78: ='[3]Capex_FO input'!S78 -> 0.3 | T78: ='[3]Capex_FO input'!T78 -> 3 | U78: ='[3]Capex_FO input'!U78 -> 3 | V78: ='[3]Capex_FO input'!V78 -> 0 | W78: ='[3]Capex_FO input'!W78 -> 0 | X78: ='[3]Capex_FO input'!X78 -> 0 | Z78: ='[3]Capex_FO input'!Z78 -> 0 | AA78: ='[3]Capex_FO input'!AA78 -> 0 | AB78: ='[3]Capex_FO input'!AB78 -> 0 | AC78: ='[3]Capex_FO input'!AC78 -> 0 | AD78: ='[3]Capex_FO input'!AD78 -> 0 | AE78: ='[3]Capex_FO input'!AE78 -> 0 | AF78: ='[3]Capex_FO input'!AF78 -> 0 | AG78: ='[3]Capex_FO input'!AG78 -> 0 | AH78: ='[3]Capex_FO input'!AH78 -> 0 | AI78: ='[3]Capex_FO input'!AI78 -> 0 | AK78: ='[3]Capex_FO input'!AK78 -> 0 | AL78: ='[3]Capex_FO input'!AL78 -> 0 | AM78: ='[3]Capex_FO input'!AM78 -> 0 | AN78: ='[3]Capex_FO input'!AN78 -> 0 | AO78: ='[3]Capex_FO input'!AO78 -> 0 | AP78: ='[3]Capex_FO input'!AP78 -> 0 | AQ78: ='[3]Capex_FO input'!AQ78 -> 0 | AR78: ='[3]Capex_FO input'!AR78 -> 0 | AS78: ='[3]Capex_FO input'!AS78 -> 0 | AT78: ='[3]Capex_FO input'!AT78 -> 0 | AV78: 0 | AW78: 0 | AX78: 0 | AY78: 0 | AZ78: 0.3 | BA78: 3 | BB78: 3 | BC78: 0 | BD78: 0 | BE78: 0 | BG78: 0 | BH78: 0 | BI78: 0 | BJ78: 0 | BK78: 0 | BL78: 0 | BM78: 0.039375 | BN78: 0.07875 | BO78: 0.07875 | BP78: 0.07875 | BR78: =+IF($K78="Ongoing",AV78,IF(RIGHT($K78,2)=RIGHT(BR$39,2),SUM($AV78:AV78),0)+IF(RIGHT(BR$39,2)>RIGHT($K78,2),AV78,0)) -> 0 | BS78: =+IF($K78="Ongoing",AW78,IF(RIGHT($K78,2)=RIGHT(BS$39,2),SUM($AV78:AW78),0)+IF(RIGHT(BS$39,2)>RIGHT($K78,2),AW78,0)) -> 0 | BT78: =+IF($K78="Ongoing",AX78,IF(RIGHT($K78,2)=RIGHT(BT$39,2),SUM($AV78:AX78),0)+IF(RIGHT(BT$39,2)>RIGHT($K78,2),AX78,0)) -> 0 | BU78: =+IF($K78="Ongoing",AY78,IF(RIGHT($K78,2)=RIGHT(BU$39,2),SUM($AV78:AY78),0)+IF(RIGHT(BU$39,2)>RIGHT($K78,2),AY78,0)) -> 0 | BV78: =+IF($K78="Ongoing",AZ78,IF(RIGHT($K78,2)=RIGHT(BV$39,2),SUM($AV78:AZ78),0)+IF(RIGHT(BV$39,2)>RIGHT($K78,2),AZ78,0)) -> 0 | BW78: =+IF($K78="Ongoing",BA78,IF(RIGHT($K78,2)=RIGHT(BW$39,2),SUM($AV78:BA78),0)+IF(RIGHT(BW$39,2)>RIGHT($K78,2),BA78,0)) -> 0 | BX78: =+IF($K78="Ongoing",BB78,IF(RIGHT($K78,2)=RIGHT(BX$39,2),SUM($AV78:BB78),0)+IF(RIGHT(BX$39,2)>RIGHT($K78,2),BB78,0)) -> 6.3 | BY78: =+IF($K78="Ongoing",BC78,IF(RIGHT($K78,2)=RIGHT(BY$39,2),SUM($AV78:BC78),0)+IF(RIGHT(BY$39,2)>RIGHT($K78,2),BC78,0)) -> 0 | BZ78: =+IF($K78="Ongoing",BD78,IF(RIGHT($K78,2)=RIGHT(BZ$39,2),SUM($AV78:BD78),0)+IF(RIGHT(BZ$39,2)>RIGHT($K78,2),BD78,0)) -> 0 | CA78: =+IF($K78="Ongoing",BE78,IF(RIGHT($K78,2)=RIGHT(CA$39,2),SUM($AV78:BE78),0)+IF(RIGHT(CA$39,2)>RIGHT($K78,2),BE78,0)) -> 0 | CC78: =+O78*KeyAssumptionsPriceControl_FO!AC$15 -> 0 | CD78: =+P78*KeyAssumptionsPriceControl_FO!AD$15 -> 0 | CE78: =+Q78*KeyAssumptionsPriceControl_FO!AE$15 -> 0 | CF78: =+R78*KeyAssumptionsPriceControl_FO!AF$15 -> 0 | CG78: =+S78*KeyAssumptionsPriceControl_FO!AG$15 -> 0.3477822223 | CH78: =+T78*KeyAssumptionsPriceControl_FO!AH$15 -> 3.58215689 | CI78: =+U78*KeyAssumptionsPriceControl_FO!AI$15 -> 3.689621596 | CJ78: =+V78*KeyAssumptionsPriceControl_FO!AJ$15 -> 0 | CK78: =+W78*KeyAssumptionsPriceControl_FO!AK$15 -> 0 | CL78: =+X78*KeyAssumptionsPriceControl_FO!AL$15 -> 0 | CN78: 0 | CO78: 0 | CP78: 0 | CQ78: 0 | CR78: 0.007825100002 | CS78: 0.09624873002 | CT78: 0.259863746 | CU78: 0.3428802319 | CV78: 0.3428802319 | CW78: 0.3428802319
C79: ='[3]Capex_FO input'!C79 -> SH - Swan Hill Region Water Mains upgrades for Growth | D79: ='[3]Capex_FO input'!D74 -> 0 | E79: ='[3]Capex_FO input'!E79 -> Water | F79: ='[3]Capex_FO input'!F79 -> Growth | G79: ='[3]Capex_FO input'!G79 -> Pipelines/network | H79: ='[3]Capex_FO input'!H79 -> Significant Projects | I79: ='[3]Capex_FO input'!I79 -> 0 | J79: ='[3]Capex_FO input'!J79 -> Straight line | K79: ='[3]Capex_FO input'!K79 -> 2030-31 | L79: ='[3]Capex_FO input'!L79 -> 80 | M79: ='[3]Capex_FO input'!M79 -> 22.22222222 | O79: ='[3]Capex_FO input'!O79 -> 0 | P79: ='[3]Capex_FO input'!P79 -> 0 | Q79: ='[3]Capex_FO input'!Q79 -> 0 | R79: ='[3]Capex_FO input'!R79 -> 0 | S79: ='[3]Capex_FO input'!S79 -> 0 | T79: ='[3]Capex_FO input'!T79 -> 1.21 | U79: ='[3]Capex_FO input'!U79 -> 0 | V79: ='[3]Capex_FO input'!V79 -> 3.09 | W79: ='[3]Capex_FO input'!W79 -> 0 | X79: ='[3]Capex_FO input'!X79 -> 0 | Z79: ='[3]Capex_FO input'!Z79 -> 0 | AA79: ='[3]Capex_FO input'!AA79 -> 0 | AB79: ='[3]Capex_FO input'!AB79 -> 0 | AC79: ='[3]Capex_FO input'!AC79 -> 0 | AD79: ='[3]Capex_FO input'!AD79 -> 0 | AE79: ='[3]Capex_FO input'!AE79 -> 0 | AF79: ='[3]Capex_FO input'!AF79 -> 0 | AG79: ='[3]Capex_FO input'!AG79 -> 0 | AH79: ='[3]Capex_FO input'!AH79 -> 0 | AI79: ='[3]Capex_FO input'!AI79 -> 0 | AK79: ='[3]Capex_FO input'!AK79 -> 0 | AL79: ='[3]Capex_FO input'!AL79 -> 0 | AM79: ='[3]Capex_FO input'!AM79 -> 0 | AN79: ='[3]Capex_FO input'!AN79 -> 0 | AO79: ='[3]Capex_FO input'!AO79 -> 0 | AP79: ='[3]Capex_FO input'!AP79 -> 0 | AQ79: ='[3]Capex_FO input'!AQ79 -> 0 | AR79: ='[3]Capex_FO input'!AR79 -> 0 | AS79: ='[3]Capex_FO input'!AS79 -> 0 | AT79: ='[3]Capex_FO input'!AT79 -> 0 | AV79: 0 | AW79: 0 | AX79: 0 | AY79: 0 | AZ79: 0 | BA79: 1.21 | BB79: 0 | BC79: 3.09 | BD79: 0 | BE79: 0 | BG79: 0 | BH79: 0 | BI79: 0 | BJ79: 0 | BK79: 0 | BL79: 0 | BM79: 0 | BN79: 0.026875 | BO79: 0.05375 | BP79: 0.05375 | BR79: =+IF($K79="Ongoing",AV79,IF(RIGHT($K79,2)=RIGHT(BR$39,2),SUM($AV79:AV79),0)+IF(RIGHT(BR$39,2)>RIGHT($K79,2),AV79,0)) -> 0 | BS79: =+IF($K79="Ongoing",AW79,IF(RIGHT($K79,2)=RIGHT(BS$39,2),SUM($AV79:AW79),0)+IF(RIGHT(BS$39,2)>RIGHT($K79,2),AW79,0)) -> 0 | BT79: =+IF($K79="Ongoing",AX79,IF(RIGHT($K79,2)=RIGHT(BT$39,2),SUM($AV79:AX79),0)+IF(RIGHT(BT$39,2)>RIGHT($K79,2),AX79,0)) -> 0 | BU79: =+IF($K79="Ongoing",AY79,IF(RIGHT($K79,2)=RIGHT(BU$39,2),SUM($AV79:AY79),0)+IF(RIGHT(BU$39,2)>RIGHT($K79,2),AY79,0)) -> 0 | BV79: =+IF($K79="Ongoing",AZ79,IF(RIGHT($K79,2)=RIGHT(BV$39,2),SUM($AV79:AZ79),0)+IF(RIGHT(BV$39,2)>RIGHT($K79,2),AZ79,0)) -> 0 | BW79: =+IF($K79="Ongoing",BA79,IF(RIGHT($K79,2)=RIGHT(BW$39,2),SUM($AV79:BA79),0)+IF(RIGHT(BW$39,2)>RIGHT($K79,2),BA79,0)) -> 0 | BX79: =+IF($K79="Ongoing",BB79,IF(RIGHT($K79,2)=RIGHT(BX$39,2),SUM($AV79:BB79),0)+IF(RIGHT(BX$39,2)>RIGHT($K79,2),BB79,0)) -> 0 | BY79: =+IF($K79="Ongoing",BC79,IF(RIGHT($K79,2)=RIGHT(BY$39,2),SUM($AV79:BC79),0)+IF(RIGHT(BY$39,2)>RIGHT($K79,2),BC79,0)) -> 4.3 | BZ79: =+IF($K79="Ongoing",BD79,IF(RIGHT($K79,2)=RIGHT(BZ$39,2),SUM($AV79:BD79),0)+IF(RIGHT(BZ$39,2)>RIGHT($K79,2),BD79,0)) -> 0 | CA79: =+IF($K79="Ongoing",BE79,IF(RIGHT($K79,2)=RIGHT(CA$39,2),SUM($AV79:BE79),0)+IF(RIGHT(CA$39,2)>RIGHT($K79,2),BE79,0)) -> 0 | CC79: =+O79*KeyAssumptionsPriceControl_FO!AC$15 -> 0 | CD79: =+P79*KeyAssumptionsPriceControl_FO!AD$15 -> 0 | CE79: =+Q79*KeyAssumptionsPriceControl_FO!AE$15 -> 0 | CF79: =+R79*KeyAssumptionsPriceControl_FO!AF$15 -> 0 | CG79: =+S79*KeyAssumptionsPriceControl_FO!AG$15 -> 0 | CH79: =+T79*KeyAssumptionsPriceControl_FO!AH$15 -> 1.444803279 | CI79: =+U79*KeyAssumptionsPriceControl_FO!AI$15 -> 0 | CJ79: =+V79*KeyAssumptionsPriceControl_FO!AJ$15 -> 3.914319551 | CK79: =+W79*KeyAssumptionsPriceControl_FO!AK$15 -> 0 | CL79: =+X79*KeyAssumptionsPriceControl_FO!AL$15 -> 0 | CN79: 0 | CO79: 0 | CP79: 0 | CQ79: 0 | CR79: 0 | CS79: 0.03250807377 | CT79: 0.06501614755 | CU79: 0.1530883375 | CV79: 0.2411605274 | CW79: 0.2411605274
C80: ='[3]Capex_FO input'!C80 -> 0 | D80: ='[3]Capex_FO input'!D75 -> 0 | E80: ='[3]Capex_FO input'!E80 -> 0 | F80: ='[3]Capex_FO input'!F80 -> 0 | G80: ='[3]Capex_FO input'!G80 -> 0 | H80: ='[3]Capex_FO input'!H80 -> 0 | I80: ='[3]Capex_FO input'!I80 -> 0 | J80: ='[3]Capex_FO input'!J80 -> Straight line | K80: ='[3]Capex_FO input'!K80 -> 0 | L80: ='[3]Capex_FO input'!L80 -> 0 | M80: ='[3]Capex_FO input'!M80 -> 0 | O80: ='[3]Capex_FO input'!O80 -> 0 | P80: ='[3]Capex_FO input'!P80 -> 0 | Q80: ='[3]Capex_FO input'!Q80 -> 0 | R80: ='[3]Capex_FO input'!R80 -> 0 | S80: ='[3]Capex_FO input'!S80 -> 0 | T80: ='[3]Capex_FO input'!T80 -> 0 | U80: ='[3]Capex_FO input'!U80 -> 0 | V80: ='[3]Capex_FO input'!V80 -> 0 | W80: ='[3]Capex_FO input'!W80 -> 0 | X80: ='[3]Capex_FO input'!X80 -> 0 | Z80: ='[3]Capex_FO input'!Z80 -> 0 | AA80: ='[3]Capex_FO input'!AA80 -> 0 | AB80: ='[3]Capex_FO input'!AB80 -> 0 | AC80: ='[3]Capex_FO input'!AC80 -> 0 | AD80: ='[3]Capex_FO input'!AD80 -> 0 | AE80: ='[3]Capex_FO input'!AE80 -> 0 | AF80: ='[3]Capex_FO input'!AF80 -> 0 | AG80: ='[3]Capex_FO input'!AG80 -> 0 | AH80: ='[3]Capex_FO input'!AH80 -> 0 | AI80: ='[3]Capex_FO input'!AI80 -> 0 | AK80: ='[3]Capex_FO input'!AK80 -> 0 | AL80: ='[3]Capex_FO input'!AL80 -> 0 | AM80: ='[3]Capex_FO input'!AM80 -> 0 | AN80: ='[3]Capex_FO input'!AN80 -> 0 | AO80: ='[3]Capex_FO input'!AO80 -> 0 | AP80: ='[3]Capex_FO input'!AP80 -> 0 | AQ80: ='[3]Capex_FO input'!AQ80 -> 0 | AR80: ='[3]Capex_FO input'!AR80 -> 0 | AS80: ='[3]Capex_FO input'!AS80 -> 0 | AT80: ='[3]Capex_FO input'!AT80 -> 0 | AV80: 0 | AW80: 0 | AX80: 0 | AY80: 0 | AZ80: 0 | BA80: 0 | BB80: 0 | BC80: 0 | BD80: 0 | BE80: 0 | BG80: 0 | BH80: 0 | BI80: 0 | BJ80: 0 | BK80: 0 | BL80: 0 | BM80: 0 | BN80: 0 | BO80: 0 | BP80: 0 | BR80: =+IF($K80="Ongoing",AV80,IF(RIGHT($K80,2)=RIGHT(BR$39,2),SUM($AV80:AV80),0)+IF(RIGHT(BR$39,2)>RIGHT($K80,2),AV80,0)) -> 0 | BS80: =+IF($K80="Ongoing",AW80,IF(RIGHT($K80,2)=RIGHT(BS$39,2),SUM($AV80:AW80),0)+IF(RIGHT(BS$39,2)>RIGHT($K80,2),AW80,0)) -> 0 | BT80: =+IF($K80="Ongoing",AX80,IF(RIGHT($K80,2)=RIGHT(BT$39,2),SUM($AV80:AX80),0)+IF(RIGHT(BT$39,2)>RIGHT($K80,2),AX80,0)) -> 0 | BU80: =+IF($K80="Ongoing",AY80,IF(RIGHT($K80,2)=RIGHT(BU$39,2),SUM($AV80:AY80),0)+IF(RIGHT(BU$39,2)>RIGHT($K80,2),AY80,0)) -> 0 | BV80: =+IF($K80="Ongoing",AZ80,IF(RIGHT($K80,2)=RIGHT(BV$39,2),SUM($AV80:AZ80),0)+IF(RIGHT(BV$39,2)>RIGHT($K80,2),AZ80,0)) -> 0 | BW80: =+IF($K80="Ongoing",BA80,IF(RIGHT($K80,2)=RIGHT(BW$39,2),SUM($AV80:BA80),0)+IF(RIGHT(BW$39,2)>RIGHT($K80,2),BA80,0)) -> 0 | BX80: =+IF($K80="Ongoing",BB80,IF(RIGHT($K80,2)=RIGHT(BX$39,2),SUM($AV80:BB80),0)+IF(RIGHT(BX$39,2)>RIGHT($K80,2),BB80,0)) -> 0 | BY80: =+IF($K80="Ongoing",BC80,IF(RIGHT($K80,2)=RIGHT(BY$39,2),SUM($AV80:BC80),0)+IF(RIGHT(BY$39,2)>RIGHT($K80,2),BC80,0)) -> 0 | BZ80: =+IF($K80="Ongoing",BD80,IF(RIGHT($K80,2)=RIGHT(BZ$39,2),SUM($AV80:BD80),0)+IF(RIGHT(BZ$39,2)>RIGHT($K80,2),BD80,0)) -> 0 | CA80: =+IF($K80="Ongoing",BE80,IF(RIGHT($K80,2)=RIGHT(CA$39,2),SUM($AV80:BE80),0)+IF(RIGHT(CA$39,2)>RIGHT($K80,2),BE80,0)) -> 0 | CC80: =+O80*KeyAssumptionsPriceControl_FO!AC$15 -> 0 | CD80: =+P80*KeyAssumptionsPriceControl_FO!AD$15 -> 0 | CE80: =+Q80*KeyAssumptionsPriceControl_FO!AE$15 -> 0 | CF80: =+R80*KeyAssumptionsPriceControl_FO!AF$15 -> 0 | CG80: =+S80*KeyAssumptionsPriceControl_FO!AG$15 -> 0 | CH80: =+T80*KeyAssumptionsPriceControl_FO!AH$15 -> 0 | CI80: =+U80*KeyAssumptionsPriceControl_FO!AI$15 -> 0 | CJ80: =+V80*KeyAssumptionsPriceControl_FO!AJ$15 -> 0 | CK80: =+W80*KeyAssumptionsPriceControl_FO!AK$15 -> 0 | CL80: =+X80*KeyAssumptionsPriceControl_FO!AL$15 -> 0 | CN80: 0 | CO80: 0 | CP80: 0 | CQ80: 0 | CR80: 0 | CS80: 0 | CT80: 0 | CU80: 0 | CV80: 0 | CW80: 0
C81: ='[3]Capex_FO input'!C81 -> [Capex Item - Significant Project / Capital Program / Other Capex] | D81: ='[3]Capex_FO input'!D76 -> 0 | E81: ='[3]Capex_FO input'!E81 -> [Service] | F81: ='[3]Capex_FO input'!F81 -> [Major Cost Driver] | G81: ='[3]Capex_FO input'!G81 -> [Asset category] | H81: ='[3]Capex_FO input'!H81 -> [Capital type] | I81: ='[3]Capex_FO input'!I81 -> 0 | J81: ='[3]Capex_FO input'!J81 -> Straight line | K81: ='[3]Capex_FO input'!K81 -> [Year finalised?] | L81: ='[3]Capex_FO input'!L81 -> 0 | M81: ='[3]Capex_FO input'!M81 -> 0 | O81: ='[3]Capex_FO input'!O81 -> 0 | P81: ='[3]Capex_FO input'!P81 -> 0 | Q81: ='[3]Capex_FO input'!Q81 -> 0 | R81: ='[3]Capex_FO input'!R81 -> 0 | S81: ='[3]Capex_FO input'!S81 -> 0 | T81: ='[3]Capex_FO input'!T81 -> 0 | U81: ='[3]Capex_FO input'!U81 -> 0 | V81: ='[3]Capex_FO input'!V81 -> 0 | W81: ='[3]Capex_FO input'!W81 -> 0 | X81: ='[3]Capex_FO input'!X81 -> 0 | Z81: ='[3]Capex_FO input'!Z81 -> 0 | AA81: ='[3]Capex_FO input'!AA81 -> 0 | AB81: ='[3]Capex_FO input'!AB81 -> 0 | AC81: ='[3]Capex_FO input'!AC81 -> 0 | AD81: ='[3]Capex_FO input'!AD81 -> 0 | AE81: ='[3]Capex_FO input'!AE81 -> 0 | AF81: ='[3]Capex_FO input'!AF81 -> 0 | AG81: ='[3]Capex_FO input'!AG81 -> 0 | AH81: ='[3]Capex_FO input'!AH81 -> 0 | AI81: ='[3]Capex_FO input'!AI81 -> 0 | AK81: ='[3]Capex_FO input'!AK81 -> 0 | AL81: ='[3]Capex_FO input'!AL81 -> 0 | AM81: ='[3]Capex_FO input'!AM81 -> 0 | AN81: ='[3]Capex_FO input'!AN81 -> 0 | AO81: ='[3]Capex_FO input'!AO81 -> 0 | AP81: ='[3]Capex_FO input'!AP81 -> 0 | AQ81: ='[3]Capex_FO input'!AQ81 -> 0 | AR81: ='[3]Capex_FO input'!AR81 -> 0 | AS81: ='[3]Capex_FO input'!AS81 -> 0 | AT81: ='[3]Capex_FO input'!AT81 -> 0 | AV81: 0 | AW81: 0 | AX81: 0 | AY81: 0 | AZ81: 0 | BA81: 0 | BB81: 0 | BC81: 0 | BD81: 0 | BE81: 0 | BG81: 0 | BH81: 0 | BI81: 0 | BJ81: 0 | BK81: 0 | BL81: 0 | BM81: 0 | BN81: 0 | BO81: 0 | BP81: 0 | BR81: =+IF($K81="Ongoing",AV81,IF(RIGHT($K81,2)=RIGHT(BR$39,2),SUM($AV81:AV81),0)+IF(RIGHT(BR$39,2)>RIGHT($K81,2),AV81,0)) -> 0 | BS81: =+IF($K81="Ongoing",AW81,IF(RIGHT($K81,2)=RIGHT(BS$39,2),SUM($AV81:AW81),0)+IF(RIGHT(BS$39,2)>RIGHT($K81,2),AW81,0)) -> 0 | BT81: =+IF($K81="Ongoing",AX81,IF(RIGHT($K81,2)=RIGHT(BT$39,2),SUM($AV81:AX81),0)+IF(RIGHT(BT$39,2)>RIGHT($K81,2),AX81,0)) -> 0 | BU81: =+IF($K81="Ongoing",AY81,IF(RIGHT($K81,2)=RIGHT(BU$39,2),SUM($AV81:AY81),0)+IF(RIGHT(BU$39,2)>RIGHT($K81,2),AY81,0)) -> 0 | BV81: =+IF($K81="Ongoing",AZ81,IF(RIGHT($K81,2)=RIGHT(BV$39,2),SUM($AV81:AZ81),0)+IF(RIGHT(BV$39,2)>RIGHT($K81,2),AZ81,0)) -> 0 | BW81: =+IF($K81="Ongoing",BA81,IF(RIGHT($K81,2)=RIGHT(BW$39,2),SUM($AV81:BA81),0)+IF(RIGHT(BW$39,2)>RIGHT($K81,2),BA81,0)) -> 0 | BX81: =+IF($K81="Ongoing",BB81,IF(RIGHT($K81,2)=RIGHT(BX$39,2),SUM($AV81:BB81),0)+IF(RIGHT(BX$39,2)>RIGHT($K81,2),BB81,0)) -> 0 | BY81: =+IF($K81="Ongoing",BC81,IF(RIGHT($K81,2)=RIGHT(BY$39,2),SUM($AV81:BC81),0)+IF(RIGHT(BY$39,2)>RIGHT($K81,2),BC81,0)) -> 0 | BZ81: =+IF($K81="Ongoing",BD81,IF(RIGHT($K81,2)=RIGHT(BZ$39,2),SUM($AV81:BD81),0)+IF(RIGHT(BZ$39,2)>RIGHT($K81,2),BD81,0)) -> 0 | CA81: =+IF($K81="Ongoing",BE81,IF(RIGHT($K81,2)=RIGHT(CA$39,2),SUM($AV81:BE81),0)+IF(RIGHT(CA$39,2)>RIGHT($K81,2),BE81,0)) -> 0 | CC81: =+O81*KeyAssumptionsPriceControl_FO!AC$15 -> 0 | CD81: =+P81*KeyAssumptionsPriceControl_FO!AD$15 -> 0 | CE81: =+Q81*KeyAssumptionsPriceControl_FO!AE$15 -> 0 | CF81: =+R81*KeyAssumptionsPriceControl_FO!AF$15 -> 0 | CG81: =+S81*KeyAssumptionsPriceControl_FO!AG$15 -> 0 | CH81: =+T81*KeyAssumptionsPriceControl_FO!AH$15 -> 0 | CI81: =+U81*KeyAssumptionsPriceControl_FO!AI$15 -> 0 | CJ81: =+V81*KeyAssumptionsPriceControl_FO!AJ$15 -> 0 | CK81: =+W81*KeyAssumptionsPriceControl_FO!AK$15 -> 0 | CL81: =+X81*KeyAssumptionsPriceControl_FO!AL$15 -> 0 | CN81: 0 | CO81: 0 | CP81: 0 | CQ81: 0 | CR81: 0 | CS81: 0 | CT81: 0 | CU81: 0 | CV81: 0 | CW81: 0
